Workbook

Sheet Библиотечный новый (hidden)
A1: Рассмотрено на комиссии по сохранности фондов Протокол №_____________ от "______"_______________20____г. | W1: Утверждаю директор МКУК «Здинская ЦБС» Деменева Р.В.
A8: АКТ №______
A9: =CONCATENATE("«",'Технический лист'!F19,"» ",'Технический лист'!G19," ",'Технический лист'!H19," г.") -> «13» октября 2023 г.
A11: Настоящий акт составлен | L11: ='Форма ВВОДА'!B5 -> Кривошаповой Л. А. библиотекарь
L12: (фамилии, имена, отчества и должности лиц)
A13: Комиссия | F13: =CONCATENATE('Технический лист'!E15," ",'Технический лист'!E16," ",'Технический лист'!E17) -> зав. ДБ Кузнецова Е. Е. зав. сек. ОКиО Гордеева В. И. редактор Брянская О. В.
A14: об исключении из библиотечного фонда | R14: ='Форма ВВОДА'!B4 -> Вер-Урюмской сельской библиотеки
R15: (наименование библиотеки или ее подразделения)
A16: « | B16: =SUM(Данные[Кол-во экз.]) -> 0 | D16: » экземпляров | K16: ='Форма ВВОДА'!B2 -> книг
K17: (указать вид документов)
A18: на сумму | F18: ='Форма ВВОДА'!B23 -> 
A19: по причине | F19: ='Форма ВВОДА'!B3 -> ветхие
F20: (указать причину исключения)
A21: список выбывших | I21: ='Форма ВВОДА'!B2 -> книг
I22: (указать вид документов)
A23: На « | E23: » листах прилагается
A25: всего | E25: книг | H25: брошюры | L25: ОПЛ | P25: 2, 5 | S25: 3 | W25: 4 | Y25: 75, 85 | AB25: 81, 83 | AE25: Худ. | AI25: Дет.
A26: =TEXT(SUM(Данные[Кол-во экз.]),0) -> 0 | E26: =IF('Форма ВВОДА'!B2="книг",A26,"") -> 0 | H26: =IF('Форма ВВОДА'!B2="брошюр",A26,"") ->  | L26: ='Форма ВВОДА'!B13 ->  | P26: ='Форма ВВОДА'!B14 ->  | S26: ='Форма ВВОДА'!B15 ->  | V26: ='Форма ВВОДА'!B16 ->  | Y26: ='Форма ВВОДА'!B17 ->  | AB26: ='Форма ВВОДА'!B18 ->  | AE26: ='Форма ВВОДА'!B19 ->  | AI26: ='Форма ВВОДА'!B20 -> 
A30: Подписи:
A31: Кузнецова Е. Е.
A32: Гордеева В. И.
A33: Брянская О. В.
A35: Список по акту №_________
A37: № пп | C37: Инв. № | F37: Штрих код | I37: Автор, заглавие | U37: Год издания | W37: Отдел | Y37: Цена руб.коп. | AD37: Коэфф. Переоценки | AF37: Кол-во экз. | AH37: Стоимость
A41: =IFERROR(INDEX(Данные[№пп],AM41,1),"") ->  | C41: =IF(OR(ISERR( INDEX(Данные[Инв. №],$AM41,1)), ISBLANK( INDEX(Данные[Инв. №],$AM41,1))), "",INDEX(Данные[Инв. №],$AM41,1)) ->  | F41: =IF(OR(ISERR(INDEX(Данные[Штрих код первые 6 цифр],$AM41,1)),ISBLANK(INDEX(Данные[Штрих код первые 6 цифр],$AM41,1))),"",LEFT(INDEX(Данные[Штрих код первые 6 цифр],$AM41,1),6)) ->  | I41: =IF(OR(ISERR( INDEX(Данные[Автор, заглавие],$AM41,1)), ISBLANK( INDEX(Данные[Автор, заглавие],$AM41,1))), "",LEFT(INDEX(Данные[Автор, заглавие],$AM41,1),28)) ->  | U41: =IF(OR(ISERR( INDEX(Данные[Год издания],$AM41,1)), ISBLANK( INDEX(Данные[Год издания],$AM41,1))), "",TEXT(INDEX(Данные[Год издания],$AM41,1),0)) ->  | W41: =IF(OR(ISERR( INDEX(Данные[Отдел],$AM41,1)), ISBLANK( INDEX(Данные[Отдел],$AM41,1))), "",TEXT(INDEX(Данные[Отдел],$AM41,1),0)) ->  | Y41: =IF(OR(ISERR( INDEX(Данные[Цена],$AM41,1)), ISBLANK( INDEX(Данные[Цена],$AM41,1))), "",INDEX(Данные[Цена],$AM41,1)) ->  | AD41: =IFERROR(INDEX(Данные[Коэффициент переоценки],$AM41,1),"") ->  | AF41: =IF(OR(ISERR( INDEX(Данные[Кол-во экз.],$AM41,1)), ISBLANK( INDEX(Данные[Кол-во экз.],$AM41,1))), "",INDEX(Данные[Кол-во экз.],$AM41,1)) ->  | AH41: =IF(OR(ISERR(INDEX(Данные[Автор, заглавие],$AM41,1)),ISBLANK(INDEX(Данные[Автор, заглавие],$AM41,1))),"",INDEX(Данные[Стои-мость],$AM41,1)) ->  | AM41: =ROW()-40 -> 1
A42: =IFERROR(INDEX(Данные[№пп],AM42,1),"") ->  | C42: =IF(OR(ISERR( INDEX(Данные[Инв. №],$AM42,1)), ISBLANK( INDEX(Данные[Инв. №],$AM42,1))), "",INDEX(Данные[Инв. №],$AM42,1)) ->  | F42: =IF(OR(ISERR(INDEX(Данные[Штрих код первые 6 цифр],$AM42,1)),ISBLANK(INDEX(Данные[Штрих код первые 6 цифр],$AM42,1))),"",LEFT(INDEX(Данные[Штрих код первые 6 цифр],$AM42,1),6)) ->  | I42: =IF(OR(ISERR( INDEX(Данные[Автор, заглавие],$AM42,1)), ISBLANK( INDEX(Данные[Автор, заглавие],$AM42,1))), "",LEFT(INDEX(Данные[Автор, заглавие],$AM42,1),28)) ->  | U42: =IF(OR(ISERR( INDEX(Данные[Год издания],$AM42,1)), ISBLANK( INDEX(Данные[Год издания],$AM42,1))), "",TEXT(INDEX(Данные[Год издания],$AM42,1),0)) ->  | W42: =IF(OR(ISERR( INDEX(Данные[Отдел],$AM42,1)), ISBLANK( INDEX(Данные[Отдел],$AM42,1))), "",TEXT(INDEX(Данные[Отдел],$AM42,1),0)) ->  | Y42: =IF(OR(ISERR( INDEX(Данные[Цена],$AM42,1)), ISBLANK( INDEX(Данные[Цена],$AM42,1))), "",INDEX(Данные[Цена],$AM42,1)) ->  | AD42: =IFERROR(INDEX(Данные[Коэффициент переоценки],$AM42,1),"") ->  | AF42: =IF(OR(ISERR( INDEX(Данные[Кол-во экз.],$AM42,1)), ISBLANK( INDEX(Данные[Кол-во экз.],$AM42,1))), "",INDEX(Данные[Кол-во экз.],$AM42,1)) ->  | AH42: =IF(OR(ISERR(INDEX(Данные[Автор, заглавие],$AM42,1)),ISBLANK(INDEX(Данные[Автор, заглавие],$AM42,1))),"",INDEX(Данные[Стои-мость],$AM42,1)) ->  | AM42: =ROW()-40 -> 2
A43: =IFERROR(INDEX(Данные[№пп],AM43,1),"") ->  | C43: =IF(OR(ISERR( INDEX(Данные[Инв. №],$AM43,1)), ISBLANK( INDEX(Данные[Инв. №],$AM43,1))), "",INDEX(Данные[Инв. №],$AM43,1)) ->  | F43: =IF(OR(ISERR(INDEX(Данные[Штрих код первые 6 цифр],$AM43,1)),ISBLANK(INDEX(Данные[Штрих код первые 6 цифр],$AM43,1))),"",LEFT(INDEX(Данные[Штрих код первые 6 цифр],$AM43,1),6)) ->  | I43: =IF(OR(ISERR( INDEX(Данные[Автор, заглавие],$AM43,1)), ISBLANK( INDEX(Данные[Автор, заглавие],$AM43,1))), "",LEFT(INDEX(Данные[Автор, заглавие],$AM43,1),28)) ->  | U43: =IF(OR(ISERR( INDEX(Данные[Год издания],$AM43,1)), ISBLANK( INDEX(Данные[Год издания],$AM43,1))), "",TEXT(INDEX(Данные[Год издания],$AM43,1),0)) ->  | W43: =IF(OR(ISERR( INDEX(Данные[Отдел],$AM43,1)), ISBLANK( INDEX(Данные[Отдел],$AM43,1))), "",TEXT(INDEX(Данные[Отдел],$AM43,1),0)) ->  | Y43: =IF(OR(ISERR( INDEX(Данные[Цена],$AM43,1)), ISBLANK( INDEX(Данные[Цена],$AM43,1))), "",INDEX(Данные[Цена],$AM43,1)) ->  | AD43: =IFERROR(INDEX(Данные[Коэффициент переоценки],$AM43,1),"") ->  | AF43: =IF(OR(ISERR( INDEX(Данные[Кол-во экз.],$AM43,1)), ISBLANK( INDEX(Данные[Кол-во экз.],$AM43,1))), "",INDEX(Данные[Кол-во экз.],$AM43,1)) ->  | AH43: =IF(OR(ISERR(INDEX(Данные[Автор, заглавие],$AM43,1)),ISBLANK(INDEX(Данные[Автор, заглавие],$AM43,1))),"",INDEX(Данные[Стои-мость],$AM43,1)) ->  | AM43: 3
A44: =IFERROR(INDEX(Данные[№пп],AM44,1),"") ->  | C44: =IF(OR(ISERR( INDEX(Данные[Инв. №],$AM44,1)), ISBLANK( INDEX(Данные[Инв. №],$AM44,1))), "",INDEX(Данные[Инв. №],$AM44,1)) ->  | F44: =IF(OR(ISERR(INDEX(Данные[Штрих код первые 6 цифр],$AM44,1)),ISBLANK(INDEX(Данные[Штрих код первые 6 цифр],$AM44,1))),"",LEFT(INDEX(Данные[Штрих код первые 6 цифр],$AM44,1),6)) ->  | I44: =IF(OR(ISERR( INDEX(Данные[Автор, заглавие],$AM44,1)), ISBLANK( INDEX(Данные[Автор, заглавие],$AM44,1))), "",LEFT(INDEX(Данные[Автор, заглавие],$AM44,1),28)) ->  | U44: =IF(OR(ISERR( INDEX(Данные[Год издания],$AM44,1)), ISBLANK( INDEX(Данные[Год издания],$AM44,1))), "",TEXT(INDEX(Данные[Год издания],$AM44,1),0)) ->  | W44: =IF(OR(ISERR( INDEX(Данные[Отдел],$AM44,1)), ISBLANK( INDEX(Данные[Отдел],$AM44,1))), "",TEXT(INDEX(Данные[Отдел],$AM44,1),0)) ->  | Y44: =IF(OR(ISERR( INDEX(Данные[Цена],$AM44,1)), ISBLANK( INDEX(Данные[Цена],$AM44,1))), "",INDEX(Данные[Цена],$AM44,1)) ->  | AD44: =IFERROR(INDEX(Данные[Коэффициент переоценки],$AM44,1),"") ->  | AF44: =IF(OR(ISERR( INDEX(Данные[Кол-во экз.],$AM44,1)), ISBLANK( INDEX(Данные[Кол-во экз.],$AM44,1))), "",INDEX(Данные[Кол-во экз.],$AM44,1)) ->  | AH44: =IF(OR(ISERR(INDEX(Данные[Автор, заглавие],$AM44,1)),ISBLANK(INDEX(Данные[Автор, заглавие],$AM44,1))),"",INDEX(Данные[Стои-мость],$AM44,1)) ->  | AM44: 4
A45: =IFERROR(INDEX(Данные[№пп],AM45,1),"") ->  | C45: =IF(OR(ISERR( INDEX(Данные[Инв. №],$AM45,1)), ISBLANK( INDEX(Данные[Инв. №],$AM45,1))), "",INDEX(Данные[Инв. №],$AM45,1)) ->  | F45: =IF(OR(ISERR(INDEX(Данные[Штрих код первые 6 цифр],$AM45,1)),ISBLANK(INDEX(Данные[Штрих код первые 6 цифр],$AM45,1))),"",LEFT(INDEX(Данные[Штрих код первые 6 цифр],$AM45,1),6)) ->  | I45: =IF(OR(ISERR( INDEX(Данные[Автор, заглавие],$AM45,1)), ISBLANK( INDEX(Данные[Автор, заглавие],$AM45,1))), "",LEFT(INDEX(Данные[Автор, заглавие],$AM45,1),28)) ->  | U45: =IF(OR(ISERR( INDEX(Данные[Год издания],$AM45,1)), ISBLANK( INDEX(Данные[Год издания],$AM45,1))), "",TEXT(INDEX(Данные[Год издания],$AM45,1),0)) ->  | W45: =IF(OR(ISERR( INDEX(Данные[Отдел],$AM45,1)), ISBLANK( INDEX(Данные[Отдел],$AM45,1))), "",TEXT(INDEX(Данные[Отдел],$AM45,1),0)) ->  | Y45: =IF(OR(ISERR( INDEX(Данные[Цена],$AM45,1)), ISBLANK( INDEX(Данные[Цена],$AM45,1))), "",INDEX(Данные[Цена],$AM45,1)) ->  | AD45: =IFERROR(INDEX(Данные[Коэффициент переоценки],$AM45,1),"") ->  | AF45: =IF(OR(ISERR( INDEX(Данные[Кол-во экз.],$AM45,1)), ISBLANK( INDEX(Данные[Кол-во экз.],$AM45,1))), "",INDEX(Данные[Кол-во экз.],$AM45,1)) ->  | AH45: =IF(OR(ISERR(INDEX(Данные[Автор, заглавие],$AM45,1)),ISBLANK(INDEX(Данные[Автор, заглавие],$AM45,1))),"",INDEX(Данные[Стои-мость],$AM45,1)) ->  | AM45: 5
A46: =IFERROR(INDEX(Данные[№пп],AM46,1),"") ->  | C46: =IF(OR(ISERR( INDEX(Данные[Инв. №],$AM46,1)), ISBLANK( INDEX(Данные[Инв. №],$AM46,1))), "",INDEX(Данные[Инв. №],$AM46,1)) ->  | F46: =IF(OR(ISERR(INDEX(Данные[Штрих код первые 6 цифр],$AM46,1)),ISBLANK(INDEX(Данные[Штрих код первые 6 цифр],$AM46,1))),"",LEFT(INDEX(Данные[Штрих код первые 6 цифр],$AM46,1),6)) ->  | I46: =IF(OR(ISERR( INDEX(Данные[Автор, заглавие],$AM46,1)), ISBLANK( INDEX(Данные[Автор, заглавие],$AM46,1))), "",LEFT(INDEX(Данные[Автор, заглавие],$AM46,1),28)) ->  | U46: =IF(OR(ISERR( INDEX(Данные[Год издания],$AM46,1)), ISBLANK( INDEX(Данные[Год издания],$AM46,1))), "",TEXT(INDEX(Данные[Год издания],$AM46,1),0)) ->  | W46: =IF(OR(ISERR( INDEX(Данные[Отдел],$AM46,1)), ISBLANK( INDEX(Данные[Отдел],$AM46,1))), "",TEXT(INDEX(Данные[Отдел],$AM46,1),0)) ->  | Y46: =IF(OR(ISERR( INDEX(Данные[Цена],$AM46,1)), ISBLANK( INDEX(Данные[Цена],$AM46,1))), "",INDEX(Данные[Цена],$AM46,1)) ->  | AD46: =IFERROR(INDEX(Данные[Коэффициент переоценки],$AM46,1),"") ->  | AF46: =IF(OR(ISERR( INDEX(Данные[Кол-во экз.],$AM46,1)), ISBLANK( INDEX(Данные[Кол-во экз.],$AM46,1))), "",INDEX(Данные[Кол-во экз.],$AM46,1)) ->  | AH46: =IF(OR(ISERR(INDEX(Данные[Автор, заглавие],$AM46,1)),ISBLANK(INDEX(Данные[Автор, заглавие],$AM46,1))),"",INDEX(Данные[Стои-мость],$AM46,1)) ->  | AM46: 6
A47: =IFERROR(INDEX(Данные[№пп],AM47,1),"") ->  | C47: =IF(OR(ISERR( INDEX(Данные[Инв. №],$AM47,1)), ISBLANK( INDEX(Данные[Инв. №],$AM47,1))), "",INDEX(Данные[Инв. №],$AM47,1)) ->  | F47: =IF(OR(ISERR(INDEX(Данные[Штрих код первые 6 цифр],$AM47,1)),ISBLANK(INDEX(Данные[Штрих код первые 6 цифр],$AM47,1))),"",LEFT(INDEX(Данные[Штрих код первые 6 цифр],$AM47,1),6)) ->  | I47: =IF(OR(ISERR( INDEX(Данные[Автор, заглавие],$AM47,1)), ISBLANK( INDEX(Данные[Автор, заглавие],$AM47,1))), "",LEFT(INDEX(Данные[Автор, заглавие],$AM47,1),28)) ->  | U47: =IF(OR(ISERR( INDEX(Данные[Год издания],$AM47,1)), ISBLANK( INDEX(Данные[Год издания],$AM47,1))), "",TEXT(INDEX(Данные[Год издания],$AM47,1),0)) ->  | W47: =IF(OR(ISERR( INDEX(Данные[Отдел],$AM47,1)), ISBLANK( INDEX(Данные[Отдел],$AM47,1))), "",TEXT(INDEX(Данные[Отдел],$AM47,1),0)) ->  | Y47: =IF(OR(ISERR( INDEX(Данные[Цена],$AM47,1)), ISBLANK( INDEX(Данные[Цена],$AM47,1))), "",INDEX(Данные[Цена],$AM47,1)) ->  | AD47: =IFERROR(INDEX(Данные[Коэффициент переоценки],$AM47,1),"") ->  | AF47: =IF(OR(ISERR( INDEX(Данные[Кол-во экз.],$AM47,1)), ISBLANK( INDEX(Данные[Кол-во экз.],$AM47,1))), "",INDEX(Данные[Кол-во экз.],$AM47,1)) ->  | AH47: =IF(OR(ISERR(INDEX(Данные[Автор, заглавие],$AM47,1)),ISBLANK(INDEX(Данные[Автор, заглавие],$AM47,1))),"",INDEX(Данные[Стои-мость],$AM47,1)) ->  | AM47: 7
A48: =IFERROR(INDEX(Данные[№пп],AM48,1),"") ->  | C48: =IF(OR(ISERR( INDEX(Данные[Инв. №],$AM48,1)), ISBLANK( INDEX(Данные[Инв. №],$AM48,1))), "",INDEX(Данные[Инв. №],$AM48,1)) ->  | F48: =IF(OR(ISERR(INDEX(Данные[Штрих код первые 6 цифр],$AM48,1)),ISBLANK(INDEX(Данные[Штрих код первые 6 цифр],$AM48,1))),"",LEFT(INDEX(Данные[Штрих код первые 6 цифр],$AM48,1),6)) ->  | I48: =IF(OR(ISERR( INDEX(Данные[Автор, заглавие],$AM48,1)), ISBLANK( INDEX(Данные[Автор, заглавие],$AM48,1))), "",LEFT(INDEX(Данные[Автор, заглавие],$AM48,1),28)) ->  | U48: =IF(OR(ISERR( INDEX(Данные[Год издания],$AM48,1)), ISBLANK( INDEX(Данные[Год издания],$AM48,1))), "",TEXT(INDEX(Данные[Год издания],$AM48,1),0)) ->  | W48: =IF(OR(ISERR( INDEX(Данные[Отдел],$AM48,1)), ISBLANK( INDEX(Данные[Отдел],$AM48,1))), "",TEXT(INDEX(Данные[Отдел],$AM48,1),0)) ->  | Y48: =IF(OR(ISERR( INDEX(Данные[Цена],$AM48,1)), ISBLANK( INDEX(Данные[Цена],$AM48,1))), "",INDEX(Данные[Цена],$AM48,1)) ->  | AD48: =IFERROR(INDEX(Данные[Коэффициент переоценки],$AM48,1),"") ->  | AF48: =IF(OR(ISERR( INDEX(Данные[Кол-во экз.],$AM48,1)), ISBLANK( INDEX(Данные[Кол-во экз.],$AM48,1))), "",INDEX(Данные[Кол-во экз.],$AM48,1)) ->  | AH48: =IF(OR(ISERR(INDEX(Данные[Автор, заглавие],$AM48,1)),ISBLANK(INDEX(Данные[Автор, заглавие],$AM48,1))),"",INDEX(Данные[Стои-мость],$AM48,1)) ->  | AM48: 8
A49: =IFERROR(INDEX(Данные[№пп],AM49,1),"") ->  | C49: =IF(OR(ISERR( INDEX(Данные[Инв. №],$AM49,1)), ISBLANK( INDEX(Данные[Инв. №],$AM49,1))), "",INDEX(Данные[Инв. №],$AM49,1)) ->  | F49: =IF(OR(ISERR(INDEX(Данные[Штрих код первые 6 цифр],$AM49,1)),ISBLANK(INDEX(Данные[Штрих код первые 6 цифр],$AM49,1))),"",LEFT(INDEX(Данные[Штрих код первые 6 цифр],$AM49,1),6)) ->  | I49: =IF(OR(ISERR( INDEX(Данные[Автор, заглавие],$AM49,1)), ISBLANK( INDEX(Данные[Автор, заглавие],$AM49,1))), "",LEFT(INDEX(Данные[Автор, заглавие],$AM49,1),28)) ->  | U49: =IF(OR(ISERR( INDEX(Данные[Год издания],$AM49,1)), ISBLANK( INDEX(Данные[Год издания],$AM49,1))), "",TEXT(INDEX(Данные[Год издания],$AM49,1),0)) ->  | W49: =IF(OR(ISERR( INDEX(Данные[Отдел],$AM49,1)), ISBLANK( INDEX(Данные[Отдел],$AM49,1))), "",TEXT(INDEX(Данные[Отдел],$AM49,1),0)) ->  | Y49: =IF(OR(ISERR( INDEX(Данные[Цена],$AM49,1)), ISBLANK( INDEX(Данные[Цена],$AM49,1))), "",INDEX(Данные[Цена],$AM49,1)) ->  | AD49: =IFERROR(INDEX(Данные[Коэффициент переоценки],$AM49,1),"") ->  | AF49: =IF(OR(ISERR( INDEX(Данные[Кол-во экз.],$AM49,1)), ISBLANK( INDEX(Данные[Кол-во экз.],$AM49,1))), "",INDEX(Данные[Кол-во экз.],$AM49,1)) ->  | AH49: =IF(OR(ISERR(INDEX(Данные[Автор, заглавие],$AM49,1)),ISBLANK(INDEX(Данные[Автор, заглавие],$AM49,1))),"",INDEX(Данные[Стои-мость],$AM49,1)) ->  | AM49: 9
A50: =IFERROR(INDEX(Данные[№пп],AM50,1),"") ->  | C50: =IF(OR(ISERR( INDEX(Данные[Инв. №],$AM50,1)), ISBLANK( INDEX(Данные[Инв. №],$AM50,1))), "",INDEX(Данные[Инв. №],$AM50,1)) ->  | F50: =IF(OR(ISERR(INDEX(Данные[Штрих код первые 6 цифр],$AM50,1)),ISBLANK(INDEX(Данные[Штрих код первые 6 цифр],$AM50,1))),"",LEFT(INDEX(Данные[Штрих код первые 6 цифр],$AM50,1),6)) ->  | I50: =IF(OR(ISERR( INDEX(Данные[Автор, заглавие],$AM50,1)), ISBLANK( INDEX(Данные[Автор, заглавие],$AM50,1))), "",LEFT(INDEX(Данные[Автор, заглавие],$AM50,1),28)) ->  | U50: =IF(OR(ISERR( INDEX(Данные[Год издания],$AM50,1)), ISBLANK( INDEX(Данные[Год издания],$AM50,1))), "",TEXT(INDEX(Данные[Год издания],$AM50,1),0)) ->  | W50: =IF(OR(ISERR( INDEX(Данные[Отдел],$AM50,1)), ISBLANK( INDEX(Данные[Отдел],$AM50,1))), "",TEXT(INDEX(Данные[Отдел],$AM50,1),0)) ->  | Y50: =IF(OR(ISERR( INDEX(Данные[Цена],$AM50,1)), ISBLANK( INDEX(Данные[Цена],$AM50,1))), "",INDEX(Данные[Цена],$AM50,1)) ->  | AD50: =IFERROR(INDEX(Данные[Коэффициент переоценки],$AM50,1),"") ->  | AF50: =IF(OR(ISERR( INDEX(Данные[Кол-во экз.],$AM50,1)), ISBLANK( INDEX(Данные[Кол-во экз.],$AM50,1))), "",INDEX(Данные[Кол-во экз.],$AM50,1)) ->  | AH50: =IF(OR(ISERR(INDEX(Данные[Автор, заглавие],$AM50,1)),ISBLANK(INDEX(Данные[Автор, заглавие],$AM50,1))),"",INDEX(Данные[Стои-мость],$AM50,1)) ->  | AM50: 10
A51: =IFERROR(INDEX(Данные[№пп],AM51,1),"") ->  | C51: =IF(OR(ISERR( INDEX(Данные[Инв. №],$AM51,1)), ISBLANK( INDEX(Данные[Инв. №],$AM51,1))), "",INDEX(Данные[Инв. №],$AM51,1)) ->  | F51: =IF(OR(ISERR(INDEX(Данные[Штрих код первые 6 цифр],$AM51,1)),ISBLANK(INDEX(Данные[Штрих код первые 6 цифр],$AM51,1))),"",LEFT(INDEX(Данные[Штрих код первые 6 цифр],$AM51,1),6)) ->  | I51: =IF(OR(ISERR( INDEX(Данные[Автор, заглавие],$AM51,1)), ISBLANK( INDEX(Данные[Автор, заглавие],$AM51,1))), "",LEFT(INDEX(Данные[Автор, заглавие],$AM51,1),28)) ->  | U51: =IF(OR(ISERR( INDEX(Данные[Год издания],$AM51,1)), ISBLANK( INDEX(Данные[Год издания],$AM51,1))), "",TEXT(INDEX(Данные[Год издания],$AM51,1),0)) ->  | W51: =IF(OR(ISERR( INDEX(Данные[Отдел],$AM51,1)), ISBLANK( INDEX(Данные[Отдел],$AM51,1))), "",TEXT(INDEX(Данные[Отдел],$AM51,1),0)) ->  | Y51: =IF(OR(ISERR( INDEX(Данные[Цена],$AM51,1)), ISBLANK( INDEX(Данные[Цена],$AM51,1))), "",INDEX(Данные[Цена],$AM51,1)) ->  | AD51: =IFERROR(INDEX(Данные[Коэффициент переоценки],$AM51,1),"") ->  | AF51: =IF(OR(ISERR( INDEX(Данные[Кол-во экз.],$AM51,1)), ISBLANK( INDEX(Данные[Кол-во экз.],$AM51,1))), "",INDEX(Данные[Кол-во экз.],$AM51,1)) ->  | AH51: =IF(OR(ISERR(INDEX(Данные[Автор, заглавие],$AM51,1)),ISBLANK(INDEX(Данные[Автор, заглавие],$AM51,1))),"",INDEX(Данные[Стои-мость],$AM51,1)) ->  | AM51: 11
A52: =IFERROR(INDEX(Данные[№пп],AM52,1),"") ->  | C52: =IF(OR(ISERR( INDEX(Данные[Инв. №],$AM52,1)), ISBLANK( INDEX(Данные[Инв. №],$AM52,1))), "",INDEX(Данные[Инв. №],$AM52,1)) ->  | F52: =IF(OR(ISERR(INDEX(Данные[Штрих код первые 6 цифр],$AM52,1)),ISBLANK(INDEX(Данные[Штрих код первые 6 цифр],$AM52,1))),"",LEFT(INDEX(Данные[Штрих код первые 6 цифр],$AM52,1),6)) ->  | I52: =IF(OR(ISERR( INDEX(Данные[Автор, заглавие],$AM52,1)), ISBLANK( INDEX(Данные[Автор, заглавие],$AM52,1))), "",LEFT(INDEX(Данные[Автор, заглавие],$AM52,1),28)) ->  | U52: =IF(OR(ISERR( INDEX(Данные[Год издания],$AM52,1)), ISBLANK( INDEX(Данные[Год издания],$AM52,1))), "",TEXT(INDEX(Данные[Год издания],$AM52,1),0)) ->  | W52: =IF(OR(ISERR( INDEX(Данные[Отдел],$AM52,1)), ISBLANK( INDEX(Данные[Отдел],$AM52,1))), "",TEXT(INDEX(Данные[Отдел],$AM52,1),0)) ->  | Y52: =IF(OR(ISERR( INDEX(Данные[Цена],$AM52,1)), ISBLANK( INDEX(Данные[Цена],$AM52,1))), "",INDEX(Данные[Цена],$AM52,1)) ->  | AD52: =IFERROR(INDEX(Данные[Коэффициент переоценки],$AM52,1),"") ->  | AF52: =IF(OR(ISERR( INDEX(Данные[Кол-во экз.],$AM52,1)), ISBLANK( INDEX(Данные[Кол-во экз.],$AM52,1))), "",INDEX(Данные[Кол-во экз.],$AM52,1)) ->  | AH52: =IF(OR(ISERR(INDEX(Данные[Автор, заглавие],$AM52,1)),ISBLANK(INDEX(Данные[Автор, заглавие],$AM52,1))),"",INDEX(Данные[Стои-мость],$AM52,1)) ->  | AM52: 12
A53: =IFERROR(INDEX(Данные[№пп],AM53,1),"") ->  | C53: =IF(OR(ISERR( INDEX(Данные[Инв. №],$AM53,1)), ISBLANK( INDEX(Данные[Инв. №],$AM53,1))), "",INDEX(Данные[Инв. №],$AM53,1)) ->  | F53: =IF(OR(ISERR(INDEX(Данные[Штрих код первые 6 цифр],$AM53,1)),ISBLANK(INDEX(Данные[Штрих код первые 6 цифр],$AM53,1))),"",LEFT(INDEX(Данные[Штрих код первые 6 цифр],$AM53,1),6)) ->  | I53: =IF(OR(ISERR( INDEX(Данные[Автор, заглавие],$AM53,1)), ISBLANK( INDEX(Данные[Автор, заглавие],$AM53,1))), "",LEFT(INDEX(Данные[Автор, заглавие],$AM53,1),28)) ->  | U53: =IF(OR(ISERR( INDEX(Данные[Год издания],$AM53,1)), ISBLANK( INDEX(Данные[Год издания],$AM53,1))), "",TEXT(INDEX(Данные[Год издания],$AM53,1),0)) ->  | W53: =IF(OR(ISERR( INDEX(Данные[Отдел],$AM53,1)), ISBLANK( INDEX(Данные[Отдел],$AM53,1))), "",TEXT(INDEX(Данные[Отдел],$AM53,1),0)) ->  | Y53: =IF(OR(ISERR( INDEX(Данные[Цена],$AM53,1)), ISBLANK( INDEX(Данные[Цена],$AM53,1))), "",INDEX(Данные[Цена],$AM53,1)) ->  | AD53: =IFERROR(INDEX(Данные[Коэффициент переоценки],$AM53,1),"") ->  | AF53: =IF(OR(ISERR( INDEX(Данные[Кол-во экз.],$AM53,1)), ISBLANK( INDEX(Данные[Кол-во экз.],$AM53,1))), "",INDEX(Данные[Кол-во экз.],$AM53,1)) ->  | AH53: =IF(OR(ISERR(INDEX(Данные[Автор, заглавие],$AM53,1)),ISBLANK(INDEX(Данные[Автор, заглавие],$AM53,1))),"",INDEX(Данные[Стои-мость],$AM53,1)) ->  | AM53: 13
A54: =IFERROR(INDEX(Данные[№пп],AM54,1),"") ->  | C54: =IF(OR(ISERR( INDEX(Данные[Инв. №],$AM54,1)), ISBLANK( INDEX(Данные[Инв. №],$AM54,1))), "",INDEX(Данные[Инв. №],$AM54,1)) ->  | F54: =IF(OR(ISERR(INDEX(Данные[Штрих код первые 6 цифр],$AM54,1)),ISBLANK(INDEX(Данные[Штрих код первые 6 цифр],$AM54,1))),"",LEFT(INDEX(Данные[Штрих код первые 6 цифр],$AM54,1),6)) ->  | I54: =IF(OR(ISERR( INDEX(Данные[Автор, заглавие],$AM54,1)), ISBLANK( INDEX(Данные[Автор, заглавие],$AM54,1))), "",LEFT(INDEX(Данные[Автор, заглавие],$AM54,1),28)) ->  | U54: =IF(OR(ISERR( INDEX(Данные[Год издания],$AM54,1)), ISBLANK( INDEX(Данные[Год издания],$AM54,1))), "",TEXT(INDEX(Данные[Год издания],$AM54,1),0)) ->  | W54: =IF(OR(ISERR( INDEX(Данные[Отдел],$AM54,1)), ISBLANK( INDEX(Данные[Отдел],$AM54,1))), "",TEXT(INDEX(Данные[Отдел],$AM54,1),0)) ->  | Y54: =IF(OR(ISERR( INDEX(Данные[Цена],$AM54,1)), ISBLANK( INDEX(Данные[Цена],$AM54,1))), "",INDEX(Данные[Цена],$AM54,1)) ->  | AD54: =IFERROR(INDEX(Данные[Коэффициент переоценки],$AM54,1),"") ->  | AF54: =IF(OR(ISERR( INDEX(Данные[Кол-во экз.],$AM54,1)), ISBLANK( INDEX(Данные[Кол-во экз.],$AM54,1))), "",INDEX(Данные[Кол-во экз.],$AM54,1)) ->  | AH54: =IF(OR(ISERR(INDEX(Данные[Автор, заглавие],$AM54,1)),ISBLANK(INDEX(Данные[Автор, заглавие],$AM54,1))),"",INDEX(Данные[Стои-мость],$AM54,1)) ->  | AM54: 14
A55: =IFERROR(INDEX(Данные[№пп],AM55,1),"") ->  | C55: =IF(OR(ISERR( INDEX(Данные[Инв. №],$AM55,1)), ISBLANK( INDEX(Данные[Инв. №],$AM55,1))), "",INDEX(Данные[Инв. №],$AM55,1)) ->  | F55: =IF(OR(ISERR(INDEX(Данные[Штрих код первые 6 цифр],$AM55,1)),ISBLANK(INDEX(Данные[Штрих код первые 6 цифр],$AM55,1))),"",LEFT(INDEX(Данные[Штрих код первые 6 цифр],$AM55,1),6)) ->  | I55: =IF(OR(ISERR( INDEX(Данные[Автор, заглавие],$AM55,1)), ISBLANK( INDEX(Данные[Автор, заглавие],$AM55,1))), "",LEFT(INDEX(Данные[Автор, заглавие],$AM55,1),28)) ->  | U55: =IF(OR(ISERR( INDEX(Данные[Год издания],$AM55,1)), ISBLANK( INDEX(Данные[Год издания],$AM55,1))), "",TEXT(INDEX(Данные[Год издания],$AM55,1),0)) ->  | W55: =IF(OR(ISERR( INDEX(Данные[Отдел],$AM55,1)), ISBLANK( INDEX(Данные[Отдел],$AM55,1))), "",TEXT(INDEX(Данные[Отдел],$AM55,1),0)) ->  | Y55: =IF(OR(ISERR( INDEX(Данные[Цена],$AM55,1)), ISBLANK( INDEX(Данные[Цена],$AM55,1))), "",INDEX(Данные[Цена],$AM55,1)) ->  | AD55: =IFERROR(INDEX(Данные[Коэффициент переоценки],$AM55,1),"") ->  | AF55: =IF(OR(ISERR( INDEX(Данные[Кол-во экз.],$AM55,1)), ISBLANK( INDEX(Данные[Кол-во экз.],$AM55,1))), "",INDEX(Данные[Кол-во экз.],$AM55,1)) ->  | AH55: =IF(OR(ISERR(INDEX(Данные[Автор, заглавие],$AM55,1)),ISBLANK(INDEX(Данные[Автор, заглавие],$AM55,1))),"",INDEX(Данные[Стои-мость],$AM55,1)) ->  | AM55: 15
A56: =IFERROR(INDEX(Данные[№пп],AM56,1),"") ->  | C56: =IF(OR(ISERR( INDEX(Данные[Инв. №],$AM56,1)), ISBLANK( INDEX(Данные[Инв. №],$AM56,1))), "",INDEX(Данные[Инв. №],$AM56,1)) ->  | F56: =IF(OR(ISERR(INDEX(Данные[Штрих код первые 6 цифр],$AM56,1)),ISBLANK(INDEX(Данные[Штрих код первые 6 цифр],$AM56,1))),"",LEFT(INDEX(Данные[Штрих код первые 6 цифр],$AM56,1),6)) ->  | I56: =IF(OR(ISERR( INDEX(Данные[Автор, заглавие],$AM56,1)), ISBLANK( INDEX(Данные[Автор, заглавие],$AM56,1))), "",LEFT(INDEX(Данные[Автор, заглавие],$AM56,1),28)) ->  | U56: =IF(OR(ISERR( INDEX(Данные[Год издания],$AM56,1)), ISBLANK( INDEX(Данные[Год издания],$AM56,1))), "",TEXT(INDEX(Данные[Год издания],$AM56,1),0)) ->  | W56: =IF(OR(ISERR( INDEX(Данные[Отдел],$AM56,1)), ISBLANK( INDEX(Данные[Отдел],$AM56,1))), "",TEXT(INDEX(Данные[Отдел],$AM56,1),0)) ->  | Y56: =IF(OR(ISERR( INDEX(Данные[Цена],$AM56,1)), ISBLANK( INDEX(Данные[Цена],$AM56,1))), "",INDEX(Данные[Цена],$AM56,1)) ->  | AD56: =IFERROR(INDEX(Данные[Коэффициент переоценки],$AM56,1),"") ->  | AF56: =IF(OR(ISERR( INDEX(Данные[Кол-во экз.],$AM56,1)), ISBLANK( INDEX(Данные[Кол-во экз.],$AM56,1))), "",INDEX(Данные[Кол-во экз.],$AM56,1)) ->  | AH56: =IF(OR(ISERR(INDEX(Данные[Автор, заглавие],$AM56,1)),ISBLANK(INDEX(Данные[Автор, заглавие],$AM56,1))),"",INDEX(Данные[Стои-мость],$AM56,1)) ->  | AM56: 16
A57: =IFERROR(INDEX(Данные[№пп],AM57,1),"") ->  | C57: =IF(OR(ISERR( INDEX(Данные[Инв. №],$AM57,1)), ISBLANK( INDEX(Данные[Инв. №],$AM57,1))), "",INDEX(Данные[Инв. №],$AM57,1)) ->  | F57: =IF(OR(ISERR(INDEX(Данные[Штрих код первые 6 цифр],$AM57,1)),ISBLANK(INDEX(Данные[Штрих код первые 6 цифр],$AM57,1))),"",LEFT(INDEX(Данные[Штрих код первые 6 цифр],$AM57,1),6)) ->  | I57: =IF(OR(ISERR( INDEX(Данные[Автор, заглавие],$AM57,1)), ISBLANK( INDEX(Данные[Автор, заглавие],$AM57,1))), "",LEFT(INDEX(Данные[Автор, заглавие],$AM57,1),28)) ->  | U57: =IF(OR(ISERR( INDEX(Данные[Год издания],$AM57,1)), ISBLANK( INDEX(Данные[Год издания],$AM57,1))), "",TEXT(INDEX(Данные[Год издания],$AM57,1),0)) ->  | W57: =IF(OR(ISERR( INDEX(Данные[Отдел],$AM57,1)), ISBLANK( INDEX(Данные[Отдел],$AM57,1))), "",TEXT(INDEX(Данные[Отдел],$AM57,1),0)) ->  | Y57: =IF(OR(ISERR( INDEX(Данные[Цена],$AM57,1)), ISBLANK( INDEX(Данные[Цена],$AM57,1))), "",INDEX(Данные[Цена],$AM57,1)) ->  | AD57: =IFERROR(INDEX(Данные[Коэффициент переоценки],$AM57,1),"") ->  | AF57: =IF(OR(ISERR( INDEX(Данные[Кол-во экз.],$AM57,1)), ISBLANK( INDEX(Данные[Кол-во экз.],$AM57,1))), "",INDEX(Данные[Кол-во экз.],$AM57,1)) ->  | AH57: =IF(OR(ISERR(INDEX(Данные[Автор, заглавие],$AM57,1)),ISBLANK(INDEX(Данные[Автор, заглавие],$AM57,1))),"",INDEX(Данные[Стои-мость],$AM57,1)) ->  | AM57: =ROW()-40 -> 17
A58: =IFERROR(INDEX(Данные[№пп],AM58,1),"") ->  | C58: =IF(OR(ISERR( INDEX(Данные[Инв. №],$AM58,1)), ISBLANK( INDEX(Данные[Инв. №],$AM58,1))), "",INDEX(Данные[Инв. №],$AM58,1)) ->  | F58: =IF(OR(ISERR(INDEX(Данные[Штрих код первые 6 цифр],$AM58,1)),ISBLANK(INDEX(Данные[Штрих код первые 6 цифр],$AM58,1))),"",LEFT(INDEX(Данные[Штрих код первые 6 цифр],$AM58,1),6)) ->  | I58: =IF(OR(ISERR( INDEX(Данные[Автор, заглавие],$AM58,1)), ISBLANK( INDEX(Данные[Автор, заглавие],$AM58,1))), "",LEFT(INDEX(Данные[Автор, заглавие],$AM58,1),28)) ->  | U58: =IF(OR(ISERR( INDEX(Данные[Год издания],$AM58,1)), ISBLANK( INDEX(Данные[Год издания],$AM58,1))), "",TEXT(INDEX(Данные[Год издания],$AM58,1),0)) ->  | W58: =IF(OR(ISERR( INDEX(Данные[Отдел],$AM58,1)), ISBLANK( INDEX(Данные[Отдел],$AM58,1))), "",TEXT(INDEX(Данные[Отдел],$AM58,1),0)) ->  | Y58: =IF(OR(ISERR( INDEX(Данные[Цена],$AM58,1)), ISBLANK( INDEX(Данные[Цена],$AM58,1))), "",INDEX(Данные[Цена],$AM58,1)) ->  | AD58: =IFERROR(INDEX(Данные[Коэффициент переоценки],$AM58,1),"") ->  | AF58: =IF(OR(ISERR( INDEX(Данные[Кол-во экз.],$AM58,1)), ISBLANK( INDEX(Данные[Кол-во экз.],$AM58,1))), "",INDEX(Данные[Кол-во экз.],$AM58,1)) ->  | AH58: =IF(OR(ISERR(INDEX(Данные[Автор, заглавие],$AM58,1)),ISBLANK(INDEX(Данные[Автор, заглавие],$AM58,1))),"",INDEX(Данные[Стои-мость],$AM58,1)) ->  | AM58: =ROW()-40 -> 18
A60: Итого | AF60: =SUM(AF41:AG58) -> 0 | AH60: =SUM(AH41:AL58) -> 0
A61: № пп | C61: Инв. № | F61: Штрих код | I61: Автор, заглавие | U61: Год издания | W61: Отдел | Y61: Цена руб.коп. | AD61: Коэфф. Переоценки | AF61: Кол-во экз. | AH61: Стоимость
A65: =IFERROR(INDEX(Данные[№пп],AM65,1),"") ->  | C65: =IF(OR(ISERR( INDEX(Данные[Инв. №],$AM65,1)), ISBLANK( INDEX(Данные[Инв. №],$AM65,1))), "",INDEX(Данные[Инв. №],$AM65,1)) ->  | F65: =IF(OR(ISERR(INDEX(Данные[Штрих код первые 6 цифр],$AM65,1)),ISBLANK(INDEX(Данные[Штрих код первые 6 цифр],$AM65,1))),"",LEFT(INDEX(Данные[Штрих код первые 6 цифр],$AM65,1),6)) ->  | I65: =IF(OR(ISERR( INDEX(Данные[Автор, заглавие],$AM65,1)), ISBLANK( INDEX(Данные[Автор, заглавие],$AM65,1))), "",LEFT(INDEX(Данные[Автор, заглавие],$AM65,1),28)) ->  | U65: =IF(OR(ISERR( INDEX(Данные[Год издания],$AM65,1)), ISBLANK( INDEX(Данные[Год издания],$AM65,1))), "",TEXT(INDEX(Данные[Год издания],$AM65,1),0)) ->  | W65: =IF(OR(ISERR( INDEX(Данные[Отдел],$AM65,1)), ISBLANK( INDEX(Данные[Отдел],$AM65,1))), "",TEXT(INDEX(Данные[Отдел],$AM65,1),0)) ->  | Y65: =IF(OR(ISERR( INDEX(Данные[Цена],$AM65,1)), ISBLANK( INDEX(Данные[Цена],$AM65,1))), "",INDEX(Данные[Цена],$AM65,1)) ->  | AD65: =IFERROR(INDEX(Данные[Коэффициент переоценки],$AM65,1),"") ->  | AF65: =IF(OR(ISERR( INDEX(Данные[Кол-во экз.],$AM65,1)), ISBLANK( INDEX(Данные[Кол-во экз.],$AM65,1))), "",INDEX(Данные[Кол-во экз.],$AM65,1)) ->  | AH65: =IF(OR(ISERR(INDEX(Данные[Автор, заглавие],$AM65,1)),ISBLANK(INDEX(Данные[Автор, заглавие],$AM65,1))),"",INDEX(Данные[Стои-мость],$AM65,1)) ->  | AM65: =AM58+1 -> 19
A66: =IFERROR(INDEX(Данные[№пп],AM66,1),"") ->  | C66: =IF(OR(ISERR( INDEX(Данные[Инв. №],$AM66,1)), ISBLANK( INDEX(Данные[Инв. №],$AM66,1))), "",INDEX(Данные[Инв. №],$AM66,1)) ->  | F66: =IF(OR(ISERR(INDEX(Данные[Штрих код первые 6 цифр],$AM66,1)),ISBLANK(INDEX(Данные[Штрих код первые 6 цифр],$AM66,1))),"",LEFT(INDEX(Данные[Штрих код первые 6 цифр],$AM66,1),6)) ->  | I66: =IF(OR(ISERR( INDEX(Данные[Автор, заглавие],$AM66,1)), ISBLANK( INDEX(Данные[Автор, заглавие],$AM66,1))), "",LEFT(INDEX(Данные[Автор, заглавие],$AM66,1),28)) ->  | U66: =IF(OR(ISERR( INDEX(Данные[Год издания],$AM66,1)), ISBLANK( INDEX(Данные[Год издания],$AM66,1))), "",TEXT(INDEX(Данные[Год издания],$AM66,1),0)) ->  | W66: =IF(OR(ISERR( INDEX(Данные[Отдел],$AM66,1)), ISBLANK( INDEX(Данные[Отдел],$AM66,1))), "",TEXT(INDEX(Данные[Отдел],$AM66,1),0)) ->  | Y66: =IF(OR(ISERR( INDEX(Данные[Цена],$AM66,1)), ISBLANK( INDEX(Данные[Цена],$AM66,1))), "",INDEX(Данные[Цена],$AM66,1)) ->  | AD66: =IFERROR(INDEX(Данные[Коэффициент переоценки],$AM66,1),"") ->  | AF66: =IF(OR(ISERR( INDEX(Данные[Кол-во экз.],$AM66,1)), ISBLANK( INDEX(Данные[Кол-во экз.],$AM66,1))), "",INDEX(Данные[Кол-во экз.],$AM66,1)) ->  | AH66: =IF(OR(ISERR(INDEX(Данные[Автор, заглавие],$AM66,1)),ISBLANK(INDEX(Данные[Автор, заглавие],$AM66,1))),"",INDEX(Данные[Стои-мость],$AM66,1)) ->  | AM66: =AM65+1 -> 20
A67: =IFERROR(INDEX(Данные[№пп],AM67,1),"") ->  | C67: =IF(OR(ISERR( INDEX(Данные[Инв. №],$AM67,1)), ISBLANK( INDEX(Данные[Инв. №],$AM67,1))), "",INDEX(Данные[Инв. №],$AM67,1)) ->  | F67: =IF(OR(ISERR(INDEX(Данные[Штрих код первые 6 цифр],$AM67,1)),ISBLANK(INDEX(Данные[Штрих код первые 6 цифр],$AM67,1))),"",LEFT(INDEX(Данные[Штрих код первые 6 цифр],$AM67,1),6)) ->  | I67: =IF(OR(ISERR( INDEX(Данные[Автор, заглавие],$AM67,1)), ISBLANK( INDEX(Данные[Автор, заглавие],$AM67,1))), "",LEFT(INDEX(Данные[Автор, заглавие],$AM67,1),28)) ->  | U67: =IF(OR(ISERR( INDEX(Данные[Год издания],$AM67,1)), ISBLANK( INDEX(Данные[Год издания],$AM67,1))), "",TEXT(INDEX(Данные[Год издания],$AM67,1),0)) ->  | W67: =IF(OR(ISERR( INDEX(Данные[Отдел],$AM67,1)), ISBLANK( INDEX(Данные[Отдел],$AM67,1))), "",TEXT(INDEX(Данные[Отдел],$AM67,1),0)) ->  | Y67: =IF(OR(ISERR( INDEX(Данные[Цена],$AM67,1)), ISBLANK( INDEX(Данные[Цена],$AM67,1))), "",INDEX(Данные[Цена],$AM67,1)) ->  | AD67: =IFERROR(INDEX(Данные[Коэффициент переоценки],$AM67,1),"") ->  | AF67: =IF(OR(ISERR( INDEX(Данные[Кол-во экз.],$AM67,1)), ISBLANK( INDEX(Данные[Кол-во экз.],$AM67,1))), "",INDEX(Данные[Кол-во экз.],$AM67,1)) ->  | AH67: =IF(OR(ISERR(INDEX(Данные[Автор, заглавие],$AM67,1)),ISBLANK(INDEX(Данные[Автор, заглавие],$AM67,1))),"",INDEX(Данные[Стои-мость],$AM67,1)) ->  | AM67: =AM66+1 -> 21
A68: =IFERROR(INDEX(Данные[№пп],AM68,1),"") ->  | C68: =IF(OR(ISERR( INDEX(Данные[Инв. №],$AM68,1)), ISBLANK( INDEX(Данные[Инв. №],$AM68,1))), "",INDEX(Данные[Инв. №],$AM68,1)) ->  | F68: =IF(OR(ISERR(INDEX(Данные[Штрих код первые 6 цифр],$AM68,1)),ISBLANK(INDEX(Данные[Штрих код первые 6 цифр],$AM68,1))),"",LEFT(INDEX(Данные[Штрих код первые 6 цифр],$AM68,1),6)) ->  | I68: =IF(OR(ISERR( INDEX(Данные[Автор, заглавие],$AM68,1)), ISBLANK( INDEX(Данные[Автор, заглавие],$AM68,1))), "",LEFT(INDEX(Данные[Автор, заглавие],$AM68,1),28)) ->  | U68: =IF(OR(ISERR( INDEX(Данные[Год издания],$AM68,1)), ISBLANK( INDEX(Данные[Год издания],$AM68,1))), "",TEXT(INDEX(Данные[Год издания],$AM68,1),0)) ->  | W68: =IF(OR(ISERR( INDEX(Данные[Отдел],$AM68,1)), ISBLANK( INDEX(Данные[Отдел],$AM68,1))), "",TEXT(INDEX(Данные[Отдел],$AM68,1),0)) ->  | Y68: =IF(OR(ISERR( INDEX(Данные[Цена],$AM68,1)), ISBLANK( INDEX(Данные[Цена],$AM68,1))), "",INDEX(Данные[Цена],$AM68,1)) ->  | AD68: =IFERROR(INDEX(Данные[Коэффициент переоценки],$AM68,1),"") ->  | AF68: =IF(OR(ISERR( INDEX(Данные[Кол-во экз.],$AM68,1)), ISBLANK( INDEX(Данные[Кол-во экз.],$AM68,1))), "",INDEX(Данные[Кол-во экз.],$AM68,1)) ->  | AH68: =IF(OR(ISERR(INDEX(Данные[Автор, заглавие],$AM68,1)),ISBLANK(INDEX(Данные[Автор, заглавие],$AM68,1))),"",INDEX(Данные[Стои-мость],$AM68,1)) ->  | AM68: 22
A69: =IFERROR(INDEX(Данные[№пп],AM69,1),"") ->  | C69: =IF(OR(ISERR( INDEX(Данные[Инв. №],$AM69,1)), ISBLANK( INDEX(Данные[Инв. №],$AM69,1))), "",INDEX(Данные[Инв. №],$AM69,1)) ->  | F69: =IF(OR(ISERR(INDEX(Данные[Штрих код первые 6 цифр],$AM69,1)),ISBLANK(INDEX(Данные[Штрих код первые 6 цифр],$AM69,1))),"",LEFT(INDEX(Данные[Штрих код первые 6 цифр],$AM69,1),6)) ->  | I69: =IF(OR(ISERR( INDEX(Данные[Автор, заглавие],$AM69,1)), ISBLANK( INDEX(Данные[Автор, заглавие],$AM69,1))), "",LEFT(INDEX(Данные[Автор, заглавие],$AM69,1),28)) ->  | U69: =IF(OR(ISERR( INDEX(Данные[Год издания],$AM69,1)), ISBLANK( INDEX(Данные[Год издания],$AM69,1))), "",TEXT(INDEX(Данные[Год издания],$AM69,1),0)) ->  | W69: =IF(OR(ISERR( INDEX(Данные[Отдел],$AM69,1)), ISBLANK( INDEX(Данные[Отдел],$AM69,1))), "",TEXT(INDEX(Данные[Отдел],$AM69,1),0)) ->  | Y69: =IF(OR(ISERR( INDEX(Данные[Цена],$AM69,1)), ISBLANK( INDEX(Данные[Цена],$AM69,1))), "",INDEX(Данные[Цена],$AM69,1)) ->  | AD69: =IFERROR(INDEX(Данные[Коэффициент переоценки],$AM69,1),"") ->  | AF69: =IF(OR(ISERR( INDEX(Данные[Кол-во экз.],$AM69,1)), ISBLANK( INDEX(Данные[Кол-во экз.],$AM69,1))), "",INDEX(Данные[Кол-во экз.],$AM69,1)) ->  | AH69: =IF(OR(ISERR(INDEX(Данные[Автор, заглавие],$AM69,1)),ISBLANK(INDEX(Данные[Автор, заглавие],$AM69,1))),"",INDEX(Данные[Стои-мость],$AM69,1)) ->  | AM69: 23
A70: =IFERROR(INDEX(Данные[№пп],AM70,1),"") ->  | C70: =IF(OR(ISERR( INDEX(Данные[Инв. №],$AM70,1)), ISBLANK( INDEX(Данные[Инв. №],$AM70,1))), "",INDEX(Данные[Инв. №],$AM70,1)) ->  | F70: =IF(OR(ISERR(INDEX(Данные[Штрих код первые 6 цифр],$AM70,1)),ISBLANK(INDEX(Данные[Штрих код первые 6 цифр],$AM70,1))),"",LEFT(INDEX(Данные[Штрих код первые 6 цифр],$AM70,1),6)) ->  | I70: =IF(OR(ISERR( INDEX(Данные[Автор, заглавие],$AM70,1)), ISBLANK( INDEX(Данные[Автор, заглавие],$AM70,1))), "",LEFT(INDEX(Данные[Автор, заглавие],$AM70,1),28)) ->  | U70: =IF(OR(ISERR( INDEX(Данные[Год издания],$AM70,1)), ISBLANK( INDEX(Данные[Год издания],$AM70,1))), "",TEXT(INDEX(Данные[Год издания],$AM70,1),0)) ->  | W70: =IF(OR(ISERR( INDEX(Данные[Отдел],$AM70,1)), ISBLANK( INDEX(Данные[Отдел],$AM70,1))), "",TEXT(INDEX(Данные[Отдел],$AM70,1),0)) ->  | Y70: =IF(OR(ISERR( INDEX(Данные[Цена],$AM70,1)), ISBLANK( INDEX(Данные[Цена],$AM70,1))), "",INDEX(Данные[Цена],$AM70,1)) ->  | AD70: =IFERROR(INDEX(Данные[Коэффициент переоценки],$AM70,1),"") ->  | AF70: =IF(OR(ISERR( INDEX(Данные[Кол-во экз.],$AM70,1)), ISBLANK( INDEX(Данные[Кол-во экз.],$AM70,1))), "",INDEX(Данные[Кол-во экз.],$AM70,1)) ->  | AH70: =IF(OR(ISERR(INDEX(Данные[Автор, заглавие],$AM70,1)),ISBLANK(INDEX(Данные[Автор, заглавие],$AM70,1))),"",INDEX(Данные[Стои-мость],$AM70,1)) ->  | AM70: 24
A71: =IFERROR(INDEX(Данные[№пп],AM71,1),"") ->  | C71: =IF(OR(ISERR( INDEX(Данные[Инв. №],$AM71,1)), ISBLANK( INDEX(Данные[Инв. №],$AM71,1))), "",INDEX(Данные[Инв. №],$AM71,1)) ->  | F71: =IF(OR(ISERR(INDEX(Данные[Штрих код первые 6 цифр],$AM71,1)),ISBLANK(INDEX(Данные[Штрих код первые 6 цифр],$AM71,1))),"",LEFT(INDEX(Данные[Штрих код первые 6 цифр],$AM71,1),6)) ->  | I71: =IF(OR(ISERR( INDEX(Данные[Автор, заглавие],$AM71,1)), ISBLANK( INDEX(Данные[Автор, заглавие],$AM71,1))), "",LEFT(INDEX(Данные[Автор, заглавие],$AM71,1),28)) ->  | U71: =IF(OR(ISERR( INDEX(Данные[Год издания],$AM71,1)), ISBLANK( INDEX(Данные[Год издания],$AM71,1))), "",TEXT(INDEX(Данные[Год издания],$AM71,1),0)) ->  | W71: =IF(OR(ISERR( INDEX(Данные[Отдел],$AM71,1)), ISBLANK( INDEX(Данные[Отдел],$AM71,1))), "",TEXT(INDEX(Данные[Отдел],$AM71,1),0)) ->  | Y71: =IF(OR(ISERR( INDEX(Данные[Цена],$AM71,1)), ISBLANK( INDEX(Данные[Цена],$AM71,1))), "",INDEX(Данные[Цена],$AM71,1)) ->  | AD71: =IFERROR(INDEX(Данные[Коэффициент переоценки],$AM71,1),"") ->  | AF71: =IF(OR(ISERR( INDEX(Данные[Кол-во экз.],$AM71,1)), ISBLANK( INDEX(Данные[Кол-во экз.],$AM71,1))), "",INDEX(Данные[Кол-во экз.],$AM71,1)) ->  | AH71: =IF(OR(ISERR(INDEX(Данные[Автор, заглавие],$AM71,1)),ISBLANK(INDEX(Данные[Автор, заглавие],$AM71,1))),"",INDEX(Данные[Стои-мость],$AM71,1)) ->  | AM71: 25
A72: =IFERROR(INDEX(Данные[№пп],AM72,1),"") ->  | C72: =IF(OR(ISERR( INDEX(Данные[Инв. №],$AM72,1)), ISBLANK( INDEX(Данные[Инв. №],$AM72,1))), "",INDEX(Данные[Инв. №],$AM72,1)) ->  | F72: =IF(OR(ISERR(INDEX(Данные[Штрих код первые 6 цифр],$AM72,1)),ISBLANK(INDEX(Данные[Штрих код первые 6 цифр],$AM72,1))),"",LEFT(INDEX(Данные[Штрих код первые 6 цифр],$AM72,1),6)) ->  | I72: =IF(OR(ISERR( INDEX(Данные[Автор, заглавие],$AM72,1)), ISBLANK( INDEX(Данные[Автор, заглавие],$AM72,1))), "",LEFT(INDEX(Данные[Автор, заглавие],$AM72,1),28)) ->  | U72: =IF(OR(ISERR( INDEX(Данные[Год издания],$AM72,1)), ISBLANK( INDEX(Данные[Год издания],$AM72,1))), "",TEXT(INDEX(Данные[Год издания],$AM72,1),0)) ->  | W72: =IF(OR(ISERR( INDEX(Данные[Отдел],$AM72,1)), ISBLANK( INDEX(Данные[Отдел],$AM72,1))), "",TEXT(INDEX(Данные[Отдел],$AM72,1),0)) ->  | Y72: =IF(OR(ISERR( INDEX(Данные[Цена],$AM72,1)), ISBLANK( INDEX(Данные[Цена],$AM72,1))), "",INDEX(Данные[Цена],$AM72,1)) ->  | AD72: =IFERROR(INDEX(Данные[Коэффициент переоценки],$AM72,1),"") ->  | AF72: =IF(OR(ISERR( INDEX(Данные[Кол-во экз.],$AM72,1)), ISBLANK( INDEX(Данные[Кол-во экз.],$AM72,1))), "",INDEX(Данные[Кол-во экз.],$AM72,1)) ->  | AH72: =IF(OR(ISERR(INDEX(Данные[Автор, заглавие],$AM72,1)),ISBLANK(INDEX(Данные[Автор, заглавие],$AM72,1))),"",INDEX(Данные[Стои-мость],$AM72,1)) ->  | AM72: 26
A73: =IFERROR(INDEX(Данные[№пп],AM73,1),"") ->  | C73: =IF(OR(ISERR( INDEX(Данные[Инв. №],$AM73,1)), ISBLANK( INDEX(Данные[Инв. №],$AM73,1))), "",INDEX(Данные[Инв. №],$AM73,1)) ->  | F73: =IF(OR(ISERR(INDEX(Данные[Штрих код первые 6 цифр],$AM73,1)),ISBLANK(INDEX(Данные[Штрих код первые 6 цифр],$AM73,1))),"",LEFT(INDEX(Данные[Штрих код первые 6 цифр],$AM73,1),6)) ->  | I73: =IF(OR(ISERR( INDEX(Данные[Автор, заглавие],$AM73,1)), ISBLANK( INDEX(Данные[Автор, заглавие],$AM73,1))), "",LEFT(INDEX(Данные[Автор, заглавие],$AM73,1),28)) ->  | U73: =IF(OR(ISERR( INDEX(Данные[Год издания],$AM73,1)), ISBLANK( INDEX(Данные[Год издания],$AM73,1))), "",TEXT(INDEX(Данные[Год издания],$AM73,1),0)) ->  | W73: =IF(OR(ISERR( INDEX(Данные[Отдел],$AM73,1)), ISBLANK( INDEX(Данные[Отдел],$AM73,1))), "",TEXT(INDEX(Данные[Отдел],$AM73,1),0)) ->  | Y73: =IF(OR(ISERR( INDEX(Данные[Цена],$AM73,1)), ISBLANK( INDEX(Данные[Цена],$AM73,1))), "",INDEX(Данные[Цена],$AM73,1)) ->  | AD73: =IFERROR(INDEX(Данные[Коэффициент переоценки],$AM73,1),"") ->  | AF73: =IF(OR(ISERR( INDEX(Данные[Кол-во экз.],$AM73,1)), ISBLANK( INDEX(Данные[Кол-во экз.],$AM73,1))), "",INDEX(Данные[Кол-во экз.],$AM73,1)) ->  | AH73: =IF(OR(ISERR(INDEX(Данные[Автор, заглавие],$AM73,1)),ISBLANK(INDEX(Данные[Автор, заглавие],$AM73,1))),"",INDEX(Данные[Стои-мость],$AM73,1)) ->  | AM73: 27
A74: =IFERROR(INDEX(Данные[№пп],AM74,1),"") ->  | C74: =IF(OR(ISERR( INDEX(Данные[Инв. №],$AM74,1)), ISBLANK( INDEX(Данные[Инв. №],$AM74,1))), "",INDEX(Данные[Инв. №],$AM74,1)) ->  | F74: =IF(OR(ISERR(INDEX(Данные[Штрих код первые 6 цифр],$AM74,1)),ISBLANK(INDEX(Данные[Штрих код первые 6 цифр],$AM74,1))),"",LEFT(INDEX(Данные[Штрих код первые 6 цифр],$AM74,1),6)) ->  | I74: =IF(OR(ISERR( INDEX(Данные[Автор, заглавие],$AM74,1)), ISBLANK( INDEX(Данные[Автор, заглавие],$AM74,1))), "",LEFT(INDEX(Данные[Автор, заглавие],$AM74,1),28)) ->  | U74: =IF(OR(ISERR( INDEX(Данные[Год издания],$AM74,1)), ISBLANK( INDEX(Данные[Год издания],$AM74,1))), "",TEXT(INDEX(Данные[Год издания],$AM74,1),0)) ->  | W74: =IF(OR(ISERR( INDEX(Данные[Отдел],$AM74,1)), ISBLANK( INDEX(Данные[Отдел],$AM74,1))), "",TEXT(INDEX(Данные[Отдел],$AM74,1),0)) ->  | Y74: =IF(OR(ISERR( INDEX(Данные[Цена],$AM74,1)), ISBLANK( INDEX(Данные[Цена],$AM74,1))), "",INDEX(Данные[Цена],$AM74,1)) ->  | AD74: =IFERROR(INDEX(Данные[Коэффициент переоценки],$AM74,1),"") ->  | AF74: =IF(OR(ISERR( INDEX(Данные[Кол-во экз.],$AM74,1)), ISBLANK( INDEX(Данные[Кол-во экз.],$AM74,1))), "",INDEX(Данные[Кол-во экз.],$AM74,1)) ->  | AH74: =IF(OR(ISERR(INDEX(Данные[Автор, заглавие],$AM74,1)),ISBLANK(INDEX(Данные[Автор, заглавие],$AM74,1))),"",INDEX(Данные[Стои-мость],$AM74,1)) ->  | AM74: 28
A75: =IFERROR(INDEX(Данные[№пп],AM75,1),"") ->  | C75: =IF(OR(ISERR( INDEX(Данные[Инв. №],$AM75,1)), ISBLANK( INDEX(Данные[Инв. №],$AM75,1))), "",INDEX(Данные[Инв. №],$AM75,1)) ->  | F75: =IF(OR(ISERR(INDEX(Данные[Штрих код первые 6 цифр],$AM75,1)),ISBLANK(INDEX(Данные[Штрих код первые 6 цифр],$AM75,1))),"",LEFT(INDEX(Данные[Штрих код первые 6 цифр],$AM75,1),6)) ->  | I75: =IF(OR(ISERR( INDEX(Данные[Автор, заглавие],$AM75,1)), ISBLANK( INDEX(Данные[Автор, заглавие],$AM75,1))), "",LEFT(INDEX(Данные[Автор, заглавие],$AM75,1),28)) ->  | U75: =IF(OR(ISERR( INDEX(Данные[Год издания],$AM75,1)), ISBLANK( INDEX(Данные[Год издания],$AM75,1))), "",TEXT(INDEX(Данные[Год издания],$AM75,1),0)) ->  | W75: =IF(OR(ISERR( INDEX(Данные[Отдел],$AM75,1)), ISBLANK( INDEX(Данные[Отдел],$AM75,1))), "",TEXT(INDEX(Данные[Отдел],$AM75,1),0)) ->  | Y75: =IF(OR(ISERR( INDEX(Данные[Цена],$AM75,1)), ISBLANK( INDEX(Данные[Цена],$AM75,1))), "",INDEX(Данные[Цена],$AM75,1)) ->  | AD75: =IFERROR(INDEX(Данные[Коэффициент переоценки],$AM75,1),"") ->  | AF75: =IF(OR(ISERR( INDEX(Данные[Кол-во экз.],$AM75,1)), ISBLANK( INDEX(Данные[Кол-во экз.],$AM75,1))), "",INDEX(Данные[Кол-во экз.],$AM75,1)) ->  | AH75: =IF(OR(ISERR(INDEX(Данные[Автор, заглавие],$AM75,1)),ISBLANK(INDEX(Данные[Автор, заглавие],$AM75,1))),"",INDEX(Данные[Стои-мость],$AM75,1)) ->  | AM75: 29
A76: =IFERROR(INDEX(Данные[№пп],AM76,1),"") ->  | C76: =IF(OR(ISERR( INDEX(Данные[Инв. №],$AM76,1)), ISBLANK( INDEX(Данные[Инв. №],$AM76,1))), "",INDEX(Данные[Инв. №],$AM76,1)) ->  | F76: =IF(OR(ISERR(INDEX(Данные[Штрих код первые 6 цифр],$AM76,1)),ISBLANK(INDEX(Данные[Штрих код первые 6 цифр],$AM76,1))),"",LEFT(INDEX(Данные[Штрих код первые 6 цифр],$AM76,1),6)) ->  | I76: =IF(OR(ISERR( INDEX(Данные[Автор, заглавие],$AM76,1)), ISBLANK( INDEX(Данные[Автор, заглавие],$AM76,1))), "",LEFT(INDEX(Данные[Автор, заглавие],$AM76,1),28)) ->  | U76: =IF(OR(ISERR( INDEX(Данные[Год издания],$AM76,1)), ISBLANK( INDEX(Данные[Год издания],$AM76,1))), "",TEXT(INDEX(Данные[Год издания],$AM76,1),0)) ->  | W76: =IF(OR(ISERR( INDEX(Данные[Отдел],$AM76,1)), ISBLANK( INDEX(Данные[Отдел],$AM76,1))), "",TEXT(INDEX(Данные[Отдел],$AM76,1),0)) ->  | Y76: =IF(OR(ISERR( INDEX(Данные[Цена],$AM76,1)), ISBLANK( INDEX(Данные[Цена],$AM76,1))), "",INDEX(Данные[Цена],$AM76,1)) ->  | AD76: =IFERROR(INDEX(Данные[Коэффициент переоценки],$AM76,1),"") ->  | AF76: =IF(OR(ISERR( INDEX(Данные[Кол-во экз.],$AM76,1)), ISBLANK( INDEX(Данные[Кол-во экз.],$AM76,1))), "",INDEX(Данные[Кол-во экз.],$AM76,1)) ->  | AH76: =IF(OR(ISERR(INDEX(Данные[Автор, заглавие],$AM76,1)),ISBLANK(INDEX(Данные[Автор, заглавие],$AM76,1))),"",INDEX(Данные[Стои-мость],$AM76,1)) ->  | AM76: 30
A77: =IFERROR(INDEX(Данные[№пп],AM77,1),"") ->  | C77: =IF(OR(ISERR( INDEX(Данные[Инв. №],$AM77,1)), ISBLANK( INDEX(Данные[Инв. №],$AM77,1))), "",INDEX(Данные[Инв. №],$AM77,1)) ->  | F77: =IF(OR(ISERR(INDEX(Данные[Штрих код первые 6 цифр],$AM77,1)),ISBLANK(INDEX(Данные[Штрих код первые 6 цифр],$AM77,1))),"",LEFT(INDEX(Данные[Штрих код первые 6 цифр],$AM77,1),6)) ->  | I77: =IF(OR(ISERR( INDEX(Данные[Автор, заглавие],$AM77,1)), ISBLANK( INDEX(Данные[Автор, заглавие],$AM77,1))), "",LEFT(INDEX(Данные[Автор, заглавие],$AM77,1),28)) ->  | U77: =IF(OR(ISERR( INDEX(Данные[Год издания],$AM77,1)), ISBLANK( INDEX(Данные[Год издания],$AM77,1))), "",TEXT(INDEX(Данные[Год издания],$AM77,1),0)) ->  | W77: =IF(OR(ISERR( INDEX(Данные[Отдел],$AM77,1)), ISBLANK( INDEX(Данные[Отдел],$AM77,1))), "",TEXT(INDEX(Данные[Отдел],$AM77,1),0)) ->  | Y77: =IF(OR(ISERR( INDEX(Данные[Цена],$AM77,1)), ISBLANK( INDEX(Данные[Цена],$AM77,1))), "",INDEX(Данные[Цена],$AM77,1)) ->  | AD77: =IFERROR(INDEX(Данные[Коэффициент переоценки],$AM77,1),"") ->  | AF77: =IF(OR(ISERR( INDEX(Данные[Кол-во экз.],$AM77,1)), ISBLANK( INDEX(Данные[Кол-во экз.],$AM77,1))), "",INDEX(Данные[Кол-во экз.],$AM77,1)) ->  | AH77: =IF(OR(ISERR(INDEX(Данные[Автор, заглавие],$AM77,1)),ISBLANK(INDEX(Данные[Автор, заглавие],$AM77,1))),"",INDEX(Данные[Стои-мость],$AM77,1)) ->  | AM77: 31
A78: =IFERROR(INDEX(Данные[№пп],AM78,1),"") ->  | C78: =IF(OR(ISERR( INDEX(Данные[Инв. №],$AM78,1)), ISBLANK( INDEX(Данные[Инв. №],$AM78,1))), "",INDEX(Данные[Инв. №],$AM78,1)) ->  | F78: =IF(OR(ISERR(INDEX(Данные[Штрих код первые 6 цифр],$AM78,1)),ISBLANK(INDEX(Данные[Штрих код первые 6 цифр],$AM78,1))),"",LEFT(INDEX(Данные[Штрих код первые 6 цифр],$AM78,1),6)) ->  | I78: =IF(OR(ISERR( INDEX(Данные[Автор, заглавие],$AM78,1)), ISBLANK( INDEX(Данные[Автор, заглавие],$AM78,1))), "",LEFT(INDEX(Данные[Автор, заглавие],$AM78,1),28)) ->  | U78: =IF(OR(ISERR( INDEX(Данные[Год издания],$AM78,1)), ISBLANK( INDEX(Данные[Год издания],$AM78,1))), "",TEXT(INDEX(Данные[Год издания],$AM78,1),0)) ->  | W78: =IF(OR(ISERR( INDEX(Данные[Отдел],$AM78,1)), ISBLANK( INDEX(Данные[Отдел],$AM78,1))), "",TEXT(INDEX(Данные[Отдел],$AM78,1),0)) ->  | Y78: =IF(OR(ISERR( INDEX(Данные[Цена],$AM78,1)), ISBLANK( INDEX(Данные[Цена],$AM78,1))), "",INDEX(Данные[Цена],$AM78,1)) ->  | AD78: =IFERROR(INDEX(Данные[Коэффициент переоценки],$AM78,1),"") ->  | AF78: =IF(OR(ISERR( INDEX(Данные[Кол-во экз.],$AM78,1)), ISBLANK( INDEX(Данные[Кол-во экз.],$AM78,1))), "",INDEX(Данные[Кол-во экз.],$AM78,1)) ->  | AH78: =IF(OR(ISERR(INDEX(Данные[Автор, заглавие],$AM78,1)),ISBLANK(INDEX(Данные[Автор, заглавие],$AM78,1))),"",INDEX(Данные[Стои-мость],$AM78,1)) ->  | AM78: 32
A79: =IFERROR(INDEX(Данные[№пп],AM79,1),"") ->  | C79: =IF(OR(ISERR( INDEX(Данные[Инв. №],$AM79,1)), ISBLANK( INDEX(Данные[Инв. №],$AM79,1))), "",INDEX(Данные[Инв. №],$AM79,1)) ->  | F79: =IF(OR(ISERR(INDEX(Данные[Штрих код первые 6 цифр],$AM79,1)),ISBLANK(INDEX(Данные[Штрих код первые 6 цифр],$AM79,1))),"",LEFT(INDEX(Данные[Штрих код первые 6 цифр],$AM79,1),6)) ->  | I79: =IF(OR(ISERR( INDEX(Данные[Автор, заглавие],$AM79,1)), ISBLANK( INDEX(Данные[Автор, заглавие],$AM79,1))), "",LEFT(INDEX(Данные[Автор, заглавие],$AM79,1),28)) ->  | U79: =IF(OR(ISERR( INDEX(Данные[Год издания],$AM79,1)), ISBLANK( INDEX(Данные[Год издания],$AM79,1))), "",TEXT(INDEX(Данные[Год издания],$AM79,1),0)) ->  | W79: =IF(OR(ISERR( INDEX(Данные[Отдел],$AM79,1)), ISBLANK( INDEX(Данные[Отдел],$AM79,1))), "",TEXT(INDEX(Данные[Отдел],$AM79,1),0)) ->  | Y79: =IF(OR(ISERR( INDEX(Данные[Цена],$AM79,1)), ISBLANK( INDEX(Данные[Цена],$AM79,1))), "",INDEX(Данные[Цена],$AM79,1)) ->  | AD79: =IFERROR(INDEX(Данные[Коэффициент переоценки],$AM79,1),"") ->  | AF79: =IF(OR(ISERR( INDEX(Данные[Кол-во экз.],$AM79,1)), ISBLANK( INDEX(Данные[Кол-во экз.],$AM79,1))), "",INDEX(Данные[Кол-во экз.],$AM79,1)) ->  | AH79: =IF(OR(ISERR(INDEX(Данные[Автор, заглавие],$AM79,1)),ISBLANK(INDEX(Данные[Автор, заглавие],$AM79,1))),"",INDEX(Данные[Стои-мость],$AM79,1)) ->  | AM79: 33
A80: =IFERROR(INDEX(Данные[№пп],AM80,1),"") ->  | C80: =IF(OR(ISERR( INDEX(Данные[Инв. №],$AM80,1)), ISBLANK( INDEX(Данные[Инв. №],$AM80,1))), "",INDEX(Данные[Инв. №],$AM80,1)) ->  | F80: =IF(OR(ISERR(INDEX(Данные[Штрих код первые 6 цифр],$AM80,1)),ISBLANK(INDEX(Данные[Штрих код первые 6 цифр],$AM80,1))),"",LEFT(INDEX(Данные[Штрих код первые 6 цифр],$AM80,1),6)) ->  | I80: =IF(OR(ISERR( INDEX(Данные[Автор, заглавие],$AM80,1)), ISBLANK( INDEX(Данные[Автор, заглавие],$AM80,1))), "",LEFT(INDEX(Данные[Автор, заглавие],$AM80,1),28)) ->  | U80: =IF(OR(ISERR( INDEX(Данные[Год издания],$AM80,1)), ISBLANK( INDEX(Данные[Год издания],$AM80,1))), "",TEXT(INDEX(Данные[Год издания],$AM80,1),0)) ->  | W80: =IF(OR(ISERR( INDEX(Данные[Отдел],$AM80,1)), ISBLANK( INDEX(Данные[Отдел],$AM80,1))), "",TEXT(INDEX(Данные[Отдел],$AM80,1),0)) ->  | Y80: =IF(OR(ISERR( INDEX(Данные[Цена],$AM80,1)), ISBLANK( INDEX(Данные[Цена],$AM80,1))), "",INDEX(Данные[Цена],$AM80,1)) ->  | AD80: =IFERROR(INDEX(Данные[Коэффициент переоценки],$AM80,1),"") ->  | AF80: =IF(OR(ISERR( INDEX(Данные[Кол-во экз.],$AM80,1)), ISBLANK( INDEX(Данные[Кол-во экз.],$AM80,1))), "",INDEX(Данные[Кол-во экз.],$AM80,1)) ->  | AH80: =IF(OR(ISERR(INDEX(Данные[Автор, заглавие],$AM80,1)),ISBLANK(INDEX(Данные[Автор, заглавие],$AM80,1))),"",INDEX(Данные[Стои-мость],$AM80,1)) ->  | AM80: 34
A81: =IFERROR(INDEX(Данные[№пп],AM81,1),"") ->  | C81: =IF(OR(ISERR( INDEX(Данные[Инв. №],$AM81,1)), ISBLANK( INDEX(Данные[Инв. №],$AM81,1))), "",INDEX(Данные[Инв. №],$AM81,1)) ->  | F81: =IF(OR(ISERR(INDEX(Данные[Штрих код первые 6 цифр],$AM81,1)),ISBLANK(INDEX(Данные[Штрих код первые 6 цифр],$AM81,1))),"",LEFT(INDEX(Данные[Штрих код первые 6 цифр],$AM81,1),6)) ->  | I81: =IF(OR(ISERR( INDEX(Данные[Автор, заглавие],$AM81,1)), ISBLANK( INDEX(Данные[Автор, заглавие],$AM81,1))), "",LEFT(INDEX(Данные[Автор, заглавие],$AM81,1),28)) ->  | U81: =IF(OR(ISERR( INDEX(Данные[Год издания],$AM81,1)), ISBLANK( INDEX(Данные[Год издания],$AM81,1))), "",TEXT(INDEX(Данные[Год издания],$AM81,1),0)) ->  | W81: =IF(OR(ISERR( INDEX(Данные[Отдел],$AM81,1)), ISBLANK( INDEX(Данные[Отдел],$AM81,1))), "",TEXT(INDEX(Данные[Отдел],$AM81,1),0)) ->  | Y81: =IF(OR(ISERR( INDEX(Данные[Цена],$AM81,1)), ISBLANK( INDEX(Данные[Цена],$AM81,1))), "",INDEX(Данные[Цена],$AM81,1)) ->  | AD81: =IFERROR(INDEX(Данные[Коэффициент переоценки],$AM81,1),"") ->  | AF81: =IF(OR(ISERR( INDEX(Данные[Кол-во экз.],$AM81,1)), ISBLANK( INDEX(Данные[Кол-во экз.],$AM81,1))), "",INDEX(Данные[Кол-во экз.],$AM81,1)) ->  | AH81: =IF(OR(ISERR(INDEX(Данные[Автор, заглавие],$AM81,1)),ISBLANK(INDEX(Данные[Автор, заглавие],$AM81,1))),"",INDEX(Данные[Стои-мость],$AM81,1)) ->  | AM81: 35
A82: =IFERROR(INDEX(Данные[№пп],AM82,1),"") ->  | C82: =IF(OR(ISERR( INDEX(Данные[Инв. №],$AM82,1)), ISBLANK( INDEX(Данные[Инв. №],$AM82,1))), "",INDEX(Данные[Инв. №],$AM82,1)) ->  | F82: =IF(OR(ISERR(INDEX(Данные[Штрих код первые 6 цифр],$AM82,1)),ISBLANK(INDEX(Данные[Штрих код первые 6 цифр],$AM82,1))),"",LEFT(INDEX(Данные[Штрих код первые 6 цифр],$AM82,1),6)) ->  | I82: =IF(OR(ISERR( INDEX(Данные[Автор, заглавие],$AM82,1)), ISBLANK( INDEX(Данные[Автор, заглавие],$AM82,1))), "",LEFT(INDEX(Данные[Автор, заглавие],$AM82,1),28)) ->  | U82: =IF(OR(ISERR( INDEX(Данные[Год издания],$AM82,1)), ISBLANK( INDEX(Данные[Год издания],$AM82,1))), "",TEXT(INDEX(Данные[Год издания],$AM82,1),0)) ->  | W82: =IF(OR(ISERR( INDEX(Данные[Отдел],$AM82,1)), ISBLANK( INDEX(Данные[Отдел],$AM82,1))), "",TEXT(INDEX(Данные[Отдел],$AM82,1),0)) ->  | Y82: =IF(OR(ISERR( INDEX(Данные[Цена],$AM82,1)), ISBLANK( INDEX(Данные[Цена],$AM82,1))), "",INDEX(Данные[Цена],$AM82,1)) ->  | AD82: =IFERROR(INDEX(Данные[Коэффициент переоценки],$AM82,1),"") ->  | AF82: =IF(OR(ISERR( INDEX(Данные[Кол-во экз.],$AM82,1)), ISBLANK( INDEX(Данные[Кол-во экз.],$AM82,1))), "",INDEX(Данные[Кол-во экз.],$AM82,1)) ->  | AH82: =IF(OR(ISERR(INDEX(Данные[Автор, заглавие],$AM82,1)),ISBLANK(INDEX(Данные[Автор, заглавие],$AM82,1))),"",INDEX(Данные[Стои-мость],$AM82,1)) ->  | AM82: 36
A83: =IFERROR(INDEX(Данные[№пп],AM83,1),"") ->  | C83: =IF(OR(ISERR( INDEX(Данные[Инв. №],$AM83,1)), ISBLANK( INDEX(Данные[Инв. №],$AM83,1))), "",INDEX(Данные[Инв. №],$AM83,1)) ->  | F83: =IF(OR(ISERR(INDEX(Данные[Штрих код первые 6 цифр],$AM83,1)),ISBLANK(INDEX(Данные[Штрих код первые 6 цифр],$AM83,1))),"",LEFT(INDEX(Данные[Штрих код первые 6 цифр],$AM83,1),6)) ->  | I83: =IF(OR(ISERR( INDEX(Данные[Автор, заглавие],$AM83,1)), ISBLANK( INDEX(Данные[Автор, заглавие],$AM83,1))), "",LEFT(INDEX(Данные[Автор, заглавие],$AM83,1),28)) ->  | U83: =IF(OR(ISERR( INDEX(Данные[Год издания],$AM83,1)), ISBLANK( INDEX(Данные[Год издания],$AM83,1))), "",TEXT(INDEX(Данные[Год издания],$AM83,1),0)) ->  | W83: =IF(OR(ISERR( INDEX(Данные[Отдел],$AM83,1)), ISBLANK( INDEX(Данные[Отдел],$AM83,1))), "",TEXT(INDEX(Данные[Отдел],$AM83,1),0)) ->  | Y83: =IF(OR(ISERR( INDEX(Данные[Цена],$AM83,1)), ISBLANK( INDEX(Данные[Цена],$AM83,1))), "",INDEX(Данные[Цена],$AM83,1)) ->  | AD83: =IFERROR(INDEX(Данные[Коэффициент переоценки],$AM83,1),"") ->  | AF83: =IF(OR(ISERR( INDEX(Данные[Кол-во экз.],$AM83,1)), ISBLANK( INDEX(Данные[Кол-во экз.],$AM83,1))), "",INDEX(Данные[Кол-во экз.],$AM83,1)) ->  | AH83: =IF(OR(ISERR(INDEX(Данные[Автор, заглавие],$AM83,1)),ISBLANK(INDEX(Данные[Автор, заглавие],$AM83,1))),"",INDEX(Данные[Стои-мость],$AM83,1)) ->  | AM83: 37
A84: =IFERROR(INDEX(Данные[№пп],AM84,1),"") ->  | C84: =IF(OR(ISERR( INDEX(Данные[Инв. №],$AM84,1)), ISBLANK( INDEX(Данные[Инв. №],$AM84,1))), "",INDEX(Данные[Инв. №],$AM84,1)) ->  | F84: =IF(OR(ISERR(INDEX(Данные[Штрих код первые 6 цифр],$AM84,1)),ISBLANK(INDEX(Данные[Штрих код первые 6 цифр],$AM84,1))),"",LEFT(INDEX(Данные[Штрих код первые 6 цифр],$AM84,1),6)) ->  | I84: =IF(OR(ISERR( INDEX(Данные[Автор, заглавие],$AM84,1)), ISBLANK( INDEX(Данные[Автор, заглавие],$AM84,1))), "",LEFT(INDEX(Данные[Автор, заглавие],$AM84,1),28)) ->  | U84: =IF(OR(ISERR( INDEX(Данные[Год издания],$AM84,1)), ISBLANK( INDEX(Данные[Год издания],$AM84,1))), "",TEXT(INDEX(Данные[Год издания],$AM84,1),0)) ->  | W84: =IF(OR(ISERR( INDEX(Данные[Отдел],$AM84,1)), ISBLANK( INDEX(Данные[Отдел],$AM84,1))), "",TEXT(INDEX(Данные[Отдел],$AM84,1),0)) ->  | Y84: =IF(OR(ISERR( INDEX(Данные[Цена],$AM84,1)), ISBLANK( INDEX(Данные[Цена],$AM84,1))), "",INDEX(Данные[Цена],$AM84,1)) ->  | AD84: =IFERROR(INDEX(Данные[Коэффициент переоценки],$AM84,1),"") ->  | AF84: =IF(OR(ISERR( INDEX(Данные[Кол-во экз.],$AM84,1)), ISBLANK( INDEX(Данные[Кол-во экз.],$AM84,1))), "",INDEX(Данные[Кол-во экз.],$AM84,1)) ->  | AH84: =IF(OR(ISERR(INDEX(Данные[Автор, заглавие],$AM84,1)),ISBLANK(INDEX(Данные[Автор, заглавие],$AM84,1))),"",INDEX(Данные[Стои-мость],$AM84,1)) ->  | AM84: 38
A85: =IFERROR(INDEX(Данные[№пп],AM85,1),"") ->  | C85: =IF(OR(ISERR( INDEX(Данные[Инв. №],$AM85,1)), ISBLANK( INDEX(Данные[Инв. №],$AM85,1))), "",INDEX(Данные[Инв. №],$AM85,1)) ->  | F85: =IF(OR(ISERR(INDEX(Данные[Штрих код первые 6 цифр],$AM85,1)),ISBLANK(INDEX(Данные[Штрих код первые 6 цифр],$AM85,1))),"",LEFT(INDEX(Данные[Штрих код первые 6 цифр],$AM85,1),6)) ->  | I85: =IF(OR(ISERR( INDEX(Данные[Автор, заглавие],$AM85,1)), ISBLANK( INDEX(Данные[Автор, заглавие],$AM85,1))), "",LEFT(INDEX(Данные[Автор, заглавие],$AM85,1),28)) ->  | U85: =IF(OR(ISERR( INDEX(Данные[Год издания],$AM85,1)), ISBLANK( INDEX(Данные[Год издания],$AM85,1))), "",TEXT(INDEX(Данные[Год издания],$AM85,1),0)) ->  | W85: =IF(OR(ISERR( INDEX(Данные[Отдел],$AM85,1)), ISBLANK( INDEX(Данные[Отдел],$AM85,1))), "",TEXT(INDEX(Данные[Отдел],$AM85,1),0)) ->  | Y85: =IF(OR(ISERR( INDEX(Данные[Цена],$AM85,1)), ISBLANK( INDEX(Данные[Цена],$AM85,1))), "",INDEX(Данные[Цена],$AM85,1)) ->  | AD85: =IFERROR(INDEX(Данные[Коэффициент переоценки],$AM85,1),"") ->  | AF85: =IF(OR(ISERR( INDEX(Данные[Кол-во экз.],$AM85,1)), ISBLANK( INDEX(Данные[Кол-во экз.],$AM85,1))), "",INDEX(Данные[Кол-во экз.],$AM85,1)) ->  | AH85: =IF(OR(ISERR(INDEX(Данные[Автор, заглавие],$AM85,1)),ISBLANK(INDEX(Данные[Автор, заглавие],$AM85,1))),"",INDEX(Данные[Стои-мость],$AM85,1)) ->  | AM85: 39
A86: =IFERROR(INDEX(Данные[№пп],AM86,1),"") ->  | C86: =IF(OR(ISERR( INDEX(Данные[Инв. №],$AM86,1)), ISBLANK( INDEX(Данные[Инв. №],$AM86,1))), "",INDEX(Данные[Инв. №],$AM86,1)) ->  | F86: =IF(OR(ISERR(INDEX(Данные[Штрих код первые 6 цифр],$AM86,1)),ISBLANK(INDEX(Данные[Штрих код первые 6 цифр],$AM86,1))),"",LEFT(INDEX(Данные[Штрих код первые 6 цифр],$AM86,1),6)) ->  | I86: =IF(OR(ISERR( INDEX(Данные[Автор, заглавие],$AM86,1)), ISBLANK( INDEX(Данные[Автор, заглавие],$AM86,1))), "",LEFT(INDEX(Данные[Автор, заглавие],$AM86,1),28)) ->  | U86: =IF(OR(ISERR( INDEX(Данные[Год издания],$AM86,1)), ISBLANK( INDEX(Данные[Год издания],$AM86,1))), "",TEXT(INDEX(Данные[Год издания],$AM86,1),0)) ->  | W86: =IF(OR(ISERR( INDEX(Данные[Отдел],$AM86,1)), ISBLANK( INDEX(Данные[Отдел],$AM86,1))), "",TEXT(INDEX(Данные[Отдел],$AM86,1),0)) ->  | Y86: =IF(OR(ISERR( INDEX(Данные[Цена],$AM86,1)), ISBLANK( INDEX(Данные[Цена],$AM86,1))), "",INDEX(Данные[Цена],$AM86,1)) ->  | AD86: =IFERROR(INDEX(Данные[Коэффициент переоценки],$AM86,1),"") ->  | AF86: =IF(OR(ISERR( INDEX(Данные[Кол-во экз.],$AM86,1)), ISBLANK( INDEX(Данные[Кол-во экз.],$AM86,1))), "",INDEX(Данные[Кол-во экз.],$AM86,1)) ->  | AH86: =IF(OR(ISERR(INDEX(Данные[Автор, заглавие],$AM86,1)),ISBLANK(INDEX(Данные[Автор, заглавие],$AM86,1))),"",INDEX(Данные[Стои-мость],$AM86,1)) ->  | AM86: 40
A87: =IFERROR(INDEX(Данные[№пп],AM87,1),"") ->  | C87: =IF(OR(ISERR( INDEX(Данные[Инв. №],$AM87,1)), ISBLANK( INDEX(Данные[Инв. №],$AM87,1))), "",INDEX(Данные[Инв. №],$AM87,1)) ->  | F87: =IF(OR(ISERR(INDEX(Данные[Штрих код первые 6 цифр],$AM87,1)),ISBLANK(INDEX(Данные[Штрих код первые 6 цифр],$AM87,1))),"",LEFT(INDEX(Данные[Штрих код первые 6 цифр],$AM87,1),6)) ->  | I87: =IF(OR(ISERR( INDEX(Данные[Автор, заглавие],$AM87,1)), ISBLANK( INDEX(Данные[Автор, заглавие],$AM87,1))), "",LEFT(INDEX(Данные[Автор, заглавие],$AM87,1),28)) ->  | U87: =IF(OR(ISERR( INDEX(Данные[Год издания],$AM87,1)), ISBLANK( INDEX(Данные[Год издания],$AM87,1))), "",TEXT(INDEX(Данные[Год издания],$AM87,1),0)) ->  | W87: =IF(OR(ISERR( INDEX(Данные[Отдел],$AM87,1)), ISBLANK( INDEX(Данные[Отдел],$AM87,1))), "",TEXT(INDEX(Данные[Отдел],$AM87,1),0)) ->  | Y87: =IF(OR(ISERR( INDEX(Данные[Цена],$AM87,1)), ISBLANK( INDEX(Данные[Цена],$AM87,1))), "",INDEX(Данные[Цена],$AM87,1)) ->  | AD87: =IFERROR(INDEX(Данные[Коэффициент переоценки],$AM87,1),"") ->  | AF87: =IF(OR(ISERR( INDEX(Данные[Кол-во экз.],$AM87,1)), ISBLANK( INDEX(Данные[Кол-во экз.],$AM87,1))), "",INDEX(Данные[Кол-во экз.],$AM87,1)) ->  | AH87: =IF(OR(ISERR(INDEX(Данные[Автор, заглавие],$AM87,1)),ISBLANK(INDEX(Данные[Автор, заглавие],$AM87,1))),"",INDEX(Данные[Стои-мость],$AM87,1)) ->  | AM87: 41
A88: =IFERROR(INDEX(Данные[№пп],AM88,1),"") ->  | C88: =IF(OR(ISERR( INDEX(Данные[Инв. №],$AM88,1)), ISBLANK( INDEX(Данные[Инв. №],$AM88,1))), "",INDEX(Данные[Инв. №],$AM88,1)) ->  | F88: =IF(OR(ISERR(INDEX(Данные[Штрих код первые 6 цифр],$AM88,1)),ISBLANK(INDEX(Данные[Штрих код первые 6 цифр],$AM88,1))),"",LEFT(INDEX(Данные[Штрих код первые 6 цифр],$AM88,1),6)) ->  | I88: =IF(OR(ISERR( INDEX(Данные[Автор, заглавие],$AM88,1)), ISBLANK( INDEX(Данные[Автор, заглавие],$AM88,1))), "",LEFT(INDEX(Данные[Автор, заглавие],$AM88,1),28)) ->  | U88: =IF(OR(ISERR( INDEX(Данные[Год издания],$AM88,1)), ISBLANK( INDEX(Данные[Год издания],$AM88,1))), "",TEXT(INDEX(Данные[Год издания],$AM88,1),0)) ->  | W88: =IF(OR(ISERR( INDEX(Данные[Отдел],$AM88,1)), ISBLANK( INDEX(Данные[Отдел],$AM88,1))), "",TEXT(INDEX(Данные[Отдел],$AM88,1),0)) ->  | Y88: =IF(OR(ISERR( INDEX(Данные[Цена],$AM88,1)), ISBLANK( INDEX(Данные[Цена],$AM88,1))), "",INDEX(Данные[Цена],$AM88,1)) ->  | AD88: =IFERROR(INDEX(Данные[Коэффициент переоценки],$AM88,1),"") ->  | AF88: =IF(OR(ISERR( INDEX(Данные[Кол-во экз.],$AM88,1)), ISBLANK( INDEX(Данные[Кол-во экз.],$AM88,1))), "",INDEX(Данные[Кол-во экз.],$AM88,1)) ->  | AH88: =IF(OR(ISERR(INDEX(Данные[Автор, заглавие],$AM88,1)),ISBLANK(INDEX(Данные[Автор, заглавие],$AM88,1))),"",INDEX(Данные[Стои-мость],$AM88,1)) ->  | AM88: 42
A89: =IFERROR(INDEX(Данные[№пп],AM89,1),"") ->  | C89: =IF(OR(ISERR( INDEX(Данные[Инв. №],$AM89,1)), ISBLANK( INDEX(Данные[Инв. №],$AM89,1))), "",INDEX(Данные[Инв. №],$AM89,1)) ->  | F89: =IF(OR(ISERR(INDEX(Данные[Штрих код первые 6 цифр],$AM89,1)),ISBLANK(INDEX(Данные[Штрих код первые 6 цифр],$AM89,1))),"",LEFT(INDEX(Данные[Штрих код первые 6 цифр],$AM89,1),6)) ->  | I89: =IF(OR(ISERR( INDEX(Данные[Автор, заглавие],$AM89,1)), ISBLANK( INDEX(Данные[Автор, заглавие],$AM89,1))), "",LEFT(INDEX(Данные[Автор, заглавие],$AM89,1),28)) ->  | U89: =IF(OR(ISERR( INDEX(Данные[Год издания],$AM89,1)), ISBLANK( INDEX(Данные[Год издания],$AM89,1))), "",TEXT(INDEX(Данные[Год издания],$AM89,1),0)) ->  | W89: =IF(OR(ISERR( INDEX(Данные[Отдел],$AM89,1)), ISBLANK( INDEX(Данные[Отдел],$AM89,1))), "",TEXT(INDEX(Данные[Отдел],$AM89,1),0)) ->  | Y89: =IF(OR(ISERR( INDEX(Данные[Цена],$AM89,1)), ISBLANK( INDEX(Данные[Цена],$AM89,1))), "",INDEX(Данные[Цена],$AM89,1)) ->  | AD89: =IFERROR(INDEX(Данные[Коэффициент переоценки],$AM89,1),"") ->  | AF89: =IF(OR(ISERR( INDEX(Данные[Кол-во экз.],$AM89,1)), ISBLANK( INDEX(Данные[Кол-во экз.],$AM89,1))), "",INDEX(Данные[Кол-во экз.],$AM89,1)) ->  | AH89: =IF(OR(ISERR(INDEX(Данные[Автор, заглавие],$AM89,1)),ISBLANK(INDEX(Данные[Автор, заглавие],$AM89,1))),"",INDEX(Данные[Стои-мость],$AM89,1)) ->  | AM89: 43
A90: =IFERROR(INDEX(Данные[№пп],AM90,1),"") ->  | C90: =IF(OR(ISERR( INDEX(Данные[Инв. №],$AM90,1)), ISBLANK( INDEX(Данные[Инв. №],$AM90,1))), "",INDEX(Данные[Инв. №],$AM90,1)) ->  | F90: =IF(OR(ISERR(INDEX(Данные[Штрих код первые 6 цифр],$AM90,1)),ISBLANK(INDEX(Данные[Штрих код первые 6 цифр],$AM90,1))),"",LEFT(INDEX(Данные[Штрих код первые 6 цифр],$AM90,1),6)) ->  | I90: =IF(OR(ISERR( INDEX(Данные[Автор, заглавие],$AM90,1)), ISBLANK( INDEX(Данные[Автор, заглавие],$AM90,1))), "",LEFT(INDEX(Данные[Автор, заглавие],$AM90,1),28)) ->  | U90: =IF(OR(ISERR( INDEX(Данные[Год издания],$AM90,1)), ISBLANK( INDEX(Данные[Год издания],$AM90,1))), "",TEXT(INDEX(Данные[Год издания],$AM90,1),0)) ->  | W90: =IF(OR(ISERR( INDEX(Данные[Отдел],$AM90,1)), ISBLANK( INDEX(Данные[Отдел],$AM90,1))), "",TEXT(INDEX(Данные[Отдел],$AM90,1),0)) ->  | Y90: =IF(OR(ISERR( INDEX(Данные[Цена],$AM90,1)), ISBLANK( INDEX(Данные[Цена],$AM90,1))), "",INDEX(Данные[Цена],$AM90,1)) ->  | AD90: =IFERROR(INDEX(Данные[Коэффициент переоценки],$AM90,1),"") ->  | AF90: =IF(OR(ISERR( INDEX(Данные[Кол-во экз.],$AM90,1)), ISBLANK( INDEX(Данные[Кол-во экз.],$AM90,1))), "",INDEX(Данные[Кол-во экз.],$AM90,1)) ->  | AH90: =IF(OR(ISERR(INDEX(Данные[Автор, заглавие],$AM90,1)),ISBLANK(INDEX(Данные[Автор, заглавие],$AM90,1))),"",INDEX(Данные[Стои-мость],$AM90,1)) ->  | AM90: 44
A91: =IFERROR(INDEX(Данные[№пп],AM91,1),"") ->  | C91: =IF(OR(ISERR( INDEX(Данные[Инв. №],$AM91,1)), ISBLANK( INDEX(Данные[Инв. №],$AM91,1))), "",INDEX(Данные[Инв. №],$AM91,1)) ->  | F91: =IF(OR(ISERR(INDEX(Данные[Штрих код первые 6 цифр],$AM91,1)),ISBLANK(INDEX(Данные[Штрих код первые 6 цифр],$AM91,1))),"",LEFT(INDEX(Данные[Штрих код первые 6 цифр],$AM91,1),6)) ->  | I91: =IF(OR(ISERR( INDEX(Данные[Автор, заглавие],$AM91,1)), ISBLANK( INDEX(Данные[Автор, заглавие],$AM91,1))), "",LEFT(INDEX(Данные[Автор, заглавие],$AM91,1),28)) ->  | U91: =IF(OR(ISERR( INDEX(Данные[Год издания],$AM91,1)), ISBLANK( INDEX(Данные[Год издания],$AM91,1))), "",TEXT(INDEX(Данные[Год издания],$AM91,1),0)) ->  | W91: =IF(OR(ISERR( INDEX(Данные[Отдел],$AM91,1)), ISBLANK( INDEX(Данные[Отдел],$AM91,1))), "",TEXT(INDEX(Данные[Отдел],$AM91,1),0)) ->  | Y91: =IF(OR(ISERR( INDEX(Данные[Цена],$AM91,1)), ISBLANK( INDEX(Данные[Цена],$AM91,1))), "",INDEX(Данные[Цена],$AM91,1)) ->  | AD91: =IFERROR(INDEX(Данные[Коэффициент переоценки],$AM91,1),"") ->  | AF91: =IF(OR(ISERR( INDEX(Данные[Кол-во экз.],$AM91,1)), ISBLANK( INDEX(Данные[Кол-во экз.],$AM91,1))), "",INDEX(Данные[Кол-во экз.],$AM91,1)) ->  | AH91: =IF(OR(ISERR(INDEX(Данные[Автор, заглавие],$AM91,1)),ISBLANK(INDEX(Данные[Автор, заглавие],$AM91,1))),"",INDEX(Данные[Стои-мость],$AM91,1)) ->  | AM91: 45
A92: =IFERROR(INDEX(Данные[№пп],AM92,1),"") ->  | C92: =IF(OR(ISERR( INDEX(Данные[Инв. №],$AM92,1)), ISBLANK( INDEX(Данные[Инв. №],$AM92,1))), "",INDEX(Данные[Инв. №],$AM92,1)) ->  | F92: =IF(OR(ISERR(INDEX(Данные[Штрих код первые 6 цифр],$AM92,1)),ISBLANK(INDEX(Данные[Штрих код первые 6 цифр],$AM92,1))),"",LEFT(INDEX(Данные[Штрих код первые 6 цифр],$AM92,1),6)) ->  | I92: =IF(OR(ISERR( INDEX(Данные[Автор, заглавие],$AM92,1)), ISBLANK( INDEX(Данные[Автор, заглавие],$AM92,1))), "",LEFT(INDEX(Данные[Автор, заглавие],$AM92,1),28)) ->  | U92: =IF(OR(ISERR( INDEX(Данные[Год издания],$AM92,1)), ISBLANK( INDEX(Данные[Год издания],$AM92,1))), "",TEXT(INDEX(Данные[Год издания],$AM92,1),0)) ->  | W92: =IF(OR(ISERR( INDEX(Данные[Отдел],$AM92,1)), ISBLANK( INDEX(Данные[Отдел],$AM92,1))), "",TEXT(INDEX(Данные[Отдел],$AM92,1),0)) ->  | Y92: =IF(OR(ISERR( INDEX(Данные[Цена],$AM92,1)), ISBLANK( INDEX(Данные[Цена],$AM92,1))), "",INDEX(Данные[Цена],$AM92,1)) ->  | AD92: =IFERROR(INDEX(Данные[Коэффициент переоценки],$AM92,1),"") ->  | AF92: =IF(OR(ISERR( INDEX(Данные[Кол-во экз.],$AM92,1)), ISBLANK( INDEX(Данные[Кол-во экз.],$AM92,1))), "",INDEX(Данные[Кол-во экз.],$AM92,1)) ->  | AH92: =IF(OR(ISERR(INDEX(Данные[Автор, заглавие],$AM92,1)),ISBLANK(INDEX(Данные[Автор, заглавие],$AM92,1))),"",INDEX(Данные[Стои-мость],$AM92,1)) ->  | AM92: 46
A93: =IFERROR(INDEX(Данные[№пп],AM93,1),"") ->  | C93: =IF(OR(ISERR( INDEX(Данные[Инв. №],$AM93,1)), ISBLANK( INDEX(Данные[Инв. №],$AM93,1))), "",INDEX(Данные[Инв. №],$AM93,1)) ->  | F93: =IF(OR(ISERR(INDEX(Данные[Штрих код первые 6 цифр],$AM93,1)),ISBLANK(INDEX(Данные[Штрих код первые 6 цифр],$AM93,1))),"",LEFT(INDEX(Данные[Штрих код первые 6 цифр],$AM93,1),6)) ->  | I93: =IF(OR(ISERR( INDEX(Данные[Автор, заглавие],$AM93,1)), ISBLANK( INDEX(Данные[Автор, заглавие],$AM93,1))), "",LEFT(INDEX(Данные[Автор, заглавие],$AM93,1),28)) ->  | U93: =IF(OR(ISERR( INDEX(Данные[Год издания],$AM93,1)), ISBLANK( INDEX(Данные[Год издания],$AM93,1))), "",TEXT(INDEX(Данные[Год издания],$AM93,1),0)) ->  | W93: =IF(OR(ISERR( INDEX(Данные[Отдел],$AM93,1)), ISBLANK( INDEX(Данные[Отдел],$AM93,1))), "",TEXT(INDEX(Данные[Отдел],$AM93,1),0)) ->  | Y93: =IF(OR(ISERR( INDEX(Данные[Цена],$AM93,1)), ISBLANK( INDEX(Данные[Цена],$AM93,1))), "",INDEX(Данные[Цена],$AM93,1)) ->  | AD93: =IFERROR(INDEX(Данные[Коэффициент переоценки],$AM93,1),"") ->  | AF93: =IF(OR(ISERR( INDEX(Данные[Кол-во экз.],$AM93,1)), ISBLANK( INDEX(Данные[Кол-во экз.],$AM93,1))), "",INDEX(Данные[Кол-во экз.],$AM93,1)) ->  | AH93: =IF(OR(ISERR(INDEX(Данные[Автор, заглавие],$AM93,1)),ISBLANK(INDEX(Данные[Автор, заглавие],$AM93,1))),"",INDEX(Данные[Стои-мость],$AM93,1)) ->  | AM93: 47
A94: =IFERROR(INDEX(Данные[№пп],AM94,1),"") ->  | C94: =IF(OR(ISERR( INDEX(Данные[Инв. №],$AM94,1)), ISBLANK( INDEX(Данные[Инв. №],$AM94,1))), "",INDEX(Данные[Инв. №],$AM94,1)) ->  | F94: =IF(OR(ISERR(INDEX(Данные[Штрих код первые 6 цифр],$AM94,1)),ISBLANK(INDEX(Данные[Штрих код первые 6 цифр],$AM94,1))),"",LEFT(INDEX(Данные[Штрих код первые 6 цифр],$AM94,1),6)) ->  | I94: =IF(OR(ISERR( INDEX(Данные[Автор, заглавие],$AM94,1)), ISBLANK( INDEX(Данные[Автор, заглавие],$AM94,1))), "",LEFT(INDEX(Данные[Автор, заглавие],$AM94,1),28)) ->  | U94: =IF(OR(ISERR( INDEX(Данные[Год издания],$AM94,1)), ISBLANK( INDEX(Данные[Год издания],$AM94,1))), "",TEXT(INDEX(Данные[Год издания],$AM94,1),0)) ->  | W94: =IF(OR(ISERR( INDEX(Данные[Отдел],$AM94,1)), ISBLANK( INDEX(Данные[Отдел],$AM94,1))), "",TEXT(INDEX(Данные[Отдел],$AM94,1),0)) ->  | Y94: =IF(OR(ISERR( INDEX(Данные[Цена],$AM94,1)), ISBLANK( INDEX(Данные[Цена],$AM94,1))), "",INDEX(Данные[Цена],$AM94,1)) ->  | AD94: =IFERROR(INDEX(Данные[Коэффициент переоценки],$AM94,1),"") ->  | AF94: =IF(OR(ISERR( INDEX(Данные[Кол-во экз.],$AM94,1)), ISBLANK( INDEX(Данные[Кол-во экз.],$AM94,1))), "",INDEX(Данные[Кол-во экз.],$AM94,1)) ->  | AH94: =IF(OR(ISERR(INDEX(Данные[Автор, заглавие],$AM94,1)),ISBLANK(INDEX(Данные[Автор, заглавие],$AM94,1))),"",INDEX(Данные[Стои-мость],$AM94,1)) ->  | AM94: =AM93+1 -> 48
A95: =IFERROR(INDEX(Данные[№пп],AM95,1),"") ->  | C95: =IF(OR(ISERR( INDEX(Данные[Инв. №],$AM95,1)), ISBLANK( INDEX(Данные[Инв. №],$AM95,1))), "",INDEX(Данные[Инв. №],$AM95,1)) ->  | F95: =IF(OR(ISERR(INDEX(Данные[Штрих код первые 6 цифр],$AM95,1)),ISBLANK(INDEX(Данные[Штрих код первые 6 цифр],$AM95,1))),"",LEFT(INDEX(Данные[Штрих код первые 6 цифр],$AM95,1),6)) ->  | I95: =IF(OR(ISERR( INDEX(Данные[Автор, заглавие],$AM95,1)), ISBLANK( INDEX(Данные[Автор, заглавие],$AM95,1))), "",LEFT(INDEX(Данные[Автор, заглавие],$AM95,1),28)) ->  | U95: =IF(OR(ISERR( INDEX(Данные[Год издания],$AM95,1)), ISBLANK( INDEX(Данные[Год издания],$AM95,1))), "",TEXT(INDEX(Данные[Год издания],$AM95,1),0)) ->  | W95: =IF(OR(ISERR( INDEX(Данные[Отдел],$AM95,1)), ISBLANK( INDEX(Данные[Отдел],$AM95,1))), "",TEXT(INDEX(Данные[Отдел],$AM95,1),0)) ->  | Y95: =IF(OR(ISERR( INDEX(Данные[Цена],$AM95,1)), ISBLANK( INDEX(Данные[Цена],$AM95,1))), "",INDEX(Данные[Цена],$AM95,1)) ->  | AD95: =IFERROR(INDEX(Данные[Коэффициент переоценки],$AM95,1),"") ->  | AF95: =IF(OR(ISERR( INDEX(Данные[Кол-во экз.],$AM95,1)), ISBLANK( INDEX(Данные[Кол-во экз.],$AM95,1))), "",INDEX(Данные[Кол-во экз.],$AM95,1)) ->  | AH95: =IF(OR(ISERR(INDEX(Данные[Автор, заглавие],$AM95,1)),ISBLANK(INDEX(Данные[Автор, заглавие],$AM95,1))),"",INDEX(Данные[Стои-мость],$AM95,1)) ->  | AM95: 49
A96: =IFERROR(INDEX(Данные[№пп],AM96,1),"") ->  | C96: =IF(OR(ISERR( INDEX(Данные[Инв. №],$AM96,1)), ISBLANK( INDEX(Данные[Инв. №],$AM96,1))), "",INDEX(Данные[Инв. №],$AM96,1)) ->  | F96: =IF(OR(ISERR(INDEX(Данные[Штрих код первые 6 цифр],$AM96,1)),ISBLANK(INDEX(Данные[Штрих код первые 6 цифр],$AM96,1))),"",LEFT(INDEX(Данные[Штрих код первые 6 цифр],$AM96,1),6)) ->  | I96: =IF(OR(ISERR( INDEX(Данные[Автор, заглавие],$AM96,1)), ISBLANK( INDEX(Данные[Автор, заглавие],$AM96,1))), "",LEFT(INDEX(Данные[Автор, заглавие],$AM96,1),28)) ->  | U96: =IF(OR(ISERR( INDEX(Данные[Год издания],$AM96,1)), ISBLANK( INDEX(Данные[Год издания],$AM96,1))), "",TEXT(INDEX(Данные[Год издания],$AM96,1),0)) ->  | W96: =IF(OR(ISERR( INDEX(Данные[Отдел],$AM96,1)), ISBLANK( INDEX(Данные[Отдел],$AM96,1))), "",TEXT(INDEX(Данные[Отдел],$AM96,1),0)) ->  | Y96: =IF(OR(ISERR( INDEX(Данные[Цена],$AM96,1)), ISBLANK( INDEX(Данные[Цена],$AM96,1))), "",INDEX(Данные[Цена],$AM96,1)) ->  | AD96: =IFERROR(INDEX(Данные[Коэффициент переоценки],$AM96,1),"") ->  | AF96: =IF(OR(ISERR( INDEX(Данные[Кол-во экз.],$AM96,1)), ISBLANK( INDEX(Данные[Кол-во экз.],$AM96,1))), "",INDEX(Данные[Кол-во экз.],$AM96,1)) ->  | AH96: =IF(OR(ISERR(INDEX(Данные[Автор, заглавие],$AM96,1)),ISBLANK(INDEX(Данные[Автор, заглавие],$AM96,1))),"",INDEX(Данные[Стои-мость],$AM96,1)) ->  | AM96: 50
A97: =IFERROR(INDEX(Данные[№пп],AM97,1),"") ->  | C97: =IF(OR(ISERR( INDEX(Данные[Инв. №],$AM97,1)), ISBLANK( INDEX(Данные[Инв. №],$AM97,1))), "",INDEX(Данные[Инв. №],$AM97,1)) ->  | F97: =IF(OR(ISERR(INDEX(Данные[Штрих код первые 6 цифр],$AM97,1)),ISBLANK(INDEX(Данные[Штрих код первые 6 цифр],$AM97,1))),"",LEFT(INDEX(Данные[Штрих код первые 6 цифр],$AM97,1),6)) ->  | I97: =IF(OR(ISERR( INDEX(Данные[Автор, заглавие],$AM97,1)), ISBLANK( INDEX(Данные[Автор, заглавие],$AM97,1))), "",LEFT(INDEX(Данные[Автор, заглавие],$AM97,1),28)) ->  | U97: =IF(OR(ISERR( INDEX(Данные[Год издания],$AM97,1)), ISBLANK( INDEX(Данные[Год издания],$AM97,1))), "",TEXT(INDEX(Данные[Год издания],$AM97,1),0)) ->  | W97: =IF(OR(ISERR( INDEX(Данные[Отдел],$AM97,1)), ISBLANK( INDEX(Данные[Отдел],$AM97,1))), "",TEXT(INDEX(Данные[Отдел],$AM97,1),0)) ->  | Y97: =IF(OR(ISERR( INDEX(Данные[Цена],$AM97,1)), ISBLANK( INDEX(Данные[Цена],$AM97,1))), "",INDEX(Данные[Цена],$AM97,1)) ->  | AD97: =IFERROR(INDEX(Данные[Коэффициент переоценки],$AM97,1),"") ->  | AF97: =IF(OR(ISERR( INDEX(Данные[Кол-во экз.],$AM97,1)), ISBLANK( INDEX(Данные[Кол-во экз.],$AM97,1))), "",INDEX(Данные[Кол-во экз.],$AM97,1)) ->  | AH97: =IF(OR(ISERR(INDEX(Данные[Автор, заглавие],$AM97,1)),ISBLANK(INDEX(Данные[Автор, заглавие],$AM97,1))),"",INDEX(Данные[Стои-мость],$AM97,1)) ->  | AM97: 51
A98: =IFERROR(INDEX(Данные[№пп],AM98,1),"") ->  | C98: =IF(OR(ISERR( INDEX(Данные[Инв. №],$AM98,1)), ISBLANK( INDEX(Данные[Инв. №],$AM98,1))), "",INDEX(Данные[Инв. №],$AM98,1)) ->  | F98: =IF(OR(ISERR(INDEX(Данные[Штрих код первые 6 цифр],$AM98,1)),ISBLANK(INDEX(Данные[Штрих код первые 6 цифр],$AM98,1))),"",LEFT(INDEX(Данные[Штрих код первые 6 цифр],$AM98,1),6)) ->  | I98: =IF(OR(ISERR( INDEX(Данные[Автор, заглавие],$AM98,1)), ISBLANK( INDEX(Данные[Автор, заглавие],$AM98,1))), "",LEFT(INDEX(Данные[Автор, заглавие],$AM98,1),28)) ->  | U98: =IF(OR(ISERR( INDEX(Данные[Год издания],$AM98,1)), ISBLANK( INDEX(Данные[Год издания],$AM98,1))), "",TEXT(INDEX(Данные[Год издания],$AM98,1),0)) ->  | W98: =IF(OR(ISERR( INDEX(Данные[Отдел],$AM98,1)), ISBLANK( INDEX(Данные[Отдел],$AM98,1))), "",TEXT(INDEX(Данные[Отдел],$AM98,1),0)) ->  | Y98: =IF(OR(ISERR( INDEX(Данные[Цена],$AM98,1)), ISBLANK( INDEX(Данные[Цена],$AM98,1))), "",INDEX(Данные[Цена],$AM98,1)) ->  | AD98: =IFERROR(INDEX(Данные[Коэффициент переоценки],$AM98,1),"") ->  | AF98: =IF(OR(ISERR( INDEX(Данные[Кол-во экз.],$AM98,1)), ISBLANK( INDEX(Данные[Кол-во экз.],$AM98,1))), "",INDEX(Данные[Кол-во экз.],$AM98,1)) ->  | AH98: =IF(OR(ISERR(INDEX(Данные[Автор, заглавие],$AM98,1)),ISBLANK(INDEX(Данные[Автор, заглавие],$AM98,1))),"",INDEX(Данные[Стои-мость],$AM98,1)) ->  | AM98: 52
A99: =IFERROR(INDEX(Данные[№пп],AM99,1),"") ->  | C99: =IF(OR(ISERR( INDEX(Данные[Инв. №],$AM99,1)), ISBLANK( INDEX(Данные[Инв. №],$AM99,1))), "",INDEX(Данные[Инв. №],$AM99,1)) ->  | F99: =IF(OR(ISERR(INDEX(Данные[Штрих код первые 6 цифр],$AM99,1)),ISBLANK(INDEX(Данные[Штрих код первые 6 цифр],$AM99,1))),"",LEFT(INDEX(Данные[Штрих код первые 6 цифр],$AM99,1),6)) ->  | I99: =IF(OR(ISERR( INDEX(Данные[Автор, заглавие],$AM99,1)), ISBLANK( INDEX(Данные[Автор, заглавие],$AM99,1))), "",LEFT(INDEX(Данные[Автор, заглавие],$AM99,1),28)) ->  | U99: =IF(OR(ISERR( INDEX(Данные[Год издания],$AM99,1)), ISBLANK( INDEX(Данные[Год издания],$AM99,1))), "",TEXT(INDEX(Данные[Год издания],$AM99,1),0)) ->  | W99: =IF(OR(ISERR( INDEX(Данные[Отдел],$AM99,1)), ISBLANK( INDEX(Данные[Отдел],$AM99,1))), "",TEXT(INDEX(Данные[Отдел],$AM99,1),0)) ->  | Y99: =IF(OR(ISERR( INDEX(Данные[Цена],$AM99,1)), ISBLANK( INDEX(Данные[Цена],$AM99,1))), "",INDEX(Данные[Цена],$AM99,1)) ->  | AD99: =IFERROR(INDEX(Данные[Коэффициент переоценки],$AM99,1),"") ->  | AF99: =IF(OR(ISERR( INDEX(Данные[Кол-во экз.],$AM99,1)), ISBLANK( INDEX(Данные[Кол-во экз.],$AM99,1))), "",INDEX(Данные[Кол-во экз.],$AM99,1)) ->  | AH99: =IF(OR(ISERR(INDEX(Данные[Автор, заглавие],$AM99,1)),ISBLANK(INDEX(Данные[Автор, заглавие],$AM99,1))),"",INDEX(Данные[Стои-мость],$AM99,1)) ->  | AM99: 53
A100: =IFERROR(INDEX(Данные[№пп],AM100,1),"") ->  | C100: =IF(OR(ISERR( INDEX(Данные[Инв. №],$AM100,1)), ISBLANK( INDEX(Данные[Инв. №],$AM100,1))), "",INDEX(Данные[Инв. №],$AM100,1)) ->  | F100: =IF(OR(ISERR(INDEX(Данные[Штрих код первые 6 цифр],$AM100,1)),ISBLANK(INDEX(Данные[Штрих код первые 6 цифр],$AM100,1))),"",LEFT(INDEX(Данные[Штрих код первые 6 цифр],$AM100,1),6)) ->  | I100: =IF(OR(ISERR( INDEX(Данные[Автор, заглавие],$AM100,1)), ISBLANK( INDEX(Данные[Автор, заглавие],$AM100,1))), "",LEFT(INDEX(Данные[Автор, заглавие],$AM100,1),28)) ->  | U100: =IF(OR(ISERR( INDEX(Данные[Год издания],$AM100,1)), ISBLANK( INDEX(Данные[Год издания],$AM100,1))), "",TEXT(INDEX(Данные[Год издания],$AM100,1),0)) ->  | W100: =IF(OR(ISERR( INDEX(Данные[Отдел],$AM100,1)), ISBLANK( INDEX(Данные[Отдел],$AM100,1))), "",TEXT(INDEX(Данные[Отдел],$AM100,1),0)) ->  | Y100: =IF(OR(ISERR( INDEX(Данные[Цена],$AM100,1)), ISBLANK( INDEX(Данные[Цена],$AM100,1))), "",INDEX(Данные[Цена],$AM100,1)) ->  | AD100: =IFERROR(INDEX(Данные[Коэффициент переоценки],$AM100,1),"") ->  | AF100: =IF(OR(ISERR( INDEX(Данные[Кол-во экз.],$AM100,1)), ISBLANK( INDEX(Данные[Кол-во экз.],$AM100,1))), "",INDEX(Данные[Кол-во экз.],$AM100,1)) ->  | AH100: =IF(OR(ISERR(INDEX(Данные[Автор, заглавие],$AM100,1)),ISBLANK(INDEX(Данные[Автор, заглавие],$AM100,1))),"",INDEX(Данные[Стои-мость],$AM100,1)) ->  | AM100: 54
A101: =IFERROR(INDEX(Данные[№пп],AM101,1),"") ->  | C101: =IF(OR(ISERR( INDEX(Данные[Инв. №],$AM101,1)), ISBLANK( INDEX(Данные[Инв. №],$AM101,1))), "",INDEX(Данные[Инв. №],$AM101,1)) ->  | F101: =IF(OR(ISERR(INDEX(Данные[Штрих код первые 6 цифр],$AM101,1)),ISBLANK(INDEX(Данные[Штрих код первые 6 цифр],$AM101,1))),"",LEFT(INDEX(Данные[Штрих код первые 6 цифр],$AM101,1),6)) ->  | I101: =IF(OR(ISERR( INDEX(Данные[Автор, заглавие],$AM101,1)), ISBLANK( INDEX(Данные[Автор, заглавие],$AM101,1))), "",LEFT(INDEX(Данные[Автор, заглавие],$AM101,1),28)) ->  | U101: =IF(OR(ISERR( INDEX(Данные[Год издания],$AM101,1)), ISBLANK( INDEX(Данные[Год издания],$AM101,1))), "",TEXT(INDEX(Данные[Год издания],$AM101,1),0)) ->  | W101: =IF(OR(ISERR( INDEX(Данные[Отдел],$AM101,1)), ISBLANK( INDEX(Данные[Отдел],$AM101,1))), "",TEXT(INDEX(Данные[Отдел],$AM101,1),0)) ->  | Y101: =IF(OR(ISERR( INDEX(Данные[Цена],$AM101,1)), ISBLANK( INDEX(Данные[Цена],$AM101,1))), "",INDEX(Данные[Цена],$AM101,1)) ->  | AD101: =IFERROR(INDEX(Данные[Коэффициент переоценки],$AM101,1),"") ->  | AF101: =IF(OR(ISERR( INDEX(Данные[Кол-во экз.],$AM101,1)), ISBLANK( INDEX(Данные[Кол-во экз.],$AM101,1))), "",INDEX(Данные[Кол-во экз.],$AM101,1)) ->  | AH101: =IF(OR(ISERR(INDEX(Данные[Автор, заглавие],$AM101,1)),ISBLANK(INDEX(Данные[Автор, заглавие],$AM101,1))),"",INDEX(Данные[Стои-мость],$AM101,1)) ->  | AM101: 55
A102: =IFERROR(INDEX(Данные[№пп],AM102,1),"") ->  | C102: =IF(OR(ISERR( INDEX(Данные[Инв. №],$AM102,1)), ISBLANK( INDEX(Данные[Инв. №],$AM102,1))), "",INDEX(Данные[Инв. №],$AM102,1)) ->  | F102: =IF(OR(ISERR(INDEX(Данные[Штрих код первые 6 цифр],$AM102,1)),ISBLANK(INDEX(Данные[Штрих код первые 6 цифр],$AM102,1))),"",LEFT(INDEX(Данные[Штрих код первые 6 цифр],$AM102,1),6)) ->  | I102: =IF(OR(ISERR( INDEX(Данные[Автор, заглавие],$AM102,1)), ISBLANK( INDEX(Данные[Автор, заглавие],$AM102,1))), "",LEFT(INDEX(Данные[Автор, заглавие],$AM102,1),28)) ->  | U102: =IF(OR(ISERR( INDEX(Данные[Год издания],$AM102,1)), ISBLANK( INDEX(Данные[Год издания],$AM102,1))), "",TEXT(INDEX(Данные[Год издания],$AM102,1),0)) ->  | W102: =IF(OR(ISERR( INDEX(Данные[Отдел],$AM102,1)), ISBLANK( INDEX(Данные[Отдел],$AM102,1))), "",TEXT(INDEX(Данные[Отдел],$AM102,1),0)) ->  | Y102: =IF(OR(ISERR( INDEX(Данные[Цена],$AM102,1)), ISBLANK( INDEX(Данные[Цена],$AM102,1))), "",INDEX(Данные[Цена],$AM102,1)) ->  | AD102: =IFERROR(INDEX(Данные[Коэффициент переоценки],$AM102,1),"") ->  | AF102: =IF(OR(ISERR( INDEX(Данные[Кол-во экз.],$AM102,1)), ISBLANK( INDEX(Данные[Кол-во экз.],$AM102,1))), "",INDEX(Данные[Кол-во экз.],$AM102,1)) ->  | AH102: =IF(OR(ISERR(INDEX(Данные[Автор, заглавие],$AM102,1)),ISBLANK(INDEX(Данные[Автор, заглавие],$AM102,1))),"",INDEX(Данные[Стои-мость],$AM102,1)) ->  | AM102: 56
A103: =IFERROR(INDEX(Данные[№пп],AM103,1),"") ->  | C103: =IF(OR(ISERR( INDEX(Данные[Инв. №],$AM103,1)), ISBLANK( INDEX(Данные[Инв. №],$AM103,1))), "",INDEX(Данные[Инв. №],$AM103,1)) ->  | F103: =IF(OR(ISERR(INDEX(Данные[Штрих код первые 6 цифр],$AM103,1)),ISBLANK(INDEX(Данные[Штрих код первые 6 цифр],$AM103,1))),"",LEFT(INDEX(Данные[Штрих код первые 6 цифр],$AM103,1),6)) ->  | I103: =IF(OR(ISERR( INDEX(Данные[Автор, заглавие],$AM103,1)), ISBLANK( INDEX(Данные[Автор, заглавие],$AM103,1))), "",LEFT(INDEX(Данные[Автор, заглавие],$AM103,1),28)) ->  | U103: =IF(OR(ISERR( INDEX(Данные[Год издания],$AM103,1)), ISBLANK( INDEX(Данные[Год издания],$AM103,1))), "",TEXT(INDEX(Данные[Год издания],$AM103,1),0)) ->  | W103: =IF(OR(ISERR( INDEX(Данные[Отдел],$AM103,1)), ISBLANK( INDEX(Данные[Отдел],$AM103,1))), "",TEXT(INDEX(Данные[Отдел],$AM103,1),0)) ->  | Y103: =IF(OR(ISERR( INDEX(Данные[Цена],$AM103,1)), ISBLANK( INDEX(Данные[Цена],$AM103,1))), "",INDEX(Данные[Цена],$AM103,1)) ->  | AD103: =IFERROR(INDEX(Данные[Коэффициент переоценки],$AM103,1),"") ->  | AF103: =IF(OR(ISERR( INDEX(Данные[Кол-во экз.],$AM103,1)), ISBLANK( INDEX(Данные[Кол-во экз.],$AM103,1))), "",INDEX(Данные[Кол-во экз.],$AM103,1)) ->  | AH103: =IF(OR(ISERR(INDEX(Данные[Автор, заглавие],$AM103,1)),ISBLANK(INDEX(Данные[Автор, заглавие],$AM103,1))),"",INDEX(Данные[Стои-мость],$AM103,1)) ->  | AM103: 57
A104: =IFERROR(INDEX(Данные[№пп],AM104,1),"") ->  | C104: =IF(OR(ISERR( INDEX(Данные[Инв. №],$AM104,1)), ISBLANK( INDEX(Данные[Инв. №],$AM104,1))), "",INDEX(Данные[Инв. №],$AM104,1)) ->  | F104: =IF(OR(ISERR(INDEX(Данные[Штрих код первые 6 цифр],$AM104,1)),ISBLANK(INDEX(Данные[Штрих код первые 6 цифр],$AM104,1))),"",LEFT(INDEX(Данные[Штрих код первые 6 цифр],$AM104,1),6)) ->  | I104: =IF(OR(ISERR( INDEX(Данные[Автор, заглавие],$AM104,1)), ISBLANK( INDEX(Данные[Автор, заглавие],$AM104,1))), "",LEFT(INDEX(Данные[Автор, заглавие],$AM104,1),28)) ->  | U104: =IF(OR(ISERR( INDEX(Данные[Год издания],$AM104,1)), ISBLANK( INDEX(Данные[Год издания],$AM104,1))), "",TEXT(INDEX(Данные[Год издания],$AM104,1),0)) ->  | W104: =IF(OR(ISERR( INDEX(Данные[Отдел],$AM104,1)), ISBLANK( INDEX(Данные[Отдел],$AM104,1))), "",TEXT(INDEX(Данные[Отдел],$AM104,1),0)) ->  | Y104: =IF(OR(ISERR( INDEX(Данные[Цена],$AM104,1)), ISBLANK( INDEX(Данные[Цена],$AM104,1))), "",INDEX(Данные[Цена],$AM104,1)) ->  | AD104: =IFERROR(INDEX(Данные[Коэффициент переоценки],$AM104,1),"") ->  | AF104: =IF(OR(ISERR( INDEX(Данные[Кол-во экз.],$AM104,1)), ISBLANK( INDEX(Данные[Кол-во экз.],$AM104,1))), "",INDEX(Данные[Кол-во экз.],$AM104,1)) ->  | AH104: =IF(OR(ISERR(INDEX(Данные[Автор, заглавие],$AM104,1)),ISBLANK(INDEX(Данные[Автор, заглавие],$AM104,1))),"",INDEX(Данные[Стои-мость],$AM104,1)) ->  | AM104: 58
A105: =IFERROR(INDEX(Данные[№пп],AM105,1),"") ->  | C105: =IF(OR(ISERR( INDEX(Данные[Инв. №],$AM105,1)), ISBLANK( INDEX(Данные[Инв. №],$AM105,1))), "",INDEX(Данные[Инв. №],$AM105,1)) ->  | F105: =IF(OR(ISERR(INDEX(Данные[Штрих код первые 6 цифр],$AM105,1)),ISBLANK(INDEX(Данные[Штрих код первые 6 цифр],$AM105,1))),"",LEFT(INDEX(Данные[Штрих код первые 6 цифр],$AM105,1),6)) ->  | I105: =IF(OR(ISERR( INDEX(Данные[Автор, заглавие],$AM105,1)), ISBLANK( INDEX(Данные[Автор, заглавие],$AM105,1))), "",LEFT(INDEX(Данные[Автор, заглавие],$AM105,1),28)) ->  | U105: =IF(OR(ISERR( INDEX(Данные[Год издания],$AM105,1)), ISBLANK( INDEX(Данные[Год издания],$AM105,1))), "",TEXT(INDEX(Данные[Год издания],$AM105,1),0)) ->  | W105: =IF(OR(ISERR( INDEX(Данные[Отдел],$AM105,1)), ISBLANK( INDEX(Данные[Отдел],$AM105,1))), "",TEXT(INDEX(Данные[Отдел],$AM105,1),0)) ->  | Y105: =IF(OR(ISERR( INDEX(Данные[Цена],$AM105,1)), ISBLANK( INDEX(Данные[Цена],$AM105,1))), "",INDEX(Данные[Цена],$AM105,1)) ->  | AD105: =IFERROR(INDEX(Данные[Коэффициент переоценки],$AM105,1),"") ->  | AF105: =IF(OR(ISERR( INDEX(Данные[Кол-во экз.],$AM105,1)), ISBLANK( INDEX(Данные[Кол-во экз.],$AM105,1))), "",INDEX(Данные[Кол-во экз.],$AM105,1)) ->  | AH105: =IF(OR(ISERR(INDEX(Данные[Автор, заглавие],$AM105,1)),ISBLANK(INDEX(Данные[Автор, заглавие],$AM105,1))),"",INDEX(Данные[Стои-мость],$AM105,1)) ->  | AM105: 59
A106: =IFERROR(INDEX(Данные[№пп],AM106,1),"") ->  | C106: =IF(OR(ISERR( INDEX(Данные[Инв. №],$AM106,1)), ISBLANK( INDEX(Данные[Инв. №],$AM106,1))), "",INDEX(Данные[Инв. №],$AM106,1)) ->  | F106: =IF(OR(ISERR(INDEX(Данные[Штрих код первые 6 цифр],$AM106,1)),ISBLANK(INDEX(Данные[Штрих код первые 6 цифр],$AM106,1))),"",LEFT(INDEX(Данные[Штрих код первые 6 цифр],$AM106,1),6)) ->  | I106: =IF(OR(ISERR( INDEX(Данные[Автор, заглавие],$AM106,1)), ISBLANK( INDEX(Данные[Автор, заглавие],$AM106,1))), "",LEFT(INDEX(Данные[Автор, заглавие],$AM106,1),28)) ->  | U106: =IF(OR(ISERR( INDEX(Данные[Год издания],$AM106,1)), ISBLANK( INDEX(Данные[Год издания],$AM106,1))), "",TEXT(INDEX(Данные[Год издания],$AM106,1),0)) ->  | W106: =IF(OR(ISERR( INDEX(Данные[Отдел],$AM106,1)), ISBLANK( INDEX(Данные[Отдел],$AM106,1))), "",TEXT(INDEX(Данные[Отдел],$AM106,1),0)) ->  | Y106: =IF(OR(ISERR( INDEX(Данные[Цена],$AM106,1)), ISBLANK( INDEX(Данные[Цена],$AM106,1))), "",INDEX(Данные[Цена],$AM106,1)) ->  | AD106: =IFERROR(INDEX(Данные[Коэффициент переоценки],$AM106,1),"") ->  | AF106: =IF(OR(ISERR( INDEX(Данные[Кол-во экз.],$AM106,1)), ISBLANK( INDEX(Данные[Кол-во экз.],$AM106,1))), "",INDEX(Данные[Кол-во экз.],$AM106,1)) ->  | AH106: =IF(OR(ISERR(INDEX(Данные[Автор, заглавие],$AM106,1)),ISBLANK(INDEX(Данные[Автор, заглавие],$AM106,1))),"",INDEX(Данные[Стои-мость],$AM106,1)) ->  | AM106: 60
A107: =IFERROR(INDEX(Данные[№пп],AM107,1),"") ->  | C107: =IF(OR(ISERR( INDEX(Данные[Инв. №],$AM107,1)), ISBLANK( INDEX(Данные[Инв. №],$AM107,1))), "",INDEX(Данные[Инв. №],$AM107,1)) ->  | F107: =IF(OR(ISERR(INDEX(Данные[Штрих код первые 6 цифр],$AM107,1)),ISBLANK(INDEX(Данные[Штрих код первые 6 цифр],$AM107,1))),"",LEFT(INDEX(Данные[Штрих код первые 6 цифр],$AM107,1),6)) ->  | I107: =IF(OR(ISERR( INDEX(Данные[Автор, заглавие],$AM107,1)), ISBLANK( INDEX(Данные[Автор, заглавие],$AM107,1))), "",LEFT(INDEX(Данные[Автор, заглавие],$AM107,1),28)) ->  | U107: =IF(OR(ISERR( INDEX(Данные[Год издания],$AM107,1)), ISBLANK( INDEX(Данные[Год издания],$AM107,1))), "",TEXT(INDEX(Данные[Год издания],$AM107,1),0)) ->  | W107: =IF(OR(ISERR( INDEX(Данные[Отдел],$AM107,1)), ISBLANK( INDEX(Данные[Отдел],$AM107,1))), "",TEXT(INDEX(Данные[Отдел],$AM107,1),0)) ->  | Y107: =IF(OR(ISERR( INDEX(Данные[Цена],$AM107,1)), ISBLANK( INDEX(Данные[Цена],$AM107,1))), "",INDEX(Данные[Цена],$AM107,1)) ->  | AD107: =IFERROR(INDEX(Данные[Коэффициент переоценки],$AM107,1),"") ->  | AF107: =IF(OR(ISERR( INDEX(Данные[Кол-во экз.],$AM107,1)), ISBLANK( INDEX(Данные[Кол-во экз.],$AM107,1))), "",INDEX(Данные[Кол-во экз.],$AM107,1)) ->  | AH107: =IF(OR(ISERR(INDEX(Данные[Автор, заглавие],$AM107,1)),ISBLANK(INDEX(Данные[Автор, заглавие],$AM107,1))),"",INDEX(Данные[Стои-мость],$AM107,1)) ->  | AM107: 61
A108: =IFERROR(INDEX(Данные[№пп],AM108,1),"") ->  | C108: =IF(OR(ISERR( INDEX(Данные[Инв. №],$AM108,1)), ISBLANK( INDEX(Данные[Инв. №],$AM108,1))), "",INDEX(Данные[Инв. №],$AM108,1)) ->  | F108: =IF(OR(ISERR(INDEX(Данные[Штрих код первые 6 цифр],$AM108,1)),ISBLANK(INDEX(Данные[Штрих код первые 6 цифр],$AM108,1))),"",LEFT(INDEX(Данные[Штрих код первые 6 цифр],$AM108,1),6)) ->  | I108: =IF(OR(ISERR( INDEX(Данные[Автор, заглавие],$AM108,1)), ISBLANK( INDEX(Данные[Автор, заглавие],$AM108,1))), "",LEFT(INDEX(Данные[Автор, заглавие],$AM108,1),28)) ->  | U108: =IF(OR(ISERR( INDEX(Данные[Год издания],$AM108,1)), ISBLANK( INDEX(Данные[Год издания],$AM108,1))), "",TEXT(INDEX(Данные[Год издания],$AM108,1),0)) ->  | W108: =IF(OR(ISERR( INDEX(Данные[Отдел],$AM108,1)), ISBLANK( INDEX(Данные[Отдел],$AM108,1))), "",TEXT(INDEX(Данные[Отдел],$AM108,1),0)) ->  | Y108: =IF(OR(ISERR( INDEX(Данные[Цена],$AM108,1)), ISBLANK( INDEX(Данные[Цена],$AM108,1))), "",INDEX(Данные[Цена],$AM108,1)) ->  | AD108: =IFERROR(INDEX(Данные[Коэффициент переоценки],$AM108,1),"") ->  | AF108: =IF(OR(ISERR( INDEX(Данные[Кол-во экз.],$AM108,1)), ISBLANK( INDEX(Данные[Кол-во экз.],$AM108,1))), "",INDEX(Данные[Кол-во экз.],$AM108,1)) ->  | AH108: =IF(OR(ISERR(INDEX(Данные[Автор, заглавие],$AM108,1)),ISBLANK(INDEX(Данные[Автор, заглавие],$AM108,1))),"",INDEX(Данные[Стои-мость],$AM108,1)) ->  | AM108: 62
A109: =IFERROR(INDEX(Данные[№пп],AM109,1),"") ->  | C109: =IF(OR(ISERR( INDEX(Данные[Инв. №],$AM109,1)), ISBLANK( INDEX(Данные[Инв. №],$AM109,1))), "",INDEX(Данные[Инв. №],$AM109,1)) ->  | F109: =IF(OR(ISERR(INDEX(Данные[Штрих код первые 6 цифр],$AM109,1)),ISBLANK(INDEX(Данные[Штрих код первые 6 цифр],$AM109,1))),"",LEFT(INDEX(Данные[Штрих код первые 6 цифр],$AM109,1),6)) ->  | I109: =IF(OR(ISERR( INDEX(Данные[Автор, заглавие],$AM109,1)), ISBLANK( INDEX(Данные[Автор, заглавие],$AM109,1))), "",LEFT(INDEX(Данные[Автор, заглавие],$AM109,1),28)) ->  | U109: =IF(OR(ISERR( INDEX(Данные[Год издания],$AM109,1)), ISBLANK( INDEX(Данные[Год издания],$AM109,1))), "",TEXT(INDEX(Данные[Год издания],$AM109,1),0)) ->  | W109: =IF(OR(ISERR( INDEX(Данные[Отдел],$AM109,1)), ISBLANK( INDEX(Данные[Отдел],$AM109,1))), "",TEXT(INDEX(Данные[Отдел],$AM109,1),0)) ->  | Y109: =IF(OR(ISERR( INDEX(Данные[Цена],$AM109,1)), ISBLANK( INDEX(Данные[Цена],$AM109,1))), "",INDEX(Данные[Цена],$AM109,1)) ->  | AD109: =IFERROR(INDEX(Данные[Коэффициент переоценки],$AM109,1),"") ->  | AF109: =IF(OR(ISERR( INDEX(Данные[Кол-во экз.],$AM109,1)), ISBLANK( INDEX(Данные[Кол-во экз.],$AM109,1))), "",INDEX(Данные[Кол-во экз.],$AM109,1)) ->  | AH109: =IF(OR(ISERR(INDEX(Данные[Автор, заглавие],$AM109,1)),ISBLANK(INDEX(Данные[Автор, заглавие],$AM109,1))),"",INDEX(Данные[Стои-мость],$AM109,1)) ->  | AM109: 63
A110: =IFERROR(INDEX(Данные[№пп],AM110,1),"") ->  | C110: =IF(OR(ISERR( INDEX(Данные[Инв. №],$AM110,1)), ISBLANK( INDEX(Данные[Инв. №],$AM110,1))), "",INDEX(Данные[Инв. №],$AM110,1)) ->  | F110: =IF(OR(ISERR(INDEX(Данные[Штрих код первые 6 цифр],$AM110,1)),ISBLANK(INDEX(Данные[Штрих код первые 6 цифр],$AM110,1))),"",LEFT(INDEX(Данные[Штрих код первые 6 цифр],$AM110,1),6)) ->  | I110: =IF(OR(ISERR( INDEX(Данные[Автор, заглавие],$AM110,1)), ISBLANK( INDEX(Данные[Автор, заглавие],$AM110,1))), "",LEFT(INDEX(Данные[Автор, заглавие],$AM110,1),28)) ->  | U110: =IF(OR(ISERR( INDEX(Данные[Год издания],$AM110,1)), ISBLANK( INDEX(Данные[Год издания],$AM110,1))), "",TEXT(INDEX(Данные[Год издания],$AM110,1),0)) ->  | W110: =IF(OR(ISERR( INDEX(Данные[Отдел],$AM110,1)), ISBLANK( INDEX(Данные[Отдел],$AM110,1))), "",TEXT(INDEX(Данные[Отдел],$AM110,1),0)) ->  | Y110: =IF(OR(ISERR( INDEX(Данные[Цена],$AM110,1)), ISBLANK( INDEX(Данные[Цена],$AM110,1))), "",INDEX(Данные[Цена],$AM110,1)) ->  | AD110: =IFERROR(INDEX(Данные[Коэффициент переоценки],$AM110,1),"") ->  | AF110: =IF(OR(ISERR( INDEX(Данные[Кол-во экз.],$AM110,1)), ISBLANK( INDEX(Данные[Кол-во экз.],$AM110,1))), "",INDEX(Данные[Кол-во экз.],$AM110,1)) ->  | AH110: =IF(OR(ISERR(INDEX(Данные[Автор, заглавие],$AM110,1)),ISBLANK(INDEX(Данные[Автор, заглавие],$AM110,1))),"",INDEX(Данные[Стои-мость],$AM110,1)) ->  | AM110: 64
A111: =IFERROR(INDEX(Данные[№пп],AM111,1),"") ->  | C111: =IF(OR(ISERR( INDEX(Данные[Инв. №],$AM111,1)), ISBLANK( INDEX(Данные[Инв. №],$AM111,1))), "",INDEX(Данные[Инв. №],$AM111,1)) ->  | F111: =IF(OR(ISERR(INDEX(Данные[Штрих код первые 6 цифр],$AM111,1)),ISBLANK(INDEX(Данные[Штрих код первые 6 цифр],$AM111,1))),"",LEFT(INDEX(Данные[Штрих код первые 6 цифр],$AM111,1),6)) ->  | I111: =IF(OR(ISERR( INDEX(Данные[Автор, заглавие],$AM111,1)), ISBLANK( INDEX(Данные[Автор, заглавие],$AM111,1))), "",LEFT(INDEX(Данные[Автор, заглавие],$AM111,1),28)) ->  | U111: =IF(OR(ISERR( INDEX(Данные[Год издания],$AM111,1)), ISBLANK( INDEX(Данные[Год издания],$AM111,1))), "",TEXT(INDEX(Данные[Год издания],$AM111,1),0)) ->  | W111: =IF(OR(ISERR( INDEX(Данные[Отдел],$AM111,1)), ISBLANK( INDEX(Данные[Отдел],$AM111,1))), "",TEXT(INDEX(Данные[Отдел],$AM111,1),0)) ->  | Y111: =IF(OR(ISERR( INDEX(Данные[Цена],$AM111,1)), ISBLANK( INDEX(Данные[Цена],$AM111,1))), "",INDEX(Данные[Цена],$AM111,1)) ->  | AD111: =IFERROR(INDEX(Данные[Коэффициент переоценки],$AM111,1),"") ->  | AF111: =IF(OR(ISERR( INDEX(Данные[Кол-во экз.],$AM111,1)), ISBLANK( INDEX(Данные[Кол-во экз.],$AM111,1))), "",INDEX(Данные[Кол-во экз.],$AM111,1)) ->  | AH111: =IF(OR(ISERR(INDEX(Данные[Автор, заглавие],$AM111,1)),ISBLANK(INDEX(Данные[Автор, заглавие],$AM111,1))),"",INDEX(Данные[Стои-мость],$AM111,1)) ->  | AM111: 65
A112: =IFERROR(INDEX(Данные[№пп],AM112,1),"") ->  | C112: =IF(OR(ISERR( INDEX(Данные[Инв. №],$AM112,1)), ISBLANK( INDEX(Данные[Инв. №],$AM112,1))), "",INDEX(Данные[Инв. №],$AM112,1)) ->  | F112: =IF(OR(ISERR(INDEX(Данные[Штрих код первые 6 цифр],$AM112,1)),ISBLANK(INDEX(Данные[Штрих код первые 6 цифр],$AM112,1))),"",LEFT(INDEX(Данные[Штрих код первые 6 цифр],$AM112,1),6)) ->  | I112: =IF(OR(ISERR( INDEX(Данные[Автор, заглавие],$AM112,1)), ISBLANK( INDEX(Данные[Автор, заглавие],$AM112,1))), "",LEFT(INDEX(Данные[Автор, заглавие],$AM112,1),28)) ->  | U112: =IF(OR(ISERR( INDEX(Данные[Год издания],$AM112,1)), ISBLANK( INDEX(Данные[Год издания],$AM112,1))), "",TEXT(INDEX(Данные[Год издания],$AM112,1),0)) ->  | W112: =IF(OR(ISERR( INDEX(Данные[Отдел],$AM112,1)), ISBLANK( INDEX(Данные[Отдел],$AM112,1))), "",TEXT(INDEX(Данные[Отдел],$AM112,1),0)) ->  | Y112: =IF(OR(ISERR( INDEX(Данные[Цена],$AM112,1)), ISBLANK( INDEX(Данные[Цена],$AM112,1))), "",INDEX(Данные[Цена],$AM112,1)) ->  | AD112: =IFERROR(INDEX(Данные[Коэффициент переоценки],$AM112,1),"") ->  | AF112: =IF(OR(ISERR( INDEX(Данные[Кол-во экз.],$AM112,1)), ISBLANK( INDEX(Данные[Кол-во экз.],$AM112,1))), "",INDEX(Данные[Кол-во экз.],$AM112,1)) ->  | AH112: =IF(OR(ISERR(INDEX(Данные[Автор, заглавие],$AM112,1)),ISBLANK(INDEX(Данные[Автор, заглавие],$AM112,1))),"",INDEX(Данные[Стои-мость],$AM112,1)) ->  | AM112: 66
A113: =IFERROR(INDEX(Данные[№пп],AM113,1),"") ->  | C113: =IF(OR(ISERR( INDEX(Данные[Инв. №],$AM113,1)), ISBLANK( INDEX(Данные[Инв. №],$AM113,1))), "",INDEX(Данные[Инв. №],$AM113,1)) ->  | F113: =IF(OR(ISERR(INDEX(Данные[Штрих код первые 6 цифр],$AM113,1)),ISBLANK(INDEX(Данные[Штрих код первые 6 цифр],$AM113,1))),"",LEFT(INDEX(Данные[Штрих код первые 6 цифр],$AM113,1),6)) ->  | I113: =IF(OR(ISERR( INDEX(Данные[Автор, заглавие],$AM113,1)), ISBLANK( INDEX(Данные[Автор, заглавие],$AM113,1))), "",LEFT(INDEX(Данные[Автор, заглавие],$AM113,1),28)) ->  | U113: =IF(OR(ISERR( INDEX(Данные[Год издания],$AM113,1)), ISBLANK( INDEX(Данные[Год издания],$AM113,1))), "",TEXT(INDEX(Данные[Год издания],$AM113,1),0)) ->  | W113: =IF(OR(ISERR( INDEX(Данные[Отдел],$AM113,1)), ISBLANK( INDEX(Данные[Отдел],$AM113,1))), "",TEXT(INDEX(Данные[Отдел],$AM113,1),0)) ->  | Y113: =IF(OR(ISERR( INDEX(Данные[Цена],$AM113,1)), ISBLANK( INDEX(Данные[Цена],$AM113,1))), "",INDEX(Данные[Цена],$AM113,1)) ->  | AD113: =IFERROR(INDEX(Данные[Коэффициент переоценки],$AM113,1),"") ->  | AF113: =IF(OR(ISERR( INDEX(Данные[Кол-во экз.],$AM113,1)), ISBLANK( INDEX(Данные[Кол-во экз.],$AM113,1))), "",INDEX(Данные[Кол-во экз.],$AM113,1)) ->  | AH113: =IF(OR(ISERR(INDEX(Данные[Автор, заглавие],$AM113,1)),ISBLANK(INDEX(Данные[Автор, заглавие],$AM113,1))),"",INDEX(Данные[Стои-мость],$AM113,1)) ->  | AM113: 67
A114: =IFERROR(INDEX(Данные[№пп],AM114,1),"") ->  | C114: =IF(OR(ISERR( INDEX(Данные[Инв. №],$AM114,1)), ISBLANK( INDEX(Данные[Инв. №],$AM114,1))), "",INDEX(Данные[Инв. №],$AM114,1)) ->  | F114: =IF(OR(ISERR(INDEX(Данные[Штрих код первые 6 цифр],$AM114,1)),ISBLANK(INDEX(Данные[Штрих код первые 6 цифр],$AM114,1))),"",LEFT(INDEX(Данные[Штрих код первые 6 цифр],$AM114,1),6)) ->  | I114: =IF(OR(ISERR( INDEX(Данные[Автор, заглавие],$AM114,1)), ISBLANK( INDEX(Данные[Автор, заглавие],$AM114,1))), "",LEFT(INDEX(Данные[Автор, заглавие],$AM114,1),28)) ->  | U114: =IF(OR(ISERR( INDEX(Данные[Год издания],$AM114,1)), ISBLANK( INDEX(Данные[Год издания],$AM114,1))), "",TEXT(INDEX(Данные[Год издания],$AM114,1),0)) ->  | W114: =IF(OR(ISERR( INDEX(Данные[Отдел],$AM114,1)), ISBLANK( INDEX(Данные[Отдел],$AM114,1))), "",TEXT(INDEX(Данные[Отдел],$AM114,1),0)) ->  | Y114: =IF(OR(ISERR( INDEX(Данные[Цена],$AM114,1)), ISBLANK( INDEX(Данные[Цена],$AM114,1))), "",INDEX(Данные[Цена],$AM114,1)) ->  | AD114: =IFERROR(INDEX(Данные[Коэффициент переоценки],$AM114,1),"") ->  | AF114: =IF(OR(ISERR( INDEX(Данные[Кол-во экз.],$AM114,1)), ISBLANK( INDEX(Данные[Кол-во экз.],$AM114,1))), "",INDEX(Данные[Кол-во экз.],$AM114,1)) ->  | AH114: =IF(OR(ISERR(INDEX(Данные[Автор, заглавие],$AM114,1)),ISBLANK(INDEX(Данные[Автор, заглавие],$AM114,1))),"",INDEX(Данные[Стои-мость],$AM114,1)) ->  | AM114: 68
A115: =IFERROR(INDEX(Данные[№пп],AM115,1),"") ->  | C115: =IF(OR(ISERR( INDEX(Данные[Инв. №],$AM115,1)), ISBLANK( INDEX(Данные[Инв. №],$AM115,1))), "",INDEX(Данные[Инв. №],$AM115,1)) ->  | F115: =IF(OR(ISERR(INDEX(Данные[Штрих код первые 6 цифр],$AM115,1)),ISBLANK(INDEX(Данные[Штрих код первые 6 цифр],$AM115,1))),"",LEFT(INDEX(Данные[Штрих код первые 6 цифр],$AM115,1),6)) ->  | I115: =IF(OR(ISERR( INDEX(Данные[Автор, заглавие],$AM115,1)), ISBLANK( INDEX(Данные[Автор, заглавие],$AM115,1))), "",LEFT(INDEX(Данные[Автор, заглавие],$AM115,1),28)) ->  | U115: =IF(OR(ISERR( INDEX(Данные[Год издания],$AM115,1)), ISBLANK( INDEX(Данные[Год издания],$AM115,1))), "",TEXT(INDEX(Данные[Год издания],$AM115,1),0)) ->  | W115: =IF(OR(ISERR( INDEX(Данные[Отдел],$AM115,1)), ISBLANK( INDEX(Данные[Отдел],$AM115,1))), "",TEXT(INDEX(Данные[Отдел],$AM115,1),0)) ->  | Y115: =IF(OR(ISERR( INDEX(Данные[Цена],$AM115,1)), ISBLANK( INDEX(Данные[Цена],$AM115,1))), "",INDEX(Данные[Цена],$AM115,1)) ->  | AD115: =IFERROR(INDEX(Данные[Коэффициент переоценки],$AM115,1),"") ->  | AF115: =IF(OR(ISERR( INDEX(Данные[Кол-во экз.],$AM115,1)), ISBLANK( INDEX(Данные[Кол-во экз.],$AM115,1))), "",INDEX(Данные[Кол-во экз.],$AM115,1)) ->  | AH115: =IF(OR(ISERR(INDEX(Данные[Автор, заглавие],$AM115,1)),ISBLANK(INDEX(Данные[Автор, заглавие],$AM115,1))),"",INDEX(Данные[Стои-мость],$AM115,1)) ->  | AM115: =AM114+1 -> 69
A116: =IFERROR(INDEX(Данные[№пп],AM116,1),"") ->  | C116: =IF(OR(ISERR( INDEX(Данные[Инв. №],$AM116,1)), ISBLANK( INDEX(Данные[Инв. №],$AM116,1))), "",INDEX(Данные[Инв. №],$AM116,1)) ->  | F116: =IF(OR(ISERR(INDEX(Данные[Штрих код первые 6 цифр],$AM116,1)),ISBLANK(INDEX(Данные[Штрих код первые 6 цифр],$AM116,1))),"",LEFT(INDEX(Данные[Штрих код первые 6 цифр],$AM116,1),6)) ->  | I116: =IF(OR(ISERR( INDEX(Данные[Автор, заглавие],$AM116,1)), ISBLANK( INDEX(Данные[Автор, заглавие],$AM116,1))), "",LEFT(INDEX(Данные[Автор, заглавие],$AM116,1),28)) ->  | U116: =IF(OR(ISERR( INDEX(Данные[Год издания],$AM116,1)), ISBLANK( INDEX(Данные[Год издания],$AM116,1))), "",TEXT(INDEX(Данные[Год издания],$AM116,1),0)) ->  | W116: =IF(OR(ISERR( INDEX(Данные[Отдел],$AM116,1)), ISBLANK( INDEX(Данные[Отдел],$AM116,1))), "",TEXT(INDEX(Данные[Отдел],$AM116,1),0)) ->  | Y116: =IF(OR(ISERR( INDEX(Данные[Цена],$AM116,1)), ISBLANK( INDEX(Данные[Цена],$AM116,1))), "",INDEX(Данные[Цена],$AM116,1)) ->  | AD116: =IFERROR(INDEX(Данные[Коэффициент переоценки],$AM116,1),"") ->  | AF116: =IF(OR(ISERR( INDEX(Данные[Кол-во экз.],$AM116,1)), ISBLANK( INDEX(Данные[Кол-во экз.],$AM116,1))), "",INDEX(Данные[Кол-во экз.],$AM116,1)) ->  | AH116: =IF(OR(ISERR(INDEX(Данные[Автор, заглавие],$AM116,1)),ISBLANK(INDEX(Данные[Автор, заглавие],$AM116,1))),"",INDEX(Данные[Стои-мость],$AM116,1)) ->  | AM116: 70
A117: =IFERROR(INDEX(Данные[№пп],AM117,1),"") ->  | C117: =IF(OR(ISERR( INDEX(Данные[Инв. №],$AM117,1)), ISBLANK( INDEX(Данные[Инв. №],$AM117,1))), "",INDEX(Данные[Инв. №],$AM117,1)) ->  | F117: =IF(OR(ISERR(INDEX(Данные[Штрих код первые 6 цифр],$AM117,1)),ISBLANK(INDEX(Данные[Штрих код первые 6 цифр],$AM117,1))),"",LEFT(INDEX(Данные[Штрих код первые 6 цифр],$AM117,1),6)) ->  | I117: =IF(OR(ISERR( INDEX(Данные[Автор, заглавие],$AM117,1)), ISBLANK( INDEX(Данные[Автор, заглавие],$AM117,1))), "",LEFT(INDEX(Данные[Автор, заглавие],$AM117,1),28)) ->  | U117: =IF(OR(ISERR( INDEX(Данные[Год издания],$AM117,1)), ISBLANK( INDEX(Данные[Год издания],$AM117,1))), "",TEXT(INDEX(Данные[Год издания],$AM117,1),0)) ->  | W117: =IF(OR(ISERR( INDEX(Данные[Отдел],$AM117,1)), ISBLANK( INDEX(Данные[Отдел],$AM117,1))), "",TEXT(INDEX(Данные[Отдел],$AM117,1),0)) ->  | Y117: =IF(OR(ISERR( INDEX(Данные[Цена],$AM117,1)), ISBLANK( INDEX(Данные[Цена],$AM117,1))), "",INDEX(Данные[Цена],$AM117,1)) ->  | AD117: =IFERROR(INDEX(Данные[Коэффициент переоценки],$AM117,1),"") ->  | AF117: =IF(OR(ISERR( INDEX(Данные[Кол-во экз.],$AM117,1)), ISBLANK( INDEX(Данные[Кол-во экз.],$AM117,1))), "",INDEX(Данные[Кол-во экз.],$AM117,1)) ->  | AH117: =IF(OR(ISERR(INDEX(Данные[Автор, заглавие],$AM117,1)),ISBLANK(INDEX(Данные[Автор, заглавие],$AM117,1))),"",INDEX(Данные[Стои-мость],$AM117,1)) ->  | AM117: 71
A118: =IFERROR(INDEX(Данные[№пп],AM118,1),"") ->  | C118: =IF(OR(ISERR( INDEX(Данные[Инв. №],$AM118,1)), ISBLANK( INDEX(Данные[Инв. №],$AM118,1))), "",INDEX(Данные[Инв. №],$AM118,1)) ->  | F118: =IF(OR(ISERR(INDEX(Данные[Штрих код первые 6 цифр],$AM118,1)),ISBLANK(INDEX(Данные[Штрих код первые 6 цифр],$AM118,1))),"",LEFT(INDEX(Данные[Штрих код первые 6 цифр],$AM118,1),6)) ->  | I118: =IF(OR(ISERR( INDEX(Данные[Автор, заглавие],$AM118,1)), ISBLANK( INDEX(Данные[Автор, заглавие],$AM118,1))), "",LEFT(INDEX(Данные[Автор, заглавие],$AM118,1),28)) ->  | U118: =IF(OR(ISERR( INDEX(Данные[Год издания],$AM118,1)), ISBLANK( INDEX(Данные[Год издания],$AM118,1))), "",TEXT(INDEX(Данные[Год издания],$AM118,1),0)) ->  | W118: =IF(OR(ISERR( INDEX(Данные[Отдел],$AM118,1)), ISBLANK( INDEX(Данные[Отдел],$AM118,1))), "",TEXT(INDEX(Данные[Отдел],$AM118,1),0)) ->  | Y118: =IF(OR(ISERR( INDEX(Данные[Цена],$AM118,1)), ISBLANK( INDEX(Данные[Цена],$AM118,1))), "",INDEX(Данные[Цена],$AM118,1)) ->  | AD118: =IFERROR(INDEX(Данные[Коэффициент переоценки],$AM118,1),"") ->  | AF118: =IF(OR(ISERR( INDEX(Данные[Кол-во экз.],$AM118,1)), ISBLANK( INDEX(Данные[Кол-во экз.],$AM118,1))), "",INDEX(Данные[Кол-во экз.],$AM118,1)) ->  | AH118: =IF(OR(ISERR(INDEX(Данные[Автор, заглавие],$AM118,1)),ISBLANK(INDEX(Данные[Автор, заглавие],$AM118,1))),"",INDEX(Данные[Стои-мость],$AM118,1)) ->  | AM118: 72
A120: Итого | AF120: =SUM(AF65:AG118) -> 0 | AH120: =SUM(AH65:AL118) -> 0
A121: № пп | C121: Инв. № | F121: Штрих код | I121: Автор, заглавие | U121: Год издания | W121: Отдел | Y121: Цена руб.коп. | AD121: Коэфф. Переоценки | AF121: Кол-во экз. | AH121: Стоимость
A125: =IFERROR(INDEX(Данные[№пп],AM125,1),"") ->  | C125: =IF(OR(ISERR( INDEX(Данные[Инв. №],$AM125,1)), ISBLANK( INDEX(Данные[Инв. №],$AM125,1))), "",INDEX(Данные[Инв. №],$AM125,1)) ->  | F125: =IF(OR(ISERR(INDEX(Данные[Штрих код первые 6 цифр],$AM125,1)),ISBLANK(INDEX(Данные[Штрих код первые 6 цифр],$AM125,1))),"",LEFT(INDEX(Данные[Штрих код первые 6 цифр],$AM125,1),6)) ->  | I125: =IF(OR(ISERR( INDEX(Данные[Автор, заглавие],$AM125,1)), ISBLANK( INDEX(Данные[Автор, заглавие],$AM125,1))), "",LEFT(INDEX(Данные[Автор, заглавие],$AM125,1),28)) ->  | U125: =IF(OR(ISERR( INDEX(Данные[Год издания],$AM125,1)), ISBLANK( INDEX(Данные[Год издания],$AM125,1))), "",TEXT(INDEX(Данные[Год издания],$AM125,1),0)) ->  | W125: =IF(OR(ISERR( INDEX(Данные[Отдел],$AM125,1)), ISBLANK( INDEX(Данные[Отдел],$AM125,1))), "",TEXT(INDEX(Данные[Отдел],$AM125,1),0)) ->  | Y125: =IF(OR(ISERR( INDEX(Данные[Цена],$AM125,1)), ISBLANK( INDEX(Данные[Цена],$AM125,1))), "",INDEX(Данные[Цена],$AM125,1)) ->  | AD125: =IFERROR(INDEX(Данные[Коэффициент переоценки],$AM125,1),"") ->  | AF125: =IF(OR(ISERR( INDEX(Данные[Кол-во экз.],$AM125,1)), ISBLANK( INDEX(Данные[Кол-во экз.],$AM125,1))), "",INDEX(Данные[Кол-во экз.],$AM125,1)) ->  | AH125: =IF(OR(ISERR(INDEX(Данные[Автор, заглавие],$AM125,1)),ISBLANK(INDEX(Данные[Автор, заглавие],$AM125,1))),"",INDEX(Данные[Стои-мость],$AM125,1)) ->  | AM125: =AM118+1 -> 73
A126: =IFERROR(INDEX(Данные[№пп],AM126,1),"") ->  | C126: =IF(OR(ISERR( INDEX(Данные[Инв. №],$AM126,1)), ISBLANK( INDEX(Данные[Инв. №],$AM126,1))), "",INDEX(Данные[Инв. №],$AM126,1)) ->  | F126: =IF(OR(ISERR(INDEX(Данные[Штрих код первые 6 цифр],$AM126,1)),ISBLANK(INDEX(Данные[Штрих код первые 6 цифр],$AM126,1))),"",LEFT(INDEX(Данные[Штрих код первые 6 цифр],$AM126,1),6)) ->  | I126: =IF(OR(ISERR( INDEX(Данные[Автор, заглавие],$AM126,1)), ISBLANK( INDEX(Данные[Автор, заглавие],$AM126,1))), "",LEFT(INDEX(Данные[Автор, заглавие],$AM126,1),28)) ->  | U126: =IF(OR(ISERR( INDEX(Данные[Год издания],$AM126,1)), ISBLANK( INDEX(Данные[Год издания],$AM126,1))), "",TEXT(INDEX(Данные[Год издания],$AM126,1),0)) ->  | W126: =IF(OR(ISERR( INDEX(Данные[Отдел],$AM126,1)), ISBLANK( INDEX(Данные[Отдел],$AM126,1))), "",TEXT(INDEX(Данные[Отдел],$AM126,1),0)) ->  | Y126: =IF(OR(ISERR( INDEX(Данные[Цена],$AM126,1)), ISBLANK( INDEX(Данные[Цена],$AM126,1))), "",INDEX(Данные[Цена],$AM126,1)) ->  | AD126: =IFERROR(INDEX(Данные[Коэффициент переоценки],$AM126,1),"") ->  | AF126: =IF(OR(ISERR( INDEX(Данные[Кол-во экз.],$AM126,1)), ISBLANK( INDEX(Данные[Кол-во экз.],$AM126,1))), "",INDEX(Данные[Кол-во экз.],$AM126,1)) ->  | AH126: =IF(OR(ISERR(INDEX(Данные[Автор, заглавие],$AM126,1)),ISBLANK(INDEX(Данные[Автор, заглавие],$AM126,1))),"",INDEX(Данные[Стои-мость],$AM126,1)) ->  | AM126: =AM125+1 -> 74
A127: =IFERROR(INDEX(Данные[№пп],AM127,1),"") ->  | C127: =IF(OR(ISERR( INDEX(Данные[Инв. №],$AM127,1)), ISBLANK( INDEX(Данные[Инв. №],$AM127,1))), "",INDEX(Данные[Инв. №],$AM127,1)) ->  | F127: =IF(OR(ISERR(INDEX(Данные[Штрих код первые 6 цифр],$AM127,1)),ISBLANK(INDEX(Данные[Штрих код первые 6 цифр],$AM127,1))),"",LEFT(INDEX(Данные[Штрих код первые 6 цифр],$AM127,1),6)) ->  | I127: =IF(OR(ISERR( INDEX(Данные[Автор, заглавие],$AM127,1)), ISBLANK( INDEX(Данные[Автор, заглавие],$AM127,1))), "",LEFT(INDEX(Данные[Автор, заглавие],$AM127,1),28)) ->  | U127: =IF(OR(ISERR( INDEX(Данные[Год издания],$AM127,1)), ISBLANK( INDEX(Данные[Год издания],$AM127,1))), "",TEXT(INDEX(Данные[Год издания],$AM127,1),0)) ->  | W127: =IF(OR(ISERR( INDEX(Данные[Отдел],$AM127,1)), ISBLANK( INDEX(Данные[Отдел],$AM127,1))), "",TEXT(INDEX(Данные[Отдел],$AM127,1),0)) ->  | Y127: =IF(OR(ISERR( INDEX(Данные[Цена],$AM127,1)), ISBLANK( INDEX(Данные[Цена],$AM127,1))), "",INDEX(Данные[Цена],$AM127,1)) ->  | AD127: =IFERROR(INDEX(Данные[Коэффициент переоценки],$AM127,1),"") ->  | AF127: =IF(OR(ISERR( INDEX(Данные[Кол-во экз.],$AM127,1)), ISBLANK( INDEX(Данные[Кол-во экз.],$AM127,1))), "",INDEX(Данные[Кол-во экз.],$AM127,1)) ->  | AH127: =IF(OR(ISERR(INDEX(Данные[Автор, заглавие],$AM127,1)),ISBLANK(INDEX(Данные[Автор, заглавие],$AM127,1))),"",INDEX(Данные[Стои-мость],$AM127,1)) ->  | AM127: =AM126+1 -> 75
A128: =IFERROR(INDEX(Данные[№пп],AM128,1),"") ->  | C128: =IF(OR(ISERR( INDEX(Данные[Инв. №],$AM128,1)), ISBLANK( INDEX(Данные[Инв. №],$AM128,1))), "",INDEX(Данные[Инв. №],$AM128,1)) ->  | F128: =IF(OR(ISERR(INDEX(Данные[Штрих код первые 6 цифр],$AM128,1)),ISBLANK(INDEX(Данные[Штрих код первые 6 цифр],$AM128,1))),"",LEFT(INDEX(Данные[Штрих код первые 6 цифр],$AM128,1),6)) ->  | I128: =IF(OR(ISERR( INDEX(Данные[Автор, заглавие],$AM128,1)), ISBLANK( INDEX(Данные[Автор, заглавие],$AM128,1))), "",LEFT(INDEX(Данные[Автор, заглавие],$AM128,1),28)) ->  | U128: =IF(OR(ISERR( INDEX(Данные[Год издания],$AM128,1)), ISBLANK( INDEX(Данные[Год издания],$AM128,1))), "",TEXT(INDEX(Данные[Год издания],$AM128,1),0)) ->  | W128: =IF(OR(ISERR( INDEX(Данные[Отдел],$AM128,1)), ISBLANK( INDEX(Данные[Отдел],$AM128,1))), "",TEXT(INDEX(Данные[Отдел],$AM128,1),0)) ->  | Y128: =IF(OR(ISERR( INDEX(Данные[Цена],$AM128,1)), ISBLANK( INDEX(Данные[Цена],$AM128,1))), "",INDEX(Данные[Цена],$AM128,1)) ->  | AD128: =IFERROR(INDEX(Данные[Коэффициент переоценки],$AM128,1),"") ->  | AF128: =IF(OR(ISERR( INDEX(Данные[Кол-во экз.],$AM128,1)), ISBLANK( INDEX(Данные[Кол-во экз.],$AM128,1))), "",INDEX(Данные[Кол-во экз.],$AM128,1)) ->  | AH128: =IF(OR(ISERR(INDEX(Данные[Автор, заглавие],$AM128,1)),ISBLANK(INDEX(Данные[Автор, заглавие],$AM128,1))),"",INDEX(Данные[Стои-мость],$AM128,1)) ->  | AM128: 76
A129: =IFERROR(INDEX(Данные[№пп],AM129,1),"") ->  | C129: =IF(OR(ISERR( INDEX(Данные[Инв. №],$AM129,1)), ISBLANK( INDEX(Данные[Инв. №],$AM129,1))), "",INDEX(Данные[Инв. №],$AM129,1)) ->  | F129: =IF(OR(ISERR(INDEX(Данные[Штрих код первые 6 цифр],$AM129,1)),ISBLANK(INDEX(Данные[Штрих код первые 6 цифр],$AM129,1))),"",LEFT(INDEX(Данные[Штрих код первые 6 цифр],$AM129,1),6)) ->  | I129: =IF(OR(ISERR( INDEX(Данные[Автор, заглавие],$AM129,1)), ISBLANK( INDEX(Данные[Автор, заглавие],$AM129,1))), "",LEFT(INDEX(Данные[Автор, заглавие],$AM129,1),28)) ->  | U129: =IF(OR(ISERR( INDEX(Данные[Год издания],$AM129,1)), ISBLANK( INDEX(Данные[Год издания],$AM129,1))), "",TEXT(INDEX(Данные[Год издания],$AM129,1),0)) ->  | W129: =IF(OR(ISERR( INDEX(Данные[Отдел],$AM129,1)), ISBLANK( INDEX(Данные[Отдел],$AM129,1))), "",TEXT(INDEX(Данные[Отдел],$AM129,1),0)) ->  | Y129: =IF(OR(ISERR( INDEX(Данные[Цена],$AM129,1)), ISBLANK( INDEX(Данные[Цена],$AM129,1))), "",INDEX(Данные[Цена],$AM129,1)) ->  | AD129: =IFERROR(INDEX(Данные[Коэффициент переоценки],$AM129,1),"") ->  | AF129: =IF(OR(ISERR( INDEX(Данные[Кол-во экз.],$AM129,1)), ISBLANK( INDEX(Данные[Кол-во экз.],$AM129,1))), "",INDEX(Данные[Кол-во экз.],$AM129,1)) ->  | AH129: =IF(OR(ISERR(INDEX(Данные[Автор, заглавие],$AM129,1)),ISBLANK(INDEX(Данные[Автор, заглавие],$AM129,1))),"",INDEX(Данные[Стои-мость],$AM129,1)) ->  | AM129: 77
A130: =IFERROR(INDEX(Данные[№пп],AM130,1),"") ->  | C130: =IF(OR(ISERR( INDEX(Данные[Инв. №],$AM130,1)), ISBLANK( INDEX(Данные[Инв. №],$AM130,1))), "",INDEX(Данные[Инв. №],$AM130,1)) ->  | F130: =IF(OR(ISERR(INDEX(Данные[Штрих код первые 6 цифр],$AM130,1)),ISBLANK(INDEX(Данные[Штрих код первые 6 цифр],$AM130,1))),"",LEFT(INDEX(Данные[Штрих код первые 6 цифр],$AM130,1),6)) ->  | I130: =IF(OR(ISERR( INDEX(Данные[Автор, заглавие],$AM130,1)), ISBLANK( INDEX(Данные[Автор, заглавие],$AM130,1))), "",LEFT(INDEX(Данные[Автор, заглавие],$AM130,1),28)) ->  | U130: =IF(OR(ISERR( INDEX(Данные[Год издания],$AM130,1)), ISBLANK( INDEX(Данные[Год издания],$AM130,1))), "",TEXT(INDEX(Данные[Год издания],$AM130,1),0)) ->  | W130: =IF(OR(ISERR( INDEX(Данные[Отдел],$AM130,1)), ISBLANK( INDEX(Данные[Отдел],$AM130,1))), "",TEXT(INDEX(Данные[Отдел],$AM130,1),0)) ->  | Y130: =IF(OR(ISERR( INDEX(Данные[Цена],$AM130,1)), ISBLANK( INDEX(Данные[Цена],$AM130,1))), "",INDEX(Данные[Цена],$AM130,1)) ->  | AD130: =IFERROR(INDEX(Данные[Коэффициент переоценки],$AM130,1),"") ->  | AF130: =IF(OR(ISERR( INDEX(Данные[Кол-во экз.],$AM130,1)), ISBLANK( INDEX(Данные[Кол-во экз.],$AM130,1))), "",INDEX(Данные[Кол-во экз.],$AM130,1)) ->  | AH130: =IF(OR(ISERR(INDEX(Данные[Автор, заглавие],$AM130,1)),ISBLANK(INDEX(Данные[Автор, заглавие],$AM130,1))),"",INDEX(Данные[Стои-мость],$AM130,1)) ->  | AM130: 78
A131: =IFERROR(INDEX(Данные[№пп],AM131,1),"") ->  | C131: =IF(OR(ISERR( INDEX(Данные[Инв. №],$AM131,1)), ISBLANK( INDEX(Данные[Инв. №],$AM131,1))), "",INDEX(Данные[Инв. №],$AM131,1)) ->  | F131: =IF(OR(ISERR(INDEX(Данные[Штрих код первые 6 цифр],$AM131,1)),ISBLANK(INDEX(Данные[Штрих код первые 6 цифр],$AM131,1))),"",LEFT(INDEX(Данные[Штрих код первые 6 цифр],$AM131,1),6)) ->  | I131: =IF(OR(ISERR( INDEX(Данные[Автор, заглавие],$AM131,1)), ISBLANK( INDEX(Данные[Автор, заглавие],$AM131,1))), "",LEFT(INDEX(Данные[Автор, заглавие],$AM131,1),28)) ->  | U131: =IF(OR(ISERR( INDEX(Данные[Год издания],$AM131,1)), ISBLANK( INDEX(Данные[Год издания],$AM131,1))), "",TEXT(INDEX(Данные[Год издания],$AM131,1),0)) ->  | W131: =IF(OR(ISERR( INDEX(Данные[Отдел],$AM131,1)), ISBLANK( INDEX(Данные[Отдел],$AM131,1))), "",TEXT(INDEX(Данные[Отдел],$AM131,1),0)) ->  | Y131: =IF(OR(ISERR( INDEX(Данные[Цена],$AM131,1)), ISBLANK( INDEX(Данные[Цена],$AM131,1))), "",INDEX(Данные[Цена],$AM131,1)) ->  | AD131: =IFERROR(INDEX(Данные[Коэффициент переоценки],$AM131,1),"") ->  | AF131: =IF(OR(ISERR( INDEX(Данные[Кол-во экз.],$AM131,1)), ISBLANK( INDEX(Данные[Кол-во экз.],$AM131,1))), "",INDEX(Данные[Кол-во экз.],$AM131,1)) ->  | AH131: =IF(OR(ISERR(INDEX(Данные[Автор, заглавие],$AM131,1)),ISBLANK(INDEX(Данные[Автор, заглавие],$AM131,1))),"",INDEX(Данные[Стои-мость],$AM131,1)) ->  | AM131: 79
A132: =IFERROR(INDEX(Данные[№пп],AM132,1),"") ->  | C132: =IF(OR(ISERR( INDEX(Данные[Инв. №],$AM132,1)), ISBLANK( INDEX(Данные[Инв. №],$AM132,1))), "",INDEX(Данные[Инв. №],$AM132,1)) ->  | F132: =IF(OR(ISERR(INDEX(Данные[Штрих код первые 6 цифр],$AM132,1)),ISBLANK(INDEX(Данные[Штрих код первые 6 цифр],$AM132,1))),"",LEFT(INDEX(Данные[Штрих код первые 6 цифр],$AM132,1),6)) ->  | I132: =IF(OR(ISERR( INDEX(Данные[Автор, заглавие],$AM132,1)), ISBLANK( INDEX(Данные[Автор, заглавие],$AM132,1))), "",LEFT(INDEX(Данные[Автор, заглавие],$AM132,1),28)) ->  | U132: =IF(OR(ISERR( INDEX(Данные[Год издания],$AM132,1)), ISBLANK( INDEX(Данные[Год издания],$AM132,1))), "",TEXT(INDEX(Данные[Год издания],$AM132,1),0)) ->  | W132: =IF(OR(ISERR( INDEX(Данные[Отдел],$AM132,1)), ISBLANK( INDEX(Данные[Отдел],$AM132,1))), "",TEXT(INDEX(Данные[Отдел],$AM132,1),0)) ->  | Y132: =IF(OR(ISERR( INDEX(Данные[Цена],$AM132,1)), ISBLANK( INDEX(Данные[Цена],$AM132,1))), "",INDEX(Данные[Цена],$AM132,1)) ->  | AD132: =IFERROR(INDEX(Данные[Коэффициент переоценки],$AM132,1),"") ->  | AF132: =IF(OR(ISERR( INDEX(Данные[Кол-во экз.],$AM132,1)), ISBLANK( INDEX(Данные[Кол-во экз.],$AM132,1))), "",INDEX(Данные[Кол-во экз.],$AM132,1)) ->  | AH132: =IF(OR(ISERR(INDEX(Данные[Автор, заглавие],$AM132,1)),ISBLANK(INDEX(Данные[Автор, заглавие],$AM132,1))),"",INDEX(Данные[Стои-мость],$AM132,1)) ->  | AM132: 80
A133: =IFERROR(INDEX(Данные[№пп],AM133,1),"") ->  | C133: =IF(OR(ISERR( INDEX(Данные[Инв. №],$AM133,1)), ISBLANK( INDEX(Данные[Инв. №],$AM133,1))), "",INDEX(Данные[Инв. №],$AM133,1)) ->  | F133: =IF(OR(ISERR(INDEX(Данные[Штрих код первые 6 цифр],$AM133,1)),ISBLANK(INDEX(Данные[Штрих код первые 6 цифр],$AM133,1))),"",LEFT(INDEX(Данные[Штрих код первые 6 цифр],$AM133,1),6)) ->  | I133: =IF(OR(ISERR( INDEX(Данные[Автор, заглавие],$AM133,1)), ISBLANK( INDEX(Данные[Автор, заглавие],$AM133,1))), "",LEFT(INDEX(Данные[Автор, заглавие],$AM133,1),28)) ->  | U133: =IF(OR(ISERR( INDEX(Данные[Год издания],$AM133,1)), ISBLANK( INDEX(Данные[Год издания],$AM133,1))), "",TEXT(INDEX(Данные[Год издания],$AM133,1),0)) ->  | W133: =IF(OR(ISERR( INDEX(Данные[Отдел],$AM133,1)), ISBLANK( INDEX(Данные[Отдел],$AM133,1))), "",TEXT(INDEX(Данные[Отдел],$AM133,1),0)) ->  | Y133: =IF(OR(ISERR( INDEX(Данные[Цена],$AM133,1)), ISBLANK( INDEX(Данные[Цена],$AM133,1))), "",INDEX(Данные[Цена],$AM133,1)) ->  | AD133: =IFERROR(INDEX(Данные[Коэффициент переоценки],$AM133,1),"") ->  | AF133: =IF(OR(ISERR( INDEX(Данные[Кол-во экз.],$AM133,1)), ISBLANK( INDEX(Данные[Кол-во экз.],$AM133,1))), "",INDEX(Данные[Кол-во экз.],$AM133,1)) ->  | AH133: =IF(OR(ISERR(INDEX(Данные[Автор, заглавие],$AM133,1)),ISBLANK(INDEX(Данные[Автор, заглавие],$AM133,1))),"",INDEX(Данные[Стои-мость],$AM133,1)) ->  | AM133: 81
A134: =IFERROR(INDEX(Данные[№пп],AM134,1),"") ->  | C134: =IF(OR(ISERR( INDEX(Данные[Инв. №],$AM134,1)), ISBLANK( INDEX(Данные[Инв. №],$AM134,1))), "",INDEX(Данные[Инв. №],$AM134,1)) ->  | F134: =IF(OR(ISERR(INDEX(Данные[Штрих код первые 6 цифр],$AM134,1)),ISBLANK(INDEX(Данные[Штрих код первые 6 цифр],$AM134,1))),"",LEFT(INDEX(Данные[Штрих код первые 6 цифр],$AM134,1),6)) ->  | I134: =IF(OR(ISERR( INDEX(Данные[Автор, заглавие],$AM134,1)), ISBLANK( INDEX(Данные[Автор, заглавие],$AM134,1))), "",LEFT(INDEX(Данные[Автор, заглавие],$AM134,1),28)) ->  | U134: =IF(OR(ISERR( INDEX(Данные[Год издания],$AM134,1)), ISBLANK( INDEX(Данные[Год издания],$AM134,1))), "",TEXT(INDEX(Данные[Год издания],$AM134,1),0)) ->  | W134: =IF(OR(ISERR( INDEX(Данные[Отдел],$AM134,1)), ISBLANK( INDEX(Данные[Отдел],$AM134,1))), "",TEXT(INDEX(Данные[Отдел],$AM134,1),0)) ->  | Y134: =IF(OR(ISERR( INDEX(Данные[Цена],$AM134,1)), ISBLANK( INDEX(Данные[Цена],$AM134,1))), "",INDEX(Данные[Цена],$AM134,1)) ->  | AD134: =IFERROR(INDEX(Данные[Коэффициент переоценки],$AM134,1),"") ->  | AF134: =IF(OR(ISERR( INDEX(Данные[Кол-во экз.],$AM134,1)), ISBLANK( INDEX(Данные[Кол-во экз.],$AM134,1))), "",INDEX(Данные[Кол-во экз.],$AM134,1)) ->  | AH134: =IF(OR(ISERR(INDEX(Данные[Автор, заглавие],$AM134,1)),ISBLANK(INDEX(Данные[Автор, заглавие],$AM134,1))),"",INDEX(Данные[Стои-мость],$AM134,1)) ->  | AM134: 82
A135: =IFERROR(INDEX(Данные[№пп],AM135,1),"") ->  | C135: =IF(OR(ISERR( INDEX(Данные[Инв. №],$AM135,1)), ISBLANK( INDEX(Данные[Инв. №],$AM135,1))), "",INDEX(Данные[Инв. №],$AM135,1)) ->  | F135: =IF(OR(ISERR(INDEX(Данные[Штрих код первые 6 цифр],$AM135,1)),ISBLANK(INDEX(Данные[Штрих код первые 6 цифр],$AM135,1))),"",LEFT(INDEX(Данные[Штрих код первые 6 цифр],$AM135,1),6)) ->  | I135: =IF(OR(ISERR( INDEX(Данные[Автор, заглавие],$AM135,1)), ISBLANK( INDEX(Данные[Автор, заглавие],$AM135,1))), "",LEFT(INDEX(Данные[Автор, заглавие],$AM135,1),28)) ->  | U135: =IF(OR(ISERR( INDEX(Данные[Год издания],$AM135,1)), ISBLANK( INDEX(Данные[Год издания],$AM135,1))), "",TEXT(INDEX(Данные[Год издания],$AM135,1),0)) ->  | W135: =IF(OR(ISERR( INDEX(Данные[Отдел],$AM135,1)), ISBLANK( INDEX(Данные[Отдел],$AM135,1))), "",TEXT(INDEX(Данные[Отдел],$AM135,1),0)) ->  | Y135: =IF(OR(ISERR( INDEX(Данные[Цена],$AM135,1)), ISBLANK( INDEX(Данные[Цена],$AM135,1))), "",INDEX(Данные[Цена],$AM135,1)) ->  | AD135: =IFERROR(INDEX(Данные[Коэффициент переоценки],$AM135,1),"") ->  | AF135: =IF(OR(ISERR( INDEX(Данные[Кол-во экз.],$AM135,1)), ISBLANK( INDEX(Данные[Кол-во экз.],$AM135,1))), "",INDEX(Данные[Кол-во экз.],$AM135,1)) ->  | AH135: =IF(OR(ISERR(INDEX(Данные[Автор, заглавие],$AM135,1)),ISBLANK(INDEX(Данные[Автор, заглавие],$AM135,1))),"",INDEX(Данные[Стои-мость],$AM135,1)) ->  | AM135: 83
A136: =IFERROR(INDEX(Данные[№пп],AM136,1),"") ->  | C136: =IF(OR(ISERR( INDEX(Данные[Инв. №],$AM136,1)), ISBLANK( INDEX(Данные[Инв. №],$AM136,1))), "",INDEX(Данные[Инв. №],$AM136,1)) ->  | F136: =IF(OR(ISERR(INDEX(Данные[Штрих код первые 6 цифр],$AM136,1)),ISBLANK(INDEX(Данные[Штрих код первые 6 цифр],$AM136,1))),"",LEFT(INDEX(Данные[Штрих код первые 6 цифр],$AM136,1),6)) ->  | I136: =IF(OR(ISERR( INDEX(Данные[Автор, заглавие],$AM136,1)), ISBLANK( INDEX(Данные[Автор, заглавие],$AM136,1))), "",LEFT(INDEX(Данные[Автор, заглавие],$AM136,1),28)) ->  | U136: =IF(OR(ISERR( INDEX(Данные[Год издания],$AM136,1)), ISBLANK( INDEX(Данные[Год издания],$AM136,1))), "",TEXT(INDEX(Данные[Год издания],$AM136,1),0)) ->  | W136: =IF(OR(ISERR( INDEX(Данные[Отдел],$AM136,1)), ISBLANK( INDEX(Данные[Отдел],$AM136,1))), "",TEXT(INDEX(Данные[Отдел],$AM136,1),0)) ->  | Y136: =IF(OR(ISERR( INDEX(Данные[Цена],$AM136,1)), ISBLANK( INDEX(Данные[Цена],$AM136,1))), "",INDEX(Данные[Цена],$AM136,1)) ->  | AD136: =IFERROR(INDEX(Данные[Коэффициент переоценки],$AM136,1),"") ->  | AF136: =IF(OR(ISERR( INDEX(Данные[Кол-во экз.],$AM136,1)), ISBLANK( INDEX(Данные[Кол-во экз.],$AM136,1))), "",INDEX(Данные[Кол-во экз.],$AM136,1)) ->  | AH136: =IF(OR(ISERR(INDEX(Данные[Автор, заглавие],$AM136,1)),ISBLANK(INDEX(Данные[Автор, заглавие],$AM136,1))),"",INDEX(Данные[Стои-мость],$AM136,1)) ->  | AM136: 84
A137: =IFERROR(INDEX(Данные[№пп],AM137,1),"") ->  | C137: =IF(OR(ISERR( INDEX(Данные[Инв. №],$AM137,1)), ISBLANK( INDEX(Данные[Инв. №],$AM137,1))), "",INDEX(Данные[Инв. №],$AM137,1)) ->  | F137: =IF(OR(ISERR(INDEX(Данные[Штрих код первые 6 цифр],$AM137,1)),ISBLANK(INDEX(Данные[Штрих код первые 6 цифр],$AM137,1))),"",LEFT(INDEX(Данные[Штрих код первые 6 цифр],$AM137,1),6)) ->  | I137: =IF(OR(ISERR( INDEX(Данные[Автор, заглавие],$AM137,1)), ISBLANK( INDEX(Данные[Автор, заглавие],$AM137,1))), "",LEFT(INDEX(Данные[Автор, заглавие],$AM137,1),28)) ->  | U137: =IF(OR(ISERR( INDEX(Данные[Год издания],$AM137,1)), ISBLANK( INDEX(Данные[Год издания],$AM137,1))), "",TEXT(INDEX(Данные[Год издания],$AM137,1),0)) ->  | W137: =IF(OR(ISERR( INDEX(Данные[Отдел],$AM137,1)), ISBLANK( INDEX(Данные[Отдел],$AM137,1))), "",TEXT(INDEX(Данные[Отдел],$AM137,1),0)) ->  | Y137: =IF(OR(ISERR( INDEX(Данные[Цена],$AM137,1)), ISBLANK( INDEX(Данные[Цена],$AM137,1))), "",INDEX(Данные[Цена],$AM137,1)) ->  | AD137: =IFERROR(INDEX(Данные[Коэффициент переоценки],$AM137,1),"") ->  | AF137: =IF(OR(ISERR( INDEX(Данные[Кол-во экз.],$AM137,1)), ISBLANK( INDEX(Данные[Кол-во экз.],$AM137,1))), "",INDEX(Данные[Кол-во экз.],$AM137,1)) ->  | AH137: =IF(OR(ISERR(INDEX(Данные[Автор, заглавие],$AM137,1)),ISBLANK(INDEX(Данные[Автор, заглавие],$AM137,1))),"",INDEX(Данные[Стои-мость],$AM137,1)) ->  | AM137: 85
A138: =IFERROR(INDEX(Данные[№пп],AM138,1),"") ->  | C138: =IF(OR(ISERR( INDEX(Данные[Инв. №],$AM138,1)), ISBLANK( INDEX(Данные[Инв. №],$AM138,1))), "",INDEX(Данные[Инв. №],$AM138,1)) ->  | F138: =IF(OR(ISERR(INDEX(Данные[Штрих код первые 6 цифр],$AM138,1)),ISBLANK(INDEX(Данные[Штрих код первые 6 цифр],$AM138,1))),"",LEFT(INDEX(Данные[Штрих код первые 6 цифр],$AM138,1),6)) ->  | I138: =IF(OR(ISERR( INDEX(Данные[Автор, заглавие],$AM138,1)), ISBLANK( INDEX(Данные[Автор, заглавие],$AM138,1))), "",LEFT(INDEX(Данные[Автор, заглавие],$AM138,1),28)) ->  | U138: =IF(OR(ISERR( INDEX(Данные[Год издания],$AM138,1)), ISBLANK( INDEX(Данные[Год издания],$AM138,1))), "",TEXT(INDEX(Данные[Год издания],$AM138,1),0)) ->  | W138: =IF(OR(ISERR( INDEX(Данные[Отдел],$AM138,1)), ISBLANK( INDEX(Данные[Отдел],$AM138,1))), "",TEXT(INDEX(Данные[Отдел],$AM138,1),0)) ->  | Y138: =IF(OR(ISERR( INDEX(Данные[Цена],$AM138,1)), ISBLANK( INDEX(Данные[Цена],$AM138,1))), "",INDEX(Данные[Цена],$AM138,1)) ->  | AD138: =IFERROR(INDEX(Данные[Коэффициент переоценки],$AM138,1),"") ->  | AF138: =IF(OR(ISERR( INDEX(Данные[Кол-во экз.],$AM138,1)), ISBLANK( INDEX(Данные[Кол-во экз.],$AM138,1))), "",INDEX(Данные[Кол-во экз.],$AM138,1)) ->  | AH138: =IF(OR(ISERR(INDEX(Данные[Автор, заглавие],$AM138,1)),ISBLANK(INDEX(Данные[Автор, заглавие],$AM138,1))),"",INDEX(Данные[Стои-мость],$AM138,1)) ->  | AM138: 86
A139: =IFERROR(INDEX(Данные[№пп],AM139,1),"") ->  | C139: =IF(OR(ISERR( INDEX(Данные[Инв. №],$AM139,1)), ISBLANK( INDEX(Данные[Инв. №],$AM139,1))), "",INDEX(Данные[Инв. №],$AM139,1)) ->  | F139: =IF(OR(ISERR(INDEX(Данные[Штрих код первые 6 цифр],$AM139,1)),ISBLANK(INDEX(Данные[Штрих код первые 6 цифр],$AM139,1))),"",LEFT(INDEX(Данные[Штрих код первые 6 цифр],$AM139,1),6)) ->  | I139: =IF(OR(ISERR( INDEX(Данные[Автор, заглавие],$AM139,1)), ISBLANK( INDEX(Данные[Автор, заглавие],$AM139,1))), "",LEFT(INDEX(Данные[Автор, заглавие],$AM139,1),28)) ->  | U139: =IF(OR(ISERR( INDEX(Данные[Год издания],$AM139,1)), ISBLANK( INDEX(Данные[Год издания],$AM139,1))), "",TEXT(INDEX(Данные[Год издания],$AM139,1),0)) ->  | W139: =IF(OR(ISERR( INDEX(Данные[Отдел],$AM139,1)), ISBLANK( INDEX(Данные[Отдел],$AM139,1))), "",TEXT(INDEX(Данные[Отдел],$AM139,1),0)) ->  | Y139: =IF(OR(ISERR( INDEX(Данные[Цена],$AM139,1)), ISBLANK( INDEX(Данные[Цена],$AM139,1))), "",INDEX(Данные[Цена],$AM139,1)) ->  | AD139: =IFERROR(INDEX(Данные[Коэффициент переоценки],$AM139,1),"") ->  | AF139: =IF(OR(ISERR( INDEX(Данные[Кол-во экз.],$AM139,1)), ISBLANK( INDEX(Данные[Кол-во экз.],$AM139,1))), "",INDEX(Данные[Кол-во экз.],$AM139,1)) ->  | AH139: =IF(OR(ISERR(INDEX(Данные[Автор, заглавие],$AM139,1)),ISBLANK(INDEX(Данные[Автор, заглавие],$AM139,1))),"",INDEX(Данные[Стои-мость],$AM139,1)) ->  | AM139: 87
A140: =IFERROR(INDEX(Данные[№пп],AM140,1),"") ->  | C140: =IF(OR(ISERR( INDEX(Данные[Инв. №],$AM140,1)), ISBLANK( INDEX(Данные[Инв. №],$AM140,1))), "",INDEX(Данные[Инв. №],$AM140,1)) ->  | F140: =IF(OR(ISERR(INDEX(Данные[Штрих код первые 6 цифр],$AM140,1)),ISBLANK(INDEX(Данные[Штрих код первые 6 цифр],$AM140,1))),"",LEFT(INDEX(Данные[Штрих код первые 6 цифр],$AM140,1),6)) ->  | I140: =IF(OR(ISERR( INDEX(Данные[Автор, заглавие],$AM140,1)), ISBLANK( INDEX(Данные[Автор, заглавие],$AM140,1))), "",LEFT(INDEX(Данные[Автор, заглавие],$AM140,1),28)) ->  | U140: =IF(OR(ISERR( INDEX(Данные[Год издания],$AM140,1)), ISBLANK( INDEX(Данные[Год издания],$AM140,1))), "",TEXT(INDEX(Данные[Год издания],$AM140,1),0)) ->  | W140: =IF(OR(ISERR( INDEX(Данные[Отдел],$AM140,1)), ISBLANK( INDEX(Данные[Отдел],$AM140,1))), "",TEXT(INDEX(Данные[Отдел],$AM140,1),0)) ->  | Y140: =IF(OR(ISERR( INDEX(Данные[Цена],$AM140,1)), ISBLANK( INDEX(Данные[Цена],$AM140,1))), "",INDEX(Данные[Цена],$AM140,1)) ->  | AD140: =IFERROR(INDEX(Данные[Коэффициент переоценки],$AM140,1),"") ->  | AF140: =IF(OR(ISERR( INDEX(Данные[Кол-во экз.],$AM140,1)), ISBLANK( INDEX(Данные[Кол-во экз.],$AM140,1))), "",INDEX(Данные[Кол-во экз.],$AM140,1)) ->  | AH140: =IF(OR(ISERR(INDEX(Данные[Автор, заглавие],$AM140,1)),ISBLANK(INDEX(Данные[Автор, заглавие],$AM140,1))),"",INDEX(Данные[Стои-мость],$AM140,1)) ->  | AM140: 88
A141: =IFERROR(INDEX(Данные[№пп],AM141,1),"") ->  | C141: =IF(OR(ISERR( INDEX(Данные[Инв. №],$AM141,1)), ISBLANK( INDEX(Данные[Инв. №],$AM141,1))), "",INDEX(Данные[Инв. №],$AM141,1)) ->  | F141: =IF(OR(ISERR(INDEX(Данные[Штрих код первые 6 цифр],$AM141,1)),ISBLANK(INDEX(Данные[Штрих код первые 6 цифр],$AM141,1))),"",LEFT(INDEX(Данные[Штрих код первые 6 цифр],$AM141,1),6)) ->  | I141: =IF(OR(ISERR( INDEX(Данные[Автор, заглавие],$AM141,1)), ISBLANK( INDEX(Данные[Автор, заглавие],$AM141,1))), "",LEFT(INDEX(Данные[Автор, заглавие],$AM141,1),28)) ->  | U141: =IF(OR(ISERR( INDEX(Данные[Год издания],$AM141,1)), ISBLANK( INDEX(Данные[Год издания],$AM141,1))), "",TEXT(INDEX(Данные[Год издания],$AM141,1),0)) ->  | W141: =IF(OR(ISERR( INDEX(Данные[Отдел],$AM141,1)), ISBLANK( INDEX(Данные[Отдел],$AM141,1))), "",TEXT(INDEX(Данные[Отдел],$AM141,1),0)) ->  | Y141: =IF(OR(ISERR( INDEX(Данные[Цена],$AM141,1)), ISBLANK( INDEX(Данные[Цена],$AM141,1))), "",INDEX(Данные[Цена],$AM141,1)) ->  | AD141: =IFERROR(INDEX(Данные[Коэффициент переоценки],$AM141,1),"") ->  | AF141: =IF(OR(ISERR( INDEX(Данные[Кол-во экз.],$AM141,1)), ISBLANK( INDEX(Данные[Кол-во экз.],$AM141,1))), "",INDEX(Данные[Кол-во экз.],$AM141,1)) ->  | AH141: =IF(OR(ISERR(INDEX(Данные[Автор, заглавие],$AM141,1)),ISBLANK(INDEX(Данные[Автор, заглавие],$AM141,1))),"",INDEX(Данные[Стои-мость],$AM141,1)) ->  | AM141: 89
A142: =IFERROR(INDEX(Данные[№пп],AM142,1),"") ->  | C142: =IF(OR(ISERR( INDEX(Данные[Инв. №],$AM142,1)), ISBLANK( INDEX(Данные[Инв. №],$AM142,1))), "",INDEX(Данные[Инв. №],$AM142,1)) ->  | F142: =IF(OR(ISERR(INDEX(Данные[Штрих код первые 6 цифр],$AM142,1)),ISBLANK(INDEX(Данные[Штрих код первые 6 цифр],$AM142,1))),"",LEFT(INDEX(Данные[Штрих код первые 6 цифр],$AM142,1),6)) ->  | I142: =IF(OR(ISERR( INDEX(Данные[Автор, заглавие],$AM142,1)), ISBLANK( INDEX(Данные[Автор, заглавие],$AM142,1))), "",LEFT(INDEX(Данные[Автор, заглавие],$AM142,1),28)) ->  | U142: =IF(OR(ISERR( INDEX(Данные[Год издания],$AM142,1)), ISBLANK( INDEX(Данные[Год издания],$AM142,1))), "",TEXT(INDEX(Данные[Год издания],$AM142,1),0)) ->  | W142: =IF(OR(ISERR( INDEX(Данные[Отдел],$AM142,1)), ISBLANK( INDEX(Данные[Отдел],$AM142,1))), "",TEXT(INDEX(Данные[Отдел],$AM142,1),0)) ->  | Y142: =IF(OR(ISERR( INDEX(Данные[Цена],$AM142,1)), ISBLANK( INDEX(Данные[Цена],$AM142,1))), "",INDEX(Данные[Цена],$AM142,1)) ->  | AD142: =IFERROR(INDEX(Данные[Коэффициент переоценки],$AM142,1),"") ->  | AF142: =IF(OR(ISERR( INDEX(Данные[Кол-во экз.],$AM142,1)), ISBLANK( INDEX(Данные[Кол-во экз.],$AM142,1))), "",INDEX(Данные[Кол-во экз.],$AM142,1)) ->  | AH142: =IF(OR(ISERR(INDEX(Данные[Автор, заглавие],$AM142,1)),ISBLANK(INDEX(Данные[Автор, заглавие],$AM142,1))),"",INDEX(Данные[Стои-мость],$AM142,1)) ->  | AM142: 90
A143: =IFERROR(INDEX(Данные[№пп],AM143,1),"") ->  | C143: =IF(OR(ISERR( INDEX(Данные[Инв. №],$AM143,1)), ISBLANK( INDEX(Данные[Инв. №],$AM143,1))), "",INDEX(Данные[Инв. №],$AM143,1)) ->  | F143: =IF(OR(ISERR(INDEX(Данные[Штрих код первые 6 цифр],$AM143,1)),ISBLANK(INDEX(Данные[Штрих код первые 6 цифр],$AM143,1))),"",LEFT(INDEX(Данные[Штрих код первые 6 цифр],$AM143,1),6)) ->  | I143: =IF(OR(ISERR( INDEX(Данные[Автор, заглавие],$AM143,1)), ISBLANK( INDEX(Данные[Автор, заглавие],$AM143,1))), "",LEFT(INDEX(Данные[Автор, заглавие],$AM143,1),28)) ->  | U143: =IF(OR(ISERR( INDEX(Данные[Год издания],$AM143,1)), ISBLANK( INDEX(Данные[Год издания],$AM143,1))), "",TEXT(INDEX(Данные[Год издания],$AM143,1),0)) ->  | W143: =IF(OR(ISERR( INDEX(Данные[Отдел],$AM143,1)), ISBLANK( INDEX(Данные[Отдел],$AM143,1))), "",TEXT(INDEX(Данные[Отдел],$AM143,1),0)) ->  | Y143: =IF(OR(ISERR( INDEX(Данные[Цена],$AM143,1)), ISBLANK( INDEX(Данные[Цена],$AM143,1))), "",INDEX(Данные[Цена],$AM143,1)) ->  | AD143: =IFERROR(INDEX(Данные[Коэффициент переоценки],$AM143,1),"") ->  | AF143: =IF(OR(ISERR( INDEX(Данные[Кол-во экз.],$AM143,1)), ISBLANK( INDEX(Данные[Кол-во экз.],$AM143,1))), "",INDEX(Данные[Кол-во экз.],$AM143,1)) ->  | AH143: =IF(OR(ISERR(INDEX(Данные[Автор, заглавие],$AM143,1)),ISBLANK(INDEX(Данные[Автор, заглавие],$AM143,1))),"",INDEX(Данные[Стои-мость],$AM143,1)) ->  | AM143: 91
A144: =IFERROR(INDEX(Данные[№пп],AM144,1),"") ->  | C144: =IF(OR(ISERR( INDEX(Данные[Инв. №],$AM144,1)), ISBLANK( INDEX(Данные[Инв. №],$AM144,1))), "",INDEX(Данные[Инв. №],$AM144,1)) ->  | F144: =IF(OR(ISERR(INDEX(Данные[Штрих код первые 6 цифр],$AM144,1)),ISBLANK(INDEX(Данные[Штрих код первые 6 цифр],$AM144,1))),"",LEFT(INDEX(Данные[Штрих код первые 6 цифр],$AM144,1),6)) ->  | I144: =IF(OR(ISERR( INDEX(Данные[Автор, заглавие],$AM144,1)), ISBLANK( INDEX(Данные[Автор, заглавие],$AM144,1))), "",LEFT(INDEX(Данные[Автор, заглавие],$AM144,1),28)) ->  | U144: =IF(OR(ISERR( INDEX(Данные[Год издания],$AM144,1)), ISBLANK( INDEX(Данные[Год издания],$AM144,1))), "",TEXT(INDEX(Данные[Год издания],$AM144,1),0)) ->  | W144: =IF(OR(ISERR( INDEX(Данные[Отдел],$AM144,1)), ISBLANK( INDEX(Данные[Отдел],$AM144,1))), "",TEXT(INDEX(Данные[Отдел],$AM144,1),0)) ->  | Y144: =IF(OR(ISERR( INDEX(Данные[Цена],$AM144,1)), ISBLANK( INDEX(Данные[Цена],$AM144,1))), "",INDEX(Данные[Цена],$AM144,1)) ->  | AD144: =IFERROR(INDEX(Данные[Коэффициент переоценки],$AM144,1),"") ->  | AF144: =IF(OR(ISERR( INDEX(Данные[Кол-во экз.],$AM144,1)), ISBLANK( INDEX(Данные[Кол-во экз.],$AM144,1))), "",INDEX(Данные[Кол-во экз.],$AM144,1)) ->  | AH144: =IF(OR(ISERR(INDEX(Данные[Автор, заглавие],$AM144,1)),ISBLANK(INDEX(Данные[Автор, заглавие],$AM144,1))),"",INDEX(Данные[Стои-мость],$AM144,1)) ->  | AM144: 92
A145: =IFERROR(INDEX(Данные[№пп],AM145,1),"") ->  | C145: =IF(OR(ISERR( INDEX(Данные[Инв. №],$AM145,1)), ISBLANK( INDEX(Данные[Инв. №],$AM145,1))), "",INDEX(Данные[Инв. №],$AM145,1)) ->  | F145: =IF(OR(ISERR(INDEX(Данные[Штрих код первые 6 цифр],$AM145,1)),ISBLANK(INDEX(Данные[Штрих код первые 6 цифр],$AM145,1))),"",LEFT(INDEX(Данные[Штрих код первые 6 цифр],$AM145,1),6)) ->  | I145: =IF(OR(ISERR( INDEX(Данные[Автор, заглавие],$AM145,1)), ISBLANK( INDEX(Данные[Автор, заглавие],$AM145,1))), "",LEFT(INDEX(Данные[Автор, заглавие],$AM145,1),28)) ->  | U145: =IF(OR(ISERR( INDEX(Данные[Год издания],$AM145,1)), ISBLANK( INDEX(Данные[Год издания],$AM145,1))), "",TEXT(INDEX(Данные[Год издания],$AM145,1),0)) ->  | W145: =IF(OR(ISERR( INDEX(Данные[Отдел],$AM145,1)), ISBLANK( INDEX(Данные[Отдел],$AM145,1))), "",TEXT(INDEX(Данные[Отдел],$AM145,1),0)) ->  | Y145: =IF(OR(ISERR( INDEX(Данные[Цена],$AM145,1)), ISBLANK( INDEX(Данные[Цена],$AM145,1))), "",INDEX(Данные[Цена],$AM145,1)) ->  | AD145: =IFERROR(INDEX(Данные[Коэффициент переоценки],$AM145,1),"") ->  | AF145: =IF(OR(ISERR( INDEX(Данные[Кол-во экз.],$AM145,1)), ISBLANK( INDEX(Данные[Кол-во экз.],$AM145,1))), "",INDEX(Данные[Кол-во экз.],$AM145,1)) ->  | AH145: =IF(OR(ISERR(INDEX(Данные[Автор, заглавие],$AM145,1)),ISBLANK(INDEX(Данные[Автор, заглавие],$AM145,1))),"",INDEX(Данные[Стои-мость],$AM145,1)) ->  | AM145: 93
A146: =IFERROR(INDEX(Данные[№пп],AM146,1),"") ->  | C146: =IF(OR(ISERR( INDEX(Данные[Инв. №],$AM146,1)), ISBLANK( INDEX(Данные[Инв. №],$AM146,1))), "",INDEX(Данные[Инв. №],$AM146,1)) ->  | F146: =IF(OR(ISERR(INDEX(Данные[Штрих код первые 6 цифр],$AM146,1)),ISBLANK(INDEX(Данные[Штрих код первые 6 цифр],$AM146,1))),"",LEFT(INDEX(Данные[Штрих код первые 6 цифр],$AM146,1),6)) ->  | I146: =IF(OR(ISERR( INDEX(Данные[Автор, заглавие],$AM146,1)), ISBLANK( INDEX(Данные[Автор, заглавие],$AM146,1))), "",LEFT(INDEX(Данные[Автор, заглавие],$AM146,1),28)) ->  | U146: =IF(OR(ISERR( INDEX(Данные[Год издания],$AM146,1)), ISBLANK( INDEX(Данные[Год издания],$AM146,1))), "",TEXT(INDEX(Данные[Год издания],$AM146,1),0)) ->  | W146: =IF(OR(ISERR( INDEX(Данные[Отдел],$AM146,1)), ISBLANK( INDEX(Данные[Отдел],$AM146,1))), "",TEXT(INDEX(Данные[Отдел],$AM146,1),0)) ->  | Y146: =IF(OR(ISERR( INDEX(Данные[Цена],$AM146,1)), ISBLANK( INDEX(Данные[Цена],$AM146,1))), "",INDEX(Данные[Цена],$AM146,1)) ->  | AD146: =IFERROR(INDEX(Данные[Коэффициент переоценки],$AM146,1),"") ->  | AF146: =IF(OR(ISERR( INDEX(Данные[Кол-во экз.],$AM146,1)), ISBLANK( INDEX(Данные[Кол-во экз.],$AM146,1))), "",INDEX(Данные[Кол-во экз.],$AM146,1)) ->  | AH146: =IF(OR(ISERR(INDEX(Данные[Автор, заглавие],$AM146,1)),ISBLANK(INDEX(Данные[Автор, заглавие],$AM146,1))),"",INDEX(Данные[Стои-мость],$AM146,1)) ->  | AM146: 94
A147: =IFERROR(INDEX(Данные[№пп],AM147,1),"") ->  | C147: =IF(OR(ISERR( INDEX(Данные[Инв. №],$AM147,1)), ISBLANK( INDEX(Данные[Инв. №],$AM147,1))), "",INDEX(Данные[Инв. №],$AM147,1)) ->  | F147: =IF(OR(ISERR(INDEX(Данные[Штрих код первые 6 цифр],$AM147,1)),ISBLANK(INDEX(Данные[Штрих код первые 6 цифр],$AM147,1))),"",LEFT(INDEX(Данные[Штрих код первые 6 цифр],$AM147,1),6)) ->  | I147: =IF(OR(ISERR( INDEX(Данные[Автор, заглавие],$AM147,1)), ISBLANK( INDEX(Данные[Автор, заглавие],$AM147,1))), "",LEFT(INDEX(Данные[Автор, заглавие],$AM147,1),28)) ->  | U147: =IF(OR(ISERR( INDEX(Данные[Год издания],$AM147,1)), ISBLANK( INDEX(Данные[Год издания],$AM147,1))), "",TEXT(INDEX(Данные[Год издания],$AM147,1),0)) ->  | W147: =IF(OR(ISERR( INDEX(Данные[Отдел],$AM147,1)), ISBLANK( INDEX(Данные[Отдел],$AM147,1))), "",TEXT(INDEX(Данные[Отдел],$AM147,1),0)) ->  | Y147: =IF(OR(ISERR( INDEX(Данные[Цена],$AM147,1)), ISBLANK( INDEX(Данные[Цена],$AM147,1))), "",INDEX(Данные[Цена],$AM147,1)) ->  | AD147: =IFERROR(INDEX(Данные[Коэффициент переоценки],$AM147,1),"") ->  | AF147: =IF(OR(ISERR( INDEX(Данные[Кол-во экз.],$AM147,1)), ISBLANK( INDEX(Данные[Кол-во экз.],$AM147,1))), "",INDEX(Данные[Кол-во экз.],$AM147,1)) ->  | AH147: =IF(OR(ISERR(INDEX(Данные[Автор, заглавие],$AM147,1)),ISBLANK(INDEX(Данные[Автор, заглавие],$AM147,1))),"",INDEX(Данные[Стои-мость],$AM147,1)) ->  | AM147: 95
A148: =IFERROR(INDEX(Данные[№пп],AM148,1),"") ->  | C148: =IF(OR(ISERR( INDEX(Данные[Инв. №],$AM148,1)), ISBLANK( INDEX(Данные[Инв. №],$AM148,1))), "",INDEX(Данные[Инв. №],$AM148,1)) ->  | F148: =IF(OR(ISERR(INDEX(Данные[Штрих код первые 6 цифр],$AM148,1)),ISBLANK(INDEX(Данные[Штрих код первые 6 цифр],$AM148,1))),"",LEFT(INDEX(Данные[Штрих код первые 6 цифр],$AM148,1),6)) ->  | I148: =IF(OR(ISERR( INDEX(Данные[Автор, заглавие],$AM148,1)), ISBLANK( INDEX(Данные[Автор, заглавие],$AM148,1))), "",LEFT(INDEX(Данные[Автор, заглавие],$AM148,1),28)) ->  | U148: =IF(OR(ISERR( INDEX(Данные[Год издания],$AM148,1)), ISBLANK( INDEX(Данные[Год издания],$AM148,1))), "",TEXT(INDEX(Данные[Год издания],$AM148,1),0)) ->  | W148: =IF(OR(ISERR( INDEX(Данные[Отдел],$AM148,1)), ISBLANK( INDEX(Данные[Отдел],$AM148,1))), "",TEXT(INDEX(Данные[Отдел],$AM148,1),0)) ->  | Y148: =IF(OR(ISERR( INDEX(Данные[Цена],$AM148,1)), ISBLANK( INDEX(Данные[Цена],$AM148,1))), "",INDEX(Данные[Цена],$AM148,1)) ->  | AD148: =IFERROR(INDEX(Данные[Коэффициент переоценки],$AM148,1),"") ->  | AF148: =IF(OR(ISERR( INDEX(Данные[Кол-во экз.],$AM148,1)), ISBLANK( INDEX(Данные[Кол-во экз.],$AM148,1))), "",INDEX(Данные[Кол-во экз.],$AM148,1)) ->  | AH148: =IF(OR(ISERR(INDEX(Данные[Автор, заглавие],$AM148,1)),ISBLANK(INDEX(Данные[Автор, заглавие],$AM148,1))),"",INDEX(Данные[Стои-мость],$AM148,1)) ->  | AM148: 96
A149: =IFERROR(INDEX(Данные[№пп],AM149,1),"") ->  | C149: =IF(OR(ISERR( INDEX(Данные[Инв. №],$AM149,1)), ISBLANK( INDEX(Данные[Инв. №],$AM149,1))), "",INDEX(Данные[Инв. №],$AM149,1)) ->  | F149: =IF(OR(ISERR(INDEX(Данные[Штрих код первые 6 цифр],$AM149,1)),ISBLANK(INDEX(Данные[Штрих код первые 6 цифр],$AM149,1))),"",LEFT(INDEX(Данные[Штрих код первые 6 цифр],$AM149,1),6)) ->  | I149: =IF(OR(ISERR( INDEX(Данные[Автор, заглавие],$AM149,1)), ISBLANK( INDEX(Данные[Автор, заглавие],$AM149,1))), "",LEFT(INDEX(Данные[Автор, заглавие],$AM149,1),28)) ->  | U149: =IF(OR(ISERR( INDEX(Данные[Год издания],$AM149,1)), ISBLANK( INDEX(Данные[Год издания],$AM149,1))), "",TEXT(INDEX(Данные[Год издания],$AM149,1),0)) ->  | W149: =IF(OR(ISERR( INDEX(Данные[Отдел],$AM149,1)), ISBLANK( INDEX(Данные[Отдел],$AM149,1))), "",TEXT(INDEX(Данные[Отдел],$AM149,1),0)) ->  | Y149: =IF(OR(ISERR( INDEX(Данные[Цена],$AM149,1)), ISBLANK( INDEX(Данные[Цена],$AM149,1))), "",INDEX(Данные[Цена],$AM149,1)) ->  | AD149: =IFERROR(INDEX(Данные[Коэффициент переоценки],$AM149,1),"") ->  | AF149: =IF(OR(ISERR( INDEX(Данные[Кол-во экз.],$AM149,1)), ISBLANK( INDEX(Данные[Кол-во экз.],$AM149,1))), "",INDEX(Данные[Кол-во экз.],$AM149,1)) ->  | AH149: =IF(OR(ISERR(INDEX(Данные[Автор, заглавие],$AM149,1)),ISBLANK(INDEX(Данные[Автор, заглавие],$AM149,1))),"",INDEX(Данные[Стои-мость],$AM149,1)) ->  | AM149: 97
A150: =IFERROR(INDEX(Данные[№пп],AM150,1),"") ->  | C150: =IF(OR(ISERR( INDEX(Данные[Инв. №],$AM150,1)), ISBLANK( INDEX(Данные[Инв. №],$AM150,1))), "",INDEX(Данные[Инв. №],$AM150,1)) ->  | F150: =IF(OR(ISERR(INDEX(Данные[Штрих код первые 6 цифр],$AM150,1)),ISBLANK(INDEX(Данные[Штрих код первые 6 цифр],$AM150,1))),"",LEFT(INDEX(Данные[Штрих код первые 6 цифр],$AM150,1),6)) ->  | I150: =IF(OR(ISERR( INDEX(Данные[Автор, заглавие],$AM150,1)), ISBLANK( INDEX(Данные[Автор, заглавие],$AM150,1))), "",LEFT(INDEX(Данные[Автор, заглавие],$AM150,1),28)) ->  | U150: =IF(OR(ISERR( INDEX(Данные[Год издания],$AM150,1)), ISBLANK( INDEX(Данные[Год издания],$AM150,1))), "",TEXT(INDEX(Данные[Год издания],$AM150,1),0)) ->  | W150: =IF(OR(ISERR( INDEX(Данные[Отдел],$AM150,1)), ISBLANK( INDEX(Данные[Отдел],$AM150,1))), "",TEXT(INDEX(Данные[Отдел],$AM150,1),0)) ->  | Y150: =IF(OR(ISERR( INDEX(Данные[Цена],$AM150,1)), ISBLANK( INDEX(Данные[Цена],$AM150,1))), "",INDEX(Данные[Цена],$AM150,1)) ->  | AD150: =IFERROR(INDEX(Данные[Коэффициент переоценки],$AM150,1),"") ->  | AF150: =IF(OR(ISERR( INDEX(Данные[Кол-во экз.],$AM150,1)), ISBLANK( INDEX(Данные[Кол-во экз.],$AM150,1))), "",INDEX(Данные[Кол-во экз.],$AM150,1)) ->  | AH150: =IF(OR(ISERR(INDEX(Данные[Автор, заглавие],$AM150,1)),ISBLANK(INDEX(Данные[Автор, заглавие],$AM150,1))),"",INDEX(Данные[Стои-мость],$AM150,1)) ->  | AM150: 98
A151: =IFERROR(INDEX(Данные[№пп],AM151,1),"") ->  | C151: =IF(OR(ISERR( INDEX(Данные[Инв. №],$AM151,1)), ISBLANK( INDEX(Данные[Инв. №],$AM151,1))), "",INDEX(Данные[Инв. №],$AM151,1)) ->  | F151: =IF(OR(ISERR(INDEX(Данные[Штрих код первые 6 цифр],$AM151,1)),ISBLANK(INDEX(Данные[Штрих код первые 6 цифр],$AM151,1))),"",LEFT(INDEX(Данные[Штрих код первые 6 цифр],$AM151,1),6)) ->  | I151: =IF(OR(ISERR( INDEX(Данные[Автор, заглавие],$AM151,1)), ISBLANK( INDEX(Данные[Автор, заглавие],$AM151,1))), "",LEFT(INDEX(Данные[Автор, заглавие],$AM151,1),28)) ->  | U151: =IF(OR(ISERR( INDEX(Данные[Год издания],$AM151,1)), ISBLANK( INDEX(Данные[Год издания],$AM151,1))), "",TEXT(INDEX(Данные[Год издания],$AM151,1),0)) ->  | W151: =IF(OR(ISERR( INDEX(Данные[Отдел],$AM151,1)), ISBLANK( INDEX(Данные[Отдел],$AM151,1))), "",TEXT(INDEX(Данные[Отдел],$AM151,1),0)) ->  | Y151: =IF(OR(ISERR( INDEX(Данные[Цена],$AM151,1)), ISBLANK( INDEX(Данные[Цена],$AM151,1))), "",INDEX(Данные[Цена],$AM151,1)) ->  | AD151: =IFERROR(INDEX(Данные[Коэффициент переоценки],$AM151,1),"") ->  | AF151: =IF(OR(ISERR( INDEX(Данные[Кол-во экз.],$AM151,1)), ISBLANK( INDEX(Данные[Кол-во экз.],$AM151,1))), "",INDEX(Данные[Кол-во экз.],$AM151,1)) ->  | AH151: =IF(OR(ISERR(INDEX(Данные[Автор, заглавие],$AM151,1)),ISBLANK(INDEX(Данные[Автор, заглавие],$AM151,1))),"",INDEX(Данные[Стои-мость],$AM151,1)) ->  | AM151: 99
A152: =IFERROR(INDEX(Данные[№пп],AM152,1),"") ->  | C152: =IF(OR(ISERR( INDEX(Данные[Инв. №],$AM152,1)), ISBLANK( INDEX(Данные[Инв. №],$AM152,1))), "",INDEX(Данные[Инв. №],$AM152,1)) ->  | F152: =IF(OR(ISERR(INDEX(Данные[Штрих код первые 6 цифр],$AM152,1)),ISBLANK(INDEX(Данные[Штрих код первые 6 цифр],$AM152,1))),"",LEFT(INDEX(Данные[Штрих код первые 6 цифр],$AM152,1),6)) ->  | I152: =IF(OR(ISERR( INDEX(Данные[Автор, заглавие],$AM152,1)), ISBLANK( INDEX(Данные[Автор, заглавие],$AM152,1))), "",LEFT(INDEX(Данные[Автор, заглавие],$AM152,1),28)) ->  | U152: =IF(OR(ISERR( INDEX(Данные[Год издания],$AM152,1)), ISBLANK( INDEX(Данные[Год издания],$AM152,1))), "",TEXT(INDEX(Данные[Год издания],$AM152,1),0)) ->  | W152: =IF(OR(ISERR( INDEX(Данные[Отдел],$AM152,1)), ISBLANK( INDEX(Данные[Отдел],$AM152,1))), "",TEXT(INDEX(Данные[Отдел],$AM152,1),0)) ->  | Y152: =IF(OR(ISERR( INDEX(Данные[Цена],$AM152,1)), ISBLANK( INDEX(Данные[Цена],$AM152,1))), "",INDEX(Данные[Цена],$AM152,1)) ->  | AD152: =IFERROR(INDEX(Данные[Коэффициент переоценки],$AM152,1),"") ->  | AF152: =IF(OR(ISERR( INDEX(Данные[Кол-во экз.],$AM152,1)), ISBLANK( INDEX(Данные[Кол-во экз.],$AM152,1))), "",INDEX(Данные[Кол-во экз.],$AM152,1)) ->  | AH152: =IF(OR(ISERR(INDEX(Данные[Автор, заглавие],$AM152,1)),ISBLANK(INDEX(Данные[Автор, заглавие],$AM152,1))),"",INDEX(Данные[Стои-мость],$AM152,1)) ->  | AM152: 100
A153: =IFERROR(INDEX(Данные[№пп],AM153,1),"") ->  | C153: =IF(OR(ISERR( INDEX(Данные[Инв. №],$AM153,1)), ISBLANK( INDEX(Данные[Инв. №],$AM153,1))), "",INDEX(Данные[Инв. №],$AM153,1)) ->  | F153: =IF(OR(ISERR(INDEX(Данные[Штрих код первые 6 цифр],$AM153,1)),ISBLANK(INDEX(Данные[Штрих код первые 6 цифр],$AM153,1))),"",LEFT(INDEX(Данные[Штрих код первые 6 цифр],$AM153,1),6)) ->  | I153: =IF(OR(ISERR( INDEX(Данные[Автор, заглавие],$AM153,1)), ISBLANK( INDEX(Данные[Автор, заглавие],$AM153,1))), "",LEFT(INDEX(Данные[Автор, заглавие],$AM153,1),28)) ->  | U153: =IF(OR(ISERR( INDEX(Данные[Год издания],$AM153,1)), ISBLANK( INDEX(Данные[Год издания],$AM153,1))), "",TEXT(INDEX(Данные[Год издания],$AM153,1),0)) ->  | W153: =IF(OR(ISERR( INDEX(Данные[Отдел],$AM153,1)), ISBLANK( INDEX(Данные[Отдел],$AM153,1))), "",TEXT(INDEX(Данные[Отдел],$AM153,1),0)) ->  | Y153: =IF(OR(ISERR( INDEX(Данные[Цена],$AM153,1)), ISBLANK( INDEX(Данные[Цена],$AM153,1))), "",INDEX(Данные[Цена],$AM153,1)) ->  | AD153: =IFERROR(INDEX(Данные[Коэффициент переоценки],$AM153,1),"") ->  | AF153: =IF(OR(ISERR( INDEX(Данные[Кол-во экз.],$AM153,1)), ISBLANK( INDEX(Данные[Кол-во экз.],$AM153,1))), "",INDEX(Данные[Кол-во экз.],$AM153,1)) ->  | AH153: =IF(OR(ISERR(INDEX(Данные[Автор, заглавие],$AM153,1)),ISBLANK(INDEX(Данные[Автор, заглавие],$AM153,1))),"",INDEX(Данные[Стои-мость],$AM153,1)) ->  | AM153: 101
A154: =IFERROR(INDEX(Данные[№пп],AM154,1),"") ->  | C154: =IF(OR(ISERR( INDEX(Данные[Инв. №],$AM154,1)), ISBLANK( INDEX(Данные[Инв. №],$AM154,1))), "",INDEX(Данные[Инв. №],$AM154,1)) ->  | F154: =IF(OR(ISERR(INDEX(Данные[Штрих код первые 6 цифр],$AM154,1)),ISBLANK(INDEX(Данные[Штрих код первые 6 цифр],$AM154,1))),"",LEFT(INDEX(Данные[Штрих код первые 6 цифр],$AM154,1),6)) ->  | I154: =IF(OR(ISERR( INDEX(Данные[Автор, заглавие],$AM154,1)), ISBLANK( INDEX(Данные[Автор, заглавие],$AM154,1))), "",LEFT(INDEX(Данные[Автор, заглавие],$AM154,1),28)) ->  | U154: =IF(OR(ISERR( INDEX(Данные[Год издания],$AM154,1)), ISBLANK( INDEX(Данные[Год издания],$AM154,1))), "",TEXT(INDEX(Данные[Год издания],$AM154,1),0)) ->  | W154: =IF(OR(ISERR( INDEX(Данные[Отдел],$AM154,1)), ISBLANK( INDEX(Данные[Отдел],$AM154,1))), "",TEXT(INDEX(Данные[Отдел],$AM154,1),0)) ->  | Y154: =IF(OR(ISERR( INDEX(Данные[Цена],$AM154,1)), ISBLANK( INDEX(Данные[Цена],$AM154,1))), "",INDEX(Данные[Цена],$AM154,1)) ->  | AD154: =IFERROR(INDEX(Данные[Коэффициент переоценки],$AM154,1),"") ->  | AF154: =IF(OR(ISERR( INDEX(Данные[Кол-во экз.],$AM154,1)), ISBLANK( INDEX(Данные[Кол-во экз.],$AM154,1))), "",INDEX(Данные[Кол-во экз.],$AM154,1)) ->  | AH154: =IF(OR(ISERR(INDEX(Данные[Автор, заглавие],$AM154,1)),ISBLANK(INDEX(Данные[Автор, заглавие],$AM154,1))),"",INDEX(Данные[Стои-мость],$AM154,1)) ->  | AM154: =AM153+1 -> 102
A155: =IFERROR(INDEX(Данные[№пп],AM155,1),"") ->  | C155: =IF(OR(ISERR( INDEX(Данные[Инв. №],$AM155,1)), ISBLANK( INDEX(Данные[Инв. №],$AM155,1))), "",INDEX(Данные[Инв. №],$AM155,1)) ->  | F155: =IF(OR(ISERR(INDEX(Данные[Штрих код первые 6 цифр],$AM155,1)),ISBLANK(INDEX(Данные[Штрих код первые 6 цифр],$AM155,1))),"",LEFT(INDEX(Данные[Штрих код первые 6 цифр],$AM155,1),6)) ->  | I155: =IF(OR(ISERR( INDEX(Данные[Автор, заглавие],$AM155,1)), ISBLANK( INDEX(Данные[Автор, заглавие],$AM155,1))), "",LEFT(INDEX(Данные[Автор, заглавие],$AM155,1),28)) ->  | U155: =IF(OR(ISERR( INDEX(Данные[Год издания],$AM155,1)), ISBLANK( INDEX(Данные[Год издания],$AM155,1))), "",TEXT(INDEX(Данные[Год издания],$AM155,1),0)) ->  | W155: =IF(OR(ISERR( INDEX(Данные[Отдел],$AM155,1)), ISBLANK( INDEX(Данные[Отдел],$AM155,1))), "",TEXT(INDEX(Данные[Отдел],$AM155,1),0)) ->  | Y155: =IF(OR(ISERR( INDEX(Данные[Цена],$AM155,1)), ISBLANK( INDEX(Данные[Цена],$AM155,1))), "",INDEX(Данные[Цена],$AM155,1)) ->  | AD155: =IFERROR(INDEX(Данные[Коэффициент переоценки],$AM155,1),"") ->  | AF155: =IF(OR(ISERR( INDEX(Данные[Кол-во экз.],$AM155,1)), ISBLANK( INDEX(Данные[Кол-во экз.],$AM155,1))), "",INDEX(Данные[Кол-во экз.],$AM155,1)) ->  | AH155: =IF(OR(ISERR(INDEX(Данные[Автор, заглавие],$AM155,1)),ISBLANK(INDEX(Данные[Автор, заглавие],$AM155,1))),"",INDEX(Данные[Стои-мость],$AM155,1)) ->  | AM155: 103
A156: =IFERROR(INDEX(Данные[№пп],AM156,1),"") ->  | C156: =IF(OR(ISERR( INDEX(Данные[Инв. №],$AM156,1)), ISBLANK( INDEX(Данные[Инв. №],$AM156,1))), "",INDEX(Данные[Инв. №],$AM156,1)) ->  | F156: =IF(OR(ISERR(INDEX(Данные[Штрих код первые 6 цифр],$AM156,1)),ISBLANK(INDEX(Данные[Штрих код первые 6 цифр],$AM156,1))),"",LEFT(INDEX(Данные[Штрих код первые 6 цифр],$AM156,1),6)) ->  | I156: =IF(OR(ISERR( INDEX(Данные[Автор, заглавие],$AM156,1)), ISBLANK( INDEX(Данные[Автор, заглавие],$AM156,1))), "",LEFT(INDEX(Данные[Автор, заглавие],$AM156,1),28)) ->  | U156: =IF(OR(ISERR( INDEX(Данные[Год издания],$AM156,1)), ISBLANK( INDEX(Данные[Год издания],$AM156,1))), "",TEXT(INDEX(Данные[Год издания],$AM156,1),0)) ->  | W156: =IF(OR(ISERR( INDEX(Данные[Отдел],$AM156,1)), ISBLANK( INDEX(Данные[Отдел],$AM156,1))), "",TEXT(INDEX(Данные[Отдел],$AM156,1),0)) ->  | Y156: =IF(OR(ISERR( INDEX(Данные[Цена],$AM156,1)), ISBLANK( INDEX(Данные[Цена],$AM156,1))), "",INDEX(Данные[Цена],$AM156,1)) ->  | AD156: =IFERROR(INDEX(Данные[Коэффициент переоценки],$AM156,1),"") ->  | AF156: =IF(OR(ISERR( INDEX(Данные[Кол-во экз.],$AM156,1)), ISBLANK( INDEX(Данные[Кол-во экз.],$AM156,1))), "",INDEX(Данные[Кол-во экз.],$AM156,1)) ->  | AH156: =IF(OR(ISERR(INDEX(Данные[Автор, заглавие],$AM156,1)),ISBLANK(INDEX(Данные[Автор, заглавие],$AM156,1))),"",INDEX(Данные[Стои-мость],$AM156,1)) ->  | AM156: 104
A157: =IFERROR(INDEX(Данные[№пп],AM157,1),"") ->  | C157: =IF(OR(ISERR( INDEX(Данные[Инв. №],$AM157,1)), ISBLANK( INDEX(Данные[Инв. №],$AM157,1))), "",INDEX(Данные[Инв. №],$AM157,1)) ->  | F157: =IF(OR(ISERR(INDEX(Данные[Штрих код первые 6 цифр],$AM157,1)),ISBLANK(INDEX(Данные[Штрих код первые 6 цифр],$AM157,1))),"",LEFT(INDEX(Данные[Штрих код первые 6 цифр],$AM157,1),6)) ->  | I157: =IF(OR(ISERR( INDEX(Данные[Автор, заглавие],$AM157,1)), ISBLANK( INDEX(Данные[Автор, заглавие],$AM157,1))), "",LEFT(INDEX(Данные[Автор, заглавие],$AM157,1),28)) ->  | U157: =IF(OR(ISERR( INDEX(Данные[Год издания],$AM157,1)), ISBLANK( INDEX(Данные[Год издания],$AM157,1))), "",TEXT(INDEX(Данные[Год издания],$AM157,1),0)) ->  | W157: =IF(OR(ISERR( INDEX(Данные[Отдел],$AM157,1)), ISBLANK( INDEX(Данные[Отдел],$AM157,1))), "",TEXT(INDEX(Данные[Отдел],$AM157,1),0)) ->  | Y157: =IF(OR(ISERR( INDEX(Данные[Цена],$AM157,1)), ISBLANK( INDEX(Данные[Цена],$AM157,1))), "",INDEX(Данные[Цена],$AM157,1)) ->  | AD157: =IFERROR(INDEX(Данные[Коэффициент переоценки],$AM157,1),"") ->  | AF157: =IF(OR(ISERR( INDEX(Данные[Кол-во экз.],$AM157,1)), ISBLANK( INDEX(Данные[Кол-во экз.],$AM157,1))), "",INDEX(Данные[Кол-во экз.],$AM157,1)) ->  | AH157: =IF(OR(ISERR(INDEX(Данные[Автор, заглавие],$AM157,1)),ISBLANK(INDEX(Данные[Автор, заглавие],$AM157,1))),"",INDEX(Данные[Стои-мость],$AM157,1)) ->  | AM157: 105
A158: =IFERROR(INDEX(Данные[№пп],AM158,1),"") ->  | C158: =IF(OR(ISERR( INDEX(Данные[Инв. №],$AM158,1)), ISBLANK( INDEX(Данные[Инв. №],$AM158,1))), "",INDEX(Данные[Инв. №],$AM158,1)) ->  | F158: =IF(OR(ISERR(INDEX(Данные[Штрих код первые 6 цифр],$AM158,1)),ISBLANK(INDEX(Данные[Штрих код первые 6 цифр],$AM158,1))),"",LEFT(INDEX(Данные[Штрих код первые 6 цифр],$AM158,1),6)) ->  | I158: =IF(OR(ISERR( INDEX(Данные[Автор, заглавие],$AM158,1)), ISBLANK( INDEX(Данные[Автор, заглавие],$AM158,1))), "",LEFT(INDEX(Данные[Автор, заглавие],$AM158,1),28)) ->  | U158: =IF(OR(ISERR( INDEX(Данные[Год издания],$AM158,1)), ISBLANK( INDEX(Данные[Год издания],$AM158,1))), "",TEXT(INDEX(Данные[Год издания],$AM158,1),0)) ->  | W158: =IF(OR(ISERR( INDEX(Данные[Отдел],$AM158,1)), ISBLANK( INDEX(Данные[Отдел],$AM158,1))), "",TEXT(INDEX(Данные[Отдел],$AM158,1),0)) ->  | Y158: =IF(OR(ISERR( INDEX(Данные[Цена],$AM158,1)), ISBLANK( INDEX(Данные[Цена],$AM158,1))), "",INDEX(Данные[Цена],$AM158,1)) ->  | AD158: =IFERROR(INDEX(Данные[Коэффициент переоценки],$AM158,1),"") ->  | AF158: =IF(OR(ISERR( INDEX(Данные[Кол-во экз.],$AM158,1)), ISBLANK( INDEX(Данные[Кол-во экз.],$AM158,1))), "",INDEX(Данные[Кол-во экз.],$AM158,1)) ->  | AH158: =IF(OR(ISERR(INDEX(Данные[Автор, заглавие],$AM158,1)),ISBLANK(INDEX(Данные[Автор, заглавие],$AM158,1))),"",INDEX(Данные[Стои-мость],$AM158,1)) ->  | AM158: 106
A159: =IFERROR(INDEX(Данные[№пп],AM159,1),"") ->  | C159: =IF(OR(ISERR( INDEX(Данные[Инв. №],$AM159,1)), ISBLANK( INDEX(Данные[Инв. №],$AM159,1))), "",INDEX(Данные[Инв. №],$AM159,1)) ->  | F159: =IF(OR(ISERR(INDEX(Данные[Штрих код первые 6 цифр],$AM159,1)),ISBLANK(INDEX(Данные[Штрих код первые 6 цифр],$AM159,1))),"",LEFT(INDEX(Данные[Штрих код первые 6 цифр],$AM159,1),6)) ->  | I159: =IF(OR(ISERR( INDEX(Данные[Автор, заглавие],$AM159,1)), ISBLANK( INDEX(Данные[Автор, заглавие],$AM159,1))), "",LEFT(INDEX(Данные[Автор, заглавие],$AM159,1),28)) ->  | U159: =IF(OR(ISERR( INDEX(Данные[Год издания],$AM159,1)), ISBLANK( INDEX(Данные[Год издания],$AM159,1))), "",TEXT(INDEX(Данные[Год издания],$AM159,1),0)) ->  | W159: =IF(OR(ISERR( INDEX(Данные[Отдел],$AM159,1)), ISBLANK( INDEX(Данные[Отдел],$AM159,1))), "",TEXT(INDEX(Данные[Отдел],$AM159,1),0)) ->  | Y159: =IF(OR(ISERR( INDEX(Данные[Цена],$AM159,1)), ISBLANK( INDEX(Данные[Цена],$AM159,1))), "",INDEX(Данные[Цена],$AM159,1)) ->  | AD159: =IFERROR(INDEX(Данные[Коэффициент переоценки],$AM159,1),"") ->  | AF159: =IF(OR(ISERR( INDEX(Данные[Кол-во экз.],$AM159,1)), ISBLANK( INDEX(Данные[Кол-во экз.],$AM159,1))), "",INDEX(Данные[Кол-во экз.],$AM159,1)) ->  | AH159: =IF(OR(ISERR(INDEX(Данные[Автор, заглавие],$AM159,1)),ISBLANK(INDEX(Данные[Автор, заглавие],$AM159,1))),"",INDEX(Данные[Стои-мость],$AM159,1)) ->  | AM159: 107
A160: =IFERROR(INDEX(Данные[№пп],AM160,1),"") ->  | C160: =IF(OR(ISERR( INDEX(Данные[Инв. №],$AM160,1)), ISBLANK( INDEX(Данные[Инв. №],$AM160,1))), "",INDEX(Данные[Инв. №],$AM160,1)) ->  | F160: =IF(OR(ISERR(INDEX(Данные[Штрих код первые 6 цифр],$AM160,1)),ISBLANK(INDEX(Данные[Штрих код первые 6 цифр],$AM160,1))),"",LEFT(INDEX(Данные[Штрих код первые 6 цифр],$AM160,1),6)) ->  | I160: =IF(OR(ISERR( INDEX(Данные[Автор, заглавие],$AM160,1)), ISBLANK( INDEX(Данные[Автор, заглавие],$AM160,1))), "",LEFT(INDEX(Данные[Автор, заглавие],$AM160,1),28)) ->  | U160: =IF(OR(ISERR( INDEX(Данные[Год издания],$AM160,1)), ISBLANK( INDEX(Данные[Год издания],$AM160,1))), "",TEXT(INDEX(Данные[Год издания],$AM160,1),0)) ->  | W160: =IF(OR(ISERR( INDEX(Данные[Отдел],$AM160,1)), ISBLANK( INDEX(Данные[Отдел],$AM160,1))), "",TEXT(INDEX(Данные[Отдел],$AM160,1),0)) ->  | Y160: =IF(OR(ISERR( INDEX(Данные[Цена],$AM160,1)), ISBLANK( INDEX(Данные[Цена],$AM160,1))), "",INDEX(Данные[Цена],$AM160,1)) ->  | AD160: =IFERROR(INDEX(Данные[Коэффициент переоценки],$AM160,1),"") ->  | AF160: =IF(OR(ISERR( INDEX(Данные[Кол-во экз.],$AM160,1)), ISBLANK( INDEX(Данные[Кол-во экз.],$AM160,1))), "",INDEX(Данные[Кол-во экз.],$AM160,1)) ->  | AH160: =IF(OR(ISERR(INDEX(Данные[Автор, заглавие],$AM160,1)),ISBLANK(INDEX(Данные[Автор, заглавие],$AM160,1))),"",INDEX(Данные[Стои-мость],$AM160,1)) ->  | AM160: 108
A161: =IFERROR(INDEX(Данные[№пп],AM161,1),"") ->  | C161: =IF(OR(ISERR( INDEX(Данные[Инв. №],$AM161,1)), ISBLANK( INDEX(Данные[Инв. №],$AM161,1))), "",INDEX(Данные[Инв. №],$AM161,1)) ->  | F161: =IF(OR(ISERR(INDEX(Данные[Штрих код первые 6 цифр],$AM161,1)),ISBLANK(INDEX(Данные[Штрих код первые 6 цифр],$AM161,1))),"",LEFT(INDEX(Данные[Штрих код первые 6 цифр],$AM161,1),6)) ->  | I161: =IF(OR(ISERR( INDEX(Данные[Автор, заглавие],$AM161,1)), ISBLANK( INDEX(Данные[Автор, заглавие],$AM161,1))), "",LEFT(INDEX(Данные[Автор, заглавие],$AM161,1),28)) ->  | U161: =IF(OR(ISERR( INDEX(Данные[Год издания],$AM161,1)), ISBLANK( INDEX(Данные[Год издания],$AM161,1))), "",TEXT(INDEX(Данные[Год издания],$AM161,1),0)) ->  | W161: =IF(OR(ISERR( INDEX(Данные[Отдел],$AM161,1)), ISBLANK( INDEX(Данные[Отдел],$AM161,1))), "",TEXT(INDEX(Данные[Отдел],$AM161,1),0)) ->  | Y161: =IF(OR(ISERR( INDEX(Данные[Цена],$AM161,1)), ISBLANK( INDEX(Данные[Цена],$AM161,1))), "",INDEX(Данные[Цена],$AM161,1)) ->  | AD161: =IFERROR(INDEX(Данные[Коэффициент переоценки],$AM161,1),"") ->  | AF161: =IF(OR(ISERR( INDEX(Данные[Кол-во экз.],$AM161,1)), ISBLANK( INDEX(Данные[Кол-во экз.],$AM161,1))), "",INDEX(Данные[Кол-во экз.],$AM161,1)) ->  | AH161: =IF(OR(ISERR(INDEX(Данные[Автор, заглавие],$AM161,1)),ISBLANK(INDEX(Данные[Автор, заглавие],$AM161,1))),"",INDEX(Данные[Стои-мость],$AM161,1)) ->  | AM161: 109
A162: =IFERROR(INDEX(Данные[№пп],AM162,1),"") ->  | C162: =IF(OR(ISERR( INDEX(Данные[Инв. №],$AM162,1)), ISBLANK( INDEX(Данные[Инв. №],$AM162,1))), "",INDEX(Данные[Инв. №],$AM162,1)) ->  | F162: =IF(OR(ISERR(INDEX(Данные[Штрих код первые 6 цифр],$AM162,1)),ISBLANK(INDEX(Данные[Штрих код первые 6 цифр],$AM162,1))),"",LEFT(INDEX(Данные[Штрих код первые 6 цифр],$AM162,1),6)) ->  | I162: =IF(OR(ISERR( INDEX(Данные[Автор, заглавие],$AM162,1)), ISBLANK( INDEX(Данные[Автор, заглавие],$AM162,1))), "",LEFT(INDEX(Данные[Автор, заглавие],$AM162,1),28)) ->  | U162: =IF(OR(ISERR( INDEX(Данные[Год издания],$AM162,1)), ISBLANK( INDEX(Данные[Год издания],$AM162,1))), "",TEXT(INDEX(Данные[Год издания],$AM162,1),0)) ->  | W162: =IF(OR(ISERR( INDEX(Данные[Отдел],$AM162,1)), ISBLANK( INDEX(Данные[Отдел],$AM162,1))), "",TEXT(INDEX(Данные[Отдел],$AM162,1),0)) ->  | Y162: =IF(OR(ISERR( INDEX(Данные[Цена],$AM162,1)), ISBLANK( INDEX(Данные[Цена],$AM162,1))), "",INDEX(Данные[Цена],$AM162,1)) ->  | AD162: =IFERROR(INDEX(Данные[Коэффициент переоценки],$AM162,1),"") ->  | AF162: =IF(OR(ISERR( INDEX(Данные[Кол-во экз.],$AM162,1)), ISBLANK( INDEX(Данные[Кол-во экз.],$AM162,1))), "",INDEX(Данные[Кол-во экз.],$AM162,1)) ->  | AH162: =IF(OR(ISERR(INDEX(Данные[Автор, заглавие],$AM162,1)),ISBLANK(INDEX(Данные[Автор, заглавие],$AM162,1))),"",INDEX(Данные[Стои-мость],$AM162,1)) ->  | AM162: 110
A163: =IFERROR(INDEX(Данные[№пп],AM163,1),"") ->  | C163: =IF(OR(ISERR( INDEX(Данные[Инв. №],$AM163,1)), ISBLANK( INDEX(Данные[Инв. №],$AM163,1))), "",INDEX(Данные[Инв. №],$AM163,1)) ->  | F163: =IF(OR(ISERR(INDEX(Данные[Штрих код первые 6 цифр],$AM163,1)),ISBLANK(INDEX(Данные[Штрих код первые 6 цифр],$AM163,1))),"",LEFT(INDEX(Данные[Штрих код первые 6 цифр],$AM163,1),6)) ->  | I163: =IF(OR(ISERR( INDEX(Данные[Автор, заглавие],$AM163,1)), ISBLANK( INDEX(Данные[Автор, заглавие],$AM163,1))), "",LEFT(INDEX(Данные[Автор, заглавие],$AM163,1),28)) ->  | U163: =IF(OR(ISERR( INDEX(Данные[Год издания],$AM163,1)), ISBLANK( INDEX(Данные[Год издания],$AM163,1))), "",TEXT(INDEX(Данные[Год издания],$AM163,1),0)) ->  | W163: =IF(OR(ISERR( INDEX(Данные[Отдел],$AM163,1)), ISBLANK( INDEX(Данные[Отдел],$AM163,1))), "",TEXT(INDEX(Данные[Отдел],$AM163,1),0)) ->  | Y163: =IF(OR(ISERR( INDEX(Данные[Цена],$AM163,1)), ISBLANK( INDEX(Данные[Цена],$AM163,1))), "",INDEX(Данные[Цена],$AM163,1)) ->  | AD163: =IFERROR(INDEX(Данные[Коэффициент переоценки],$AM163,1),"") ->  | AF163: =IF(OR(ISERR( INDEX(Данные[Кол-во экз.],$AM163,1)), ISBLANK( INDEX(Данные[Кол-во экз.],$AM163,1))), "",INDEX(Данные[Кол-во экз.],$AM163,1)) ->  | AH163: =IF(OR(ISERR(INDEX(Данные[Автор, заглавие],$AM163,1)),ISBLANK(INDEX(Данные[Автор, заглавие],$AM163,1))),"",INDEX(Данные[Стои-мость],$AM163,1)) ->  | AM163: 111
A164: =IFERROR(INDEX(Данные[№пп],AM164,1),"") ->  | C164: =IF(OR(ISERR( INDEX(Данные[Инв. №],$AM164,1)), ISBLANK( INDEX(Данные[Инв. №],$AM164,1))), "",INDEX(Данные[Инв. №],$AM164,1)) ->  | F164: =IF(OR(ISERR(INDEX(Данные[Штрих код первые 6 цифр],$AM164,1)),ISBLANK(INDEX(Данные[Штрих код первые 6 цифр],$AM164,1))),"",LEFT(INDEX(Данные[Штрих код первые 6 цифр],$AM164,1),6)) ->  | I164: =IF(OR(ISERR( INDEX(Данные[Автор, заглавие],$AM164,1)), ISBLANK( INDEX(Данные[Автор, заглавие],$AM164,1))), "",LEFT(INDEX(Данные[Автор, заглавие],$AM164,1),28)) ->  | U164: =IF(OR(ISERR( INDEX(Данные[Год издания],$AM164,1)), ISBLANK( INDEX(Данные[Год издания],$AM164,1))), "",TEXT(INDEX(Данные[Год издания],$AM164,1),0)) ->  | W164: =IF(OR(ISERR( INDEX(Данные[Отдел],$AM164,1)), ISBLANK( INDEX(Данные[Отдел],$AM164,1))), "",TEXT(INDEX(Данные[Отдел],$AM164,1),0)) ->  | Y164: =IF(OR(ISERR( INDEX(Данные[Цена],$AM164,1)), ISBLANK( INDEX(Данные[Цена],$AM164,1))), "",INDEX(Данные[Цена],$AM164,1)) ->  | AD164: =IFERROR(INDEX(Данные[Коэффициент переоценки],$AM164,1),"") ->  | AF164: =IF(OR(ISERR( INDEX(Данные[Кол-во экз.],$AM164,1)), ISBLANK( INDEX(Данные[Кол-во экз.],$AM164,1))), "",INDEX(Данные[Кол-во экз.],$AM164,1)) ->  | AH164: =IF(OR(ISERR(INDEX(Данные[Автор, заглавие],$AM164,1)),ISBLANK(INDEX(Данные[Автор, заглавие],$AM164,1))),"",INDEX(Данные[Стои-мость],$AM164,1)) ->  | AM164: 112
A165: =IFERROR(INDEX(Данные[№пп],AM165,1),"") ->  | C165: =IF(OR(ISERR( INDEX(Данные[Инв. №],$AM165,1)), ISBLANK( INDEX(Данные[Инв. №],$AM165,1))), "",INDEX(Данные[Инв. №],$AM165,1)) ->  | F165: =IF(OR(ISERR(INDEX(Данные[Штрих код первые 6 цифр],$AM165,1)),ISBLANK(INDEX(Данные[Штрих код первые 6 цифр],$AM165,1))),"",LEFT(INDEX(Данные[Штрих код первые 6 цифр],$AM165,1),6)) ->  | I165: =IF(OR(ISERR( INDEX(Данные[Автор, заглавие],$AM165,1)), ISBLANK( INDEX(Данные[Автор, заглавие],$AM165,1))), "",LEFT(INDEX(Данные[Автор, заглавие],$AM165,1),28)) ->  | U165: =IF(OR(ISERR( INDEX(Данные[Год издания],$AM165,1)), ISBLANK( INDEX(Данные[Год издания],$AM165,1))), "",TEXT(INDEX(Данные[Год издания],$AM165,1),0)) ->  | W165: =IF(OR(ISERR( INDEX(Данные[Отдел],$AM165,1)), ISBLANK( INDEX(Данные[Отдел],$AM165,1))), "",TEXT(INDEX(Данные[Отдел],$AM165,1),0)) ->  | Y165: =IF(OR(ISERR( INDEX(Данные[Цена],$AM165,1)), ISBLANK( INDEX(Данные[Цена],$AM165,1))), "",INDEX(Данные[Цена],$AM165,1)) ->  | AD165: =IFERROR(INDEX(Данные[Коэффициент переоценки],$AM165,1),"") ->  | AF165: =IF(OR(ISERR( INDEX(Данные[Кол-во экз.],$AM165,1)), ISBLANK( INDEX(Данные[Кол-во экз.],$AM165,1))), "",INDEX(Данные[Кол-во экз.],$AM165,1)) ->  | AH165: =IF(OR(ISERR(INDEX(Данные[Автор, заглавие],$AM165,1)),ISBLANK(INDEX(Данные[Автор, заглавие],$AM165,1))),"",INDEX(Данные[Стои-мость],$AM165,1)) ->  | AM165: 113
A166: =IFERROR(INDEX(Данные[№пп],AM166,1),"") ->  | C166: =IF(OR(ISERR( INDEX(Данные[Инв. №],$AM166,1)), ISBLANK( INDEX(Данные[Инв. №],$AM166,1))), "",INDEX(Данные[Инв. №],$AM166,1)) ->  | F166: =IF(OR(ISERR(INDEX(Данные[Штрих код первые 6 цифр],$AM166,1)),ISBLANK(INDEX(Данные[Штрих код первые 6 цифр],$AM166,1))),"",LEFT(INDEX(Данные[Штрих код первые 6 цифр],$AM166,1),6)) ->  | I166: =IF(OR(ISERR( INDEX(Данные[Автор, заглавие],$AM166,1)), ISBLANK( INDEX(Данные[Автор, заглавие],$AM166,1))), "",LEFT(INDEX(Данные[Автор, заглавие],$AM166,1),28)) ->  | U166: =IF(OR(ISERR( INDEX(Данные[Год издания],$AM166,1)), ISBLANK( INDEX(Данные[Год издания],$AM166,1))), "",TEXT(INDEX(Данные[Год издания],$AM166,1),0)) ->  | W166: =IF(OR(ISERR( INDEX(Данные[Отдел],$AM166,1)), ISBLANK( INDEX(Данные[Отдел],$AM166,1))), "",TEXT(INDEX(Данные[Отдел],$AM166,1),0)) ->  | Y166: =IF(OR(ISERR( INDEX(Данные[Цена],$AM166,1)), ISBLANK( INDEX(Данные[Цена],$AM166,1))), "",INDEX(Данные[Цена],$AM166,1)) ->  | AD166: =IFERROR(INDEX(Данные[Коэффициент переоценки],$AM166,1),"") ->  | AF166: =IF(OR(ISERR( INDEX(Данные[Кол-во экз.],$AM166,1)), ISBLANK( INDEX(Данные[Кол-во экз.],$AM166,1))), "",INDEX(Данные[Кол-во экз.],$AM166,1)) ->  | AH166: =IF(OR(ISERR(INDEX(Данные[Автор, заглавие],$AM166,1)),ISBLANK(INDEX(Данные[Автор, заглавие],$AM166,1))),"",INDEX(Данные[Стои-мость],$AM166,1)) ->  | AM166: 114
A167: =IFERROR(INDEX(Данные[№пп],AM167,1),"") ->  | C167: =IF(OR(ISERR( INDEX(Данные[Инв. №],$AM167,1)), ISBLANK( INDEX(Данные[Инв. №],$AM167,1))), "",INDEX(Данные[Инв. №],$AM167,1)) ->  | F167: =IF(OR(ISERR(INDEX(Данные[Штрих код первые 6 цифр],$AM167,1)),ISBLANK(INDEX(Данные[Штрих код первые 6 цифр],$AM167,1))),"",LEFT(INDEX(Данные[Штрих код первые 6 цифр],$AM167,1),6)) ->  | I167: =IF(OR(ISERR( INDEX(Данные[Автор, заглавие],$AM167,1)), ISBLANK( INDEX(Данные[Автор, заглавие],$AM167,1))), "",LEFT(INDEX(Данные[Автор, заглавие],$AM167,1),28)) ->  | U167: =IF(OR(ISERR( INDEX(Данные[Год издания],$AM167,1)), ISBLANK( INDEX(Данные[Год издания],$AM167,1))), "",TEXT(INDEX(Данные[Год издания],$AM167,1),0)) ->  | W167: =IF(OR(ISERR( INDEX(Данные[Отдел],$AM167,1)), ISBLANK( INDEX(Данные[Отдел],$AM167,1))), "",TEXT(INDEX(Данные[Отдел],$AM167,1),0)) ->  | Y167: =IF(OR(ISERR( INDEX(Данные[Цена],$AM167,1)), ISBLANK( INDEX(Данные[Цена],$AM167,1))), "",INDEX(Данные[Цена],$AM167,1)) ->  | AD167: =IFERROR(INDEX(Данные[Коэффициент переоценки],$AM167,1),"") ->  | AF167: =IF(OR(ISERR( INDEX(Данные[Кол-во экз.],$AM167,1)), ISBLANK( INDEX(Данные[Кол-во экз.],$AM167,1))), "",INDEX(Данные[Кол-во экз.],$AM167,1)) ->  | AH167: =IF(OR(ISERR(INDEX(Данные[Автор, заглавие],$AM167,1)),ISBLANK(INDEX(Данные[Автор, заглавие],$AM167,1))),"",INDEX(Данные[Стои-мость],$AM167,1)) ->  | AM167: 115
A168: =IFERROR(INDEX(Данные[№пп],AM168,1),"") ->  | C168: =IF(OR(ISERR( INDEX(Данные[Инв. №],$AM168,1)), ISBLANK( INDEX(Данные[Инв. №],$AM168,1))), "",INDEX(Данные[Инв. №],$AM168,1)) ->  | F168: =IF(OR(ISERR(INDEX(Данные[Штрих код первые 6 цифр],$AM168,1)),ISBLANK(INDEX(Данные[Штрих код первые 6 цифр],$AM168,1))),"",LEFT(INDEX(Данные[Штрих код первые 6 цифр],$AM168,1),6)) ->  | I168: =IF(OR(ISERR( INDEX(Данные[Автор, заглавие],$AM168,1)), ISBLANK( INDEX(Данные[Автор, заглавие],$AM168,1))), "",LEFT(INDEX(Данные[Автор, заглавие],$AM168,1),28)) ->  | U168: =IF(OR(ISERR( INDEX(Данные[Год издания],$AM168,1)), ISBLANK( INDEX(Данные[Год издания],$AM168,1))), "",TEXT(INDEX(Данные[Год издания],$AM168,1),0)) ->  | W168: =IF(OR(ISERR( INDEX(Данные[Отдел],$AM168,1)), ISBLANK( INDEX(Данные[Отдел],$AM168,1))), "",TEXT(INDEX(Данные[Отдел],$AM168,1),0)) ->  | Y168: =IF(OR(ISERR( INDEX(Данные[Цена],$AM168,1)), ISBLANK( INDEX(Данные[Цена],$AM168,1))), "",INDEX(Данные[Цена],$AM168,1)) ->  | AD168: =IFERROR(INDEX(Данные[Коэффициент переоценки],$AM168,1),"") ->  | AF168: =IF(OR(ISERR( INDEX(Данные[Кол-во экз.],$AM168,1)), ISBLANK( INDEX(Данные[Кол-во экз.],$AM168,1))), "",INDEX(Данные[Кол-во экз.],$AM168,1)) ->  | AH168: =IF(OR(ISERR(INDEX(Данные[Автор, заглавие],$AM168,1)),ISBLANK(INDEX(Данные[Автор, заглавие],$AM168,1))),"",INDEX(Данные[Стои-мость],$AM168,1)) ->  | AM168: 116
A169: =IFERROR(INDEX(Данные[№пп],AM169,1),"") ->  | C169: =IF(OR(ISERR( INDEX(Данные[Инв. №],$AM169,1)), ISBLANK( INDEX(Данные[Инв. №],$AM169,1))), "",INDEX(Данные[Инв. №],$AM169,1)) ->  | F169: =IF(OR(ISERR(INDEX(Данные[Штрих код первые 6 цифр],$AM169,1)),ISBLANK(INDEX(Данные[Штрих код первые 6 цифр],$AM169,1))),"",LEFT(INDEX(Данные[Штрих код первые 6 цифр],$AM169,1),6)) ->  | I169: =IF(OR(ISERR( INDEX(Данные[Автор, заглавие],$AM169,1)), ISBLANK( INDEX(Данные[Автор, заглавие],$AM169,1))), "",LEFT(INDEX(Данные[Автор, заглавие],$AM169,1),28)) ->  | U169: =IF(OR(ISERR( INDEX(Данные[Год издания],$AM169,1)), ISBLANK( INDEX(Данные[Год издания],$AM169,1))), "",TEXT(INDEX(Данные[Год издания],$AM169,1),0)) ->  | W169: =IF(OR(ISERR( INDEX(Данные[Отдел],$AM169,1)), ISBLANK( INDEX(Данные[Отдел],$AM169,1))), "",TEXT(INDEX(Данные[Отдел],$AM169,1),0)) ->  | Y169: =IF(OR(ISERR( INDEX(Данные[Цена],$AM169,1)), ISBLANK( INDEX(Данные[Цена],$AM169,1))), "",INDEX(Данные[Цена],$AM169,1)) ->  | AD169: =IFERROR(INDEX(Данные[Коэффициент переоценки],$AM169,1),"") ->  | AF169: =IF(OR(ISERR( INDEX(Данные[Кол-во экз.],$AM169,1)), ISBLANK( INDEX(Данные[Кол-во экз.],$AM169,1))), "",INDEX(Данные[Кол-во экз.],$AM169,1)) ->  | AH169: =IF(OR(ISERR(INDEX(Данные[Автор, заглавие],$AM169,1)),ISBLANK(INDEX(Данные[Автор, заглавие],$AM169,1))),"",INDEX(Данные[Стои-мость],$AM169,1)) ->  | AM169: 117
A170: =IFERROR(INDEX(Данные[№пп],AM170,1),"") ->  | C170: =IF(OR(ISERR( INDEX(Данные[Инв. №],$AM170,1)), ISBLANK( INDEX(Данные[Инв. №],$AM170,1))), "",INDEX(Данные[Инв. №],$AM170,1)) ->  | F170: =IF(OR(ISERR(INDEX(Данные[Штрих код первые 6 цифр],$AM170,1)),ISBLANK(INDEX(Данные[Штрих код первые 6 цифр],$AM170,1))),"",LEFT(INDEX(Данные[Штрих код первые 6 цифр],$AM170,1),6)) ->  | I170: =IF(OR(ISERR( INDEX(Данные[Автор, заглавие],$AM170,1)), ISBLANK( INDEX(Данные[Автор, заглавие],$AM170,1))), "",LEFT(INDEX(Данные[Автор, заглавие],$AM170,1),28)) ->  | U170: =IF(OR(ISERR( INDEX(Данные[Год издания],$AM170,1)), ISBLANK( INDEX(Данные[Год издания],$AM170,1))), "",TEXT(INDEX(Данные[Год издания],$AM170,1),0)) ->  | W170: =IF(OR(ISERR( INDEX(Данные[Отдел],$AM170,1)), ISBLANK( INDEX(Данные[Отдел],$AM170,1))), "",TEXT(INDEX(Данные[Отдел],$AM170,1),0)) ->  | Y170: =IF(OR(ISERR( INDEX(Данные[Цена],$AM170,1)), ISBLANK( INDEX(Данные[Цена],$AM170,1))), "",INDEX(Данные[Цена],$AM170,1)) ->  | AD170: =IFERROR(INDEX(Данные[Коэффициент переоценки],$AM170,1),"") ->  | AF170: =IF(OR(ISERR( INDEX(Данные[Кол-во экз.],$AM170,1)), ISBLANK( INDEX(Данные[Кол-во экз.],$AM170,1))), "",INDEX(Данные[Кол-во экз.],$AM170,1)) ->  | AH170: =IF(OR(ISERR(INDEX(Данные[Автор, заглавие],$AM170,1)),ISBLANK(INDEX(Данные[Автор, заглавие],$AM170,1))),"",INDEX(Данные[Стои-мость],$AM170,1)) ->  | AM170: 118
A171: =IFERROR(INDEX(Данные[№пп],AM171,1),"") ->  | C171: =IF(OR(ISERR( INDEX(Данные[Инв. №],$AM171,1)), ISBLANK( INDEX(Данные[Инв. №],$AM171,1))), "",INDEX(Данные[Инв. №],$AM171,1)) ->  | F171: =IF(OR(ISERR(INDEX(Данные[Штрих код первые 6 цифр],$AM171,1)),ISBLANK(INDEX(Данные[Штрих код первые 6 цифр],$AM171,1))),"",LEFT(INDEX(Данные[Штрих код первые 6 цифр],$AM171,1),6)) ->  | I171: =IF(OR(ISERR( INDEX(Данные[Автор, заглавие],$AM171,1)), ISBLANK( INDEX(Данные[Автор, заглавие],$AM171,1))), "",LEFT(INDEX(Данные[Автор, заглавие],$AM171,1),28)) ->  | U171: =IF(OR(ISERR( INDEX(Данные[Год издания],$AM171,1)), ISBLANK( INDEX(Данные[Год издания],$AM171,1))), "",TEXT(INDEX(Данные[Год издания],$AM171,1),0)) ->  | W171: =IF(OR(ISERR( INDEX(Данные[Отдел],$AM171,1)), ISBLANK( INDEX(Данные[Отдел],$AM171,1))), "",TEXT(INDEX(Данные[Отдел],$AM171,1),0)) ->  | Y171: =IF(OR(ISERR( INDEX(Данные[Цена],$AM171,1)), ISBLANK( INDEX(Данные[Цена],$AM171,1))), "",INDEX(Данные[Цена],$AM171,1)) ->  | AD171: =IFERROR(INDEX(Данные[Коэффициент переоценки],$AM171,1),"") ->  | AF171: =IF(OR(ISERR( INDEX(Данные[Кол-во экз.],$AM171,1)), ISBLANK( INDEX(Данные[Кол-во экз.],$AM171,1))), "",INDEX(Данные[Кол-во экз.],$AM171,1)) ->  | AH171: =IF(OR(ISERR(INDEX(Данные[Автор, заглавие],$AM171,1)),ISBLANK(INDEX(Данные[Автор, заглавие],$AM171,1))),"",INDEX(Данные[Стои-мость],$AM171,1)) ->  | AM171: 119
A172: =IFERROR(INDEX(Данные[№пп],AM172,1),"") ->  | C172: =IF(OR(ISERR( INDEX(Данные[Инв. №],$AM172,1)), ISBLANK( INDEX(Данные[Инв. №],$AM172,1))), "",INDEX(Данные[Инв. №],$AM172,1)) ->  | F172: =IF(OR(ISERR(INDEX(Данные[Штрих код первые 6 цифр],$AM172,1)),ISBLANK(INDEX(Данные[Штрих код первые 6 цифр],$AM172,1))),"",LEFT(INDEX(Данные[Штрих код первые 6 цифр],$AM172,1),6)) ->  | I172: =IF(OR(ISERR( INDEX(Данные[Автор, заглавие],$AM172,1)), ISBLANK( INDEX(Данные[Автор, заглавие],$AM172,1))), "",LEFT(INDEX(Данные[Автор, заглавие],$AM172,1),28)) ->  | U172: =IF(OR(ISERR( INDEX(Данные[Год издания],$AM172,1)), ISBLANK( INDEX(Данные[Год издания],$AM172,1))), "",TEXT(INDEX(Данные[Год издания],$AM172,1),0)) ->  | W172: =IF(OR(ISERR( INDEX(Данные[Отдел],$AM172,1)), ISBLANK( INDEX(Данные[Отдел],$AM172,1))), "",TEXT(INDEX(Данные[Отдел],$AM172,1),0)) ->  | Y172: =IF(OR(ISERR( INDEX(Данные[Цена],$AM172,1)), ISBLANK( INDEX(Данные[Цена],$AM172,1))), "",INDEX(Данные[Цена],$AM172,1)) ->  | AD172: =IFERROR(INDEX(Данные[Коэффициент переоценки],$AM172,1),"") ->  | AF172: =IF(OR(ISERR( INDEX(Данные[Кол-во экз.],$AM172,1)), ISBLANK( INDEX(Данные[Кол-во экз.],$AM172,1))), "",INDEX(Данные[Кол-во экз.],$AM172,1)) ->  | AH172: =IF(OR(ISERR(INDEX(Данные[Автор, заглавие],$AM172,1)),ISBLANK(INDEX(Данные[Автор, заглавие],$AM172,1))),"",INDEX(Данные[Стои-мость],$AM172,1)) ->  | AM172: 120
A173: =IFERROR(INDEX(Данные[№пп],AM173,1),"") ->  | C173: =IF(OR(ISERR( INDEX(Данные[Инв. №],$AM173,1)), ISBLANK( INDEX(Данные[Инв. №],$AM173,1))), "",INDEX(Данные[Инв. №],$AM173,1)) ->  | F173: =IF(OR(ISERR(INDEX(Данные[Штрих код первые 6 цифр],$AM173,1)),ISBLANK(INDEX(Данные[Штрих код первые 6 цифр],$AM173,1))),"",LEFT(INDEX(Данные[Штрих код первые 6 цифр],$AM173,1),6)) ->  | I173: =IF(OR(ISERR( INDEX(Данные[Автор, заглавие],$AM173,1)), ISBLANK( INDEX(Данные[Автор, заглавие],$AM173,1))), "",LEFT(INDEX(Данные[Автор, заглавие],$AM173,1),28)) ->  | U173: =IF(OR(ISERR( INDEX(Данные[Год издания],$AM173,1)), ISBLANK( INDEX(Данные[Год издания],$AM173,1))), "",TEXT(INDEX(Данные[Год издания],$AM173,1),0)) ->  | W173: =IF(OR(ISERR( INDEX(Данные[Отдел],$AM173,1)), ISBLANK( INDEX(Данные[Отдел],$AM173,1))), "",TEXT(INDEX(Данные[Отдел],$AM173,1),0)) ->  | Y173: =IF(OR(ISERR( INDEX(Данные[Цена],$AM173,1)), ISBLANK( INDEX(Данные[Цена],$AM173,1))), "",INDEX(Данные[Цена],$AM173,1)) ->  | AD173: =IFERROR(INDEX(Данные[Коэффициент переоценки],$AM173,1),"") ->  | AF173: =IF(OR(ISERR( INDEX(Данные[Кол-во экз.],$AM173,1)), ISBLANK( INDEX(Данные[Кол-во экз.],$AM173,1))), "",INDEX(Данные[Кол-во экз.],$AM173,1)) ->  | AH173: =IF(OR(ISERR(INDEX(Данные[Автор, заглавие],$AM173,1)),ISBLANK(INDEX(Данные[Автор, заглавие],$AM173,1))),"",INDEX(Данные[Стои-мость],$AM173,1)) ->  | AM173: 121
A174: =IFERROR(INDEX(Данные[№пп],AM174,1),"") ->  | C174: =IF(OR(ISERR( INDEX(Данные[Инв. №],$AM174,1)), ISBLANK( INDEX(Данные[Инв. №],$AM174,1))), "",INDEX(Данные[Инв. №],$AM174,1)) ->  | F174: =IF(OR(ISERR(INDEX(Данные[Штрих код первые 6 цифр],$AM174,1)),ISBLANK(INDEX(Данные[Штрих код первые 6 цифр],$AM174,1))),"",LEFT(INDEX(Данные[Штрих код первые 6 цифр],$AM174,1),6)) ->  | I174: =IF(OR(ISERR( INDEX(Данные[Автор, заглавие],$AM174,1)), ISBLANK( INDEX(Данные[Автор, заглавие],$AM174,1))), "",LEFT(INDEX(Данные[Автор, заглавие],$AM174,1),28)) ->  | U174: =IF(OR(ISERR( INDEX(Данные[Год издания],$AM174,1)), ISBLANK( INDEX(Данные[Год издания],$AM174,1))), "",TEXT(INDEX(Данные[Год издания],$AM174,1),0)) ->  | W174: =IF(OR(ISERR( INDEX(Данные[Отдел],$AM174,1)), ISBLANK( INDEX(Данные[Отдел],$AM174,1))), "",TEXT(INDEX(Данные[Отдел],$AM174,1),0)) ->  | Y174: =IF(OR(ISERR( INDEX(Данные[Цена],$AM174,1)), ISBLANK( INDEX(Данные[Цена],$AM174,1))), "",INDEX(Данные[Цена],$AM174,1)) ->  | AD174: =IFERROR(INDEX(Данные[Коэффициент переоценки],$AM174,1),"") ->  | AF174: =IF(OR(ISERR( INDEX(Данные[Кол-во экз.],$AM174,1)), ISBLANK( INDEX(Данные[Кол-во экз.],$AM174,1))), "",INDEX(Данные[Кол-во экз.],$AM174,1)) ->  | AH174: =IF(OR(ISERR(INDEX(Данные[Автор, заглавие],$AM174,1)),ISBLANK(INDEX(Данные[Автор, заглавие],$AM174,1))),"",INDEX(Данные[Стои-мость],$AM174,1)) ->  | AM174: 122
A175: =IFERROR(INDEX(Данные[№пп],AM175,1),"") ->  | C175: =IF(OR(ISERR( INDEX(Данные[Инв. №],$AM175,1)), ISBLANK( INDEX(Данные[Инв. №],$AM175,1))), "",INDEX(Данные[Инв. №],$AM175,1)) ->  | F175: =IF(OR(ISERR(INDEX(Данные[Штрих код первые 6 цифр],$AM175,1)),ISBLANK(INDEX(Данные[Штрих код первые 6 цифр],$AM175,1))),"",LEFT(INDEX(Данные[Штрих код первые 6 цифр],$AM175,1),6)) ->  | I175: =IF(OR(ISERR( INDEX(Данные[Автор, заглавие],$AM175,1)), ISBLANK( INDEX(Данные[Автор, заглавие],$AM175,1))), "",LEFT(INDEX(Данные[Автор, заглавие],$AM175,1),28)) ->  | U175: =IF(OR(ISERR( INDEX(Данные[Год издания],$AM175,1)), ISBLANK( INDEX(Данные[Год издания],$AM175,1))), "",TEXT(INDEX(Данные[Год издания],$AM175,1),0)) ->  | W175: =IF(OR(ISERR( INDEX(Данные[Отдел],$AM175,1)), ISBLANK( INDEX(Данные[Отдел],$AM175,1))), "",TEXT(INDEX(Данные[Отдел],$AM175,1),0)) ->  | Y175: =IF(OR(ISERR( INDEX(Данные[Цена],$AM175,1)), ISBLANK( INDEX(Данные[Цена],$AM175,1))), "",INDEX(Данные[Цена],$AM175,1)) ->  | AD175: =IFERROR(INDEX(Данные[Коэффициент переоценки],$AM175,1),"") ->  | AF175: =IF(OR(ISERR( INDEX(Данные[Кол-во экз.],$AM175,1)), ISBLANK( INDEX(Данные[Кол-во экз.],$AM175,1))), "",INDEX(Данные[Кол-во экз.],$AM175,1)) ->  | AH175: =IF(OR(ISERR(INDEX(Данные[Автор, заглавие],$AM175,1)),ISBLANK(INDEX(Данные[Автор, заглавие],$AM175,1))),"",INDEX(Данные[Стои-мость],$AM175,1)) ->  | AM175: =AM174+1 -> 123
A176: =IFERROR(INDEX(Данные[№пп],AM176,1),"") ->  | C176: =IF(OR(ISERR( INDEX(Данные[Инв. №],$AM176,1)), ISBLANK( INDEX(Данные[Инв. №],$AM176,1))), "",INDEX(Данные[Инв. №],$AM176,1)) ->  | F176: =IF(OR(ISERR(INDEX(Данные[Штрих код первые 6 цифр],$AM176,1)),ISBLANK(INDEX(Данные[Штрих код первые 6 цифр],$AM176,1))),"",LEFT(INDEX(Данные[Штрих код первые 6 цифр],$AM176,1),6)) ->  | I176: =IF(OR(ISERR( INDEX(Данные[Автор, заглавие],$AM176,1)), ISBLANK( INDEX(Данные[Автор, заглавие],$AM176,1))), "",LEFT(INDEX(Данные[Автор, заглавие],$AM176,1),28)) ->  | U176: =IF(OR(ISERR( INDEX(Данные[Год издания],$AM176,1)), ISBLANK( INDEX(Данные[Год издания],$AM176,1))), "",TEXT(INDEX(Данные[Год издания],$AM176,1),0)) ->  | W176: =IF(OR(ISERR( INDEX(Данные[Отдел],$AM176,1)), ISBLANK( INDEX(Данные[Отдел],$AM176,1))), "",TEXT(INDEX(Данные[Отдел],$AM176,1),0)) ->  | Y176: =IF(OR(ISERR( INDEX(Данные[Цена],$AM176,1)), ISBLANK( INDEX(Данные[Цена],$AM176,1))), "",INDEX(Данные[Цена],$AM176,1)) ->  | AD176: =IFERROR(INDEX(Данные[Коэффициент переоценки],$AM176,1),"") ->  | AF176: =IF(OR(ISERR( INDEX(Данные[Кол-во экз.],$AM176,1)), ISBLANK( INDEX(Данные[Кол-во экз.],$AM176,1))), "",INDEX(Данные[Кол-во экз.],$AM176,1)) ->  | AH176: =IF(OR(ISERR(INDEX(Данные[Автор, заглавие],$AM176,1)),ISBLANK(INDEX(Данные[Автор, заглавие],$AM176,1))),"",INDEX(Данные[Стои-мость],$AM176,1)) ->  | AM176: 124
A177: =IFERROR(INDEX(Данные[№пп],AM177,1),"") ->  | C177: =IF(OR(ISERR( INDEX(Данные[Инв. №],$AM177,1)), ISBLANK( INDEX(Данные[Инв. №],$AM177,1))), "",INDEX(Данные[Инв. №],$AM177,1)) ->  | F177: =IF(OR(ISERR(INDEX(Данные[Штрих код первые 6 цифр],$AM177,1)),ISBLANK(INDEX(Данные[Штрих код первые 6 цифр],$AM177,1))),"",LEFT(INDEX(Данные[Штрих код первые 6 цифр],$AM177,1),6)) ->  | I177: =IF(OR(ISERR( INDEX(Данные[Автор, заглавие],$AM177,1)), ISBLANK( INDEX(Данные[Автор, заглавие],$AM177,1))), "",LEFT(INDEX(Данные[Автор, заглавие],$AM177,1),28)) ->  | U177: =IF(OR(ISERR( INDEX(Данные[Год издания],$AM177,1)), ISBLANK( INDEX(Данные[Год издания],$AM177,1))), "",TEXT(INDEX(Данные[Год издания],$AM177,1),0)) ->  | W177: =IF(OR(ISERR( INDEX(Данные[Отдел],$AM177,1)), ISBLANK( INDEX(Данные[Отдел],$AM177,1))), "",TEXT(INDEX(Данные[Отдел],$AM177,1),0)) ->  | Y177: =IF(OR(ISERR( INDEX(Данные[Цена],$AM177,1)), ISBLANK( INDEX(Данные[Цена],$AM177,1))), "",INDEX(Данные[Цена],$AM177,1)) ->  | AD177: =IFERROR(INDEX(Данные[Коэффициент переоценки],$AM177,1),"") ->  | AF177: =IF(OR(ISERR( INDEX(Данные[Кол-во экз.],$AM177,1)), ISBLANK( INDEX(Данные[Кол-во экз.],$AM177,1))), "",INDEX(Данные[Кол-во экз.],$AM177,1)) ->  | AH177: =IF(OR(ISERR(INDEX(Данные[Автор, заглавие],$AM177,1)),ISBLANK(INDEX(Данные[Автор, заглавие],$AM177,1))),"",INDEX(Данные[Стои-мость],$AM177,1)) ->  | AM177: 125
A178: =IFERROR(INDEX(Данные[№пп],AM178,1),"") ->  | C178: =IF(OR(ISERR( INDEX(Данные[Инв. №],$AM178,1)), ISBLANK( INDEX(Данные[Инв. №],$AM178,1))), "",INDEX(Данные[Инв. №],$AM178,1)) ->  | F178: =IF(OR(ISERR(INDEX(Данные[Штрих код первые 6 цифр],$AM178,1)),ISBLANK(INDEX(Данные[Штрих код первые 6 цифр],$AM178,1))),"",LEFT(INDEX(Данные[Штрих код первые 6 цифр],$AM178,1),6)) ->  | I178: =IF(OR(ISERR( INDEX(Данные[Автор, заглавие],$AM178,1)), ISBLANK( INDEX(Данные[Автор, заглавие],$AM178,1))), "",LEFT(INDEX(Данные[Автор, заглавие],$AM178,1),28)) ->  | U178: =IF(OR(ISERR( INDEX(Данные[Год издания],$AM178,1)), ISBLANK( INDEX(Данные[Год издания],$AM178,1))), "",TEXT(INDEX(Данные[Год издания],$AM178,1),0)) ->  | W178: =IF(OR(ISERR( INDEX(Данные[Отдел],$AM178,1)), ISBLANK( INDEX(Данные[Отдел],$AM178,1))), "",TEXT(INDEX(Данные[Отдел],$AM178,1),0)) ->  | Y178: =IF(OR(ISERR( INDEX(Данные[Цена],$AM178,1)), ISBLANK( INDEX(Данные[Цена],$AM178,1))), "",INDEX(Данные[Цена],$AM178,1)) ->  | AD178: =IFERROR(INDEX(Данные[Коэффициент переоценки],$AM178,1),"") ->  | AF178: =IF(OR(ISERR( INDEX(Данные[Кол-во экз.],$AM178,1)), ISBLANK( INDEX(Данные[Кол-во экз.],$AM178,1))), "",INDEX(Данные[Кол-во экз.],$AM178,1)) ->  | AH178: =IF(OR(ISERR(INDEX(Данные[Автор, заглавие],$AM178,1)),ISBLANK(INDEX(Данные[Автор, заглавие],$AM178,1))),"",INDEX(Данные[Стои-мость],$AM178,1)) ->  | AM178: 126
A180: Итого | AF180: =SUM(AF125:AG178) -> 0 | AH180: =SUM(AH125:AL178) -> 0
A181: № пп | C181: Инв. № | F181: Штрих код | I181: Автор, заглавие | U181: Год издания | W181: Отдел | Y181: Цена руб.коп. | AD181: Коэфф. Переоценки | AF181: Кол-во экз. | AH181: Стоимость
A185: =IFERROR(INDEX(Данные[№пп],AM185,1),"") ->  | C185: =IF(OR(ISERR( INDEX(Данные[Инв. №],$AM185,1)), ISBLANK( INDEX(Данные[Инв. №],$AM185,1))), "",INDEX(Данные[Инв. №],$AM185,1)) ->  | F185: =IF(OR(ISERR(INDEX(Данные[Штрих код первые 6 цифр],$AM185,1)),ISBLANK(INDEX(Данные[Штрих код первые 6 цифр],$AM185,1))),"",LEFT(INDEX(Данные[Штрих код первые 6 цифр],$AM185,1),6)) ->  | I185: =IF(OR(ISERR( INDEX(Данные[Автор, заглавие],$AM185,1)), ISBLANK( INDEX(Данные[Автор, заглавие],$AM185,1))), "",LEFT(INDEX(Данные[Автор, заглавие],$AM185,1),28)) ->  | U185: =IF(OR(ISERR( INDEX(Данные[Год издания],$AM185,1)), ISBLANK( INDEX(Данные[Год издания],$AM185,1))), "",TEXT(INDEX(Данные[Год издания],$AM185,1),0)) ->  | W185: =IF(OR(ISERR( INDEX(Данные[Отдел],$AM185,1)), ISBLANK( INDEX(Данные[Отдел],$AM185,1))), "",TEXT(INDEX(Данные[Отдел],$AM185,1),0)) ->  | Y185: =IF(OR(ISERR( INDEX(Данные[Цена],$AM185,1)), ISBLANK( INDEX(Данные[Цена],$AM185,1))), "",INDEX(Данные[Цена],$AM185,1)) ->  | AD185: =IFERROR(INDEX(Данные[Коэффициент переоценки],$AM185,1),"") ->  | AF185: =IF(OR(ISERR( INDEX(Данные[Кол-во экз.],$AM185,1)), ISBLANK( INDEX(Данные[Кол-во экз.],$AM185,1))), "",INDEX(Данные[Кол-во экз.],$AM185,1)) ->  | AH185: =IF(OR(ISERR(INDEX(Данные[Автор, заглавие],$AM185,1)),ISBLANK(INDEX(Данные[Автор, заглавие],$AM185,1))),"",INDEX(Данные[Стои-мость],$AM185,1)) ->  | AM185: =AM178+1 -> 127
A186: =IFERROR(INDEX(Данные[№пп],AM186,1),"") ->  | C186: =IF(OR(ISERR( INDEX(Данные[Инв. №],$AM186,1)), ISBLANK( INDEX(Данные[Инв. №],$AM186,1))), "",INDEX(Данные[Инв. №],$AM186,1)) ->  | F186: =IF(OR(ISERR(INDEX(Данные[Штрих код первые 6 цифр],$AM186,1)),ISBLANK(INDEX(Данные[Штрих код первые 6 цифр],$AM186,1))),"",LEFT(INDEX(Данные[Штрих код первые 6 цифр],$AM186,1),6)) ->  | I186: =IF(OR(ISERR( INDEX(Данные[Автор, заглавие],$AM186,1)), ISBLANK( INDEX(Данные[Автор, заглавие],$AM186,1))), "",LEFT(INDEX(Данные[Автор, заглавие],$AM186,1),28)) ->  | U186: =IF(OR(ISERR( INDEX(Данные[Год издания],$AM186,1)), ISBLANK( INDEX(Данные[Год издания],$AM186,1))), "",TEXT(INDEX(Данные[Год издания],$AM186,1),0)) ->  | W186: =IF(OR(ISERR( INDEX(Данные[Отдел],$AM186,1)), ISBLANK( INDEX(Данные[Отдел],$AM186,1))), "",TEXT(INDEX(Данные[Отдел],$AM186,1),0)) ->  | Y186: =IF(OR(ISERR( INDEX(Данные[Цена],$AM186,1)), ISBLANK( INDEX(Данные[Цена],$AM186,1))), "",INDEX(Данные[Цена],$AM186,1)) ->  | AD186: =IFERROR(INDEX(Данные[Коэффициент переоценки],$AM186,1),"") ->  | AF186: =IF(OR(ISERR( INDEX(Данные[Кол-во экз.],$AM186,1)), ISBLANK( INDEX(Данные[Кол-во экз.],$AM186,1))), "",INDEX(Данные[Кол-во экз.],$AM186,1)) ->  | AH186: =IF(OR(ISERR(INDEX(Данные[Автор, заглавие],$AM186,1)),ISBLANK(INDEX(Данные[Автор, заглавие],$AM186,1))),"",INDEX(Данные[Стои-мость],$AM186,1)) ->  | AM186: =AM185+1 -> 128
A187: =IFERROR(INDEX(Данные[№пп],AM187,1),"") ->  | C187: =IF(OR(ISERR( INDEX(Данные[Инв. №],$AM187,1)), ISBLANK( INDEX(Данные[Инв. №],$AM187,1))), "",INDEX(Данные[Инв. №],$AM187,1)) ->  | F187: =IF(OR(ISERR(INDEX(Данные[Штрих код первые 6 цифр],$AM187,1)),ISBLANK(INDEX(Данные[Штрих код первые 6 цифр],$AM187,1))),"",LEFT(INDEX(Данные[Штрих код первые 6 цифр],$AM187,1),6)) ->  | I187: =IF(OR(ISERR( INDEX(Данные[Автор, заглавие],$AM187,1)), ISBLANK( INDEX(Данные[Автор, заглавие],$AM187,1))), "",LEFT(INDEX(Данные[Автор, заглавие],$AM187,1),28)) ->  | U187: =IF(OR(ISERR( INDEX(Данные[Год издания],$AM187,1)), ISBLANK( INDEX(Данные[Год издания],$AM187,1))), "",TEXT(INDEX(Данные[Год издания],$AM187,1),0)) ->  | W187: =IF(OR(ISERR( INDEX(Данные[Отдел],$AM187,1)), ISBLANK( INDEX(Данные[Отдел],$AM187,1))), "",TEXT(INDEX(Данные[Отдел],$AM187,1),0)) ->  | Y187: =IF(OR(ISERR( INDEX(Данные[Цена],$AM187,1)), ISBLANK( INDEX(Данные[Цена],$AM187,1))), "",INDEX(Данные[Цена],$AM187,1)) ->  | AD187: =IFERROR(INDEX(Данные[Коэффициент переоценки],$AM187,1),"") ->  | AF187: =IF(OR(ISERR( INDEX(Данные[Кол-во экз.],$AM187,1)), ISBLANK( INDEX(Данные[Кол-во экз.],$AM187,1))), "",INDEX(Данные[Кол-во экз.],$AM187,1)) ->  | AH187: =IF(OR(ISERR(INDEX(Данные[Автор, заглавие],$AM187,1)),ISBLANK(INDEX(Данные[Автор, заглавие],$AM187,1))),"",INDEX(Данные[Стои-мость],$AM187,1)) ->  | AM187: =AM186+1 -> 129
A188: =IFERROR(INDEX(Данные[№пп],AM188,1),"") ->  | C188: =IF(OR(ISERR( INDEX(Данные[Инв. №],$AM188,1)), ISBLANK( INDEX(Данные[Инв. №],$AM188,1))), "",INDEX(Данные[Инв. №],$AM188,1)) ->  | F188: =IF(OR(ISERR(INDEX(Данные[Штрих код первые 6 цифр],$AM188,1)),ISBLANK(INDEX(Данные[Штрих код первые 6 цифр],$AM188,1))),"",LEFT(INDEX(Данные[Штрих код первые 6 цифр],$AM188,1),6)) ->  | I188: =IF(OR(ISERR( INDEX(Данные[Автор, заглавие],$AM188,1)), ISBLANK( INDEX(Данные[Автор, заглавие],$AM188,1))), "",LEFT(INDEX(Данные[Автор, заглавие],$AM188,1),28)) ->  | U188: =IF(OR(ISERR( INDEX(Данные[Год издания],$AM188,1)), ISBLANK( INDEX(Данные[Год издания],$AM188,1))), "",TEXT(INDEX(Данные[Год издания],$AM188,1),0)) ->  | W188: =IF(OR(ISERR( INDEX(Данные[Отдел],$AM188,1)), ISBLANK( INDEX(Данные[Отдел],$AM188,1))), "",TEXT(INDEX(Данные[Отдел],$AM188,1),0)) ->  | Y188: =IF(OR(ISERR( INDEX(Данные[Цена],$AM188,1)), ISBLANK( INDEX(Данные[Цена],$AM188,1))), "",INDEX(Данные[Цена],$AM188,1)) ->  | AD188: =IFERROR(INDEX(Данные[Коэффициент переоценки],$AM188,1),"") ->  | AF188: =IF(OR(ISERR( INDEX(Данные[Кол-во экз.],$AM188,1)), ISBLANK( INDEX(Данные[Кол-во экз.],$AM188,1))), "",INDEX(Данные[Кол-во экз.],$AM188,1)) ->  | AH188: =IF(OR(ISERR(INDEX(Данные[Автор, заглавие],$AM188,1)),ISBLANK(INDEX(Данные[Автор, заглавие],$AM188,1))),"",INDEX(Данные[Стои-мость],$AM188,1)) ->  | AM188: 130
A189: =IFERROR(INDEX(Данные[№пп],AM189,1),"") ->  | C189: =IF(OR(ISERR( INDEX(Данные[Инв. №],$AM189,1)), ISBLANK( INDEX(Данные[Инв. №],$AM189,1))), "",INDEX(Данные[Инв. №],$AM189,1)) ->  | F189: =IF(OR(ISERR(INDEX(Данные[Штрих код первые 6 цифр],$AM189,1)),ISBLANK(INDEX(Данные[Штрих код первые 6 цифр],$AM189,1))),"",LEFT(INDEX(Данные[Штрих код первые 6 цифр],$AM189,1),6)) ->  | I189: =IF(OR(ISERR( INDEX(Данные[Автор, заглавие],$AM189,1)), ISBLANK( INDEX(Данные[Автор, заглавие],$AM189,1))), "",LEFT(INDEX(Данные[Автор, заглавие],$AM189,1),28)) ->  | U189: =IF(OR(ISERR( INDEX(Данные[Год издания],$AM189,1)), ISBLANK( INDEX(Данные[Год издания],$AM189,1))), "",TEXT(INDEX(Данные[Год издания],$AM189,1),0)) ->  | W189: =IF(OR(ISERR( INDEX(Данные[Отдел],$AM189,1)), ISBLANK( INDEX(Данные[Отдел],$AM189,1))), "",TEXT(INDEX(Данные[Отдел],$AM189,1),0)) ->  | Y189: =IF(OR(ISERR( INDEX(Данные[Цена],$AM189,1)), ISBLANK( INDEX(Данные[Цена],$AM189,1))), "",INDEX(Данные[Цена],$AM189,1)) ->  | AD189: =IFERROR(INDEX(Данные[Коэффициент переоценки],$AM189,1),"") ->  | AF189: =IF(OR(ISERR( INDEX(Данные[Кол-во экз.],$AM189,1)), ISBLANK( INDEX(Данные[Кол-во экз.],$AM189,1))), "",INDEX(Данные[Кол-во экз.],$AM189,1)) ->  | AH189: =IF(OR(ISERR(INDEX(Данные[Автор, заглавие],$AM189,1)),ISBLANK(INDEX(Данные[Автор, заглавие],$AM189,1))),"",INDEX(Данные[Стои-мость],$AM189,1)) ->  | AM189: 131
A190: =IFERROR(INDEX(Данные[№пп],AM190,1),"") ->  | C190: =IF(OR(ISERR( INDEX(Данные[Инв. №],$AM190,1)), ISBLANK( INDEX(Данные[Инв. №],$AM190,1))), "",INDEX(Данные[Инв. №],$AM190,1)) ->  | F190: =IF(OR(ISERR(INDEX(Данные[Штрих код первые 6 цифр],$AM190,1)),ISBLANK(INDEX(Данные[Штрих код первые 6 цифр],$AM190,1))),"",LEFT(INDEX(Данные[Штрих код первые 6 цифр],$AM190,1),6)) ->  | I190: =IF(OR(ISERR( INDEX(Данные[Автор, заглавие],$AM190,1)), ISBLANK( INDEX(Данные[Автор, заглавие],$AM190,1))), "",LEFT(INDEX(Данные[Автор, заглавие],$AM190,1),28)) ->  | U190: =IF(OR(ISERR( INDEX(Данные[Год издания],$AM190,1)), ISBLANK( INDEX(Данные[Год издания],$AM190,1))), "",TEXT(INDEX(Данные[Год издания],$AM190,1),0)) ->  | W190: =IF(OR(ISERR( INDEX(Данные[Отдел],$AM190,1)), ISBLANK( INDEX(Данные[Отдел],$AM190,1))), "",TEXT(INDEX(Данные[Отдел],$AM190,1),0)) ->  | Y190: =IF(OR(ISERR( INDEX(Данные[Цена],$AM190,1)), ISBLANK( INDEX(Данные[Цена],$AM190,1))), "",INDEX(Данные[Цена],$AM190,1)) ->  | AD190: =IFERROR(INDEX(Данные[Коэффициент переоценки],$AM190,1),"") ->  | AF190: =IF(OR(ISERR( INDEX(Данные[Кол-во экз.],$AM190,1)), ISBLANK( INDEX(Данные[Кол-во экз.],$AM190,1))), "",INDEX(Данные[Кол-во экз.],$AM190,1)) ->  | AH190: =IF(OR(ISERR(INDEX(Данные[Автор, заглавие],$AM190,1)),ISBLANK(INDEX(Данные[Автор, заглавие],$AM190,1))),"",INDEX(Данные[Стои-мость],$AM190,1)) ->  | AM190: 132
A191: =IFERROR(INDEX(Данные[№пп],AM191,1),"") ->  | C191: =IF(OR(ISERR( INDEX(Данные[Инв. №],$AM191,1)), ISBLANK( INDEX(Данные[Инв. №],$AM191,1))), "",INDEX(Данные[Инв. №],$AM191,1)) ->  | F191: =IF(OR(ISERR(INDEX(Данные[Штрих код первые 6 цифр],$AM191,1)),ISBLANK(INDEX(Данные[Штрих код первые 6 цифр],$AM191,1))),"",LEFT(INDEX(Данные[Штрих код первые 6 цифр],$AM191,1),6)) ->  | I191: =IF(OR(ISERR( INDEX(Данные[Автор, заглавие],$AM191,1)), ISBLANK( INDEX(Данные[Автор, заглавие],$AM191,1))), "",LEFT(INDEX(Данные[Автор, заглавие],$AM191,1),28)) ->  | U191: =IF(OR(ISERR( INDEX(Данные[Год издания],$AM191,1)), ISBLANK( INDEX(Данные[Год издания],$AM191,1))), "",TEXT(INDEX(Данные[Год издания],$AM191,1),0)) ->  | W191: =IF(OR(ISERR( INDEX(Данные[Отдел],$AM191,1)), ISBLANK( INDEX(Данные[Отдел],$AM191,1))), "",TEXT(INDEX(Данные[Отдел],$AM191,1),0)) ->  | Y191: =IF(OR(ISERR( INDEX(Данные[Цена],$AM191,1)), ISBLANK( INDEX(Данные[Цена],$AM191,1))), "",INDEX(Данные[Цена],$AM191,1)) ->  | AD191: =IFERROR(INDEX(Данные[Коэффициент переоценки],$AM191,1),"") ->  | AF191: =IF(OR(ISERR( INDEX(Данные[Кол-во экз.],$AM191,1)), ISBLANK( INDEX(Данные[Кол-во экз.],$AM191,1))), "",INDEX(Данные[Кол-во экз.],$AM191,1)) ->  | AH191: =IF(OR(ISERR(INDEX(Данные[Автор, заглавие],$AM191,1)),ISBLANK(INDEX(Данные[Автор, заглавие],$AM191,1))),"",INDEX(Данные[Стои-мость],$AM191,1)) ->  | AM191: 133
A192: =IFERROR(INDEX(Данные[№пп],AM192,1),"") ->  | C192: =IF(OR(ISERR( INDEX(Данные[Инв. №],$AM192,1)), ISBLANK( INDEX(Данные[Инв. №],$AM192,1))), "",INDEX(Данные[Инв. №],$AM192,1)) ->  | F192: =IF(OR(ISERR(INDEX(Данные[Штрих код первые 6 цифр],$AM192,1)),ISBLANK(INDEX(Данные[Штрих код первые 6 цифр],$AM192,1))),"",LEFT(INDEX(Данные[Штрих код первые 6 цифр],$AM192,1),6)) ->  | I192: =IF(OR(ISERR( INDEX(Данные[Автор, заглавие],$AM192,1)), ISBLANK( INDEX(Данные[Автор, заглавие],$AM192,1))), "",LEFT(INDEX(Данные[Автор, заглавие],$AM192,1),28)) ->  | U192: =IF(OR(ISERR( INDEX(Данные[Год издания],$AM192,1)), ISBLANK( INDEX(Данные[Год издания],$AM192,1))), "",TEXT(INDEX(Данные[Год издания],$AM192,1),0)) ->  | W192: =IF(OR(ISERR( INDEX(Данные[Отдел],$AM192,1)), ISBLANK( INDEX(Данные[Отдел],$AM192,1))), "",TEXT(INDEX(Данные[Отдел],$AM192,1),0)) ->  | Y192: =IF(OR(ISERR( INDEX(Данные[Цена],$AM192,1)), ISBLANK( INDEX(Данные[Цена],$AM192,1))), "",INDEX(Данные[Цена],$AM192,1)) ->  | AD192: =IFERROR(INDEX(Данные[Коэффициент переоценки],$AM192,1),"") ->  | AF192: =IF(OR(ISERR( INDEX(Данные[Кол-во экз.],$AM192,1)), ISBLANK( INDEX(Данные[Кол-во экз.],$AM192,1))), "",INDEX(Данные[Кол-во экз.],$AM192,1)) ->  | AH192: =IF(OR(ISERR(INDEX(Данные[Автор, заглавие],$AM192,1)),ISBLANK(INDEX(Данные[Автор, заглавие],$AM192,1))),"",INDEX(Данные[Стои-мость],$AM192,1)) ->  | AM192: 134
A193: =IFERROR(INDEX(Данные[№пп],AM193,1),"") ->  | C193: =IF(OR(ISERR( INDEX(Данные[Инв. №],$AM193,1)), ISBLANK( INDEX(Данные[Инв. №],$AM193,1))), "",INDEX(Данные[Инв. №],$AM193,1)) ->  | F193: =IF(OR(ISERR(INDEX(Данные[Штрих код первые 6 цифр],$AM193,1)),ISBLANK(INDEX(Данные[Штрих код первые 6 цифр],$AM193,1))),"",LEFT(INDEX(Данные[Штрих код первые 6 цифр],$AM193,1),6)) ->  | I193: =IF(OR(ISERR( INDEX(Данные[Автор, заглавие],$AM193,1)), ISBLANK( INDEX(Данные[Автор, заглавие],$AM193,1))), "",LEFT(INDEX(Данные[Автор, заглавие],$AM193,1),28)) ->  | U193: =IF(OR(ISERR( INDEX(Данные[Год издания],$AM193,1)), ISBLANK( INDEX(Данные[Год издания],$AM193,1))), "",TEXT(INDEX(Данные[Год издания],$AM193,1),0)) ->  | W193: =IF(OR(ISERR( INDEX(Данные[Отдел],$AM193,1)), ISBLANK( INDEX(Данные[Отдел],$AM193,1))), "",TEXT(INDEX(Данные[Отдел],$AM193,1),0)) ->  | Y193: =IF(OR(ISERR( INDEX(Данные[Цена],$AM193,1)), ISBLANK( INDEX(Данные[Цена],$AM193,1))), "",INDEX(Данные[Цена],$AM193,1)) ->  | AD193: =IFERROR(INDEX(Данные[Коэффициент переоценки],$AM193,1),"") ->  | AF193: =IF(OR(ISERR( INDEX(Данные[Кол-во экз.],$AM193,1)), ISBLANK( INDEX(Данные[Кол-во экз.],$AM193,1))), "",INDEX(Данные[Кол-во экз.],$AM193,1)) ->  | AH193: =IF(OR(ISERR(INDEX(Данные[Автор, заглавие],$AM193,1)),ISBLANK(INDEX(Данные[Автор, заглавие],$AM193,1))),"",INDEX(Данные[Стои-мость],$AM193,1)) ->  | AM193: 135
A194: =IFERROR(INDEX(Данные[№пп],AM194,1),"") ->  | C194: =IF(OR(ISERR( INDEX(Данные[Инв. №],$AM194,1)), ISBLANK( INDEX(Данные[Инв. №],$AM194,1))), "",INDEX(Данные[Инв. №],$AM194,1)) ->  | F194: =IF(OR(ISERR(INDEX(Данные[Штрих код первые 6 цифр],$AM194,1)),ISBLANK(INDEX(Данные[Штрих код первые 6 цифр],$AM194,1))),"",LEFT(INDEX(Данные[Штрих код первые 6 цифр],$AM194,1),6)) ->  | I194: =IF(OR(ISERR( INDEX(Данные[Автор, заглавие],$AM194,1)), ISBLANK( INDEX(Данные[Автор, заглавие],$AM194,1))), "",LEFT(INDEX(Данные[Автор, заглавие],$AM194,1),28)) ->  | U194: =IF(OR(ISERR( INDEX(Данные[Год издания],$AM194,1)), ISBLANK( INDEX(Данные[Год издания],$AM194,1))), "",TEXT(INDEX(Данные[Год издания],$AM194,1),0)) ->  | W194: =IF(OR(ISERR( INDEX(Данные[Отдел],$AM194,1)), ISBLANK( INDEX(Данные[Отдел],$AM194,1))), "",TEXT(INDEX(Данные[Отдел],$AM194,1),0)) ->  | Y194: =IF(OR(ISERR( INDEX(Данные[Цена],$AM194,1)), ISBLANK( INDEX(Данные[Цена],$AM194,1))), "",INDEX(Данные[Цена],$AM194,1)) ->  | AD194: =IFERROR(INDEX(Данные[Коэффициент переоценки],$AM194,1),"") ->  | AF194: =IF(OR(ISERR( INDEX(Данные[Кол-во экз.],$AM194,1)), ISBLANK( INDEX(Данные[Кол-во экз.],$AM194,1))), "",INDEX(Данные[Кол-во экз.],$AM194,1)) ->  | AH194: =IF(OR(ISERR(INDEX(Данные[Автор, заглавие],$AM194,1)),ISBLANK(INDEX(Данные[Автор, заглавие],$AM194,1))),"",INDEX(Данные[Стои-мость],$AM194,1)) ->  | AM194: 136
A195: =IFERROR(INDEX(Данные[№пп],AM195,1),"") ->  | C195: =IF(OR(ISERR( INDEX(Данные[Инв. №],$AM195,1)), ISBLANK( INDEX(Данные[Инв. №],$AM195,1))), "",INDEX(Данные[Инв. №],$AM195,1)) ->  | F195: =IF(OR(ISERR(INDEX(Данные[Штрих код первые 6 цифр],$AM195,1)),ISBLANK(INDEX(Данные[Штрих код первые 6 цифр],$AM195,1))),"",LEFT(INDEX(Данные[Штрих код первые 6 цифр],$AM195,1),6)) ->  | I195: =IF(OR(ISERR( INDEX(Данные[Автор, заглавие],$AM195,1)), ISBLANK( INDEX(Данные[Автор, заглавие],$AM195,1))), "",LEFT(INDEX(Данные[Автор, заглавие],$AM195,1),28)) ->  | U195: =IF(OR(ISERR( INDEX(Данные[Год издания],$AM195,1)), ISBLANK( INDEX(Данные[Год издания],$AM195,1))), "",TEXT(INDEX(Данные[Год издания],$AM195,1),0)) ->  | W195: =IF(OR(ISERR( INDEX(Данные[Отдел],$AM195,1)), ISBLANK( INDEX(Данные[Отдел],$AM195,1))), "",TEXT(INDEX(Данные[Отдел],$AM195,1),0)) ->  | Y195: =IF(OR(ISERR( INDEX(Данные[Цена],$AM195,1)), ISBLANK( INDEX(Данные[Цена],$AM195,1))), "",INDEX(Данные[Цена],$AM195,1)) ->  | AD195: =IFERROR(INDEX(Данные[Коэффициент переоценки],$AM195,1),"") ->  | AF195: =IF(OR(ISERR( INDEX(Данные[Кол-во экз.],$AM195,1)), ISBLANK( INDEX(Данные[Кол-во экз.],$AM195,1))), "",INDEX(Данные[Кол-во экз.],$AM195,1)) ->  | AH195: =IF(OR(ISERR(INDEX(Данные[Автор, заглавие],$AM195,1)),ISBLANK(INDEX(Данные[Автор, заглавие],$AM195,1))),"",INDEX(Данные[Стои-мость],$AM195,1)) ->  | AM195: 137
A196: =IFERROR(INDEX(Данные[№пп],AM196,1),"") ->  | C196: =IF(OR(ISERR( INDEX(Данные[Инв. №],$AM196,1)), ISBLANK( INDEX(Данные[Инв. №],$AM196,1))), "",INDEX(Данные[Инв. №],$AM196,1)) ->  | F196: =IF(OR(ISERR(INDEX(Данные[Штрих код первые 6 цифр],$AM196,1)),ISBLANK(INDEX(Данные[Штрих код первые 6 цифр],$AM196,1))),"",LEFT(INDEX(Данные[Штрих код первые 6 цифр],$AM196,1),6)) ->  | I196: =IF(OR(ISERR( INDEX(Данные[Автор, заглавие],$AM196,1)), ISBLANK( INDEX(Данные[Автор, заглавие],$AM196,1))), "",LEFT(INDEX(Данные[Автор, заглавие],$AM196,1),28)) ->  | U196: =IF(OR(ISERR( INDEX(Данные[Год издания],$AM196,1)), ISBLANK( INDEX(Данные[Год издания],$AM196,1))), "",TEXT(INDEX(Данные[Год издания],$AM196,1),0)) ->  | W196: =IF(OR(ISERR( INDEX(Данные[Отдел],$AM196,1)), ISBLANK( INDEX(Данные[Отдел],$AM196,1))), "",TEXT(INDEX(Данные[Отдел],$AM196,1),0)) ->  | Y196: =IF(OR(ISERR( INDEX(Данные[Цена],$AM196,1)), ISBLANK( INDEX(Данные[Цена],$AM196,1))), "",INDEX(Данные[Цена],$AM196,1)) ->  | AD196: =IFERROR(INDEX(Данные[Коэффициент переоценки],$AM196,1),"") ->  | AF196: =IF(OR(ISERR( INDEX(Данные[Кол-во экз.],$AM196,1)), ISBLANK( INDEX(Данные[Кол-во экз.],$AM196,1))), "",INDEX(Данные[Кол-во экз.],$AM196,1)) ->  | AH196: =IF(OR(ISERR(INDEX(Данные[Автор, заглавие],$AM196,1)),ISBLANK(INDEX(Данные[Автор, заглавие],$AM196,1))),"",INDEX(Данные[Стои-мость],$AM196,1)) ->  | AM196: 138
A197: =IFERROR(INDEX(Данные[№пп],AM197,1),"") ->  | C197: =IF(OR(ISERR( INDEX(Данные[Инв. №],$AM197,1)), ISBLANK( INDEX(Данные[Инв. №],$AM197,1))), "",INDEX(Данные[Инв. №],$AM197,1)) ->  | F197: =IF(OR(ISERR(INDEX(Данные[Штрих код первые 6 цифр],$AM197,1)),ISBLANK(INDEX(Данные[Штрих код первые 6 цифр],$AM197,1))),"",LEFT(INDEX(Данные[Штрих код первые 6 цифр],$AM197,1),6)) ->  | I197: =IF(OR(ISERR( INDEX(Данные[Автор, заглавие],$AM197,1)), ISBLANK( INDEX(Данные[Автор, заглавие],$AM197,1))), "",LEFT(INDEX(Данные[Автор, заглавие],$AM197,1),28)) ->  | U197: =IF(OR(ISERR( INDEX(Данные[Год издания],$AM197,1)), ISBLANK( INDEX(Данные[Год издания],$AM197,1))), "",TEXT(INDEX(Данные[Год издания],$AM197,1),0)) ->  | W197: =IF(OR(ISERR( INDEX(Данные[Отдел],$AM197,1)), ISBLANK( INDEX(Данные[Отдел],$AM197,1))), "",TEXT(INDEX(Данные[Отдел],$AM197,1),0)) ->  | Y197: =IF(OR(ISERR( INDEX(Данные[Цена],$AM197,1)), ISBLANK( INDEX(Данные[Цена],$AM197,1))), "",INDEX(Данные[Цена],$AM197,1)) ->  | AD197: =IFERROR(INDEX(Данные[Коэффициент переоценки],$AM197,1),"") ->  | AF197: =IF(OR(ISERR( INDEX(Данные[Кол-во экз.],$AM197,1)), ISBLANK( INDEX(Данные[Кол-во экз.],$AM197,1))), "",INDEX(Данные[Кол-во экз.],$AM197,1)) ->  | AH197: =IF(OR(ISERR(INDEX(Данные[Автор, заглавие],$AM197,1)),ISBLANK(INDEX(Данные[Автор, заглавие],$AM197,1))),"",INDEX(Данные[Стои-мость],$AM197,1)) ->  | AM197: 139
A198: =IFERROR(INDEX(Данные[№пп],AM198,1),"") ->  | C198: =IF(OR(ISERR( INDEX(Данные[Инв. №],$AM198,1)), ISBLANK( INDEX(Данные[Инв. №],$AM198,1))), "",INDEX(Данные[Инв. №],$AM198,1)) ->  | F198: =IF(OR(ISERR(INDEX(Данные[Штрих код первые 6 цифр],$AM198,1)),ISBLANK(INDEX(Данные[Штрих код первые 6 цифр],$AM198,1))),"",LEFT(INDEX(Данные[Штрих код первые 6 цифр],$AM198,1),6)) ->  | I198: =IF(OR(ISERR( INDEX(Данные[Автор, заглавие],$AM198,1)), ISBLANK( INDEX(Данные[Автор, заглавие],$AM198,1))), "",LEFT(INDEX(Данные[Автор, заглавие],$AM198,1),28)) ->  | U198: =IF(OR(ISERR( INDEX(Данные[Год издания],$AM198,1)), ISBLANK( INDEX(Данные[Год издания],$AM198,1))), "",TEXT(INDEX(Данные[Год издания],$AM198,1),0)) ->  | W198: =IF(OR(ISERR( INDEX(Данные[Отдел],$AM198,1)), ISBLANK( INDEX(Данные[Отдел],$AM198,1))), "",TEXT(INDEX(Данные[Отдел],$AM198,1),0)) ->  | Y198: =IF(OR(ISERR( INDEX(Данные[Цена],$AM198,1)), ISBLANK( INDEX(Данные[Цена],$AM198,1))), "",INDEX(Данные[Цена],$AM198,1)) ->  | AD198: =IFERROR(INDEX(Данные[Коэффициент переоценки],$AM198,1),"") ->  | AF198: =IF(OR(ISERR( INDEX(Данные[Кол-во экз.],$AM198,1)), ISBLANK( INDEX(Данные[Кол-во экз.],$AM198,1))), "",INDEX(Данные[Кол-во экз.],$AM198,1)) ->  | AH198: =IF(OR(ISERR(INDEX(Данные[Автор, заглавие],$AM198,1)),ISBLANK(INDEX(Данные[Автор, заглавие],$AM198,1))),"",INDEX(Данные[Стои-мость],$AM198,1)) ->  | AM198: 140
A199: =IFERROR(INDEX(Данные[№пп],AM199,1),"") ->  | C199: =IF(OR(ISERR( INDEX(Данные[Инв. №],$AM199,1)), ISBLANK( INDEX(Данные[Инв. №],$AM199,1))), "",INDEX(Данные[Инв. №],$AM199,1)) ->  | F199: =IF(OR(ISERR(INDEX(Данные[Штрих код первые 6 цифр],$AM199,1)),ISBLANK(INDEX(Данные[Штрих код первые 6 цифр],$AM199,1))),"",LEFT(INDEX(Данные[Штрих код первые 6 цифр],$AM199,1),6)) ->  | I199: =IF(OR(ISERR( INDEX(Данные[Автор, заглавие],$AM199,1)), ISBLANK( INDEX(Данные[Автор, заглавие],$AM199,1))), "",LEFT(INDEX(Данные[Автор, заглавие],$AM199,1),28)) ->  | U199: =IF(OR(ISERR( INDEX(Данные[Год издания],$AM199,1)), ISBLANK( INDEX(Данные[Год издания],$AM199,1))), "",TEXT(INDEX(Данные[Год издания],$AM199,1),0)) ->  | W199: =IF(OR(ISERR( INDEX(Данные[Отдел],$AM199,1)), ISBLANK( INDEX(Данные[Отдел],$AM199,1))), "",TEXT(INDEX(Данные[Отдел],$AM199,1),0)) ->  | Y199: =IF(OR(ISERR( INDEX(Данные[Цена],$AM199,1)), ISBLANK( INDEX(Данные[Цена],$AM199,1))), "",INDEX(Данные[Цена],$AM199,1)) ->  | AD199: =IFERROR(INDEX(Данные[Коэффициент переоценки],$AM199,1),"") ->  | AF199: =IF(OR(ISERR( INDEX(Данные[Кол-во экз.],$AM199,1)), ISBLANK( INDEX(Данные[Кол-во экз.],$AM199,1))), "",INDEX(Данные[Кол-во экз.],$AM199,1)) ->  | AH199: =IF(OR(ISERR(INDEX(Данные[Автор, заглавие],$AM199,1)),ISBLANK(INDEX(Данные[Автор, заглавие],$AM199,1))),"",INDEX(Данные[Стои-мость],$AM199,1)) ->  | AM199: 141
A200: =IFERROR(INDEX(Данные[№пп],AM200,1),"") ->  | C200: =IF(OR(ISERR( INDEX(Данные[Инв. №],$AM200,1)), ISBLANK( INDEX(Данные[Инв. №],$AM200,1))), "",INDEX(Данные[Инв. №],$AM200,1)) ->  | F200: =IF(OR(ISERR(INDEX(Данные[Штрих код первые 6 цифр],$AM200,1)),ISBLANK(INDEX(Данные[Штрих код первые 6 цифр],$AM200,1))),"",LEFT(INDEX(Данные[Штрих код первые 6 цифр],$AM200,1),6)) ->  | I200: =IF(OR(ISERR( INDEX(Данные[Автор, заглавие],$AM200,1)), ISBLANK( INDEX(Данные[Автор, заглавие],$AM200,1))), "",LEFT(INDEX(Данные[Автор, заглавие],$AM200,1),28)) ->  | U200: =IF(OR(ISERR( INDEX(Данные[Год издания],$AM200,1)), ISBLANK( INDEX(Данные[Год издания],$AM200,1))), "",TEXT(INDEX(Данные[Год издания],$AM200,1),0)) ->  | W200: =IF(OR(ISERR( INDEX(Данные[Отдел],$AM200,1)), ISBLANK( INDEX(Данные[Отдел],$AM200,1))), "",TEXT(INDEX(Данные[Отдел],$AM200,1),0)) ->  | Y200: =IF(OR(ISERR( INDEX(Данные[Цена],$AM200,1)), ISBLANK( INDEX(Данные[Цена],$AM200,1))), "",INDEX(Данные[Цена],$AM200,1)) ->  | AD200: =IFERROR(INDEX(Данные[Коэффициент переоценки],$AM200,1),"") ->  | AF200: =IF(OR(ISERR( INDEX(Данные[Кол-во экз.],$AM200,1)), ISBLANK( INDEX(Данные[Кол-во экз.],$AM200,1))), "",INDEX(Данные[Кол-во экз.],$AM200,1)) ->  | AH200: =IF(OR(ISERR(INDEX(Данные[Автор, заглавие],$AM200,1)),ISBLANK(INDEX(Данные[Автор, заглавие],$AM200,1))),"",INDEX(Данные[Стои-мость],$AM200,1)) ->  | AM200: 142
A201: =IFERROR(INDEX(Данные[№пп],AM201,1),"") ->  | C201: =IF(OR(ISERR( INDEX(Данные[Инв. №],$AM201,1)), ISBLANK( INDEX(Данные[Инв. №],$AM201,1))), "",INDEX(Данные[Инв. №],$AM201,1)) ->  | F201: =IF(OR(ISERR(INDEX(Данные[Штрих код первые 6 цифр],$AM201,1)),ISBLANK(INDEX(Данные[Штрих код первые 6 цифр],$AM201,1))),"",LEFT(INDEX(Данные[Штрих код первые 6 цифр],$AM201,1),6)) ->  | I201: =IF(OR(ISERR( INDEX(Данные[Автор, заглавие],$AM201,1)), ISBLANK( INDEX(Данные[Автор, заглавие],$AM201,1))), "",LEFT(INDEX(Данные[Автор, заглавие],$AM201,1),28)) ->  | U201: =IF(OR(ISERR( INDEX(Данные[Год издания],$AM201,1)), ISBLANK( INDEX(Данные[Год издания],$AM201,1))), "",TEXT(INDEX(Данные[Год издания],$AM201,1),0)) ->  | W201: =IF(OR(ISERR( INDEX(Данные[Отдел],$AM201,1)), ISBLANK( INDEX(Данные[Отдел],$AM201,1))), "",TEXT(INDEX(Данные[Отдел],$AM201,1),0)) ->  | Y201: =IF(OR(ISERR( INDEX(Данные[Цена],$AM201,1)), ISBLANK( INDEX(Данные[Цена],$AM201,1))), "",INDEX(Данные[Цена],$AM201,1)) ->  | AD201: =IFERROR(INDEX(Данные[Коэффициент переоценки],$AM201,1),"") ->  | AF201: =IF(OR(ISERR( INDEX(Данные[Кол-во экз.],$AM201,1)), ISBLANK( INDEX(Данные[Кол-во экз.],$AM201,1))), "",INDEX(Данные[Кол-во экз.],$AM201,1)) ->  | AH201: =IF(OR(ISERR(INDEX(Данные[Автор, заглавие],$AM201,1)),ISBLANK(INDEX(Данные[Автор, заглавие],$AM201,1))),"",INDEX(Данные[Стои-мость],$AM201,1)) ->  | AM201: 143
A202: =IFERROR(INDEX(Данные[№пп],AM202,1),"") ->  | C202: =IF(OR(ISERR( INDEX(Данные[Инв. №],$AM202,1)), ISBLANK( INDEX(Данные[Инв. №],$AM202,1))), "",INDEX(Данные[Инв. №],$AM202,1)) ->  | F202: =IF(OR(ISERR(INDEX(Данные[Штрих код первые 6 цифр],$AM202,1)),ISBLANK(INDEX(Данные[Штрих код первые 6 цифр],$AM202,1))),"",LEFT(INDEX(Данные[Штрих код первые 6 цифр],$AM202,1),6)) ->  | I202: =IF(OR(ISERR( INDEX(Данные[Автор, заглавие],$AM202,1)), ISBLANK( INDEX(Данные[Автор, заглавие],$AM202,1))), "",LEFT(INDEX(Данные[Автор, заглавие],$AM202,1),28)) ->  | U202: =IF(OR(ISERR( INDEX(Данные[Год издания],$AM202,1)), ISBLANK( INDEX(Данные[Год издания],$AM202,1))), "",TEXT(INDEX(Данные[Год издания],$AM202,1),0)) ->  | W202: =IF(OR(ISERR( INDEX(Данные[Отдел],$AM202,1)), ISBLANK( INDEX(Данные[Отдел],$AM202,1))), "",TEXT(INDEX(Данные[Отдел],$AM202,1),0)) ->  | Y202: =IF(OR(ISERR( INDEX(Данные[Цена],$AM202,1)), ISBLANK( INDEX(Данные[Цена],$AM202,1))), "",INDEX(Данные[Цена],$AM202,1)) ->  | AD202: =IFERROR(INDEX(Данные[Коэффициент переоценки],$AM202,1),"") ->  | AF202: =IF(OR(ISERR( INDEX(Данные[Кол-во экз.],$AM202,1)), ISBLANK( INDEX(Данные[Кол-во экз.],$AM202,1))), "",INDEX(Данные[Кол-во экз.],$AM202,1)) ->  | AH202: =IF(OR(ISERR(INDEX(Данные[Автор, заглавие],$AM202,1)),ISBLANK(INDEX(Данные[Автор, заглавие],$AM202,1))),"",INDEX(Данные[Стои-мость],$AM202,1)) ->  | AM202: 144
A203: =IFERROR(INDEX(Данные[№пп],AM203,1),"") ->  | C203: =IF(OR(ISERR( INDEX(Данные[Инв. №],$AM203,1)), ISBLANK( INDEX(Данные[Инв. №],$AM203,1))), "",INDEX(Данные[Инв. №],$AM203,1)) ->  | F203: =IF(OR(ISERR(INDEX(Данные[Штрих код первые 6 цифр],$AM203,1)),ISBLANK(INDEX(Данные[Штрих код первые 6 цифр],$AM203,1))),"",LEFT(INDEX(Данные[Штрих код первые 6 цифр],$AM203,1),6)) ->  | I203: =IF(OR(ISERR( INDEX(Данные[Автор, заглавие],$AM203,1)), ISBLANK( INDEX(Данные[Автор, заглавие],$AM203,1))), "",LEFT(INDEX(Данные[Автор, заглавие],$AM203,1),28)) ->  | U203: =IF(OR(ISERR( INDEX(Данные[Год издания],$AM203,1)), ISBLANK( INDEX(Данные[Год издания],$AM203,1))), "",TEXT(INDEX(Данные[Год издания],$AM203,1),0)) ->  | W203: =IF(OR(ISERR( INDEX(Данные[Отдел],$AM203,1)), ISBLANK( INDEX(Данные[Отдел],$AM203,1))), "",TEXT(INDEX(Данные[Отдел],$AM203,1),0)) ->  | Y203: =IF(OR(ISERR( INDEX(Данные[Цена],$AM203,1)), ISBLANK( INDEX(Данные[Цена],$AM203,1))), "",INDEX(Данные[Цена],$AM203,1)) ->  | AD203: =IFERROR(INDEX(Данные[Коэффициент переоценки],$AM203,1),"") ->  | AF203: =IF(OR(ISERR( INDEX(Данные[Кол-во экз.],$AM203,1)), ISBLANK( INDEX(Данные[Кол-во экз.],$AM203,1))), "",INDEX(Данные[Кол-во экз.],$AM203,1)) ->  | AH203: =IF(OR(ISERR(INDEX(Данные[Автор, заглавие],$AM203,1)),ISBLANK(INDEX(Данные[Автор, заглавие],$AM203,1))),"",INDEX(Данные[Стои-мость],$AM203,1)) ->  | AM203: 145
A204: =IFERROR(INDEX(Данные[№пп],AM204,1),"") ->  | C204: =IF(OR(ISERR( INDEX(Данные[Инв. №],$AM204,1)), ISBLANK( INDEX(Данные[Инв. №],$AM204,1))), "",INDEX(Данные[Инв. №],$AM204,1)) ->  | F204: =IF(OR(ISERR(INDEX(Данные[Штрих код первые 6 цифр],$AM204,1)),ISBLANK(INDEX(Данные[Штрих код первые 6 цифр],$AM204,1))),"",LEFT(INDEX(Данные[Штрих код первые 6 цифр],$AM204,1),6)) ->  | I204: =IF(OR(ISERR( INDEX(Данные[Автор, заглавие],$AM204,1)), ISBLANK( INDEX(Данные[Автор, заглавие],$AM204,1))), "",LEFT(INDEX(Данные[Автор, заглавие],$AM204,1),28)) ->  | U204: =IF(OR(ISERR( INDEX(Данные[Год издания],$AM204,1)), ISBLANK( INDEX(Данные[Год издания],$AM204,1))), "",TEXT(INDEX(Данные[Год издания],$AM204,1),0)) ->  | W204: =IF(OR(ISERR( INDEX(Данные[Отдел],$AM204,1)), ISBLANK( INDEX(Данные[Отдел],$AM204,1))), "",TEXT(INDEX(Данные[Отдел],$AM204,1),0)) ->  | Y204: =IF(OR(ISERR( INDEX(Данные[Цена],$AM204,1)), ISBLANK( INDEX(Данные[Цена],$AM204,1))), "",INDEX(Данные[Цена],$AM204,1)) ->  | AD204: =IFERROR(INDEX(Данные[Коэффициент переоценки],$AM204,1),"") ->  | AF204: =IF(OR(ISERR( INDEX(Данные[Кол-во экз.],$AM204,1)), ISBLANK( INDEX(Данные[Кол-во экз.],$AM204,1))), "",INDEX(Данные[Кол-во экз.],$AM204,1)) ->  | AH204: =IF(OR(ISERR(INDEX(Данные[Автор, заглавие],$AM204,1)),ISBLANK(INDEX(Данные[Автор, заглавие],$AM204,1))),"",INDEX(Данные[Стои-мость],$AM204,1)) ->  | AM204: 146
A205: =IFERROR(INDEX(Данные[№пп],AM205,1),"") ->  | C205: =IF(OR(ISERR( INDEX(Данные[Инв. №],$AM205,1)), ISBLANK( INDEX(Данные[Инв. №],$AM205,1))), "",INDEX(Данные[Инв. №],$AM205,1)) ->  | F205: =IF(OR(ISERR(INDEX(Данные[Штрих код первые 6 цифр],$AM205,1)),ISBLANK(INDEX(Данные[Штрих код первые 6 цифр],$AM205,1))),"",LEFT(INDEX(Данные[Штрих код первые 6 цифр],$AM205,1),6)) ->  | I205: =IF(OR(ISERR( INDEX(Данные[Автор, заглавие],$AM205,1)), ISBLANK( INDEX(Данные[Автор, заглавие],$AM205,1))), "",LEFT(INDEX(Данные[Автор, заглавие],$AM205,1),28)) ->  | U205: =IF(OR(ISERR( INDEX(Данные[Год издания],$AM205,1)), ISBLANK( INDEX(Данные[Год издания],$AM205,1))), "",TEXT(INDEX(Данные[Год издания],$AM205,1),0)) ->  | W205: =IF(OR(ISERR( INDEX(Данные[Отдел],$AM205,1)), ISBLANK( INDEX(Данные[Отдел],$AM205,1))), "",TEXT(INDEX(Данные[Отдел],$AM205,1),0)) ->  | Y205: =IF(OR(ISERR( INDEX(Данные[Цена],$AM205,1)), ISBLANK( INDEX(Данные[Цена],$AM205,1))), "",INDEX(Данные[Цена],$AM205,1)) ->  | AD205: =IFERROR(INDEX(Данные[Коэффициент переоценки],$AM205,1),"") ->  | AF205: =IF(OR(ISERR( INDEX(Данные[Кол-во экз.],$AM205,1)), ISBLANK( INDEX(Данные[Кол-во экз.],$AM205,1))), "",INDEX(Данные[Кол-во экз.],$AM205,1)) ->  | AH205: =IF(OR(ISERR(INDEX(Данные[Автор, заглавие],$AM205,1)),ISBLANK(INDEX(Данные[Автор, заглавие],$AM205,1))),"",INDEX(Данные[Стои-мость],$AM205,1)) ->  | AM205: 147
A206: =IFERROR(INDEX(Данные[№пп],AM206,1),"") ->  | C206: =IF(OR(ISERR( INDEX(Данные[Инв. №],$AM206,1)), ISBLANK( INDEX(Данные[Инв. №],$AM206,1))), "",INDEX(Данные[Инв. №],$AM206,1)) ->  | F206: =IF(OR(ISERR(INDEX(Данные[Штрих код первые 6 цифр],$AM206,1)),ISBLANK(INDEX(Данные[Штрих код первые 6 цифр],$AM206,1))),"",LEFT(INDEX(Данные[Штрих код первые 6 цифр],$AM206,1),6)) ->  | I206: =IF(OR(ISERR( INDEX(Данные[Автор, заглавие],$AM206,1)), ISBLANK( INDEX(Данные[Автор, заглавие],$AM206,1))), "",LEFT(INDEX(Данные[Автор, заглавие],$AM206,1),28)) ->  | U206: =IF(OR(ISERR( INDEX(Данные[Год издания],$AM206,1)), ISBLANK( INDEX(Данные[Год издания],$AM206,1))), "",TEXT(INDEX(Данные[Год издания],$AM206,1),0)) ->  | W206: =IF(OR(ISERR( INDEX(Данные[Отдел],$AM206,1)), ISBLANK( INDEX(Данные[Отдел],$AM206,1))), "",TEXT(INDEX(Данные[Отдел],$AM206,1),0)) ->  | Y206: =IF(OR(ISERR( INDEX(Данные[Цена],$AM206,1)), ISBLANK( INDEX(Данные[Цена],$AM206,1))), "",INDEX(Данные[Цена],$AM206,1)) ->  | AD206: =IFERROR(INDEX(Данные[Коэффициент переоценки],$AM206,1),"") ->  | AF206: =IF(OR(ISERR( INDEX(Данные[Кол-во экз.],$AM206,1)), ISBLANK( INDEX(Данные[Кол-во экз.],$AM206,1))), "",INDEX(Данные[Кол-во экз.],$AM206,1)) ->  | AH206: =IF(OR(ISERR(INDEX(Данные[Автор, заглавие],$AM206,1)),ISBLANK(INDEX(Данные[Автор, заглавие],$AM206,1))),"",INDEX(Данные[Стои-мость],$AM206,1)) ->  | AM206: 148
A207: =IFERROR(INDEX(Данные[№пп],AM207,1),"") ->  | C207: =IF(OR(ISERR( INDEX(Данные[Инв. №],$AM207,1)), ISBLANK( INDEX(Данные[Инв. №],$AM207,1))), "",INDEX(Данные[Инв. №],$AM207,1)) ->  | F207: =IF(OR(ISERR(INDEX(Данные[Штрих код первые 6 цифр],$AM207,1)),ISBLANK(INDEX(Данные[Штрих код первые 6 цифр],$AM207,1))),"",LEFT(INDEX(Данные[Штрих код первые 6 цифр],$AM207,1),6)) ->  | I207: =IF(OR(ISERR( INDEX(Данные[Автор, заглавие],$AM207,1)), ISBLANK( INDEX(Данные[Автор, заглавие],$AM207,1))), "",LEFT(INDEX(Данные[Автор, заглавие],$AM207,1),28)) ->  | U207: =IF(OR(ISERR( INDEX(Данные[Год издания],$AM207,1)), ISBLANK( INDEX(Данные[Год издания],$AM207,1))), "",TEXT(INDEX(Данные[Год издания],$AM207,1),0)) ->  | W207: =IF(OR(ISERR( INDEX(Данные[Отдел],$AM207,1)), ISBLANK( INDEX(Данные[Отдел],$AM207,1))), "",TEXT(INDEX(Данные[Отдел],$AM207,1),0)) ->  | Y207: =IF(OR(ISERR( INDEX(Данные[Цена],$AM207,1)), ISBLANK( INDEX(Данные[Цена],$AM207,1))), "",INDEX(Данные[Цена],$AM207,1)) ->  | AD207: =IFERROR(INDEX(Данные[Коэффициент переоценки],$AM207,1),"") ->  | AF207: =IF(OR(ISERR( INDEX(Данные[Кол-во экз.],$AM207,1)), ISBLANK( INDEX(Данные[Кол-во экз.],$AM207,1))), "",INDEX(Данные[Кол-во экз.],$AM207,1)) ->  | AH207: =IF(OR(ISERR(INDEX(Данные[Автор, заглавие],$AM207,1)),ISBLANK(INDEX(Данные[Автор, заглавие],$AM207,1))),"",INDEX(Данные[Стои-мость],$AM207,1)) ->  | AM207: 149
A208: =IFERROR(INDEX(Данные[№пп],AM208,1),"") ->  | C208: =IF(OR(ISERR( INDEX(Данные[Инв. №],$AM208,1)), ISBLANK( INDEX(Данные[Инв. №],$AM208,1))), "",INDEX(Данные[Инв. №],$AM208,1)) ->  | F208: =IF(OR(ISERR(INDEX(Данные[Штрих код первые 6 цифр],$AM208,1)),ISBLANK(INDEX(Данные[Штрих код первые 6 цифр],$AM208,1))),"",LEFT(INDEX(Данные[Штрих код первые 6 цифр],$AM208,1),6)) ->  | I208: =IF(OR(ISERR( INDEX(Данные[Автор, заглавие],$AM208,1)), ISBLANK( INDEX(Данные[Автор, заглавие],$AM208,1))), "",LEFT(INDEX(Данные[Автор, заглавие],$AM208,1),28)) ->  | U208: =IF(OR(ISERR( INDEX(Данные[Год издания],$AM208,1)), ISBLANK( INDEX(Данные[Год издания],$AM208,1))), "",TEXT(INDEX(Данные[Год издания],$AM208,1),0)) ->  | W208: =IF(OR(ISERR( INDEX(Данные[Отдел],$AM208,1)), ISBLANK( INDEX(Данные[Отдел],$AM208,1))), "",TEXT(INDEX(Данные[Отдел],$AM208,1),0)) ->  | Y208: =IF(OR(ISERR( INDEX(Данные[Цена],$AM208,1)), ISBLANK( INDEX(Данные[Цена],$AM208,1))), "",INDEX(Данные[Цена],$AM208,1)) ->  | AD208: =IFERROR(INDEX(Данные[Коэффициент переоценки],$AM208,1),"") ->  | AF208: =IF(OR(ISERR( INDEX(Данные[Кол-во экз.],$AM208,1)), ISBLANK( INDEX(Данные[Кол-во экз.],$AM208,1))), "",INDEX(Данные[Кол-во экз.],$AM208,1)) ->  | AH208: =IF(OR(ISERR(INDEX(Данные[Автор, заглавие],$AM208,1)),ISBLANK(INDEX(Данные[Автор, заглавие],$AM208,1))),"",INDEX(Данные[Стои-мость],$AM208,1)) ->  | AM208: 150
A209: =IFERROR(INDEX(Данные[№пп],AM209,1),"") ->  | C209: =IF(OR(ISERR( INDEX(Данные[Инв. №],$AM209,1)), ISBLANK( INDEX(Данные[Инв. №],$AM209,1))), "",INDEX(Данные[Инв. №],$AM209,1)) ->  | F209: =IF(OR(ISERR(INDEX(Данные[Штрих код первые 6 цифр],$AM209,1)),ISBLANK(INDEX(Данные[Штрих код первые 6 цифр],$AM209,1))),"",LEFT(INDEX(Данные[Штрих код первые 6 цифр],$AM209,1),6)) ->  | I209: =IF(OR(ISERR( INDEX(Данные[Автор, заглавие],$AM209,1)), ISBLANK( INDEX(Данные[Автор, заглавие],$AM209,1))), "",LEFT(INDEX(Данные[Автор, заглавие],$AM209,1),28)) ->  | U209: =IF(OR(ISERR( INDEX(Данные[Год издания],$AM209,1)), ISBLANK( INDEX(Данные[Год издания],$AM209,1))), "",TEXT(INDEX(Данные[Год издания],$AM209,1),0)) ->  | W209: =IF(OR(ISERR( INDEX(Данные[Отдел],$AM209,1)), ISBLANK( INDEX(Данные[Отдел],$AM209,1))), "",TEXT(INDEX(Данные[Отдел],$AM209,1),0)) ->  | Y209: =IF(OR(ISERR( INDEX(Данные[Цена],$AM209,1)), ISBLANK( INDEX(Данные[Цена],$AM209,1))), "",INDEX(Данные[Цена],$AM209,1)) ->  | AD209: =IFERROR(INDEX(Данные[Коэффициент переоценки],$AM209,1),"") ->  | AF209: =IF(OR(ISERR( INDEX(Данные[Кол-во экз.],$AM209,1)), ISBLANK( INDEX(Данные[Кол-во экз.],$AM209,1))), "",INDEX(Данные[Кол-во экз.],$AM209,1)) ->  | AH209: =IF(OR(ISERR(INDEX(Данные[Автор, заглавие],$AM209,1)),ISBLANK(INDEX(Данные[Автор, заглавие],$AM209,1))),"",INDEX(Данные[Стои-мость],$AM209,1)) ->  | AM209: 151
A210: =IFERROR(INDEX(Данные[№пп],AM210,1),"") ->  | C210: =IF(OR(ISERR( INDEX(Данные[Инв. №],$AM210,1)), ISBLANK( INDEX(Данные[Инв. №],$AM210,1))), "",INDEX(Данные[Инв. №],$AM210,1)) ->  | F210: =IF(OR(ISERR(INDEX(Данные[Штрих код первые 6 цифр],$AM210,1)),ISBLANK(INDEX(Данные[Штрих код первые 6 цифр],$AM210,1))),"",LEFT(INDEX(Данные[Штрих код первые 6 цифр],$AM210,1),6)) ->  | I210: =IF(OR(ISERR( INDEX(Данные[Автор, заглавие],$AM210,1)), ISBLANK( INDEX(Данные[Автор, заглавие],$AM210,1))), "",LEFT(INDEX(Данные[Автор, заглавие],$AM210,1),28)) ->  | U210: =IF(OR(ISERR( INDEX(Данные[Год издания],$AM210,1)), ISBLANK( INDEX(Данные[Год издания],$AM210,1))), "",TEXT(INDEX(Данные[Год издания],$AM210,1),0)) ->  | W210: =IF(OR(ISERR( INDEX(Данные[Отдел],$AM210,1)), ISBLANK( INDEX(Данные[Отдел],$AM210,1))), "",TEXT(INDEX(Данные[Отдел],$AM210,1),0)) ->  | Y210: =IF(OR(ISERR( INDEX(Данные[Цена],$AM210,1)), ISBLANK( INDEX(Данные[Цена],$AM210,1))), "",INDEX(Данные[Цена],$AM210,1)) ->  | AD210: =IFERROR(INDEX(Данные[Коэффициент переоценки],$AM210,1),"") ->  | AF210: =IF(OR(ISERR( INDEX(Данные[Кол-во экз.],$AM210,1)), ISBLANK( INDEX(Данные[Кол-во экз.],$AM210,1))), "",INDEX(Данные[Кол-во экз.],$AM210,1)) ->  | AH210: =IF(OR(ISERR(INDEX(Данные[Автор, заглавие],$AM210,1)),ISBLANK(INDEX(Данные[Автор, заглавие],$AM210,1))),"",INDEX(Данные[Стои-мость],$AM210,1)) ->  | AM210: 152
A211: =IFERROR(INDEX(Данные[№пп],AM211,1),"") ->  | C211: =IF(OR(ISERR( INDEX(Данные[Инв. №],$AM211,1)), ISBLANK( INDEX(Данные[Инв. №],$AM211,1))), "",INDEX(Данные[Инв. №],$AM211,1)) ->  | F211: =IF(OR(ISERR(INDEX(Данные[Штрих код первые 6 цифр],$AM211,1)),ISBLANK(INDEX(Данные[Штрих код первые 6 цифр],$AM211,1))),"",LEFT(INDEX(Данные[Штрих код первые 6 цифр],$AM211,1),6)) ->  | I211: =IF(OR(ISERR( INDEX(Данные[Автор, заглавие],$AM211,1)), ISBLANK( INDEX(Данные[Автор, заглавие],$AM211,1))), "",LEFT(INDEX(Данные[Автор, заглавие],$AM211,1),28)) ->  | U211: =IF(OR(ISERR( INDEX(Данные[Год издания],$AM211,1)), ISBLANK( INDEX(Данные[Год издания],$AM211,1))), "",TEXT(INDEX(Данные[Год издания],$AM211,1),0)) ->  | W211: =IF(OR(ISERR( INDEX(Данные[Отдел],$AM211,1)), ISBLANK( INDEX(Данные[Отдел],$AM211,1))), "",TEXT(INDEX(Данные[Отдел],$AM211,1),0)) ->  | Y211: =IF(OR(ISERR( INDEX(Данные[Цена],$AM211,1)), ISBLANK( INDEX(Данные[Цена],$AM211,1))), "",INDEX(Данные[Цена],$AM211,1)) ->  | AD211: =IFERROR(INDEX(Данные[Коэффициент переоценки],$AM211,1),"") ->  | AF211: =IF(OR(ISERR( INDEX(Данные[Кол-во экз.],$AM211,1)), ISBLANK( INDEX(Данные[Кол-во экз.],$AM211,1))), "",INDEX(Данные[Кол-во экз.],$AM211,1)) ->  | AH211: =IF(OR(ISERR(INDEX(Данные[Автор, заглавие],$AM211,1)),ISBLANK(INDEX(Данные[Автор, заглавие],$AM211,1))),"",INDEX(Данные[Стои-мость],$AM211,1)) ->  | AM211: 153
A212: =IFERROR(INDEX(Данные[№пп],AM212,1),"") ->  | C212: =IF(OR(ISERR( INDEX(Данные[Инв. №],$AM212,1)), ISBLANK( INDEX(Данные[Инв. №],$AM212,1))), "",INDEX(Данные[Инв. №],$AM212,1)) ->  | F212: =IF(OR(ISERR(INDEX(Данные[Штрих код первые 6 цифр],$AM212,1)),ISBLANK(INDEX(Данные[Штрих код первые 6 цифр],$AM212,1))),"",LEFT(INDEX(Данные[Штрих код первые 6 цифр],$AM212,1),6)) ->  | I212: =IF(OR(ISERR( INDEX(Данные[Автор, заглавие],$AM212,1)), ISBLANK( INDEX(Данные[Автор, заглавие],$AM212,1))), "",LEFT(INDEX(Данные[Автор, заглавие],$AM212,1),28)) ->  | U212: =IF(OR(ISERR( INDEX(Данные[Год издания],$AM212,1)), ISBLANK( INDEX(Данные[Год издания],$AM212,1))), "",TEXT(INDEX(Данные[Год издания],$AM212,1),0)) ->  | W212: =IF(OR(ISERR( INDEX(Данные[Отдел],$AM212,1)), ISBLANK( INDEX(Данные[Отдел],$AM212,1))), "",TEXT(INDEX(Данные[Отдел],$AM212,1),0)) ->  | Y212: =IF(OR(ISERR( INDEX(Данные[Цена],$AM212,1)), ISBLANK( INDEX(Данные[Цена],$AM212,1))), "",INDEX(Данные[Цена],$AM212,1)) ->  | AD212: =IFERROR(INDEX(Данные[Коэффициент переоценки],$AM212,1),"") ->  | AF212: =IF(OR(ISERR( INDEX(Данные[Кол-во экз.],$AM212,1)), ISBLANK( INDEX(Данные[Кол-во экз.],$AM212,1))), "",INDEX(Данные[Кол-во экз.],$AM212,1)) ->  | AH212: =IF(OR(ISERR(INDEX(Данные[Автор, заглавие],$AM212,1)),ISBLANK(INDEX(Данные[Автор, заглавие],$AM212,1))),"",INDEX(Данные[Стои-мость],$AM212,1)) ->  | AM212: 154
A213: =IFERROR(INDEX(Данные[№пп],AM213,1),"") ->  | C213: =IF(OR(ISERR( INDEX(Данные[Инв. №],$AM213,1)), ISBLANK( INDEX(Данные[Инв. №],$AM213,1))), "",INDEX(Данные[Инв. №],$AM213,1)) ->  | F213: =IF(OR(ISERR(INDEX(Данные[Штрих код первые 6 цифр],$AM213,1)),ISBLANK(INDEX(Данные[Штрих код первые 6 цифр],$AM213,1))),"",LEFT(INDEX(Данные[Штрих код первые 6 цифр],$AM213,1),6)) ->  | I213: =IF(OR(ISERR( INDEX(Данные[Автор, заглавие],$AM213,1)), ISBLANK( INDEX(Данные[Автор, заглавие],$AM213,1))), "",LEFT(INDEX(Данные[Автор, заглавие],$AM213,1),28)) ->  | U213: =IF(OR(ISERR( INDEX(Данные[Год издания],$AM213,1)), ISBLANK( INDEX(Данные[Год издания],$AM213,1))), "",TEXT(INDEX(Данные[Год издания],$AM213,1),0)) ->  | W213: =IF(OR(ISERR( INDEX(Данные[Отдел],$AM213,1)), ISBLANK( INDEX(Данные[Отдел],$AM213,1))), "",TEXT(INDEX(Данные[Отдел],$AM213,1),0)) ->  | Y213: =IF(OR(ISERR( INDEX(Данные[Цена],$AM213,1)), ISBLANK( INDEX(Данные[Цена],$AM213,1))), "",INDEX(Данные[Цена],$AM213,1)) ->  | AD213: =IFERROR(INDEX(Данные[Коэффициент переоценки],$AM213,1),"") ->  | AF213: =IF(OR(ISERR( INDEX(Данные[Кол-во экз.],$AM213,1)), ISBLANK( INDEX(Данные[Кол-во экз.],$AM213,1))), "",INDEX(Данные[Кол-во экз.],$AM213,1)) ->  | AH213: =IF(OR(ISERR(INDEX(Данные[Автор, заглавие],$AM213,1)),ISBLANK(INDEX(Данные[Автор, заглавие],$AM213,1))),"",INDEX(Данные[Стои-мость],$AM213,1)) ->  | AM213: 155
A214: =IFERROR(INDEX(Данные[№пп],AM214,1),"") ->  | C214: =IF(OR(ISERR( INDEX(Данные[Инв. №],$AM214,1)), ISBLANK( INDEX(Данные[Инв. №],$AM214,1))), "",INDEX(Данные[Инв. №],$AM214,1)) ->  | F214: =IF(OR(ISERR(INDEX(Данные[Штрих код первые 6 цифр],$AM214,1)),ISBLANK(INDEX(Данные[Штрих код первые 6 цифр],$AM214,1))),"",LEFT(INDEX(Данные[Штрих код первые 6 цифр],$AM214,1),6)) ->  | I214: =IF(OR(ISERR( INDEX(Данные[Автор, заглавие],$AM214,1)), ISBLANK( INDEX(Данные[Автор, заглавие],$AM214,1))), "",LEFT(INDEX(Данные[Автор, заглавие],$AM214,1),28)) ->  | U214: =IF(OR(ISERR( INDEX(Данные[Год издания],$AM214,1)), ISBLANK( INDEX(Данные[Год издания],$AM214,1))), "",TEXT(INDEX(Данные[Год издания],$AM214,1),0)) ->  | W214: =IF(OR(ISERR( INDEX(Данные[Отдел],$AM214,1)), ISBLANK( INDEX(Данные[Отдел],$AM214,1))), "",TEXT(INDEX(Данные[Отдел],$AM214,1),0)) ->  | Y214: =IF(OR(ISERR( INDEX(Данные[Цена],$AM214,1)), ISBLANK( INDEX(Данные[Цена],$AM214,1))), "",INDEX(Данные[Цена],$AM214,1)) ->  | AD214: =IFERROR(INDEX(Данные[Коэффициент переоценки],$AM214,1),"") ->  | AF214: =IF(OR(ISERR( INDEX(Данные[Кол-во экз.],$AM214,1)), ISBLANK( INDEX(Данные[Кол-во экз.],$AM214,1))), "",INDEX(Данные[Кол-во экз.],$AM214,1)) ->  | AH214: =IF(OR(ISERR(INDEX(Данные[Автор, заглавие],$AM214,1)),ISBLANK(INDEX(Данные[Автор, заглавие],$AM214,1))),"",INDEX(Данные[Стои-мость],$AM214,1)) ->  | AM214: =AM213+1 -> 156
A215: =IFERROR(INDEX(Данные[№пп],AM215,1),"") ->  | C215: =IF(OR(ISERR( INDEX(Данные[Инв. №],$AM215,1)), ISBLANK( INDEX(Данные[Инв. №],$AM215,1))), "",INDEX(Данные[Инв. №],$AM215,1)) ->  | F215: =IF(OR(ISERR(INDEX(Данные[Штрих код первые 6 цифр],$AM215,1)),ISBLANK(INDEX(Данные[Штрих код первые 6 цифр],$AM215,1))),"",LEFT(INDEX(Данные[Штрих код первые 6 цифр],$AM215,1),6)) ->  | I215: =IF(OR(ISERR( INDEX(Данные[Автор, заглавие],$AM215,1)), ISBLANK( INDEX(Данные[Автор, заглавие],$AM215,1))), "",LEFT(INDEX(Данные[Автор, заглавие],$AM215,1),28)) ->  | U215: =IF(OR(ISERR( INDEX(Данные[Год издания],$AM215,1)), ISBLANK( INDEX(Данные[Год издания],$AM215,1))), "",TEXT(INDEX(Данные[Год издания],$AM215,1),0)) ->  | W215: =IF(OR(ISERR( INDEX(Данные[Отдел],$AM215,1)), ISBLANK( INDEX(Данные[Отдел],$AM215,1))), "",TEXT(INDEX(Данные[Отдел],$AM215,1),0)) ->  | Y215: =IF(OR(ISERR( INDEX(Данные[Цена],$AM215,1)), ISBLANK( INDEX(Данные[Цена],$AM215,1))), "",INDEX(Данные[Цена],$AM215,1)) ->  | AD215: =IFERROR(INDEX(Данные[Коэффициент переоценки],$AM215,1),"") ->  | AF215: =IF(OR(ISERR( INDEX(Данные[Кол-во экз.],$AM215,1)), ISBLANK( INDEX(Данные[Кол-во экз.],$AM215,1))), "",INDEX(Данные[Кол-во экз.],$AM215,1)) ->  | AH215: =IF(OR(ISERR(INDEX(Данные[Автор, заглавие],$AM215,1)),ISBLANK(INDEX(Данные[Автор, заглавие],$AM215,1))),"",INDEX(Данные[Стои-мость],$AM215,1)) ->  | AM215: 157
A216: =IFERROR(INDEX(Данные[№пп],AM216,1),"") ->  | C216: =IF(OR(ISERR( INDEX(Данные[Инв. №],$AM216,1)), ISBLANK( INDEX(Данные[Инв. №],$AM216,1))), "",INDEX(Данные[Инв. №],$AM216,1)) ->  | F216: =IF(OR(ISERR(INDEX(Данные[Штрих код первые 6 цифр],$AM216,1)),ISBLANK(INDEX(Данные[Штрих код первые 6 цифр],$AM216,1))),"",LEFT(INDEX(Данные[Штрих код первые 6 цифр],$AM216,1),6)) ->  | I216: =IF(OR(ISERR( INDEX(Данные[Автор, заглавие],$AM216,1)), ISBLANK( INDEX(Данные[Автор, заглавие],$AM216,1))), "",LEFT(INDEX(Данные[Автор, заглавие],$AM216,1),28)) ->  | U216: =IF(OR(ISERR( INDEX(Данные[Год издания],$AM216,1)), ISBLANK( INDEX(Данные[Год издания],$AM216,1))), "",TEXT(INDEX(Данные[Год издания],$AM216,1),0)) ->  | W216: =IF(OR(ISERR( INDEX(Данные[Отдел],$AM216,1)), ISBLANK( INDEX(Данные[Отдел],$AM216,1))), "",TEXT(INDEX(Данные[Отдел],$AM216,1),0)) ->  | Y216: =IF(OR(ISERR( INDEX(Данные[Цена],$AM216,1)), ISBLANK( INDEX(Данные[Цена],$AM216,1))), "",INDEX(Данные[Цена],$AM216,1)) ->  | AD216: =IFERROR(INDEX(Данные[Коэффициент переоценки],$AM216,1),"") ->  | AF216: =IF(OR(ISERR( INDEX(Данные[Кол-во экз.],$AM216,1)), ISBLANK( INDEX(Данные[Кол-во экз.],$AM216,1))), "",INDEX(Данные[Кол-во экз.],$AM216,1)) ->  | AH216: =IF(OR(ISERR(INDEX(Данные[Автор, заглавие],$AM216,1)),ISBLANK(INDEX(Данные[Автор, заглавие],$AM216,1))),"",INDEX(Данные[Стои-мость],$AM216,1)) ->  | AM216: 158
A217: =IFERROR(INDEX(Данные[№пп],AM217,1),"") ->  | C217: =IF(OR(ISERR( INDEX(Данные[Инв. №],$AM217,1)), ISBLANK( INDEX(Данные[Инв. №],$AM217,1))), "",INDEX(Данные[Инв. №],$AM217,1)) ->  | F217: =IF(OR(ISERR(INDEX(Данные[Штрих код первые 6 цифр],$AM217,1)),ISBLANK(INDEX(Данные[Штрих код первые 6 цифр],$AM217,1))),"",LEFT(INDEX(Данные[Штрих код первые 6 цифр],$AM217,1),6)) ->  | I217: =IF(OR(ISERR( INDEX(Данные[Автор, заглавие],$AM217,1)), ISBLANK( INDEX(Данные[Автор, заглавие],$AM217,1))), "",LEFT(INDEX(Данные[Автор, заглавие],$AM217,1),28)) ->  | U217: =IF(OR(ISERR( INDEX(Данные[Год издания],$AM217,1)), ISBLANK( INDEX(Данные[Год издания],$AM217,1))), "",TEXT(INDEX(Данные[Год издания],$AM217,1),0)) ->  | W217: =IF(OR(ISERR( INDEX(Данные[Отдел],$AM217,1)), ISBLANK( INDEX(Данные[Отдел],$AM217,1))), "",TEXT(INDEX(Данные[Отдел],$AM217,1),0)) ->  | Y217: =IF(OR(ISERR( INDEX(Данные[Цена],$AM217,1)), ISBLANK( INDEX(Данные[Цена],$AM217,1))), "",INDEX(Данные[Цена],$AM217,1)) ->  | AD217: =IFERROR(INDEX(Данные[Коэффициент переоценки],$AM217,1),"") ->  | AF217: =IF(OR(ISERR( INDEX(Данные[Кол-во экз.],$AM217,1)), ISBLANK( INDEX(Данные[Кол-во экз.],$AM217,1))), "",INDEX(Данные[Кол-во экз.],$AM217,1)) ->  | AH217: =IF(OR(ISERR(INDEX(Данные[Автор, заглавие],$AM217,1)),ISBLANK(INDEX(Данные[Автор, заглавие],$AM217,1))),"",INDEX(Данные[Стои-мость],$AM217,1)) ->  | AM217: 159
A218: =IFERROR(INDEX(Данные[№пп],AM218,1),"") ->  | C218: =IF(OR(ISERR( INDEX(Данные[Инв. №],$AM218,1)), ISBLANK( INDEX(Данные[Инв. №],$AM218,1))), "",INDEX(Данные[Инв. №],$AM218,1)) ->  | F218: =IF(OR(ISERR(INDEX(Данные[Штрих код первые 6 цифр],$AM218,1)),ISBLANK(INDEX(Данные[Штрих код первые 6 цифр],$AM218,1))),"",LEFT(INDEX(Данные[Штрих код первые 6 цифр],$AM218,1),6)) ->  | I218: =IF(OR(ISERR( INDEX(Данные[Автор, заглавие],$AM218,1)), ISBLANK( INDEX(Данные[Автор, заглавие],$AM218,1))), "",LEFT(INDEX(Данные[Автор, заглавие],$AM218,1),28)) ->  | U218: =IF(OR(ISERR( INDEX(Данные[Год издания],$AM218,1)), ISBLANK( INDEX(Данные[Год издания],$AM218,1))), "",TEXT(INDEX(Данные[Год издания],$AM218,1),0)) ->  | W218: =IF(OR(ISERR( INDEX(Данные[Отдел],$AM218,1)), ISBLANK( INDEX(Данные[Отдел],$AM218,1))), "",TEXT(INDEX(Данные[Отдел],$AM218,1),0)) ->  | Y218: =IF(OR(ISERR( INDEX(Данные[Цена],$AM218,1)), ISBLANK( INDEX(Данные[Цена],$AM218,1))), "",INDEX(Данные[Цена],$AM218,1)) ->  | AD218: =IFERROR(INDEX(Данные[Коэффициент переоценки],$AM218,1),"") ->  | AF218: =IF(OR(ISERR( INDEX(Данные[Кол-во экз.],$AM218,1)), ISBLANK( INDEX(Данные[Кол-во экз.],$AM218,1))), "",INDEX(Данные[Кол-во экз.],$AM218,1)) ->  | AH218: =IF(OR(ISERR(INDEX(Данные[Автор, заглавие],$AM218,1)),ISBLANK(INDEX(Данные[Автор, заглавие],$AM218,1))),"",INDEX(Данные[Стои-мость],$AM218,1)) ->  | AM218: 160
A219: =IFERROR(INDEX(Данные[№пп],AM219,1),"") ->  | C219: =IF(OR(ISERR( INDEX(Данные[Инв. №],$AM219,1)), ISBLANK( INDEX(Данные[Инв. №],$AM219,1))), "",INDEX(Данные[Инв. №],$AM219,1)) ->  | F219: =IF(OR(ISERR(INDEX(Данные[Штрих код первые 6 цифр],$AM219,1)),ISBLANK(INDEX(Данные[Штрих код первые 6 цифр],$AM219,1))),"",LEFT(INDEX(Данные[Штрих код первые 6 цифр],$AM219,1),6)) ->  | I219: =IF(OR(ISERR( INDEX(Данные[Автор, заглавие],$AM219,1)), ISBLANK( INDEX(Данные[Автор, заглавие],$AM219,1))), "",LEFT(INDEX(Данные[Автор, заглавие],$AM219,1),28)) ->  | U219: =IF(OR(ISERR( INDEX(Данные[Год издания],$AM219,1)), ISBLANK( INDEX(Данные[Год издания],$AM219,1))), "",TEXT(INDEX(Данные[Год издания],$AM219,1),0)) ->  | W219: =IF(OR(ISERR( INDEX(Данные[Отдел],$AM219,1)), ISBLANK( INDEX(Данные[Отдел],$AM219,1))), "",TEXT(INDEX(Данные[Отдел],$AM219,1),0)) ->  | Y219: =IF(OR(ISERR( INDEX(Данные[Цена],$AM219,1)), ISBLANK( INDEX(Данные[Цена],$AM219,1))), "",INDEX(Данные[Цена],$AM219,1)) ->  | AD219: =IFERROR(INDEX(Данные[Коэффициент переоценки],$AM219,1),"") ->  | AF219: =IF(OR(ISERR( INDEX(Данные[Кол-во экз.],$AM219,1)), ISBLANK( INDEX(Данные[Кол-во экз.],$AM219,1))), "",INDEX(Данные[Кол-во экз.],$AM219,1)) ->  | AH219: =IF(OR(ISERR(INDEX(Данные[Автор, заглавие],$AM219,1)),ISBLANK(INDEX(Данные[Автор, заглавие],$AM219,1))),"",INDEX(Данные[Стои-мость],$AM219,1)) ->  | AM219: 161
A220: =IFERROR(INDEX(Данные[№пп],AM220,1),"") ->  | C220: =IF(OR(ISERR( INDEX(Данные[Инв. №],$AM220,1)), ISBLANK( INDEX(Данные[Инв. №],$AM220,1))), "",INDEX(Данные[Инв. №],$AM220,1)) ->  | F220: =IF(OR(ISERR(INDEX(Данные[Штрих код первые 6 цифр],$AM220,1)),ISBLANK(INDEX(Данные[Штрих код первые 6 цифр],$AM220,1))),"",LEFT(INDEX(Данные[Штрих код первые 6 цифр],$AM220,1),6)) ->  | I220: =IF(OR(ISERR( INDEX(Данные[Автор, заглавие],$AM220,1)), ISBLANK( INDEX(Данные[Автор, заглавие],$AM220,1))), "",LEFT(INDEX(Данные[Автор, заглавие],$AM220,1),28)) ->  | U220: =IF(OR(ISERR( INDEX(Данные[Год издания],$AM220,1)), ISBLANK( INDEX(Данные[Год издания],$AM220,1))), "",TEXT(INDEX(Данные[Год издания],$AM220,1),0)) ->  | W220: =IF(OR(ISERR( INDEX(Данные[Отдел],$AM220,1)), ISBLANK( INDEX(Данные[Отдел],$AM220,1))), "",TEXT(INDEX(Данные[Отдел],$AM220,1),0)) ->  | Y220: =IF(OR(ISERR( INDEX(Данные[Цена],$AM220,1)), ISBLANK( INDEX(Данные[Цена],$AM220,1))), "",INDEX(Данные[Цена],$AM220,1)) ->  | AD220: =IFERROR(INDEX(Данные[Коэффициент переоценки],$AM220,1),"") ->  | AF220: =IF(OR(ISERR( INDEX(Данные[Кол-во экз.],$AM220,1)), ISBLANK( INDEX(Данные[Кол-во экз.],$AM220,1))), "",INDEX(Данные[Кол-во экз.],$AM220,1)) ->  | AH220: =IF(OR(ISERR(INDEX(Данные[Автор, заглавие],$AM220,1)),ISBLANK(INDEX(Данные[Автор, заглавие],$AM220,1))),"",INDEX(Данные[Стои-мость],$AM220,1)) ->  | AM220: 162
A221: =IFERROR(INDEX(Данные[№пп],AM221,1),"") ->  | C221: =IF(OR(ISERR( INDEX(Данные[Инв. №],$AM221,1)), ISBLANK( INDEX(Данные[Инв. №],$AM221,1))), "",INDEX(Данные[Инв. №],$AM221,1)) ->  | F221: =IF(OR(ISERR(INDEX(Данные[Штрих код первые 6 цифр],$AM221,1)),ISBLANK(INDEX(Данные[Штрих код первые 6 цифр],$AM221,1))),"",LEFT(INDEX(Данные[Штрих код первые 6 цифр],$AM221,1),6)) ->  | I221: =IF(OR(ISERR( INDEX(Данные[Автор, заглавие],$AM221,1)), ISBLANK( INDEX(Данные[Автор, заглавие],$AM221,1))), "",LEFT(INDEX(Данные[Автор, заглавие],$AM221,1),28)) ->  | U221: =IF(OR(ISERR( INDEX(Данные[Год издания],$AM221,1)), ISBLANK( INDEX(Данные[Год издания],$AM221,1))), "",TEXT(INDEX(Данные[Год издания],$AM221,1),0)) ->  | W221: =IF(OR(ISERR( INDEX(Данные[Отдел],$AM221,1)), ISBLANK( INDEX(Данные[Отдел],$AM221,1))), "",TEXT(INDEX(Данные[Отдел],$AM221,1),0)) ->  | Y221: =IF(OR(ISERR( INDEX(Данные[Цена],$AM221,1)), ISBLANK( INDEX(Данные[Цена],$AM221,1))), "",INDEX(Данные[Цена],$AM221,1)) ->  | AD221: =IFERROR(INDEX(Данные[Коэффициент переоценки],$AM221,1),"") ->  | AF221: =IF(OR(ISERR( INDEX(Данные[Кол-во экз.],$AM221,1)), ISBLANK( INDEX(Данные[Кол-во экз.],$AM221,1))), "",INDEX(Данные[Кол-во экз.],$AM221,1)) ->  | AH221: =IF(OR(ISERR(INDEX(Данные[Автор, заглавие],$AM221,1)),ISBLANK(INDEX(Данные[Автор, заглавие],$AM221,1))),"",INDEX(Данные[Стои-мость],$AM221,1)) ->  | AM221: 163
A222: =IFERROR(INDEX(Данные[№пп],AM222,1),"") ->  | C222: =IF(OR(ISERR( INDEX(Данные[Инв. №],$AM222,1)), ISBLANK( INDEX(Данные[Инв. №],$AM222,1))), "",INDEX(Данные[Инв. №],$AM222,1)) ->  | F222: =IF(OR(ISERR(INDEX(Данные[Штрих код первые 6 цифр],$AM222,1)),ISBLANK(INDEX(Данные[Штрих код первые 6 цифр],$AM222,1))),"",LEFT(INDEX(Данные[Штрих код первые 6 цифр],$AM222,1),6)) ->  | I222: =IF(OR(ISERR( INDEX(Данные[Автор, заглавие],$AM222,1)), ISBLANK( INDEX(Данные[Автор, заглавие],$AM222,1))), "",LEFT(INDEX(Данные[Автор, заглавие],$AM222,1),28)) ->  | U222: =IF(OR(ISERR( INDEX(Данные[Год издания],$AM222,1)), ISBLANK( INDEX(Данные[Год издания],$AM222,1))), "",TEXT(INDEX(Данные[Год издания],$AM222,1),0)) ->  | W222: =IF(OR(ISERR( INDEX(Данные[Отдел],$AM222,1)), ISBLANK( INDEX(Данные[Отдел],$AM222,1))), "",TEXT(INDEX(Данные[Отдел],$AM222,1),0)) ->  | Y222: =IF(OR(ISERR( INDEX(Данные[Цена],$AM222,1)), ISBLANK( INDEX(Данные[Цена],$AM222,1))), "",INDEX(Данные[Цена],$AM222,1)) ->  | AD222: =IFERROR(INDEX(Данные[Коэффициент переоценки],$AM222,1),"") ->  | AF222: =IF(OR(ISERR( INDEX(Данные[Кол-во экз.],$AM222,1)), ISBLANK( INDEX(Данные[Кол-во экз.],$AM222,1))), "",INDEX(Данные[Кол-во экз.],$AM222,1)) ->  | AH222: =IF(OR(ISERR(INDEX(Данные[Автор, заглавие],$AM222,1)),ISBLANK(INDEX(Данные[Автор, заглавие],$AM222,1))),"",INDEX(Данные[Стои-мость],$AM222,1)) ->  | AM222: 164
A223: =IFERROR(INDEX(Данные[№пп],AM223,1),"") ->  | C223: =IF(OR(ISERR( INDEX(Данные[Инв. №],$AM223,1)), ISBLANK( INDEX(Данные[Инв. №],$AM223,1))), "",INDEX(Данные[Инв. №],$AM223,1)) ->  | F223: =IF(OR(ISERR(INDEX(Данные[Штрих код первые 6 цифр],$AM223,1)),ISBLANK(INDEX(Данные[Штрих код первые 6 цифр],$AM223,1))),"",LEFT(INDEX(Данные[Штрих код первые 6 цифр],$AM223,1),6)) ->  | I223: =IF(OR(ISERR( INDEX(Данные[Автор, заглавие],$AM223,1)), ISBLANK( INDEX(Данные[Автор, заглавие],$AM223,1))), "",LEFT(INDEX(Данные[Автор, заглавие],$AM223,1),28)) ->  | U223: =IF(OR(ISERR( INDEX(Данные[Год издания],$AM223,1)), ISBLANK( INDEX(Данные[Год издания],$AM223,1))), "",TEXT(INDEX(Данные[Год издания],$AM223,1),0)) ->  | W223: =IF(OR(ISERR( INDEX(Данные[Отдел],$AM223,1)), ISBLANK( INDEX(Данные[Отдел],$AM223,1))), "",TEXT(INDEX(Данные[Отдел],$AM223,1),0)) ->  | Y223: =IF(OR(ISERR( INDEX(Данные[Цена],$AM223,1)), ISBLANK( INDEX(Данные[Цена],$AM223,1))), "",INDEX(Данные[Цена],$AM223,1)) ->  | AD223: =IFERROR(INDEX(Данные[Коэффициент переоценки],$AM223,1),"") ->  | AF223: =IF(OR(ISERR( INDEX(Данные[Кол-во экз.],$AM223,1)), ISBLANK( INDEX(Данные[Кол-во экз.],$AM223,1))), "",INDEX(Данные[Кол-во экз.],$AM223,1)) ->  | AH223: =IF(OR(ISERR(INDEX(Данные[Автор, заглавие],$AM223,1)),ISBLANK(INDEX(Данные[Автор, заглавие],$AM223,1))),"",INDEX(Данные[Стои-мость],$AM223,1)) ->  | AM223: 165
A224: =IFERROR(INDEX(Данные[№пп],AM224,1),"") ->  | C224: =IF(OR(ISERR( INDEX(Данные[Инв. №],$AM224,1)), ISBLANK( INDEX(Данные[Инв. №],$AM224,1))), "",INDEX(Данные[Инв. №],$AM224,1)) ->  | F224: =IF(OR(ISERR(INDEX(Данные[Штрих код первые 6 цифр],$AM224,1)),ISBLANK(INDEX(Данные[Штрих код первые 6 цифр],$AM224,1))),"",LEFT(INDEX(Данные[Штрих код первые 6 цифр],$AM224,1),6)) ->  | I224: =IF(OR(ISERR( INDEX(Данные[Автор, заглавие],$AM224,1)), ISBLANK( INDEX(Данные[Автор, заглавие],$AM224,1))), "",LEFT(INDEX(Данные[Автор, заглавие],$AM224,1),28)) ->  | U224: =IF(OR(ISERR( INDEX(Данные[Год издания],$AM224,1)), ISBLANK( INDEX(Данные[Год издания],$AM224,1))), "",TEXT(INDEX(Данные[Год издания],$AM224,1),0)) ->  | W224: =IF(OR(ISERR( INDEX(Данные[Отдел],$AM224,1)), ISBLANK( INDEX(Данные[Отдел],$AM224,1))), "",TEXT(INDEX(Данные[Отдел],$AM224,1),0)) ->  | Y224: =IF(OR(ISERR( INDEX(Данные[Цена],$AM224,1)), ISBLANK( INDEX(Данные[Цена],$AM224,1))), "",INDEX(Данные[Цена],$AM224,1)) ->  | AD224: =IFERROR(INDEX(Данные[Коэффициент переоценки],$AM224,1),"") ->  | AF224: =IF(OR(ISERR( INDEX(Данные[Кол-во экз.],$AM224,1)), ISBLANK( INDEX(Данные[Кол-во экз.],$AM224,1))), "",INDEX(Данные[Кол-во экз.],$AM224,1)) ->  | AH224: =IF(OR(ISERR(INDEX(Данные[Автор, заглавие],$AM224,1)),ISBLANK(INDEX(Данные[Автор, заглавие],$AM224,1))),"",INDEX(Данные[Стои-мость],$AM224,1)) ->  | AM224: 166
A225: =IFERROR(INDEX(Данные[№пп],AM225,1),"") ->  | C225: =IF(OR(ISERR( INDEX(Данные[Инв. №],$AM225,1)), ISBLANK( INDEX(Данные[Инв. №],$AM225,1))), "",INDEX(Данные[Инв. №],$AM225,1)) ->  | F225: =IF(OR(ISERR(INDEX(Данные[Штрих код первые 6 цифр],$AM225,1)),ISBLANK(INDEX(Данные[Штрих код первые 6 цифр],$AM225,1))),"",LEFT(INDEX(Данные[Штрих код первые 6 цифр],$AM225,1),6)) ->  | I225: =IF(OR(ISERR( INDEX(Данные[Автор, заглавие],$AM225,1)), ISBLANK( INDEX(Данные[Автор, заглавие],$AM225,1))), "",LEFT(INDEX(Данные[Автор, заглавие],$AM225,1),28)) ->  | U225: =IF(OR(ISERR( INDEX(Данные[Год издания],$AM225,1)), ISBLANK( INDEX(Данные[Год издания],$AM225,1))), "",TEXT(INDEX(Данные[Год издания],$AM225,1),0)) ->  | W225: =IF(OR(ISERR( INDEX(Данные[Отдел],$AM225,1)), ISBLANK( INDEX(Данные[Отдел],$AM225,1))), "",TEXT(INDEX(Данные[Отдел],$AM225,1),0)) ->  | Y225: =IF(OR(ISERR( INDEX(Данные[Цена],$AM225,1)), ISBLANK( INDEX(Данные[Цена],$AM225,1))), "",INDEX(Данные[Цена],$AM225,1)) ->  | AD225: =IFERROR(INDEX(Данные[Коэффициент переоценки],$AM225,1),"") ->  | AF225: =IF(OR(ISERR( INDEX(Данные[Кол-во экз.],$AM225,1)), ISBLANK( INDEX(Данные[Кол-во экз.],$AM225,1))), "",INDEX(Данные[Кол-во экз.],$AM225,1)) ->  | AH225: =IF(OR(ISERR(INDEX(Данные[Автор, заглавие],$AM225,1)),ISBLANK(INDEX(Данные[Автор, заглавие],$AM225,1))),"",INDEX(Данные[Стои-мость],$AM225,1)) ->  | AM225: 167
A226: =IFERROR(INDEX(Данные[№пп],AM226,1),"") ->  | C226: =IF(OR(ISERR( INDEX(Данные[Инв. №],$AM226,1)), ISBLANK( INDEX(Данные[Инв. №],$AM226,1))), "",INDEX(Данные[Инв. №],$AM226,1)) ->  | F226: =IF(OR(ISERR(INDEX(Данные[Штрих код первые 6 цифр],$AM226,1)),ISBLANK(INDEX(Данные[Штрих код первые 6 цифр],$AM226,1))),"",LEFT(INDEX(Данные[Штрих код первые 6 цифр],$AM226,1),6)) ->  | I226: =IF(OR(ISERR( INDEX(Данные[Автор, заглавие],$AM226,1)), ISBLANK( INDEX(Данные[Автор, заглавие],$AM226,1))), "",LEFT(INDEX(Данные[Автор, заглавие],$AM226,1),28)) ->  | U226: =IF(OR(ISERR( INDEX(Данные[Год издания],$AM226,1)), ISBLANK( INDEX(Данные[Год издания],$AM226,1))), "",TEXT(INDEX(Данные[Год издания],$AM226,1),0)) ->  | W226: =IF(OR(ISERR( INDEX(Данные[Отдел],$AM226,1)), ISBLANK( INDEX(Данные[Отдел],$AM226,1))), "",TEXT(INDEX(Данные[Отдел],$AM226,1),0)) ->  | Y226: =IF(OR(ISERR( INDEX(Данные[Цена],$AM226,1)), ISBLANK( INDEX(Данные[Цена],$AM226,1))), "",INDEX(Данные[Цена],$AM226,1)) ->  | AD226: =IFERROR(INDEX(Данные[Коэффициент переоценки],$AM226,1),"") ->  | AF226: =IF(OR(ISERR( INDEX(Данные[Кол-во экз.],$AM226,1)), ISBLANK( INDEX(Данные[Кол-во экз.],$AM226,1))), "",INDEX(Данные[Кол-во экз.],$AM226,1)) ->  | AH226: =IF(OR(ISERR(INDEX(Данные[Автор, заглавие],$AM226,1)),ISBLANK(INDEX(Данные[Автор, заглавие],$AM226,1))),"",INDEX(Данные[Стои-мость],$AM226,1)) ->  | AM226: 168
A227: =IFERROR(INDEX(Данные[№пп],AM227,1),"") ->  | C227: =IF(OR(ISERR( INDEX(Данные[Инв. №],$AM227,1)), ISBLANK( INDEX(Данные[Инв. №],$AM227,1))), "",INDEX(Данные[Инв. №],$AM227,1)) ->  | F227: =IF(OR(ISERR(INDEX(Данные[Штрих код первые 6 цифр],$AM227,1)),ISBLANK(INDEX(Данные[Штрих код первые 6 цифр],$AM227,1))),"",LEFT(INDEX(Данные[Штрих код первые 6 цифр],$AM227,1),6)) ->  | I227: =IF(OR(ISERR( INDEX(Данные[Автор, заглавие],$AM227,1)), ISBLANK( INDEX(Данные[Автор, заглавие],$AM227,1))), "",LEFT(INDEX(Данные[Автор, заглавие],$AM227,1),28)) ->  | U227: =IF(OR(ISERR( INDEX(Данные[Год издания],$AM227,1)), ISBLANK( INDEX(Данные[Год издания],$AM227,1))), "",TEXT(INDEX(Данные[Год издания],$AM227,1),0)) ->  | W227: =IF(OR(ISERR( INDEX(Данные[Отдел],$AM227,1)), ISBLANK( INDEX(Данные[Отдел],$AM227,1))), "",TEXT(INDEX(Данные[Отдел],$AM227,1),0)) ->  | Y227: =IF(OR(ISERR( INDEX(Данные[Цена],$AM227,1)), ISBLANK( INDEX(Данные[Цена],$AM227,1))), "",INDEX(Данные[Цена],$AM227,1)) ->  | AD227: =IFERROR(INDEX(Данные[Коэффициент переоценки],$AM227,1),"") ->  | AF227: =IF(OR(ISERR( INDEX(Данные[Кол-во экз.],$AM227,1)), ISBLANK( INDEX(Данные[Кол-во экз.],$AM227,1))), "",INDEX(Данные[Кол-во экз.],$AM227,1)) ->  | AH227: =IF(OR(ISERR(INDEX(Данные[Автор, заглавие],$AM227,1)),ISBLANK(INDEX(Данные[Автор, заглавие],$AM227,1))),"",INDEX(Данные[Стои-мость],$AM227,1)) ->  | AM227: 169
A228: =IFERROR(INDEX(Данные[№пп],AM228,1),"") ->  | C228: =IF(OR(ISERR( INDEX(Данные[Инв. №],$AM228,1)), ISBLANK( INDEX(Данные[Инв. №],$AM228,1))), "",INDEX(Данные[Инв. №],$AM228,1)) ->  | F228: =IF(OR(ISERR(INDEX(Данные[Штрих код первые 6 цифр],$AM228,1)),ISBLANK(INDEX(Данные[Штрих код первые 6 цифр],$AM228,1))),"",LEFT(INDEX(Данные[Штрих код первые 6 цифр],$AM228,1),6)) ->  | I228: =IF(OR(ISERR( INDEX(Данные[Автор, заглавие],$AM228,1)), ISBLANK( INDEX(Данные[Автор, заглавие],$AM228,1))), "",LEFT(INDEX(Данные[Автор, заглавие],$AM228,1),28)) ->  | U228: =IF(OR(ISERR( INDEX(Данные[Год издания],$AM228,1)), ISBLANK( INDEX(Данные[Год издания],$AM228,1))), "",TEXT(INDEX(Данные[Год издания],$AM228,1),0)) ->  | W228: =IF(OR(ISERR( INDEX(Данные[Отдел],$AM228,1)), ISBLANK( INDEX(Данные[Отдел],$AM228,1))), "",TEXT(INDEX(Данные[Отдел],$AM228,1),0)) ->  | Y228: =IF(OR(ISERR( INDEX(Данные[Цена],$AM228,1)), ISBLANK( INDEX(Данные[Цена],$AM228,1))), "",INDEX(Данные[Цена],$AM228,1)) ->  | AD228: =IFERROR(INDEX(Данные[Коэффициент переоценки],$AM228,1),"") ->  | AF228: =IF(OR(ISERR( INDEX(Данные[Кол-во экз.],$AM228,1)), ISBLANK( INDEX(Данные[Кол-во экз.],$AM228,1))), "",INDEX(Данные[Кол-во экз.],$AM228,1)) ->  | AH228: =IF(OR(ISERR(INDEX(Данные[Автор, заглавие],$AM228,1)),ISBLANK(INDEX(Данные[Автор, заглавие],$AM228,1))),"",INDEX(Данные[Стои-мость],$AM228,1)) ->  | AM228: 170
... 2083 more rows

Sheet библиотечный (hidden)
A1: Рассмотрено на комиссии | F1: Утверждаю
A2: по сохранности фондов | F2: директор МКУК "Здвинская ЦБС"
A3: Протокол №____________ | F3: Деменева Р.В.
A4: от "______"_______________20____г.
E6: АКТ №________
D7: =CONCATENATE("«",'Технический лист'!F19,"» ",'Технический лист'!G19," ",'Технический лист'!H19," г.") -> «13» октября 2023 г.
A9: Настоящий акт составлен | D9: ='Форма ВВОДА'!B5 -> Кривошаповой Л. А. библиотекарь
D10: (фамилии, имена, отчества и должности лиц)
A11: Комиссия | C11: =CONCATENATE('Технический лист'!E15," ",'Технический лист'!E16," ",'Технический лист'!E17) -> зав. ДБ Кузнецова Е. Е. зав. сек. ОКиО Гордеева В. И. редактор Брянская О. В.
A12: об исключении из библиотечного фонда | D12: ='Форма ВВОДА'!B4 -> Вер-Урюмской сельской библиотеки
D13: (наименование библиотеки или ее подразделения)
A14: =CONCATENATE(" «",SUM(Данные[Кол-во экз.]), "» экземпляров") -> «0» экземпляров | D14: ='Форма ВВОДА'!B2 -> книг
D15: (указать вид документов)
A16: на сумму | C16: ='Форма ВВОДА'!B23 -> 
A17: по причине | C17: ='Форма ВВОДА'!B3 -> ветхие
C18: (указать причину исключения)
A19: список выбывших | D19: ='Форма ВВОДА'!B2 -> книг
D20: (указать вид документов)
A23: всего | B23: книг | C23: брошюры ОПЛ | D23: 2.5 | E23: 3 | F23: 4 75,85 81,83 | H23: Худ. | I23: Дет.
A24: =SUM(Данные[Кол-во экз.]) -> 0 | B24: =IF('Форма ВВОДА'!B2="книг",A24,"") -> 0 | C24: =CONCATENATE(IF('Форма ВВОДА'!B2="брошюр",A24,""),REPT(" ",50-LEN(A24)-LEN('Форма ВВОДА'!B13)),'Форма ВВОДА'!B13) ->  | D24: ='Форма ВВОДА'!B14 ->  | E24: ='Форма ВВОДА'!B15 ->  | F24: =CONCATENATE(" ",'Форма ВВОДА'!B16,REPT(" ",7-LEN('Форма ВВОДА'!B16)),'Форма ВВОДА'!B17,REPT(" ",7-LEN('Форма ВВОДА'!B17)),'Форма ВВОДА'!B18) ->  | H24: ='Форма ВВОДА'!B19 ->  | I24: ='Форма ВВОДА'!B20 -> 
B27: Подписи:
B28: =CONCATENATE('Форма ВВОДА'!C8,"___________________") -> Кузнецова Е. Е.___________________
B29: =CONCATENATE('Форма ВВОДА'!C9,"___________________") -> Гордеева В. И.___________________
B30: =CONCATENATE('Форма ВВОДА'!C10,"___________________") -> Брянская О. В.___________________
D31: Список по акту №_________
A33: №пп | B33: Инв. № | C33: Автор, заглавие | D33: Год издания | E33: Отдел | F33: Цена | G33: Коэфф. переоценки | H33: Кол-во экз. | I33: Стоимость
F34: руб.коп.
A35: =IFERROR(INDEX(Данные[№пп],ROW()-(33+J35),1),"") ->  | B35: =IF(OR(ISERR(INDEX(Данные[Инв. №],ROW()-(33+J35),1)),ISBLANK(INDEX(Данные[Инв. №],ROW()-(33+J35),1))),"",INDEX(Данные[Инв. №],ROW()-(33+J35),1)) ->  | C35: =IF(OR(ISERR(INDEX(Данные[Автор, заглавие],ROW()-(33+J35),1)),ISBLANK(INDEX(Данные[Автор, заглавие],ROW()-(33+J35),1))),"",INDEX(Данные[Автор, заглавие],ROW()-(33+J35),1)) ->  | D35: =IF(OR(ISERR(INDEX(Данные[Год издания],ROW()-(33+J35),1)),ISBLANK(INDEX(Данные[Год издания],ROW()-(33+J35),1))),"",INDEX(Данные[Год издания],ROW()-(33+J35),1)) ->  | E35: =IF(OR(ISERR(INDEX(Данные[Отдел],ROW()-(33+J35),1)),ISBLANK(INDEX(Данные[Отдел],ROW()-(33+J35),1))),"",INDEX(Данные[Отдел],ROW()-(33+J35),1)) ->  | F35: =IF(OR(ISERR(INDEX(Данные[Цена],ROW()-(33+J35),1)),ISBLANK(INDEX(Данные[Цена],ROW()-(33+J35),1))),"",INDEX(Данные[Цена],ROW()-(33+J35),1)) ->  | G35: =IFERROR(INDEX(Данные[Коэффициент переоценки],ROW()-(33+J35),1),"") ->  | H35: =IF(OR(ISERR(INDEX(Данные[Автор, заглавие],ROW()-(33+J35),1)),ISBLANK(INDEX(Данные[Автор, заглавие],ROW()-(33+J35),1))),"",INDEX(Данные[Кол-во экз.],ROW()-(33+J35),1)) ->  | I35: =IF(OR(ISERR(INDEX(Данные[Автор, заглавие],ROW()-(33+J35),1)),ISBLANK(INDEX(Данные[Автор, заглавие],ROW()-(33+J35),1))),"",INDEX(Данные[Стои-мость],ROW()-(33+J35),1)) ->  | J35: =INT((ROW()+52)/49) -> 1
A36: =IFERROR(INDEX(Данные[№пп],ROW()-(33+J36),1),"") ->  | B36: =IF(OR(ISERR(INDEX(Данные[Инв. №],ROW()-(33+J36),1)),ISBLANK(INDEX(Данные[Инв. №],ROW()-(33+J36),1))),"",INDEX(Данные[Инв. №],ROW()-(33+J36),1)) ->  | C36: =IF(OR(ISERR(INDEX(Данные[Автор, заглавие],ROW()-(33+J36),1)),ISBLANK(INDEX(Данные[Автор, заглавие],ROW()-(33+J36),1))),"",INDEX(Данные[Автор, заглавие],ROW()-(33+J36),1)) ->  | D36: =IF(OR(ISERR(INDEX(Данные[Год издания],ROW()-(33+J36),1)),ISBLANK(INDEX(Данные[Год издания],ROW()-(33+J36),1))),"",INDEX(Данные[Год издания],ROW()-(33+J36),1)) ->  | E36: =IF(OR(ISERR(INDEX(Данные[Отдел],ROW()-(33+J36),1)),ISBLANK(INDEX(Данные[Отдел],ROW()-(33+J36),1))),"",INDEX(Данные[Отдел],ROW()-(33+J36),1)) ->  | F36: =IF(OR(ISERR(INDEX(Данные[Цена],ROW()-(33+J36),1)),ISBLANK(INDEX(Данные[Цена],ROW()-(33+J36),1))),"",INDEX(Данные[Цена],ROW()-(33+J36),1)) ->  | G36: =IFERROR(INDEX(Данные[Коэффициент переоценки],ROW()-(33+J36),1),"") ->  | H36: =IF(OR(ISERR(INDEX(Данные[Автор, заглавие],ROW()-(33+J36),1)),ISBLANK(INDEX(Данные[Автор, заглавие],ROW()-(33+J36),1))),"",INDEX(Данные[Кол-во экз.],ROW()-(33+J36),1)) ->  | I36: =IF(OR(ISERR(INDEX(Данные[Автор, заглавие],ROW()-(33+J36),1)),ISBLANK(INDEX(Данные[Автор, заглавие],ROW()-(33+J36),1))),"",INDEX(Данные[Стои-мость],ROW()-(33+J36),1)) ->  | J36: =INT((ROW()+52)/49) -> 1
A37: =IFERROR(INDEX(Данные[№пп],ROW()-(33+J37),1),"") ->  | B37: =IF(OR(ISERR(INDEX(Данные[Инв. №],ROW()-(33+J37),1)),ISBLANK(INDEX(Данные[Инв. №],ROW()-(33+J37),1))),"",INDEX(Данные[Инв. №],ROW()-(33+J37),1)) ->  | C37: =IF(OR(ISERR(INDEX(Данные[Автор, заглавие],ROW()-(33+J37),1)),ISBLANK(INDEX(Данные[Автор, заглавие],ROW()-(33+J37),1))),"",INDEX(Данные[Автор, заглавие],ROW()-(33+J37),1)) ->  | D37: =IF(OR(ISERR(INDEX(Данные[Год издания],ROW()-(33+J37),1)),ISBLANK(INDEX(Данные[Год издания],ROW()-(33+J37),1))),"",INDEX(Данные[Год издания],ROW()-(33+J37),1)) ->  | E37: =IF(OR(ISERR(INDEX(Данные[Отдел],ROW()-(33+J37),1)),ISBLANK(INDEX(Данные[Отдел],ROW()-(33+J37),1))),"",INDEX(Данные[Отдел],ROW()-(33+J37),1)) ->  | F37: =IF(OR(ISERR(INDEX(Данные[Цена],ROW()-(33+J37),1)),ISBLANK(INDEX(Данные[Цена],ROW()-(33+J37),1))),"",INDEX(Данные[Цена],ROW()-(33+J37),1)) ->  | G37: =IFERROR(INDEX(Данные[Коэффициент переоценки],ROW()-(33+J37),1),"") ->  | H37: =IF(OR(ISERR(INDEX(Данные[Автор, заглавие],ROW()-(33+J37),1)),ISBLANK(INDEX(Данные[Автор, заглавие],ROW()-(33+J37),1))),"",INDEX(Данные[Кол-во экз.],ROW()-(33+J37),1)) ->  | I37: =IF(OR(ISERR(INDEX(Данные[Автор, заглавие],ROW()-(33+J37),1)),ISBLANK(INDEX(Данные[Автор, заглавие],ROW()-(33+J37),1))),"",INDEX(Данные[Стои-мость],ROW()-(33+J37),1)) ->  | J37: 1
A38: =IFERROR(INDEX(Данные[№пп],ROW()-(33+J38),1),"") ->  | B38: =IF(OR(ISERR(INDEX(Данные[Инв. №],ROW()-(33+J38),1)),ISBLANK(INDEX(Данные[Инв. №],ROW()-(33+J38),1))),"",INDEX(Данные[Инв. №],ROW()-(33+J38),1)) ->  | C38: =IF(OR(ISERR(INDEX(Данные[Автор, заглавие],ROW()-(33+J38),1)),ISBLANK(INDEX(Данные[Автор, заглавие],ROW()-(33+J38),1))),"",INDEX(Данные[Автор, заглавие],ROW()-(33+J38),1)) ->  | D38: =IF(OR(ISERR(INDEX(Данные[Год издания],ROW()-(33+J38),1)),ISBLANK(INDEX(Данные[Год издания],ROW()-(33+J38),1))),"",INDEX(Данные[Год издания],ROW()-(33+J38),1)) ->  | E38: =IF(OR(ISERR(INDEX(Данные[Отдел],ROW()-(33+J38),1)),ISBLANK(INDEX(Данные[Отдел],ROW()-(33+J38),1))),"",INDEX(Данные[Отдел],ROW()-(33+J38),1)) ->  | F38: =IF(OR(ISERR(INDEX(Данные[Цена],ROW()-(33+J38),1)),ISBLANK(INDEX(Данные[Цена],ROW()-(33+J38),1))),"",INDEX(Данные[Цена],ROW()-(33+J38),1)) ->  | G38: =IFERROR(INDEX(Данные[Коэффициент переоценки],ROW()-(33+J38),1),"") ->  | H38: =IF(OR(ISERR(INDEX(Данные[Автор, заглавие],ROW()-(33+J38),1)),ISBLANK(INDEX(Данные[Автор, заглавие],ROW()-(33+J38),1))),"",INDEX(Данные[Кол-во экз.],ROW()-(33+J38),1)) ->  | I38: =IF(OR(ISERR(INDEX(Данные[Автор, заглавие],ROW()-(33+J38),1)),ISBLANK(INDEX(Данные[Автор, заглавие],ROW()-(33+J38),1))),"",INDEX(Данные[Стои-мость],ROW()-(33+J38),1)) ->  | J38: 1
A39: =IFERROR(INDEX(Данные[№пп],ROW()-(33+J39),1),"") ->  | B39: =IF(OR(ISERR(INDEX(Данные[Инв. №],ROW()-(33+J39),1)),ISBLANK(INDEX(Данные[Инв. №],ROW()-(33+J39),1))),"",INDEX(Данные[Инв. №],ROW()-(33+J39),1)) ->  | C39: =IF(OR(ISERR(INDEX(Данные[Автор, заглавие],ROW()-(33+J39),1)),ISBLANK(INDEX(Данные[Автор, заглавие],ROW()-(33+J39),1))),"",INDEX(Данные[Автор, заглавие],ROW()-(33+J39),1)) ->  | D39: =IF(OR(ISERR(INDEX(Данные[Год издания],ROW()-(33+J39),1)),ISBLANK(INDEX(Данные[Год издания],ROW()-(33+J39),1))),"",INDEX(Данные[Год издания],ROW()-(33+J39),1)) ->  | E39: =IF(OR(ISERR(INDEX(Данные[Отдел],ROW()-(33+J39),1)),ISBLANK(INDEX(Данные[Отдел],ROW()-(33+J39),1))),"",INDEX(Данные[Отдел],ROW()-(33+J39),1)) ->  | F39: =IF(OR(ISERR(INDEX(Данные[Цена],ROW()-(33+J39),1)),ISBLANK(INDEX(Данные[Цена],ROW()-(33+J39),1))),"",INDEX(Данные[Цена],ROW()-(33+J39),1)) ->  | G39: =IFERROR(INDEX(Данные[Коэффициент переоценки],ROW()-(33+J39),1),"") ->  | H39: =IF(OR(ISERR(INDEX(Данные[Автор, заглавие],ROW()-(33+J39),1)),ISBLANK(INDEX(Данные[Автор, заглавие],ROW()-(33+J39),1))),"",INDEX(Данные[Кол-во экз.],ROW()-(33+J39),1)) ->  | I39: =IF(OR(ISERR(INDEX(Данные[Автор, заглавие],ROW()-(33+J39),1)),ISBLANK(INDEX(Данные[Автор, заглавие],ROW()-(33+J39),1))),"",INDEX(Данные[Стои-мость],ROW()-(33+J39),1)) ->  | J39: 1
A40: =IFERROR(INDEX(Данные[№пп],ROW()-(33+J40),1),"") ->  | B40: =IF(OR(ISERR(INDEX(Данные[Инв. №],ROW()-(33+J40),1)),ISBLANK(INDEX(Данные[Инв. №],ROW()-(33+J40),1))),"",INDEX(Данные[Инв. №],ROW()-(33+J40),1)) ->  | C40: =IF(OR(ISERR(INDEX(Данные[Автор, заглавие],ROW()-(33+J40),1)),ISBLANK(INDEX(Данные[Автор, заглавие],ROW()-(33+J40),1))),"",INDEX(Данные[Автор, заглавие],ROW()-(33+J40),1)) ->  | D40: =IF(OR(ISERR(INDEX(Данные[Год издания],ROW()-(33+J40),1)),ISBLANK(INDEX(Данные[Год издания],ROW()-(33+J40),1))),"",INDEX(Данные[Год издания],ROW()-(33+J40),1)) ->  | E40: =IF(OR(ISERR(INDEX(Данные[Отдел],ROW()-(33+J40),1)),ISBLANK(INDEX(Данные[Отдел],ROW()-(33+J40),1))),"",INDEX(Данные[Отдел],ROW()-(33+J40),1)) ->  | F40: =IF(OR(ISERR(INDEX(Данные[Цена],ROW()-(33+J40),1)),ISBLANK(INDEX(Данные[Цена],ROW()-(33+J40),1))),"",INDEX(Данные[Цена],ROW()-(33+J40),1)) ->  | G40: =IFERROR(INDEX(Данные[Коэффициент переоценки],ROW()-(33+J40),1),"") ->  | H40: =IF(OR(ISERR(INDEX(Данные[Автор, заглавие],ROW()-(33+J40),1)),ISBLANK(INDEX(Данные[Автор, заглавие],ROW()-(33+J40),1))),"",INDEX(Данные[Кол-во экз.],ROW()-(33+J40),1)) ->  | I40: =IF(OR(ISERR(INDEX(Данные[Автор, заглавие],ROW()-(33+J40),1)),ISBLANK(INDEX(Данные[Автор, заглавие],ROW()-(33+J40),1))),"",INDEX(Данные[Стои-мость],ROW()-(33+J40),1)) ->  | J40: 1
A41: =IFERROR(INDEX(Данные[№пп],ROW()-(33+J41),1),"") ->  | B41: =IF(OR(ISERR(INDEX(Данные[Инв. №],ROW()-(33+J41),1)),ISBLANK(INDEX(Данные[Инв. №],ROW()-(33+J41),1))),"",INDEX(Данные[Инв. №],ROW()-(33+J41),1)) ->  | C41: =IF(OR(ISERR(INDEX(Данные[Автор, заглавие],ROW()-(33+J41),1)),ISBLANK(INDEX(Данные[Автор, заглавие],ROW()-(33+J41),1))),"",INDEX(Данные[Автор, заглавие],ROW()-(33+J41),1)) ->  | D41: =IF(OR(ISERR(INDEX(Данные[Год издания],ROW()-(33+J41),1)),ISBLANK(INDEX(Данные[Год издания],ROW()-(33+J41),1))),"",INDEX(Данные[Год издания],ROW()-(33+J41),1)) ->  | E41: =IF(OR(ISERR(INDEX(Данные[Отдел],ROW()-(33+J41),1)),ISBLANK(INDEX(Данные[Отдел],ROW()-(33+J41),1))),"",INDEX(Данные[Отдел],ROW()-(33+J41),1)) ->  | F41: =IF(OR(ISERR(INDEX(Данные[Цена],ROW()-(33+J41),1)),ISBLANK(INDEX(Данные[Цена],ROW()-(33+J41),1))),"",INDEX(Данные[Цена],ROW()-(33+J41),1)) ->  | G41: =IFERROR(INDEX(Данные[Коэффициент переоценки],ROW()-(33+J41),1),"") ->  | H41: =IF(OR(ISERR(INDEX(Данные[Автор, заглавие],ROW()-(33+J41),1)),ISBLANK(INDEX(Данные[Автор, заглавие],ROW()-(33+J41),1))),"",INDEX(Данные[Кол-во экз.],ROW()-(33+J41),1)) ->  | I41: =IF(OR(ISERR(INDEX(Данные[Автор, заглавие],ROW()-(33+J41),1)),ISBLANK(INDEX(Данные[Автор, заглавие],ROW()-(33+J41),1))),"",INDEX(Данные[Стои-мость],ROW()-(33+J41),1)) ->  | J41: 1
A42: =IFERROR(INDEX(Данные[№пп],ROW()-(33+J42),1),"") ->  | B42: =IF(OR(ISERR(INDEX(Данные[Инв. №],ROW()-(33+J42),1)),ISBLANK(INDEX(Данные[Инв. №],ROW()-(33+J42),1))),"",INDEX(Данные[Инв. №],ROW()-(33+J42),1)) ->  | C42: =IF(OR(ISERR(INDEX(Данные[Автор, заглавие],ROW()-(33+J42),1)),ISBLANK(INDEX(Данные[Автор, заглавие],ROW()-(33+J42),1))),"",INDEX(Данные[Автор, заглавие],ROW()-(33+J42),1)) ->  | D42: =IF(OR(ISERR(INDEX(Данные[Год издания],ROW()-(33+J42),1)),ISBLANK(INDEX(Данные[Год издания],ROW()-(33+J42),1))),"",INDEX(Данные[Год издания],ROW()-(33+J42),1)) ->  | E42: =IF(OR(ISERR(INDEX(Данные[Отдел],ROW()-(33+J42),1)),ISBLANK(INDEX(Данные[Отдел],ROW()-(33+J42),1))),"",INDEX(Данные[Отдел],ROW()-(33+J42),1)) ->  | F42: =IF(OR(ISERR(INDEX(Данные[Цена],ROW()-(33+J42),1)),ISBLANK(INDEX(Данные[Цена],ROW()-(33+J42),1))),"",INDEX(Данные[Цена],ROW()-(33+J42),1)) ->  | G42: =IFERROR(INDEX(Данные[Коэффициент переоценки],ROW()-(33+J42),1),"") ->  | H42: =IF(OR(ISERR(INDEX(Данные[Автор, заглавие],ROW()-(33+J42),1)),ISBLANK(INDEX(Данные[Автор, заглавие],ROW()-(33+J42),1))),"",INDEX(Данные[Кол-во экз.],ROW()-(33+J42),1)) ->  | I42: =IF(OR(ISERR(INDEX(Данные[Автор, заглавие],ROW()-(33+J42),1)),ISBLANK(INDEX(Данные[Автор, заглавие],ROW()-(33+J42),1))),"",INDEX(Данные[Стои-мость],ROW()-(33+J42),1)) ->  | J42: 1
A43: =IFERROR(INDEX(Данные[№пп],ROW()-(33+J43),1),"") ->  | B43: =IF(OR(ISERR(INDEX(Данные[Инв. №],ROW()-(33+J43),1)),ISBLANK(INDEX(Данные[Инв. №],ROW()-(33+J43),1))),"",INDEX(Данные[Инв. №],ROW()-(33+J43),1)) ->  | C43: =IF(OR(ISERR(INDEX(Данные[Автор, заглавие],ROW()-(33+J43),1)),ISBLANK(INDEX(Данные[Автор, заглавие],ROW()-(33+J43),1))),"",INDEX(Данные[Автор, заглавие],ROW()-(33+J43),1)) ->  | D43: =IF(OR(ISERR(INDEX(Данные[Год издания],ROW()-(33+J43),1)),ISBLANK(INDEX(Данные[Год издания],ROW()-(33+J43),1))),"",INDEX(Данные[Год издания],ROW()-(33+J43),1)) ->  | E43: =IF(OR(ISERR(INDEX(Данные[Отдел],ROW()-(33+J43),1)),ISBLANK(INDEX(Данные[Отдел],ROW()-(33+J43),1))),"",INDEX(Данные[Отдел],ROW()-(33+J43),1)) ->  | F43: =IF(OR(ISERR(INDEX(Данные[Цена],ROW()-(33+J43),1)),ISBLANK(INDEX(Данные[Цена],ROW()-(33+J43),1))),"",INDEX(Данные[Цена],ROW()-(33+J43),1)) ->  | G43: =IFERROR(INDEX(Данные[Коэффициент переоценки],ROW()-(33+J43),1),"") ->  | H43: =IF(OR(ISERR(INDEX(Данные[Автор, заглавие],ROW()-(33+J43),1)),ISBLANK(INDEX(Данные[Автор, заглавие],ROW()-(33+J43),1))),"",INDEX(Данные[Кол-во экз.],ROW()-(33+J43),1)) ->  | I43: =IF(OR(ISERR(INDEX(Данные[Автор, заглавие],ROW()-(33+J43),1)),ISBLANK(INDEX(Данные[Автор, заглавие],ROW()-(33+J43),1))),"",INDEX(Данные[Стои-мость],ROW()-(33+J43),1)) ->  | J43: 1
A44: =IFERROR(INDEX(Данные[№пп],ROW()-(33+J44),1),"") ->  | B44: =IF(OR(ISERR(INDEX(Данные[Инв. №],ROW()-(33+J44),1)),ISBLANK(INDEX(Данные[Инв. №],ROW()-(33+J44),1))),"",INDEX(Данные[Инв. №],ROW()-(33+J44),1)) ->  | C44: =IF(OR(ISERR(INDEX(Данные[Автор, заглавие],ROW()-(33+J44),1)),ISBLANK(INDEX(Данные[Автор, заглавие],ROW()-(33+J44),1))),"",INDEX(Данные[Автор, заглавие],ROW()-(33+J44),1)) ->  | D44: =IF(OR(ISERR(INDEX(Данные[Год издания],ROW()-(33+J44),1)),ISBLANK(INDEX(Данные[Год издания],ROW()-(33+J44),1))),"",INDEX(Данные[Год издания],ROW()-(33+J44),1)) ->  | E44: =IF(OR(ISERR(INDEX(Данные[Отдел],ROW()-(33+J44),1)),ISBLANK(INDEX(Данные[Отдел],ROW()-(33+J44),1))),"",INDEX(Данные[Отдел],ROW()-(33+J44),1)) ->  | F44: =IF(OR(ISERR(INDEX(Данные[Цена],ROW()-(33+J44),1)),ISBLANK(INDEX(Данные[Цена],ROW()-(33+J44),1))),"",INDEX(Данные[Цена],ROW()-(33+J44),1)) ->  | G44: =IFERROR(INDEX(Данные[Коэффициент переоценки],ROW()-(33+J44),1),"") ->  | H44: =IF(OR(ISERR(INDEX(Данные[Автор, заглавие],ROW()-(33+J44),1)),ISBLANK(INDEX(Данные[Автор, заглавие],ROW()-(33+J44),1))),"",INDEX(Данные[Кол-во экз.],ROW()-(33+J44),1)) ->  | I44: =IF(OR(ISERR(INDEX(Данные[Автор, заглавие],ROW()-(33+J44),1)),ISBLANK(INDEX(Данные[Автор, заглавие],ROW()-(33+J44),1))),"",INDEX(Данные[Стои-мость],ROW()-(33+J44),1)) ->  | J44: 1
A45: =IFERROR(INDEX(Данные[№пп],ROW()-(33+J45),1),"") ->  | B45: =IF(OR(ISERR(INDEX(Данные[Инв. №],ROW()-(33+J45),1)),ISBLANK(INDEX(Данные[Инв. №],ROW()-(33+J45),1))),"",INDEX(Данные[Инв. №],ROW()-(33+J45),1)) ->  | C45: =IF(OR(ISERR(INDEX(Данные[Автор, заглавие],ROW()-(33+J45),1)),ISBLANK(INDEX(Данные[Автор, заглавие],ROW()-(33+J45),1))),"",INDEX(Данные[Автор, заглавие],ROW()-(33+J45),1)) ->  | D45: =IF(OR(ISERR(INDEX(Данные[Год издания],ROW()-(33+J45),1)),ISBLANK(INDEX(Данные[Год издания],ROW()-(33+J45),1))),"",INDEX(Данные[Год издания],ROW()-(33+J45),1)) ->  | E45: =IF(OR(ISERR(INDEX(Данные[Отдел],ROW()-(33+J45),1)),ISBLANK(INDEX(Данные[Отдел],ROW()-(33+J45),1))),"",INDEX(Данные[Отдел],ROW()-(33+J45),1)) ->  | F45: =IF(OR(ISERR(INDEX(Данные[Цена],ROW()-(33+J45),1)),ISBLANK(INDEX(Данные[Цена],ROW()-(33+J45),1))),"",INDEX(Данные[Цена],ROW()-(33+J45),1)) ->  | G45: =IFERROR(INDEX(Данные[Коэффициент переоценки],ROW()-(33+J45),1),"") ->  | H45: =IF(OR(ISERR(INDEX(Данные[Автор, заглавие],ROW()-(33+J45),1)),ISBLANK(INDEX(Данные[Автор, заглавие],ROW()-(33+J45),1))),"",INDEX(Данные[Кол-во экз.],ROW()-(33+J45),1)) ->  | I45: =IF(OR(ISERR(INDEX(Данные[Автор, заглавие],ROW()-(33+J45),1)),ISBLANK(INDEX(Данные[Автор, заглавие],ROW()-(33+J45),1))),"",INDEX(Данные[Стои-мость],ROW()-(33+J45),1)) ->  | J45: 1
H46: =SUBTOTAL(9,H35:H45) -> 0 | I46: =SUBTOTAL(9,I35:I45) -> 0 | J46: 1 Итог
A47: =IFERROR(INDEX(Данные[№пп],ROW()-(33+J47),1),"") ->  | B47: =IF(OR(ISERR(INDEX(Данные[Инв. №],ROW()-(33+J47),1)),ISBLANK(INDEX(Данные[Инв. №],ROW()-(33+J47),1))),"",INDEX(Данные[Инв. №],ROW()-(33+J47),1)) ->  | C47: =IF(OR(ISERR(INDEX(Данные[Автор, заглавие],ROW()-(33+J47),1)),ISBLANK(INDEX(Данные[Автор, заглавие],ROW()-(33+J47),1))),"",INDEX(Данные[Автор, заглавие],ROW()-(33+J47),1)) ->  | D47: =IF(OR(ISERR(INDEX(Данные[Год издания],ROW()-(33+J47),1)),ISBLANK(INDEX(Данные[Год издания],ROW()-(33+J47),1))),"",INDEX(Данные[Год издания],ROW()-(33+J47),1)) ->  | E47: =IF(OR(ISERR(INDEX(Данные[Отдел],ROW()-(33+J47),1)),ISBLANK(INDEX(Данные[Отдел],ROW()-(33+J47),1))),"",INDEX(Данные[Отдел],ROW()-(33+J47),1)) ->  | F47: =IF(OR(ISERR(INDEX(Данные[Цена],ROW()-(33+J47),1)),ISBLANK(INDEX(Данные[Цена],ROW()-(33+J47),1))),"",INDEX(Данные[Цена],ROW()-(33+J47),1)) ->  | G47: =IFERROR(INDEX(Данные[Коэффициент переоценки],ROW()-(33+J47),1),"") ->  | H47: =IF(OR(ISERR(INDEX(Данные[Автор, заглавие],ROW()-(33+J47),1)),ISBLANK(INDEX(Данные[Автор, заглавие],ROW()-(33+J47),1))),"",INDEX(Данные[Кол-во экз.],ROW()-(33+J47),1)) ->  | I47: =IF(OR(ISERR(INDEX(Данные[Автор, заглавие],ROW()-(33+J47),1)),ISBLANK(INDEX(Данные[Автор, заглавие],ROW()-(33+J47),1))),"",INDEX(Данные[Стои-мость],ROW()-(33+J47),1)) ->  | J47: 2
A48: =IFERROR(INDEX(Данные[№пп],ROW()-(33+J48),1),"") ->  | B48: =IF(OR(ISERR(INDEX(Данные[Инв. №],ROW()-(33+J48),1)),ISBLANK(INDEX(Данные[Инв. №],ROW()-(33+J48),1))),"",INDEX(Данные[Инв. №],ROW()-(33+J48),1)) ->  | C48: =IF(OR(ISERR(INDEX(Данные[Автор, заглавие],ROW()-(33+J48),1)),ISBLANK(INDEX(Данные[Автор, заглавие],ROW()-(33+J48),1))),"",INDEX(Данные[Автор, заглавие],ROW()-(33+J48),1)) ->  | D48: =IF(OR(ISERR(INDEX(Данные[Год издания],ROW()-(33+J48),1)),ISBLANK(INDEX(Данные[Год издания],ROW()-(33+J48),1))),"",INDEX(Данные[Год издания],ROW()-(33+J48),1)) ->  | E48: =IF(OR(ISERR(INDEX(Данные[Отдел],ROW()-(33+J48),1)),ISBLANK(INDEX(Данные[Отдел],ROW()-(33+J48),1))),"",INDEX(Данные[Отдел],ROW()-(33+J48),1)) ->  | F48: =IF(OR(ISERR(INDEX(Данные[Цена],ROW()-(33+J48),1)),ISBLANK(INDEX(Данные[Цена],ROW()-(33+J48),1))),"",INDEX(Данные[Цена],ROW()-(33+J48),1)) ->  | G48: =IFERROR(INDEX(Данные[Коэффициент переоценки],ROW()-(33+J48),1),"") ->  | H48: =IF(OR(ISERR(INDEX(Данные[Автор, заглавие],ROW()-(33+J48),1)),ISBLANK(INDEX(Данные[Автор, заглавие],ROW()-(33+J48),1))),"",INDEX(Данные[Кол-во экз.],ROW()-(33+J48),1)) ->  | I48: =IF(OR(ISERR(INDEX(Данные[Автор, заглавие],ROW()-(33+J48),1)),ISBLANK(INDEX(Данные[Автор, заглавие],ROW()-(33+J48),1))),"",INDEX(Данные[Стои-мость],ROW()-(33+J48),1)) ->  | J48: 2
A49: =IFERROR(INDEX(Данные[№пп],ROW()-(33+J49),1),"") ->  | B49: =IF(OR(ISERR(INDEX(Данные[Инв. №],ROW()-(33+J49),1)),ISBLANK(INDEX(Данные[Инв. №],ROW()-(33+J49),1))),"",INDEX(Данные[Инв. №],ROW()-(33+J49),1)) ->  | C49: =IF(OR(ISERR(INDEX(Данные[Автор, заглавие],ROW()-(33+J49),1)),ISBLANK(INDEX(Данные[Автор, заглавие],ROW()-(33+J49),1))),"",INDEX(Данные[Автор, заглавие],ROW()-(33+J49),1)) ->  | D49: =IF(OR(ISERR(INDEX(Данные[Год издания],ROW()-(33+J49),1)),ISBLANK(INDEX(Данные[Год издания],ROW()-(33+J49),1))),"",INDEX(Данные[Год издания],ROW()-(33+J49),1)) ->  | E49: =IF(OR(ISERR(INDEX(Данные[Отдел],ROW()-(33+J49),1)),ISBLANK(INDEX(Данные[Отдел],ROW()-(33+J49),1))),"",INDEX(Данные[Отдел],ROW()-(33+J49),1)) ->  | F49: =IF(OR(ISERR(INDEX(Данные[Цена],ROW()-(33+J49),1)),ISBLANK(INDEX(Данные[Цена],ROW()-(33+J49),1))),"",INDEX(Данные[Цена],ROW()-(33+J49),1)) ->  | G49: =IFERROR(INDEX(Данные[Коэффициент переоценки],ROW()-(33+J49),1),"") ->  | H49: =IF(OR(ISERR(INDEX(Данные[Автор, заглавие],ROW()-(33+J49),1)),ISBLANK(INDEX(Данные[Автор, заглавие],ROW()-(33+J49),1))),"",INDEX(Данные[Кол-во экз.],ROW()-(33+J49),1)) ->  | I49: =IF(OR(ISERR(INDEX(Данные[Автор, заглавие],ROW()-(33+J49),1)),ISBLANK(INDEX(Данные[Автор, заглавие],ROW()-(33+J49),1))),"",INDEX(Данные[Стои-мость],ROW()-(33+J49),1)) ->  | J49: 2
A50: =IFERROR(INDEX(Данные[№пп],ROW()-(33+J50),1),"") ->  | B50: =IF(OR(ISERR(INDEX(Данные[Инв. №],ROW()-(33+J50),1)),ISBLANK(INDEX(Данные[Инв. №],ROW()-(33+J50),1))),"",INDEX(Данные[Инв. №],ROW()-(33+J50),1)) ->  | C50: =IF(OR(ISERR(INDEX(Данные[Автор, заглавие],ROW()-(33+J50),1)),ISBLANK(INDEX(Данные[Автор, заглавие],ROW()-(33+J50),1))),"",INDEX(Данные[Автор, заглавие],ROW()-(33+J50),1)) ->  | D50: =IF(OR(ISERR(INDEX(Данные[Год издания],ROW()-(33+J50),1)),ISBLANK(INDEX(Данные[Год издания],ROW()-(33+J50),1))),"",INDEX(Данные[Год издания],ROW()-(33+J50),1)) ->  | E50: =IF(OR(ISERR(INDEX(Данные[Отдел],ROW()-(33+J50),1)),ISBLANK(INDEX(Данные[Отдел],ROW()-(33+J50),1))),"",INDEX(Данные[Отдел],ROW()-(33+J50),1)) ->  | F50: =IF(OR(ISERR(INDEX(Данные[Цена],ROW()-(33+J50),1)),ISBLANK(INDEX(Данные[Цена],ROW()-(33+J50),1))),"",INDEX(Данные[Цена],ROW()-(33+J50),1)) ->  | G50: =IFERROR(INDEX(Данные[Коэффициент переоценки],ROW()-(33+J50),1),"") ->  | H50: =IF(OR(ISERR(INDEX(Данные[Автор, заглавие],ROW()-(33+J50),1)),ISBLANK(INDEX(Данные[Автор, заглавие],ROW()-(33+J50),1))),"",INDEX(Данные[Кол-во экз.],ROW()-(33+J50),1)) ->  | I50: =IF(OR(ISERR(INDEX(Данные[Автор, заглавие],ROW()-(33+J50),1)),ISBLANK(INDEX(Данные[Автор, заглавие],ROW()-(33+J50),1))),"",INDEX(Данные[Стои-мость],ROW()-(33+J50),1)) ->  | J50: 2
A51: =IFERROR(INDEX(Данные[№пп],ROW()-(33+J51),1),"") ->  | B51: =IF(OR(ISERR(INDEX(Данные[Инв. №],ROW()-(33+J51),1)),ISBLANK(INDEX(Данные[Инв. №],ROW()-(33+J51),1))),"",INDEX(Данные[Инв. №],ROW()-(33+J51),1)) ->  | C51: =IF(OR(ISERR(INDEX(Данные[Автор, заглавие],ROW()-(33+J51),1)),ISBLANK(INDEX(Данные[Автор, заглавие],ROW()-(33+J51),1))),"",INDEX(Данные[Автор, заглавие],ROW()-(33+J51),1)) ->  | D51: =IF(OR(ISERR(INDEX(Данные[Год издания],ROW()-(33+J51),1)),ISBLANK(INDEX(Данные[Год издания],ROW()-(33+J51),1))),"",INDEX(Данные[Год издания],ROW()-(33+J51),1)) ->  | E51: =IF(OR(ISERR(INDEX(Данные[Отдел],ROW()-(33+J51),1)),ISBLANK(INDEX(Данные[Отдел],ROW()-(33+J51),1))),"",INDEX(Данные[Отдел],ROW()-(33+J51),1)) ->  | F51: =IF(OR(ISERR(INDEX(Данные[Цена],ROW()-(33+J51),1)),ISBLANK(INDEX(Данные[Цена],ROW()-(33+J51),1))),"",INDEX(Данные[Цена],ROW()-(33+J51),1)) ->  | G51: =IFERROR(INDEX(Данные[Коэффициент переоценки],ROW()-(33+J51),1),"") ->  | H51: =IF(OR(ISERR(INDEX(Данные[Автор, заглавие],ROW()-(33+J51),1)),ISBLANK(INDEX(Данные[Автор, заглавие],ROW()-(33+J51),1))),"",INDEX(Данные[Кол-во экз.],ROW()-(33+J51),1)) ->  | I51: =IF(OR(ISERR(INDEX(Данные[Автор, заглавие],ROW()-(33+J51),1)),ISBLANK(INDEX(Данные[Автор, заглавие],ROW()-(33+J51),1))),"",INDEX(Данные[Стои-мость],ROW()-(33+J51),1)) ->  | J51: 2
A52: =IFERROR(INDEX(Данные[№пп],ROW()-(33+J52),1),"") ->  | B52: =IF(OR(ISERR(INDEX(Данные[Инв. №],ROW()-(33+J52),1)),ISBLANK(INDEX(Данные[Инв. №],ROW()-(33+J52),1))),"",INDEX(Данные[Инв. №],ROW()-(33+J52),1)) ->  | C52: =IF(OR(ISERR(INDEX(Данные[Автор, заглавие],ROW()-(33+J52),1)),ISBLANK(INDEX(Данные[Автор, заглавие],ROW()-(33+J52),1))),"",INDEX(Данные[Автор, заглавие],ROW()-(33+J52),1)) ->  | D52: =IF(OR(ISERR(INDEX(Данные[Год издания],ROW()-(33+J52),1)),ISBLANK(INDEX(Данные[Год издания],ROW()-(33+J52),1))),"",INDEX(Данные[Год издания],ROW()-(33+J52),1)) ->  | E52: =IF(OR(ISERR(INDEX(Данные[Отдел],ROW()-(33+J52),1)),ISBLANK(INDEX(Данные[Отдел],ROW()-(33+J52),1))),"",INDEX(Данные[Отдел],ROW()-(33+J52),1)) ->  | F52: =IF(OR(ISERR(INDEX(Данные[Цена],ROW()-(33+J52),1)),ISBLANK(INDEX(Данные[Цена],ROW()-(33+J52),1))),"",INDEX(Данные[Цена],ROW()-(33+J52),1)) ->  | G52: =IFERROR(INDEX(Данные[Коэффициент переоценки],ROW()-(33+J52),1),"") ->  | H52: =IF(OR(ISERR(INDEX(Данные[Автор, заглавие],ROW()-(33+J52),1)),ISBLANK(INDEX(Данные[Автор, заглавие],ROW()-(33+J52),1))),"",INDEX(Данные[Кол-во экз.],ROW()-(33+J52),1)) ->  | I52: =IF(OR(ISERR(INDEX(Данные[Автор, заглавие],ROW()-(33+J52),1)),ISBLANK(INDEX(Данные[Автор, заглавие],ROW()-(33+J52),1))),"",INDEX(Данные[Стои-мость],ROW()-(33+J52),1)) ->  | J52: 2
A53: =IFERROR(INDEX(Данные[№пп],ROW()-(33+J53),1),"") ->  | B53: =IF(OR(ISERR(INDEX(Данные[Инв. №],ROW()-(33+J53),1)),ISBLANK(INDEX(Данные[Инв. №],ROW()-(33+J53),1))),"",INDEX(Данные[Инв. №],ROW()-(33+J53),1)) ->  | C53: =IF(OR(ISERR(INDEX(Данные[Автор, заглавие],ROW()-(33+J53),1)),ISBLANK(INDEX(Данные[Автор, заглавие],ROW()-(33+J53),1))),"",INDEX(Данные[Автор, заглавие],ROW()-(33+J53),1)) ->  | D53: =IF(OR(ISERR(INDEX(Данные[Год издания],ROW()-(33+J53),1)),ISBLANK(INDEX(Данные[Год издания],ROW()-(33+J53),1))),"",INDEX(Данные[Год издания],ROW()-(33+J53),1)) ->  | E53: =IF(OR(ISERR(INDEX(Данные[Отдел],ROW()-(33+J53),1)),ISBLANK(INDEX(Данные[Отдел],ROW()-(33+J53),1))),"",INDEX(Данные[Отдел],ROW()-(33+J53),1)) ->  | F53: =IF(OR(ISERR(INDEX(Данные[Цена],ROW()-(33+J53),1)),ISBLANK(INDEX(Данные[Цена],ROW()-(33+J53),1))),"",INDEX(Данные[Цена],ROW()-(33+J53),1)) ->  | G53: =IFERROR(INDEX(Данные[Коэффициент переоценки],ROW()-(33+J53),1),"") ->  | H53: =IF(OR(ISERR(INDEX(Данные[Автор, заглавие],ROW()-(33+J53),1)),ISBLANK(INDEX(Данные[Автор, заглавие],ROW()-(33+J53),1))),"",INDEX(Данные[Кол-во экз.],ROW()-(33+J53),1)) ->  | I53: =IF(OR(ISERR(INDEX(Данные[Автор, заглавие],ROW()-(33+J53),1)),ISBLANK(INDEX(Данные[Автор, заглавие],ROW()-(33+J53),1))),"",INDEX(Данные[Стои-мость],ROW()-(33+J53),1)) ->  | J53: 2
A54: =IFERROR(INDEX(Данные[№пп],ROW()-(33+J54),1),"") ->  | B54: =IF(OR(ISERR(INDEX(Данные[Инв. №],ROW()-(33+J54),1)),ISBLANK(INDEX(Данные[Инв. №],ROW()-(33+J54),1))),"",INDEX(Данные[Инв. №],ROW()-(33+J54),1)) ->  | C54: =IF(OR(ISERR(INDEX(Данные[Автор, заглавие],ROW()-(33+J54),1)),ISBLANK(INDEX(Данные[Автор, заглавие],ROW()-(33+J54),1))),"",INDEX(Данные[Автор, заглавие],ROW()-(33+J54),1)) ->  | D54: =IF(OR(ISERR(INDEX(Данные[Год издания],ROW()-(33+J54),1)),ISBLANK(INDEX(Данные[Год издания],ROW()-(33+J54),1))),"",INDEX(Данные[Год издания],ROW()-(33+J54),1)) ->  | E54: =IF(OR(ISERR(INDEX(Данные[Отдел],ROW()-(33+J54),1)),ISBLANK(INDEX(Данные[Отдел],ROW()-(33+J54),1))),"",INDEX(Данные[Отдел],ROW()-(33+J54),1)) ->  | F54: =IF(OR(ISERR(INDEX(Данные[Цена],ROW()-(33+J54),1)),ISBLANK(INDEX(Данные[Цена],ROW()-(33+J54),1))),"",INDEX(Данные[Цена],ROW()-(33+J54),1)) ->  | G54: =IFERROR(INDEX(Данные[Коэффициент переоценки],ROW()-(33+J54),1),"") ->  | H54: =IF(OR(ISERR(INDEX(Данные[Автор, заглавие],ROW()-(33+J54),1)),ISBLANK(INDEX(Данные[Автор, заглавие],ROW()-(33+J54),1))),"",INDEX(Данные[Кол-во экз.],ROW()-(33+J54),1)) ->  | I54: =IF(OR(ISERR(INDEX(Данные[Автор, заглавие],ROW()-(33+J54),1)),ISBLANK(INDEX(Данные[Автор, заглавие],ROW()-(33+J54),1))),"",INDEX(Данные[Стои-мость],ROW()-(33+J54),1)) ->  | J54: 2
A55: =IFERROR(INDEX(Данные[№пп],ROW()-(33+J55),1),"") ->  | B55: =IF(OR(ISERR(INDEX(Данные[Инв. №],ROW()-(33+J55),1)),ISBLANK(INDEX(Данные[Инв. №],ROW()-(33+J55),1))),"",INDEX(Данные[Инв. №],ROW()-(33+J55),1)) ->  | C55: =IF(OR(ISERR(INDEX(Данные[Автор, заглавие],ROW()-(33+J55),1)),ISBLANK(INDEX(Данные[Автор, заглавие],ROW()-(33+J55),1))),"",INDEX(Данные[Автор, заглавие],ROW()-(33+J55),1)) ->  | D55: =IF(OR(ISERR(INDEX(Данные[Год издания],ROW()-(33+J55),1)),ISBLANK(INDEX(Данные[Год издания],ROW()-(33+J55),1))),"",INDEX(Данные[Год издания],ROW()-(33+J55),1)) ->  | E55: =IF(OR(ISERR(INDEX(Данные[Отдел],ROW()-(33+J55),1)),ISBLANK(INDEX(Данные[Отдел],ROW()-(33+J55),1))),"",INDEX(Данные[Отдел],ROW()-(33+J55),1)) ->  | F55: =IF(OR(ISERR(INDEX(Данные[Цена],ROW()-(33+J55),1)),ISBLANK(INDEX(Данные[Цена],ROW()-(33+J55),1))),"",INDEX(Данные[Цена],ROW()-(33+J55),1)) ->  | G55: =IFERROR(INDEX(Данные[Коэффициент переоценки],ROW()-(33+J55),1),"") ->  | H55: =IF(OR(ISERR(INDEX(Данные[Автор, заглавие],ROW()-(33+J55),1)),ISBLANK(INDEX(Данные[Автор, заглавие],ROW()-(33+J55),1))),"",INDEX(Данные[Кол-во экз.],ROW()-(33+J55),1)) ->  | I55: =IF(OR(ISERR(INDEX(Данные[Автор, заглавие],ROW()-(33+J55),1)),ISBLANK(INDEX(Данные[Автор, заглавие],ROW()-(33+J55),1))),"",INDEX(Данные[Стои-мость],ROW()-(33+J55),1)) ->  | J55: 2
A56: =IFERROR(INDEX(Данные[№пп],ROW()-(33+J56),1),"") ->  | B56: =IF(OR(ISERR(INDEX(Данные[Инв. №],ROW()-(33+J56),1)),ISBLANK(INDEX(Данные[Инв. №],ROW()-(33+J56),1))),"",INDEX(Данные[Инв. №],ROW()-(33+J56),1)) ->  | C56: =IF(OR(ISERR(INDEX(Данные[Автор, заглавие],ROW()-(33+J56),1)),ISBLANK(INDEX(Данные[Автор, заглавие],ROW()-(33+J56),1))),"",INDEX(Данные[Автор, заглавие],ROW()-(33+J56),1)) ->  | D56: =IF(OR(ISERR(INDEX(Данные[Год издания],ROW()-(33+J56),1)),ISBLANK(INDEX(Данные[Год издания],ROW()-(33+J56),1))),"",INDEX(Данные[Год издания],ROW()-(33+J56),1)) ->  | E56: =IF(OR(ISERR(INDEX(Данные[Отдел],ROW()-(33+J56),1)),ISBLANK(INDEX(Данные[Отдел],ROW()-(33+J56),1))),"",INDEX(Данные[Отдел],ROW()-(33+J56),1)) ->  | F56: =IF(OR(ISERR(INDEX(Данные[Цена],ROW()-(33+J56),1)),ISBLANK(INDEX(Данные[Цена],ROW()-(33+J56),1))),"",INDEX(Данные[Цена],ROW()-(33+J56),1)) ->  | G56: =IFERROR(INDEX(Данные[Коэффициент переоценки],ROW()-(33+J56),1),"") ->  | H56: =IF(OR(ISERR(INDEX(Данные[Автор, заглавие],ROW()-(33+J56),1)),ISBLANK(INDEX(Данные[Автор, заглавие],ROW()-(33+J56),1))),"",INDEX(Данные[Кол-во экз.],ROW()-(33+J56),1)) ->  | I56: =IF(OR(ISERR(INDEX(Данные[Автор, заглавие],ROW()-(33+J56),1)),ISBLANK(INDEX(Данные[Автор, заглавие],ROW()-(33+J56),1))),"",INDEX(Данные[Стои-мость],ROW()-(33+J56),1)) ->  | J56: 2
A57: =IFERROR(INDEX(Данные[№пп],ROW()-(33+J57),1),"") ->  | B57: =IF(OR(ISERR(INDEX(Данные[Инв. №],ROW()-(33+J57),1)),ISBLANK(INDEX(Данные[Инв. №],ROW()-(33+J57),1))),"",INDEX(Данные[Инв. №],ROW()-(33+J57),1)) ->  | C57: =IF(OR(ISERR(INDEX(Данные[Автор, заглавие],ROW()-(33+J57),1)),ISBLANK(INDEX(Данные[Автор, заглавие],ROW()-(33+J57),1))),"",INDEX(Данные[Автор, заглавие],ROW()-(33+J57),1)) ->  | D57: =IF(OR(ISERR(INDEX(Данные[Год издания],ROW()-(33+J57),1)),ISBLANK(INDEX(Данные[Год издания],ROW()-(33+J57),1))),"",INDEX(Данные[Год издания],ROW()-(33+J57),1)) ->  | E57: =IF(OR(ISERR(INDEX(Данные[Отдел],ROW()-(33+J57),1)),ISBLANK(INDEX(Данные[Отдел],ROW()-(33+J57),1))),"",INDEX(Данные[Отдел],ROW()-(33+J57),1)) ->  | F57: =IF(OR(ISERR(INDEX(Данные[Цена],ROW()-(33+J57),1)),ISBLANK(INDEX(Данные[Цена],ROW()-(33+J57),1))),"",INDEX(Данные[Цена],ROW()-(33+J57),1)) ->  | G57: =IFERROR(INDEX(Данные[Коэффициент переоценки],ROW()-(33+J57),1),"") ->  | H57: =IF(OR(ISERR(INDEX(Данные[Автор, заглавие],ROW()-(33+J57),1)),ISBLANK(INDEX(Данные[Автор, заглавие],ROW()-(33+J57),1))),"",INDEX(Данные[Кол-во экз.],ROW()-(33+J57),1)) ->  | I57: =IF(OR(ISERR(INDEX(Данные[Автор, заглавие],ROW()-(33+J57),1)),ISBLANK(INDEX(Данные[Автор, заглавие],ROW()-(33+J57),1))),"",INDEX(Данные[Стои-мость],ROW()-(33+J57),1)) ->  | J57: 2
A58: =IFERROR(INDEX(Данные[№пп],ROW()-(33+J58),1),"") ->  | B58: =IF(OR(ISERR(INDEX(Данные[Инв. №],ROW()-(33+J58),1)),ISBLANK(INDEX(Данные[Инв. №],ROW()-(33+J58),1))),"",INDEX(Данные[Инв. №],ROW()-(33+J58),1)) ->  | C58: =IF(OR(ISERR(INDEX(Данные[Автор, заглавие],ROW()-(33+J58),1)),ISBLANK(INDEX(Данные[Автор, заглавие],ROW()-(33+J58),1))),"",INDEX(Данные[Автор, заглавие],ROW()-(33+J58),1)) ->  | D58: =IF(OR(ISERR(INDEX(Данные[Год издания],ROW()-(33+J58),1)),ISBLANK(INDEX(Данные[Год издания],ROW()-(33+J58),1))),"",INDEX(Данные[Год издания],ROW()-(33+J58),1)) ->  | E58: =IF(OR(ISERR(INDEX(Данные[Отдел],ROW()-(33+J58),1)),ISBLANK(INDEX(Данные[Отдел],ROW()-(33+J58),1))),"",INDEX(Данные[Отдел],ROW()-(33+J58),1)) ->  | F58: =IF(OR(ISERR(INDEX(Данные[Цена],ROW()-(33+J58),1)),ISBLANK(INDEX(Данные[Цена],ROW()-(33+J58),1))),"",INDEX(Данные[Цена],ROW()-(33+J58),1)) ->  | G58: =IFERROR(INDEX(Данные[Коэффициент переоценки],ROW()-(33+J58),1),"") ->  | H58: =IF(OR(ISERR(INDEX(Данные[Автор, заглавие],ROW()-(33+J58),1)),ISBLANK(INDEX(Данные[Автор, заглавие],ROW()-(33+J58),1))),"",INDEX(Данные[Кол-во экз.],ROW()-(33+J58),1)) ->  | I58: =IF(OR(ISERR(INDEX(Данные[Автор, заглавие],ROW()-(33+J58),1)),ISBLANK(INDEX(Данные[Автор, заглавие],ROW()-(33+J58),1))),"",INDEX(Данные[Стои-мость],ROW()-(33+J58),1)) ->  | J58: 2
A59: =IFERROR(INDEX(Данные[№пп],ROW()-(33+J59),1),"") ->  | B59: =IF(OR(ISERR(INDEX(Данные[Инв. №],ROW()-(33+J59),1)),ISBLANK(INDEX(Данные[Инв. №],ROW()-(33+J59),1))),"",INDEX(Данные[Инв. №],ROW()-(33+J59),1)) ->  | C59: =IF(OR(ISERR(INDEX(Данные[Автор, заглавие],ROW()-(33+J59),1)),ISBLANK(INDEX(Данные[Автор, заглавие],ROW()-(33+J59),1))),"",INDEX(Данные[Автор, заглавие],ROW()-(33+J59),1)) ->  | D59: =IF(OR(ISERR(INDEX(Данные[Год издания],ROW()-(33+J59),1)),ISBLANK(INDEX(Данные[Год издания],ROW()-(33+J59),1))),"",INDEX(Данные[Год издания],ROW()-(33+J59),1)) ->  | E59: =IF(OR(ISERR(INDEX(Данные[Отдел],ROW()-(33+J59),1)),ISBLANK(INDEX(Данные[Отдел],ROW()-(33+J59),1))),"",INDEX(Данные[Отдел],ROW()-(33+J59),1)) ->  | F59: =IF(OR(ISERR(INDEX(Данные[Цена],ROW()-(33+J59),1)),ISBLANK(INDEX(Данные[Цена],ROW()-(33+J59),1))),"",INDEX(Данные[Цена],ROW()-(33+J59),1)) ->  | G59: =IFERROR(INDEX(Данные[Коэффициент переоценки],ROW()-(33+J59),1),"") ->  | H59: =IF(OR(ISERR(INDEX(Данные[Автор, заглавие],ROW()-(33+J59),1)),ISBLANK(INDEX(Данные[Автор, заглавие],ROW()-(33+J59),1))),"",INDEX(Данные[Кол-во экз.],ROW()-(33+J59),1)) ->  | I59: =IF(OR(ISERR(INDEX(Данные[Автор, заглавие],ROW()-(33+J59),1)),ISBLANK(INDEX(Данные[Автор, заглавие],ROW()-(33+J59),1))),"",INDEX(Данные[Стои-мость],ROW()-(33+J59),1)) ->  | J59: 2
A60: =IFERROR(INDEX(Данные[№пп],ROW()-(33+J60),1),"") ->  | B60: =IF(OR(ISERR(INDEX(Данные[Инв. №],ROW()-(33+J60),1)),ISBLANK(INDEX(Данные[Инв. №],ROW()-(33+J60),1))),"",INDEX(Данные[Инв. №],ROW()-(33+J60),1)) ->  | C60: =IF(OR(ISERR(INDEX(Данные[Автор, заглавие],ROW()-(33+J60),1)),ISBLANK(INDEX(Данные[Автор, заглавие],ROW()-(33+J60),1))),"",INDEX(Данные[Автор, заглавие],ROW()-(33+J60),1)) ->  | D60: =IF(OR(ISERR(INDEX(Данные[Год издания],ROW()-(33+J60),1)),ISBLANK(INDEX(Данные[Год издания],ROW()-(33+J60),1))),"",INDEX(Данные[Год издания],ROW()-(33+J60),1)) ->  | E60: =IF(OR(ISERR(INDEX(Данные[Отдел],ROW()-(33+J60),1)),ISBLANK(INDEX(Данные[Отдел],ROW()-(33+J60),1))),"",INDEX(Данные[Отдел],ROW()-(33+J60),1)) ->  | F60: =IF(OR(ISERR(INDEX(Данные[Цена],ROW()-(33+J60),1)),ISBLANK(INDEX(Данные[Цена],ROW()-(33+J60),1))),"",INDEX(Данные[Цена],ROW()-(33+J60),1)) ->  | G60: =IFERROR(INDEX(Данные[Коэффициент переоценки],ROW()-(33+J60),1),"") ->  | H60: =IF(OR(ISERR(INDEX(Данные[Автор, заглавие],ROW()-(33+J60),1)),ISBLANK(INDEX(Данные[Автор, заглавие],ROW()-(33+J60),1))),"",INDEX(Данные[Кол-во экз.],ROW()-(33+J60),1)) ->  | I60: =IF(OR(ISERR(INDEX(Данные[Автор, заглавие],ROW()-(33+J60),1)),ISBLANK(INDEX(Данные[Автор, заглавие],ROW()-(33+J60),1))),"",INDEX(Данные[Стои-мость],ROW()-(33+J60),1)) ->  | J60: 2
A61: =IFERROR(INDEX(Данные[№пп],ROW()-(33+J61),1),"") ->  | B61: =IF(OR(ISERR(INDEX(Данные[Инв. №],ROW()-(33+J61),1)),ISBLANK(INDEX(Данные[Инв. №],ROW()-(33+J61),1))),"",INDEX(Данные[Инв. №],ROW()-(33+J61),1)) ->  | C61: =IF(OR(ISERR(INDEX(Данные[Автор, заглавие],ROW()-(33+J61),1)),ISBLANK(INDEX(Данные[Автор, заглавие],ROW()-(33+J61),1))),"",INDEX(Данные[Автор, заглавие],ROW()-(33+J61),1)) ->  | D61: =IF(OR(ISERR(INDEX(Данные[Год издания],ROW()-(33+J61),1)),ISBLANK(INDEX(Данные[Год издания],ROW()-(33+J61),1))),"",INDEX(Данные[Год издания],ROW()-(33+J61),1)) ->  | E61: =IF(OR(ISERR(INDEX(Данные[Отдел],ROW()-(33+J61),1)),ISBLANK(INDEX(Данные[Отдел],ROW()-(33+J61),1))),"",INDEX(Данные[Отдел],ROW()-(33+J61),1)) ->  | F61: =IF(OR(ISERR(INDEX(Данные[Цена],ROW()-(33+J61),1)),ISBLANK(INDEX(Данные[Цена],ROW()-(33+J61),1))),"",INDEX(Данные[Цена],ROW()-(33+J61),1)) ->  | G61: =IFERROR(INDEX(Данные[Коэффициент переоценки],ROW()-(33+J61),1),"") ->  | H61: =IF(OR(ISERR(INDEX(Данные[Автор, заглавие],ROW()-(33+J61),1)),ISBLANK(INDEX(Данные[Автор, заглавие],ROW()-(33+J61),1))),"",INDEX(Данные[Кол-во экз.],ROW()-(33+J61),1)) ->  | I61: =IF(OR(ISERR(INDEX(Данные[Автор, заглавие],ROW()-(33+J61),1)),ISBLANK(INDEX(Данные[Автор, заглавие],ROW()-(33+J61),1))),"",INDEX(Данные[Стои-мость],ROW()-(33+J61),1)) ->  | J61: 2
A62: =IFERROR(INDEX(Данные[№пп],ROW()-(33+J62),1),"") ->  | B62: =IF(OR(ISERR(INDEX(Данные[Инв. №],ROW()-(33+J62),1)),ISBLANK(INDEX(Данные[Инв. №],ROW()-(33+J62),1))),"",INDEX(Данные[Инв. №],ROW()-(33+J62),1)) ->  | C62: =IF(OR(ISERR(INDEX(Данные[Автор, заглавие],ROW()-(33+J62),1)),ISBLANK(INDEX(Данные[Автор, заглавие],ROW()-(33+J62),1))),"",INDEX(Данные[Автор, заглавие],ROW()-(33+J62),1)) ->  | D62: =IF(OR(ISERR(INDEX(Данные[Год издания],ROW()-(33+J62),1)),ISBLANK(INDEX(Данные[Год издания],ROW()-(33+J62),1))),"",INDEX(Данные[Год издания],ROW()-(33+J62),1)) ->  | E62: =IF(OR(ISERR(INDEX(Данные[Отдел],ROW()-(33+J62),1)),ISBLANK(INDEX(Данные[Отдел],ROW()-(33+J62),1))),"",INDEX(Данные[Отдел],ROW()-(33+J62),1)) ->  | F62: =IF(OR(ISERR(INDEX(Данные[Цена],ROW()-(33+J62),1)),ISBLANK(INDEX(Данные[Цена],ROW()-(33+J62),1))),"",INDEX(Данные[Цена],ROW()-(33+J62),1)) ->  | G62: =IFERROR(INDEX(Данные[Коэффициент переоценки],ROW()-(33+J62),1),"") ->  | H62: =IF(OR(ISERR(INDEX(Данные[Автор, заглавие],ROW()-(33+J62),1)),ISBLANK(INDEX(Данные[Автор, заглавие],ROW()-(33+J62),1))),"",INDEX(Данные[Кол-во экз.],ROW()-(33+J62),1)) ->  | I62: =IF(OR(ISERR(INDEX(Данные[Автор, заглавие],ROW()-(33+J62),1)),ISBLANK(INDEX(Данные[Автор, заглавие],ROW()-(33+J62),1))),"",INDEX(Данные[Стои-мость],ROW()-(33+J62),1)) ->  | J62: 2
A63: =IFERROR(INDEX(Данные[№пп],ROW()-(33+J63),1),"") ->  | B63: =IF(OR(ISERR(INDEX(Данные[Инв. №],ROW()-(33+J63),1)),ISBLANK(INDEX(Данные[Инв. №],ROW()-(33+J63),1))),"",INDEX(Данные[Инв. №],ROW()-(33+J63),1)) ->  | C63: =IF(OR(ISERR(INDEX(Данные[Автор, заглавие],ROW()-(33+J63),1)),ISBLANK(INDEX(Данные[Автор, заглавие],ROW()-(33+J63),1))),"",INDEX(Данные[Автор, заглавие],ROW()-(33+J63),1)) ->  | D63: =IF(OR(ISERR(INDEX(Данные[Год издания],ROW()-(33+J63),1)),ISBLANK(INDEX(Данные[Год издания],ROW()-(33+J63),1))),"",INDEX(Данные[Год издания],ROW()-(33+J63),1)) ->  | E63: =IF(OR(ISERR(INDEX(Данные[Отдел],ROW()-(33+J63),1)),ISBLANK(INDEX(Данные[Отдел],ROW()-(33+J63),1))),"",INDEX(Данные[Отдел],ROW()-(33+J63),1)) ->  | F63: =IF(OR(ISERR(INDEX(Данные[Цена],ROW()-(33+J63),1)),ISBLANK(INDEX(Данные[Цена],ROW()-(33+J63),1))),"",INDEX(Данные[Цена],ROW()-(33+J63),1)) ->  | G63: =IFERROR(INDEX(Данные[Коэффициент переоценки],ROW()-(33+J63),1),"") ->  | H63: =IF(OR(ISERR(INDEX(Данные[Автор, заглавие],ROW()-(33+J63),1)),ISBLANK(INDEX(Данные[Автор, заглавие],ROW()-(33+J63),1))),"",INDEX(Данные[Кол-во экз.],ROW()-(33+J63),1)) ->  | I63: =IF(OR(ISERR(INDEX(Данные[Автор, заглавие],ROW()-(33+J63),1)),ISBLANK(INDEX(Данные[Автор, заглавие],ROW()-(33+J63),1))),"",INDEX(Данные[Стои-мость],ROW()-(33+J63),1)) ->  | J63: 2
A64: =IFERROR(INDEX(Данные[№пп],ROW()-(33+J64),1),"") ->  | B64: =IF(OR(ISERR(INDEX(Данные[Инв. №],ROW()-(33+J64),1)),ISBLANK(INDEX(Данные[Инв. №],ROW()-(33+J64),1))),"",INDEX(Данные[Инв. №],ROW()-(33+J64),1)) ->  | C64: =IF(OR(ISERR(INDEX(Данные[Автор, заглавие],ROW()-(33+J64),1)),ISBLANK(INDEX(Данные[Автор, заглавие],ROW()-(33+J64),1))),"",INDEX(Данные[Автор, заглавие],ROW()-(33+J64),1)) ->  | D64: =IF(OR(ISERR(INDEX(Данные[Год издания],ROW()-(33+J64),1)),ISBLANK(INDEX(Данные[Год издания],ROW()-(33+J64),1))),"",INDEX(Данные[Год издания],ROW()-(33+J64),1)) ->  | E64: =IF(OR(ISERR(INDEX(Данные[Отдел],ROW()-(33+J64),1)),ISBLANK(INDEX(Данные[Отдел],ROW()-(33+J64),1))),"",INDEX(Данные[Отдел],ROW()-(33+J64),1)) ->  | F64: =IF(OR(ISERR(INDEX(Данные[Цена],ROW()-(33+J64),1)),ISBLANK(INDEX(Данные[Цена],ROW()-(33+J64),1))),"",INDEX(Данные[Цена],ROW()-(33+J64),1)) ->  | G64: =IFERROR(INDEX(Данные[Коэффициент переоценки],ROW()-(33+J64),1),"") ->  | H64: =IF(OR(ISERR(INDEX(Данные[Автор, заглавие],ROW()-(33+J64),1)),ISBLANK(INDEX(Данные[Автор, заглавие],ROW()-(33+J64),1))),"",INDEX(Данные[Кол-во экз.],ROW()-(33+J64),1)) ->  | I64: =IF(OR(ISERR(INDEX(Данные[Автор, заглавие],ROW()-(33+J64),1)),ISBLANK(INDEX(Данные[Автор, заглавие],ROW()-(33+J64),1))),"",INDEX(Данные[Стои-мость],ROW()-(33+J64),1)) ->  | J64: 2
A65: =IFERROR(INDEX(Данные[№пп],ROW()-(33+J65),1),"") ->  | B65: =IF(OR(ISERR(INDEX(Данные[Инв. №],ROW()-(33+J65),1)),ISBLANK(INDEX(Данные[Инв. №],ROW()-(33+J65),1))),"",INDEX(Данные[Инв. №],ROW()-(33+J65),1)) ->  | C65: =IF(OR(ISERR(INDEX(Данные[Автор, заглавие],ROW()-(33+J65),1)),ISBLANK(INDEX(Данные[Автор, заглавие],ROW()-(33+J65),1))),"",INDEX(Данные[Автор, заглавие],ROW()-(33+J65),1)) ->  | D65: =IF(OR(ISERR(INDEX(Данные[Год издания],ROW()-(33+J65),1)),ISBLANK(INDEX(Данные[Год издания],ROW()-(33+J65),1))),"",INDEX(Данные[Год издания],ROW()-(33+J65),1)) ->  | E65: =IF(OR(ISERR(INDEX(Данные[Отдел],ROW()-(33+J65),1)),ISBLANK(INDEX(Данные[Отдел],ROW()-(33+J65),1))),"",INDEX(Данные[Отдел],ROW()-(33+J65),1)) ->  | F65: =IF(OR(ISERR(INDEX(Данные[Цена],ROW()-(33+J65),1)),ISBLANK(INDEX(Данные[Цена],ROW()-(33+J65),1))),"",INDEX(Данные[Цена],ROW()-(33+J65),1)) ->  | G65: =IFERROR(INDEX(Данные[Коэффициент переоценки],ROW()-(33+J65),1),"") ->  | H65: =IF(OR(ISERR(INDEX(Данные[Автор, заглавие],ROW()-(33+J65),1)),ISBLANK(INDEX(Данные[Автор, заглавие],ROW()-(33+J65),1))),"",INDEX(Данные[Кол-во экз.],ROW()-(33+J65),1)) ->  | I65: =IF(OR(ISERR(INDEX(Данные[Автор, заглавие],ROW()-(33+J65),1)),ISBLANK(INDEX(Данные[Автор, заглавие],ROW()-(33+J65),1))),"",INDEX(Данные[Стои-мость],ROW()-(33+J65),1)) ->  | J65: 2
A66: =IFERROR(INDEX(Данные[№пп],ROW()-(33+J66),1),"") ->  | B66: =IF(OR(ISERR(INDEX(Данные[Инв. №],ROW()-(33+J66),1)),ISBLANK(INDEX(Данные[Инв. №],ROW()-(33+J66),1))),"",INDEX(Данные[Инв. №],ROW()-(33+J66),1)) ->  | C66: =IF(OR(ISERR(INDEX(Данные[Автор, заглавие],ROW()-(33+J66),1)),ISBLANK(INDEX(Данные[Автор, заглавие],ROW()-(33+J66),1))),"",INDEX(Данные[Автор, заглавие],ROW()-(33+J66),1)) ->  | D66: =IF(OR(ISERR(INDEX(Данные[Год издания],ROW()-(33+J66),1)),ISBLANK(INDEX(Данные[Год издания],ROW()-(33+J66),1))),"",INDEX(Данные[Год издания],ROW()-(33+J66),1)) ->  | E66: =IF(OR(ISERR(INDEX(Данные[Отдел],ROW()-(33+J66),1)),ISBLANK(INDEX(Данные[Отдел],ROW()-(33+J66),1))),"",INDEX(Данные[Отдел],ROW()-(33+J66),1)) ->  | F66: =IF(OR(ISERR(INDEX(Данные[Цена],ROW()-(33+J66),1)),ISBLANK(INDEX(Данные[Цена],ROW()-(33+J66),1))),"",INDEX(Данные[Цена],ROW()-(33+J66),1)) ->  | G66: =IFERROR(INDEX(Данные[Коэффициент переоценки],ROW()-(33+J66),1),"") ->  | H66: =IF(OR(ISERR(INDEX(Данные[Автор, заглавие],ROW()-(33+J66),1)),ISBLANK(INDEX(Данные[Автор, заглавие],ROW()-(33+J66),1))),"",INDEX(Данные[Кол-во экз.],ROW()-(33+J66),1)) ->  | I66: =IF(OR(ISERR(INDEX(Данные[Автор, заглавие],ROW()-(33+J66),1)),ISBLANK(INDEX(Данные[Автор, заглавие],ROW()-(33+J66),1))),"",INDEX(Данные[Стои-мость],ROW()-(33+J66),1)) ->  | J66: 2
A67: =IFERROR(INDEX(Данные[№пп],ROW()-(33+J67),1),"") ->  | B67: =IF(OR(ISERR(INDEX(Данные[Инв. №],ROW()-(33+J67),1)),ISBLANK(INDEX(Данные[Инв. №],ROW()-(33+J67),1))),"",INDEX(Данные[Инв. №],ROW()-(33+J67),1)) ->  | C67: =IF(OR(ISERR(INDEX(Данные[Автор, заглавие],ROW()-(33+J67),1)),ISBLANK(INDEX(Данные[Автор, заглавие],ROW()-(33+J67),1))),"",INDEX(Данные[Автор, заглавие],ROW()-(33+J67),1)) ->  | D67: =IF(OR(ISERR(INDEX(Данные[Год издания],ROW()-(33+J67),1)),ISBLANK(INDEX(Данные[Год издания],ROW()-(33+J67),1))),"",INDEX(Данные[Год издания],ROW()-(33+J67),1)) ->  | E67: =IF(OR(ISERR(INDEX(Данные[Отдел],ROW()-(33+J67),1)),ISBLANK(INDEX(Данные[Отдел],ROW()-(33+J67),1))),"",INDEX(Данные[Отдел],ROW()-(33+J67),1)) ->  | F67: =IF(OR(ISERR(INDEX(Данные[Цена],ROW()-(33+J67),1)),ISBLANK(INDEX(Данные[Цена],ROW()-(33+J67),1))),"",INDEX(Данные[Цена],ROW()-(33+J67),1)) ->  | G67: =IFERROR(INDEX(Данные[Коэффициент переоценки],ROW()-(33+J67),1),"") ->  | H67: =IF(OR(ISERR(INDEX(Данные[Автор, заглавие],ROW()-(33+J67),1)),ISBLANK(INDEX(Данные[Автор, заглавие],ROW()-(33+J67),1))),"",INDEX(Данные[Кол-во экз.],ROW()-(33+J67),1)) ->  | I67: =IF(OR(ISERR(INDEX(Данные[Автор, заглавие],ROW()-(33+J67),1)),ISBLANK(INDEX(Данные[Автор, заглавие],ROW()-(33+J67),1))),"",INDEX(Данные[Стои-мость],ROW()-(33+J67),1)) ->  | J67: 2
A68: =IFERROR(INDEX(Данные[№пп],ROW()-(33+J68),1),"") ->  | B68: =IF(OR(ISERR(INDEX(Данные[Инв. №],ROW()-(33+J68),1)),ISBLANK(INDEX(Данные[Инв. №],ROW()-(33+J68),1))),"",INDEX(Данные[Инв. №],ROW()-(33+J68),1)) ->  | C68: =IF(OR(ISERR(INDEX(Данные[Автор, заглавие],ROW()-(33+J68),1)),ISBLANK(INDEX(Данные[Автор, заглавие],ROW()-(33+J68),1))),"",INDEX(Данные[Автор, заглавие],ROW()-(33+J68),1)) ->  | D68: =IF(OR(ISERR(INDEX(Данные[Год издания],ROW()-(33+J68),1)),ISBLANK(INDEX(Данные[Год издания],ROW()-(33+J68),1))),"",INDEX(Данные[Год издания],ROW()-(33+J68),1)) ->  | E68: =IF(OR(ISERR(INDEX(Данные[Отдел],ROW()-(33+J68),1)),ISBLANK(INDEX(Данные[Отдел],ROW()-(33+J68),1))),"",INDEX(Данные[Отдел],ROW()-(33+J68),1)) ->  | F68: =IF(OR(ISERR(INDEX(Данные[Цена],ROW()-(33+J68),1)),ISBLANK(INDEX(Данные[Цена],ROW()-(33+J68),1))),"",INDEX(Данные[Цена],ROW()-(33+J68),1)) ->  | G68: =IFERROR(INDEX(Данные[Коэффициент переоценки],ROW()-(33+J68),1),"") ->  | H68: =IF(OR(ISERR(INDEX(Данные[Автор, заглавие],ROW()-(33+J68),1)),ISBLANK(INDEX(Данные[Автор, заглавие],ROW()-(33+J68),1))),"",INDEX(Данные[Кол-во экз.],ROW()-(33+J68),1)) ->  | I68: =IF(OR(ISERR(INDEX(Данные[Автор, заглавие],ROW()-(33+J68),1)),ISBLANK(INDEX(Данные[Автор, заглавие],ROW()-(33+J68),1))),"",INDEX(Данные[Стои-мость],ROW()-(33+J68),1)) ->  | J68: 2
A69: =IFERROR(INDEX(Данные[№пп],ROW()-(33+J69),1),"") ->  | B69: =IF(OR(ISERR(INDEX(Данные[Инв. №],ROW()-(33+J69),1)),ISBLANK(INDEX(Данные[Инв. №],ROW()-(33+J69),1))),"",INDEX(Данные[Инв. №],ROW()-(33+J69),1)) ->  | C69: =IF(OR(ISERR(INDEX(Данные[Автор, заглавие],ROW()-(33+J69),1)),ISBLANK(INDEX(Данные[Автор, заглавие],ROW()-(33+J69),1))),"",INDEX(Данные[Автор, заглавие],ROW()-(33+J69),1)) ->  | D69: =IF(OR(ISERR(INDEX(Данные[Год издания],ROW()-(33+J69),1)),ISBLANK(INDEX(Данные[Год издания],ROW()-(33+J69),1))),"",INDEX(Данные[Год издания],ROW()-(33+J69),1)) ->  | E69: =IF(OR(ISERR(INDEX(Данные[Отдел],ROW()-(33+J69),1)),ISBLANK(INDEX(Данные[Отдел],ROW()-(33+J69),1))),"",INDEX(Данные[Отдел],ROW()-(33+J69),1)) ->  | F69: =IF(OR(ISERR(INDEX(Данные[Цена],ROW()-(33+J69),1)),ISBLANK(INDEX(Данные[Цена],ROW()-(33+J69),1))),"",INDEX(Данные[Цена],ROW()-(33+J69),1)) ->  | G69: =IFERROR(INDEX(Данные[Коэффициент переоценки],ROW()-(33+J69),1),"") ->  | H69: =IF(OR(ISERR(INDEX(Данные[Автор, заглавие],ROW()-(33+J69),1)),ISBLANK(INDEX(Данные[Автор, заглавие],ROW()-(33+J69),1))),"",INDEX(Данные[Кол-во экз.],ROW()-(33+J69),1)) ->  | I69: =IF(OR(ISERR(INDEX(Данные[Автор, заглавие],ROW()-(33+J69),1)),ISBLANK(INDEX(Данные[Автор, заглавие],ROW()-(33+J69),1))),"",INDEX(Данные[Стои-мость],ROW()-(33+J69),1)) ->  | J69: 2
A70: =IFERROR(INDEX(Данные[№пп],ROW()-(33+J70),1),"") ->  | B70: =IF(OR(ISERR(INDEX(Данные[Инв. №],ROW()-(33+J70),1)),ISBLANK(INDEX(Данные[Инв. №],ROW()-(33+J70),1))),"",INDEX(Данные[Инв. №],ROW()-(33+J70),1)) ->  | C70: =IF(OR(ISERR(INDEX(Данные[Автор, заглавие],ROW()-(33+J70),1)),ISBLANK(INDEX(Данные[Автор, заглавие],ROW()-(33+J70),1))),"",INDEX(Данные[Автор, заглавие],ROW()-(33+J70),1)) ->  | D70: =IF(OR(ISERR(INDEX(Данные[Год издания],ROW()-(33+J70),1)),ISBLANK(INDEX(Данные[Год издания],ROW()-(33+J70),1))),"",INDEX(Данные[Год издания],ROW()-(33+J70),1)) ->  | E70: =IF(OR(ISERR(INDEX(Данные[Отдел],ROW()-(33+J70),1)),ISBLANK(INDEX(Данные[Отдел],ROW()-(33+J70),1))),"",INDEX(Данные[Отдел],ROW()-(33+J70),1)) ->  | F70: =IF(OR(ISERR(INDEX(Данные[Цена],ROW()-(33+J70),1)),ISBLANK(INDEX(Данные[Цена],ROW()-(33+J70),1))),"",INDEX(Данные[Цена],ROW()-(33+J70),1)) ->  | G70: =IFERROR(INDEX(Данные[Коэффициент переоценки],ROW()-(33+J70),1),"") ->  | H70: =IF(OR(ISERR(INDEX(Данные[Автор, заглавие],ROW()-(33+J70),1)),ISBLANK(INDEX(Данные[Автор, заглавие],ROW()-(33+J70),1))),"",INDEX(Данные[Кол-во экз.],ROW()-(33+J70),1)) ->  | I70: =IF(OR(ISERR(INDEX(Данные[Автор, заглавие],ROW()-(33+J70),1)),ISBLANK(INDEX(Данные[Автор, заглавие],ROW()-(33+J70),1))),"",INDEX(Данные[Стои-мость],ROW()-(33+J70),1)) ->  | J70: 2
A71: =IFERROR(INDEX(Данные[№пп],ROW()-(33+J71),1),"") ->  | B71: =IF(OR(ISERR(INDEX(Данные[Инв. №],ROW()-(33+J71),1)),ISBLANK(INDEX(Данные[Инв. №],ROW()-(33+J71),1))),"",INDEX(Данные[Инв. №],ROW()-(33+J71),1)) ->  | C71: =IF(OR(ISERR(INDEX(Данные[Автор, заглавие],ROW()-(33+J71),1)),ISBLANK(INDEX(Данные[Автор, заглавие],ROW()-(33+J71),1))),"",INDEX(Данные[Автор, заглавие],ROW()-(33+J71),1)) ->  | D71: =IF(OR(ISERR(INDEX(Данные[Год издания],ROW()-(33+J71),1)),ISBLANK(INDEX(Данные[Год издания],ROW()-(33+J71),1))),"",INDEX(Данные[Год издания],ROW()-(33+J71),1)) ->  | E71: =IF(OR(ISERR(INDEX(Данные[Отдел],ROW()-(33+J71),1)),ISBLANK(INDEX(Данные[Отдел],ROW()-(33+J71),1))),"",INDEX(Данные[Отдел],ROW()-(33+J71),1)) ->  | F71: =IF(OR(ISERR(INDEX(Данные[Цена],ROW()-(33+J71),1)),ISBLANK(INDEX(Данные[Цена],ROW()-(33+J71),1))),"",INDEX(Данные[Цена],ROW()-(33+J71),1)) ->  | G71: =IFERROR(INDEX(Данные[Коэффициент переоценки],ROW()-(33+J71),1),"") ->  | H71: =IF(OR(ISERR(INDEX(Данные[Автор, заглавие],ROW()-(33+J71),1)),ISBLANK(INDEX(Данные[Автор, заглавие],ROW()-(33+J71),1))),"",INDEX(Данные[Кол-во экз.],ROW()-(33+J71),1)) ->  | I71: =IF(OR(ISERR(INDEX(Данные[Автор, заглавие],ROW()-(33+J71),1)),ISBLANK(INDEX(Данные[Автор, заглавие],ROW()-(33+J71),1))),"",INDEX(Данные[Стои-мость],ROW()-(33+J71),1)) ->  | J71: 2
A72: =IFERROR(INDEX(Данные[№пп],ROW()-(33+J72),1),"") ->  | B72: =IF(OR(ISERR(INDEX(Данные[Инв. №],ROW()-(33+J72),1)),ISBLANK(INDEX(Данные[Инв. №],ROW()-(33+J72),1))),"",INDEX(Данные[Инв. №],ROW()-(33+J72),1)) ->  | C72: =IF(OR(ISERR(INDEX(Данные[Автор, заглавие],ROW()-(33+J72),1)),ISBLANK(INDEX(Данные[Автор, заглавие],ROW()-(33+J72),1))),"",INDEX(Данные[Автор, заглавие],ROW()-(33+J72),1)) ->  | D72: =IF(OR(ISERR(INDEX(Данные[Год издания],ROW()-(33+J72),1)),ISBLANK(INDEX(Данные[Год издания],ROW()-(33+J72),1))),"",INDEX(Данные[Год издания],ROW()-(33+J72),1)) ->  | E72: =IF(OR(ISERR(INDEX(Данные[Отдел],ROW()-(33+J72),1)),ISBLANK(INDEX(Данные[Отдел],ROW()-(33+J72),1))),"",INDEX(Данные[Отдел],ROW()-(33+J72),1)) ->  | F72: =IF(OR(ISERR(INDEX(Данные[Цена],ROW()-(33+J72),1)),ISBLANK(INDEX(Данные[Цена],ROW()-(33+J72),1))),"",INDEX(Данные[Цена],ROW()-(33+J72),1)) ->  | G72: =IFERROR(INDEX(Данные[Коэффициент переоценки],ROW()-(33+J72),1),"") ->  | H72: =IF(OR(ISERR(INDEX(Данные[Автор, заглавие],ROW()-(33+J72),1)),ISBLANK(INDEX(Данные[Автор, заглавие],ROW()-(33+J72),1))),"",INDEX(Данные[Кол-во экз.],ROW()-(33+J72),1)) ->  | I72: =IF(OR(ISERR(INDEX(Данные[Автор, заглавие],ROW()-(33+J72),1)),ISBLANK(INDEX(Данные[Автор, заглавие],ROW()-(33+J72),1))),"",INDEX(Данные[Стои-мость],ROW()-(33+J72),1)) ->  | J72: 2
A73: =IFERROR(INDEX(Данные[№пп],ROW()-(33+J73),1),"") ->  | B73: =IF(OR(ISERR(INDEX(Данные[Инв. №],ROW()-(33+J73),1)),ISBLANK(INDEX(Данные[Инв. №],ROW()-(33+J73),1))),"",INDEX(Данные[Инв. №],ROW()-(33+J73),1)) ->  | C73: =IF(OR(ISERR(INDEX(Данные[Автор, заглавие],ROW()-(33+J73),1)),ISBLANK(INDEX(Данные[Автор, заглавие],ROW()-(33+J73),1))),"",INDEX(Данные[Автор, заглавие],ROW()-(33+J73),1)) ->  | D73: =IF(OR(ISERR(INDEX(Данные[Год издания],ROW()-(33+J73),1)),ISBLANK(INDEX(Данные[Год издания],ROW()-(33+J73),1))),"",INDEX(Данные[Год издания],ROW()-(33+J73),1)) ->  | E73: =IF(OR(ISERR(INDEX(Данные[Отдел],ROW()-(33+J73),1)),ISBLANK(INDEX(Данные[Отдел],ROW()-(33+J73),1))),"",INDEX(Данные[Отдел],ROW()-(33+J73),1)) ->  | F73: =IF(OR(ISERR(INDEX(Данные[Цена],ROW()-(33+J73),1)),ISBLANK(INDEX(Данные[Цена],ROW()-(33+J73),1))),"",INDEX(Данные[Цена],ROW()-(33+J73),1)) ->  | G73: =IFERROR(INDEX(Данные[Коэффициент переоценки],ROW()-(33+J73),1),"") ->  | H73: =IF(OR(ISERR(INDEX(Данные[Автор, заглавие],ROW()-(33+J73),1)),ISBLANK(INDEX(Данные[Автор, заглавие],ROW()-(33+J73),1))),"",INDEX(Данные[Кол-во экз.],ROW()-(33+J73),1)) ->  | I73: =IF(OR(ISERR(INDEX(Данные[Автор, заглавие],ROW()-(33+J73),1)),ISBLANK(INDEX(Данные[Автор, заглавие],ROW()-(33+J73),1))),"",INDEX(Данные[Стои-мость],ROW()-(33+J73),1)) ->  | J73: 2
A74: =IFERROR(INDEX(Данные[№пп],ROW()-(33+J74),1),"") ->  | B74: =IF(OR(ISERR(INDEX(Данные[Инв. №],ROW()-(33+J74),1)),ISBLANK(INDEX(Данные[Инв. №],ROW()-(33+J74),1))),"",INDEX(Данные[Инв. №],ROW()-(33+J74),1)) ->  | C74: =IF(OR(ISERR(INDEX(Данные[Автор, заглавие],ROW()-(33+J74),1)),ISBLANK(INDEX(Данные[Автор, заглавие],ROW()-(33+J74),1))),"",INDEX(Данные[Автор, заглавие],ROW()-(33+J74),1)) ->  | D74: =IF(OR(ISERR(INDEX(Данные[Год издания],ROW()-(33+J74),1)),ISBLANK(INDEX(Данные[Год издания],ROW()-(33+J74),1))),"",INDEX(Данные[Год издания],ROW()-(33+J74),1)) ->  | E74: =IF(OR(ISERR(INDEX(Данные[Отдел],ROW()-(33+J74),1)),ISBLANK(INDEX(Данные[Отдел],ROW()-(33+J74),1))),"",INDEX(Данные[Отдел],ROW()-(33+J74),1)) ->  | F74: =IF(OR(ISERR(INDEX(Данные[Цена],ROW()-(33+J74),1)),ISBLANK(INDEX(Данные[Цена],ROW()-(33+J74),1))),"",INDEX(Данные[Цена],ROW()-(33+J74),1)) ->  | G74: =IFERROR(INDEX(Данные[Коэффициент переоценки],ROW()-(33+J74),1),"") ->  | H74: =IF(OR(ISERR(INDEX(Данные[Автор, заглавие],ROW()-(33+J74),1)),ISBLANK(INDEX(Данные[Автор, заглавие],ROW()-(33+J74),1))),"",INDEX(Данные[Кол-во экз.],ROW()-(33+J74),1)) ->  | I74: =IF(OR(ISERR(INDEX(Данные[Автор, заглавие],ROW()-(33+J74),1)),ISBLANK(INDEX(Данные[Автор, заглавие],ROW()-(33+J74),1))),"",INDEX(Данные[Стои-мость],ROW()-(33+J74),1)) ->  | J74: 2
A75: =IFERROR(INDEX(Данные[№пп],ROW()-(33+J75),1),"") ->  | B75: =IF(OR(ISERR(INDEX(Данные[Инв. №],ROW()-(33+J75),1)),ISBLANK(INDEX(Данные[Инв. №],ROW()-(33+J75),1))),"",INDEX(Данные[Инв. №],ROW()-(33+J75),1)) ->  | C75: =IF(OR(ISERR(INDEX(Данные[Автор, заглавие],ROW()-(33+J75),1)),ISBLANK(INDEX(Данные[Автор, заглавие],ROW()-(33+J75),1))),"",INDEX(Данные[Автор, заглавие],ROW()-(33+J75),1)) ->  | D75: =IF(OR(ISERR(INDEX(Данные[Год издания],ROW()-(33+J75),1)),ISBLANK(INDEX(Данные[Год издания],ROW()-(33+J75),1))),"",INDEX(Данные[Год издания],ROW()-(33+J75),1)) ->  | E75: =IF(OR(ISERR(INDEX(Данные[Отдел],ROW()-(33+J75),1)),ISBLANK(INDEX(Данные[Отдел],ROW()-(33+J75),1))),"",INDEX(Данные[Отдел],ROW()-(33+J75),1)) ->  | F75: =IF(OR(ISERR(INDEX(Данные[Цена],ROW()-(33+J75),1)),ISBLANK(INDEX(Данные[Цена],ROW()-(33+J75),1))),"",INDEX(Данные[Цена],ROW()-(33+J75),1)) ->  | G75: =IFERROR(INDEX(Данные[Коэффициент переоценки],ROW()-(33+J75),1),"") ->  | H75: =IF(OR(ISERR(INDEX(Данные[Автор, заглавие],ROW()-(33+J75),1)),ISBLANK(INDEX(Данные[Автор, заглавие],ROW()-(33+J75),1))),"",INDEX(Данные[Кол-во экз.],ROW()-(33+J75),1)) ->  | I75: =IF(OR(ISERR(INDEX(Данные[Автор, заглавие],ROW()-(33+J75),1)),ISBLANK(INDEX(Данные[Автор, заглавие],ROW()-(33+J75),1))),"",INDEX(Данные[Стои-мость],ROW()-(33+J75),1)) ->  | J75: 2
A76: =IFERROR(INDEX(Данные[№пп],ROW()-(33+J76),1),"") ->  | B76: =IF(OR(ISERR(INDEX(Данные[Инв. №],ROW()-(33+J76),1)),ISBLANK(INDEX(Данные[Инв. №],ROW()-(33+J76),1))),"",INDEX(Данные[Инв. №],ROW()-(33+J76),1)) ->  | C76: =IF(OR(ISERR(INDEX(Данные[Автор, заглавие],ROW()-(33+J76),1)),ISBLANK(INDEX(Данные[Автор, заглавие],ROW()-(33+J76),1))),"",INDEX(Данные[Автор, заглавие],ROW()-(33+J76),1)) ->  | D76: =IF(OR(ISERR(INDEX(Данные[Год издания],ROW()-(33+J76),1)),ISBLANK(INDEX(Данные[Год издания],ROW()-(33+J76),1))),"",INDEX(Данные[Год издания],ROW()-(33+J76),1)) ->  | E76: =IF(OR(ISERR(INDEX(Данные[Отдел],ROW()-(33+J76),1)),ISBLANK(INDEX(Данные[Отдел],ROW()-(33+J76),1))),"",INDEX(Данные[Отдел],ROW()-(33+J76),1)) ->  | F76: =IF(OR(ISERR(INDEX(Данные[Цена],ROW()-(33+J76),1)),ISBLANK(INDEX(Данные[Цена],ROW()-(33+J76),1))),"",INDEX(Данные[Цена],ROW()-(33+J76),1)) ->  | G76: =IFERROR(INDEX(Данные[Коэффициент переоценки],ROW()-(33+J76),1),"") ->  | H76: =IF(OR(ISERR(INDEX(Данные[Автор, заглавие],ROW()-(33+J76),1)),ISBLANK(INDEX(Данные[Автор, заглавие],ROW()-(33+J76),1))),"",INDEX(Данные[Кол-во экз.],ROW()-(33+J76),1)) ->  | I76: =IF(OR(ISERR(INDEX(Данные[Автор, заглавие],ROW()-(33+J76),1)),ISBLANK(INDEX(Данные[Автор, заглавие],ROW()-(33+J76),1))),"",INDEX(Данные[Стои-мость],ROW()-(33+J76),1)) ->  | J76: 2
A77: =IFERROR(INDEX(Данные[№пп],ROW()-(33+J77),1),"") ->  | B77: =IF(OR(ISERR(INDEX(Данные[Инв. №],ROW()-(33+J77),1)),ISBLANK(INDEX(Данные[Инв. №],ROW()-(33+J77),1))),"",INDEX(Данные[Инв. №],ROW()-(33+J77),1)) ->  | C77: =IF(OR(ISERR(INDEX(Данные[Автор, заглавие],ROW()-(33+J77),1)),ISBLANK(INDEX(Данные[Автор, заглавие],ROW()-(33+J77),1))),"",INDEX(Данные[Автор, заглавие],ROW()-(33+J77),1)) ->  | D77: =IF(OR(ISERR(INDEX(Данные[Год издания],ROW()-(33+J77),1)),ISBLANK(INDEX(Данные[Год издания],ROW()-(33+J77),1))),"",INDEX(Данные[Год издания],ROW()-(33+J77),1)) ->  | E77: =IF(OR(ISERR(INDEX(Данные[Отдел],ROW()-(33+J77),1)),ISBLANK(INDEX(Данные[Отдел],ROW()-(33+J77),1))),"",INDEX(Данные[Отдел],ROW()-(33+J77),1)) ->  | F77: =IF(OR(ISERR(INDEX(Данные[Цена],ROW()-(33+J77),1)),ISBLANK(INDEX(Данные[Цена],ROW()-(33+J77),1))),"",INDEX(Данные[Цена],ROW()-(33+J77),1)) ->  | G77: =IFERROR(INDEX(Данные[Коэффициент переоценки],ROW()-(33+J77),1),"") ->  | H77: =IF(OR(ISERR(INDEX(Данные[Автор, заглавие],ROW()-(33+J77),1)),ISBLANK(INDEX(Данные[Автор, заглавие],ROW()-(33+J77),1))),"",INDEX(Данные[Кол-во экз.],ROW()-(33+J77),1)) ->  | I77: =IF(OR(ISERR(INDEX(Данные[Автор, заглавие],ROW()-(33+J77),1)),ISBLANK(INDEX(Данные[Автор, заглавие],ROW()-(33+J77),1))),"",INDEX(Данные[Стои-мость],ROW()-(33+J77),1)) ->  | J77: 2
A78: =IFERROR(INDEX(Данные[№пп],ROW()-(33+J78),1),"") ->  | B78: =IF(OR(ISERR(INDEX(Данные[Инв. №],ROW()-(33+J78),1)),ISBLANK(INDEX(Данные[Инв. №],ROW()-(33+J78),1))),"",INDEX(Данные[Инв. №],ROW()-(33+J78),1)) ->  | C78: =IF(OR(ISERR(INDEX(Данные[Автор, заглавие],ROW()-(33+J78),1)),ISBLANK(INDEX(Данные[Автор, заглавие],ROW()-(33+J78),1))),"",INDEX(Данные[Автор, заглавие],ROW()-(33+J78),1)) ->  | D78: =IF(OR(ISERR(INDEX(Данные[Год издания],ROW()-(33+J78),1)),ISBLANK(INDEX(Данные[Год издания],ROW()-(33+J78),1))),"",INDEX(Данные[Год издания],ROW()-(33+J78),1)) ->  | E78: =IF(OR(ISERR(INDEX(Данные[Отдел],ROW()-(33+J78),1)),ISBLANK(INDEX(Данные[Отдел],ROW()-(33+J78),1))),"",INDEX(Данные[Отдел],ROW()-(33+J78),1)) ->  | F78: =IF(OR(ISERR(INDEX(Данные[Цена],ROW()-(33+J78),1)),ISBLANK(INDEX(Данные[Цена],ROW()-(33+J78),1))),"",INDEX(Данные[Цена],ROW()-(33+J78),1)) ->  | G78: =IFERROR(INDEX(Данные[Коэффициент переоценки],ROW()-(33+J78),1),"") ->  | H78: =IF(OR(ISERR(INDEX(Данные[Автор, заглавие],ROW()-(33+J78),1)),ISBLANK(INDEX(Данные[Автор, заглавие],ROW()-(33+J78),1))),"",INDEX(Данные[Кол-во экз.],ROW()-(33+J78),1)) ->  | I78: =IF(OR(ISERR(INDEX(Данные[Автор, заглавие],ROW()-(33+J78),1)),ISBLANK(INDEX(Данные[Автор, заглавие],ROW()-(33+J78),1))),"",INDEX(Данные[Стои-мость],ROW()-(33+J78),1)) ->  | J78: 2
A79: =IFERROR(INDEX(Данные[№пп],ROW()-(33+J79),1),"") ->  | B79: =IF(OR(ISERR(INDEX(Данные[Инв. №],ROW()-(33+J79),1)),ISBLANK(INDEX(Данные[Инв. №],ROW()-(33+J79),1))),"",INDEX(Данные[Инв. №],ROW()-(33+J79),1)) ->  | C79: =IF(OR(ISERR(INDEX(Данные[Автор, заглавие],ROW()-(33+J79),1)),ISBLANK(INDEX(Данные[Автор, заглавие],ROW()-(33+J79),1))),"",INDEX(Данные[Автор, заглавие],ROW()-(33+J79),1)) ->  | D79: =IF(OR(ISERR(INDEX(Данные[Год издания],ROW()-(33+J79),1)),ISBLANK(INDEX(Данные[Год издания],ROW()-(33+J79),1))),"",INDEX(Данные[Год издания],ROW()-(33+J79),1)) ->  | E79: =IF(OR(ISERR(INDEX(Данные[Отдел],ROW()-(33+J79),1)),ISBLANK(INDEX(Данные[Отдел],ROW()-(33+J79),1))),"",INDEX(Данные[Отдел],ROW()-(33+J79),1)) ->  | F79: =IF(OR(ISERR(INDEX(Данные[Цена],ROW()-(33+J79),1)),ISBLANK(INDEX(Данные[Цена],ROW()-(33+J79),1))),"",INDEX(Данные[Цена],ROW()-(33+J79),1)) ->  | G79: =IFERROR(INDEX(Данные[Коэффициент переоценки],ROW()-(33+J79),1),"") ->  | H79: =IF(OR(ISERR(INDEX(Данные[Автор, заглавие],ROW()-(33+J79),1)),ISBLANK(INDEX(Данные[Автор, заглавие],ROW()-(33+J79),1))),"",INDEX(Данные[Кол-во экз.],ROW()-(33+J79),1)) ->  | I79: =IF(OR(ISERR(INDEX(Данные[Автор, заглавие],ROW()-(33+J79),1)),ISBLANK(INDEX(Данные[Автор, заглавие],ROW()-(33+J79),1))),"",INDEX(Данные[Стои-мость],ROW()-(33+J79),1)) ->  | J79: 2
A80: =IFERROR(INDEX(Данные[№пп],ROW()-(33+J80),1),"") ->  | B80: =IF(OR(ISERR(INDEX(Данные[Инв. №],ROW()-(33+J80),1)),ISBLANK(INDEX(Данные[Инв. №],ROW()-(33+J80),1))),"",INDEX(Данные[Инв. №],ROW()-(33+J80),1)) ->  | C80: =IF(OR(ISERR(INDEX(Данные[Автор, заглавие],ROW()-(33+J80),1)),ISBLANK(INDEX(Данные[Автор, заглавие],ROW()-(33+J80),1))),"",INDEX(Данные[Автор, заглавие],ROW()-(33+J80),1)) ->  | D80: =IF(OR(ISERR(INDEX(Данные[Год издания],ROW()-(33+J80),1)),ISBLANK(INDEX(Данные[Год издания],ROW()-(33+J80),1))),"",INDEX(Данные[Год издания],ROW()-(33+J80),1)) ->  | E80: =IF(OR(ISERR(INDEX(Данные[Отдел],ROW()-(33+J80),1)),ISBLANK(INDEX(Данные[Отдел],ROW()-(33+J80),1))),"",INDEX(Данные[Отдел],ROW()-(33+J80),1)) ->  | F80: =IF(OR(ISERR(INDEX(Данные[Цена],ROW()-(33+J80),1)),ISBLANK(INDEX(Данные[Цена],ROW()-(33+J80),1))),"",INDEX(Данные[Цена],ROW()-(33+J80),1)) ->  | G80: =IFERROR(INDEX(Данные[Коэффициент переоценки],ROW()-(33+J80),1),"") ->  | H80: =IF(OR(ISERR(INDEX(Данные[Автор, заглавие],ROW()-(33+J80),1)),ISBLANK(INDEX(Данные[Автор, заглавие],ROW()-(33+J80),1))),"",INDEX(Данные[Кол-во экз.],ROW()-(33+J80),1)) ->  | I80: =IF(OR(ISERR(INDEX(Данные[Автор, заглавие],ROW()-(33+J80),1)),ISBLANK(INDEX(Данные[Автор, заглавие],ROW()-(33+J80),1))),"",INDEX(Данные[Стои-мость],ROW()-(33+J80),1)) ->  | J80: 2
A81: =IFERROR(INDEX(Данные[№пп],ROW()-(33+J81),1),"") ->  | B81: =IF(OR(ISERR(INDEX(Данные[Инв. №],ROW()-(33+J81),1)),ISBLANK(INDEX(Данные[Инв. №],ROW()-(33+J81),1))),"",INDEX(Данные[Инв. №],ROW()-(33+J81),1)) ->  | C81: =IF(OR(ISERR(INDEX(Данные[Автор, заглавие],ROW()-(33+J81),1)),ISBLANK(INDEX(Данные[Автор, заглавие],ROW()-(33+J81),1))),"",INDEX(Данные[Автор, заглавие],ROW()-(33+J81),1)) ->  | D81: =IF(OR(ISERR(INDEX(Данные[Год издания],ROW()-(33+J81),1)),ISBLANK(INDEX(Данные[Год издания],ROW()-(33+J81),1))),"",INDEX(Данные[Год издания],ROW()-(33+J81),1)) ->  | E81: =IF(OR(ISERR(INDEX(Данные[Отдел],ROW()-(33+J81),1)),ISBLANK(INDEX(Данные[Отдел],ROW()-(33+J81),1))),"",INDEX(Данные[Отдел],ROW()-(33+J81),1)) ->  | F81: =IF(OR(ISERR(INDEX(Данные[Цена],ROW()-(33+J81),1)),ISBLANK(INDEX(Данные[Цена],ROW()-(33+J81),1))),"",INDEX(Данные[Цена],ROW()-(33+J81),1)) ->  | G81: =IFERROR(INDEX(Данные[Коэффициент переоценки],ROW()-(33+J81),1),"") ->  | H81: =IF(OR(ISERR(INDEX(Данные[Автор, заглавие],ROW()-(33+J81),1)),ISBLANK(INDEX(Данные[Автор, заглавие],ROW()-(33+J81),1))),"",INDEX(Данные[Кол-во экз.],ROW()-(33+J81),1)) ->  | I81: =IF(OR(ISERR(INDEX(Данные[Автор, заглавие],ROW()-(33+J81),1)),ISBLANK(INDEX(Данные[Автор, заглавие],ROW()-(33+J81),1))),"",INDEX(Данные[Стои-мость],ROW()-(33+J81),1)) ->  | J81: 2
A82: =IFERROR(INDEX(Данные[№пп],ROW()-(33+J82),1),"") ->  | B82: =IF(OR(ISERR(INDEX(Данные[Инв. №],ROW()-(33+J82),1)),ISBLANK(INDEX(Данные[Инв. №],ROW()-(33+J82),1))),"",INDEX(Данные[Инв. №],ROW()-(33+J82),1)) ->  | C82: =IF(OR(ISERR(INDEX(Данные[Автор, заглавие],ROW()-(33+J82),1)),ISBLANK(INDEX(Данные[Автор, заглавие],ROW()-(33+J82),1))),"",INDEX(Данные[Автор, заглавие],ROW()-(33+J82),1)) ->  | D82: =IF(OR(ISERR(INDEX(Данные[Год издания],ROW()-(33+J82),1)),ISBLANK(INDEX(Данные[Год издания],ROW()-(33+J82),1))),"",INDEX(Данные[Год издания],ROW()-(33+J82),1)) ->  | E82: =IF(OR(ISERR(INDEX(Данные[Отдел],ROW()-(33+J82),1)),ISBLANK(INDEX(Данные[Отдел],ROW()-(33+J82),1))),"",INDEX(Данные[Отдел],ROW()-(33+J82),1)) ->  | F82: =IF(OR(ISERR(INDEX(Данные[Цена],ROW()-(33+J82),1)),ISBLANK(INDEX(Данные[Цена],ROW()-(33+J82),1))),"",INDEX(Данные[Цена],ROW()-(33+J82),1)) ->  | G82: =IFERROR(INDEX(Данные[Коэффициент переоценки],ROW()-(33+J82),1),"") ->  | H82: =IF(OR(ISERR(INDEX(Данные[Автор, заглавие],ROW()-(33+J82),1)),ISBLANK(INDEX(Данные[Автор, заглавие],ROW()-(33+J82),1))),"",INDEX(Данные[Кол-во экз.],ROW()-(33+J82),1)) ->  | I82: =IF(OR(ISERR(INDEX(Данные[Автор, заглавие],ROW()-(33+J82),1)),ISBLANK(INDEX(Данные[Автор, заглавие],ROW()-(33+J82),1))),"",INDEX(Данные[Стои-мость],ROW()-(33+J82),1)) ->  | J82: 2
